Workbook

Sheet Inputs
A1: Note: Input Values in English Units | D1: Units (Output)
A2: Type of Simulation | J2: 2
A3: From Establishment (Planting) | H3: =IF($J$3=1,TRUE,FALSE) -> TRUE | I3: =+IF(H3=TRUE,1,0) -> 1 | J3: 1
A4: From Inventory Post Establishment | F4: =+IF($J$8=1,"WARNING: SI out of Range","") ->  | H4: =IF($J$3=2,TRUE,FALSE) -> FALSE | I4: =+IF(H4=TRUE,1,0) -> 0 | K4: start_plot | L4: =+IF(H3=TRUE,$H$7-1,$H$7) -> 0
D5: Simulation From Inventory | E5: =+IF(C2<>"","",IF(AND(L8=0,$J$3=2),"Must Select One","")) ->  | K5: end_plot | L5: =+IF(Inputs!$H$18=TRUE,$B$19*$B$6,Inputs!$B$6) -> 80
A6: Rotation Age (yr.) | B6: 80 | C6: Required | D6: From Inventory Tree List | I6: =+SUM(I3:I4) -> 1 | J6: warning | K6: =IF($L$8=1,TRUE,FALSE) -> FALSE | L6: =+IF(K6=TRUE,1,0) -> 0
B7: =+IF($B$6<=H7,"Error…Rotation Age <= Starting Age !!","") ->  | C7: =+IF($B$6>94,"Age Error !!","") ->  | D7: From Inventory Summary | H7: =IF($H$3=TRUE,1,IF(K6=TRUE,E11,F11)) -> 1 | I7: Starting Age | J7: =+IF($B$10*2.47105>2850,1,0) -> 0 | K7: =IF($L$8=2,TRUE,FALSE) -> TRUE | L7: 1
F8: =+IF(AND($K$6=TRUE,$L$14=0,$H$4=TRUE),"Need to Input Inventory Data","") ->  | H8: =+IF($H$3=TRUE,$H$13,$J$14) -> 22.86 | I8: SI | J8: =+IF($B$12*0.3048>31,1,IF($B$12*0.3048<=19.51,1,0)) -> 0 | L8: 2
A9: Simulation From Planting | D9: Simulation From Inventory (Data From Inventory List or from external summary
A10: TPA planting | B10: 650 | C10: =+IF($H$3=TRUE,"Required",IF(AND($H$4=TRUE,$H$18=TRUE),"Req. for Mult. Rot.","")) -> Required | D10: INPUTS | E10: From Inventory Tab | F10: Enter Inventory Summary | H10: From Planting | I10: Metric | J10: Inventory | K10: Metric
A11: Survival year 1 | B11: 0.9 | C11: =+IF($H$3=TRUE,"Required",IF(AND($H$4=TRUE,$H$18=TRUE),"Req. for Mult. Rot.","")) -> Required | D11: Age | E11: =+IF($H$4=FALSE,"",IF($K$7=TRUE,"",IF(Inventory!$Q$3="","",Inventory!$Q$3))) ->  | F11: 40 | G11: =+IF(AND($H$4=TRUE,$K$7=TRUE),"Required","") ->  | H11: =+B10*2.47105 -> 1606.1825 | I11: N | J11: =IF($H$4=FALSE,0,J14*((1-EXP('Equations - Parameters'!$E$15*H7))/(1-EXP('Equations - Parameters'!$E$15*50)))^'Equations - Parameters'!$F$15) -> 0 | K11: (Hdom) | L11: =+IF(E11<>"",1,0) + IF(F11<>"",1,0) -> 1
A12: Site Index (ft) base age =50 | B12: 75 | C12: =+IF($H$3=TRUE,"Required",IF(AND($H$4=TRUE,$H$18=TRUE),"Not. Req. for Mult. Rot.","")) -> Required | D12: Stem Density (trees / acre) | E12: =+IF($H$4=FALSE,"",IF($K$7=TRUE,"",IF(Inventory!$V$4="","",Inventory!$V$4))) ->  | F12: 161.877 | G12: =+IF(AND($H$4=TRUE,$K$7=TRUE),"Required","") ->  | J12: =+IF($H$4=FALSE,0,IF($K$6=TRUE,E12*2.47105,F12*2.47105)) -> 0 | K12: N | L12: =+IF(E12<>"",1,0) + IF(F12<>"",1,0) -> 1
B13: =+IF($H$3=TRUE,"Required",IF(AND($H$4=TRUE,$H$18=TRUE),"Use SI from Inventory","")) -> Required | C13: =IF(AND($J$3=1,$B$10=""),"Enter Value",IF(AND($J$3=1,$B$11=""),"Enter Value",IF(AND($J$3=1,$B$12=""),"Enter Value",""))) ->  | D13: BA (ft2 / acre) | E13: =+IF($H$4=FALSE,"",IF($K$7=TRUE,"",IF(Inventory!$V$5="","",Inventory!$V$5))) ->  | G13: =+IF(AND($H$4=TRUE,$K$7=TRUE),"Optional","") ->  | H13: =+IF($J$3=1,$B$12*0.3048,$J$14) -> 22.86 | I13: SI | J13: =+IF($H$4=FALSE,0,IF($K$6=TRUE,E13*0.229568,IF(AND($K$7=TRUE,F13<>""),F13*0.229568,EXP('Equations - Parameters'!$D$21+'Equations - Parameters'!$E$21*LN($J$12)+'Equations - Parameters'!$F$21*LN($J$11))))) -> 0 | K13: BA | L13: =+IF(E13<>"",1,0) + IF(F13<>"",1,0) -> 0
A14: =+IF($J$8=1,"WARNING: SI out of Range","") ->  | D14: Site Index (ft) base age =50 | E14: =+IF($H$4=FALSE,"",IF($K$7=TRUE,"",IF(Inventory!$V$7="","",Inventory!$V$7))) ->  | F14: 75.46 | G14: =+IF(AND($H$4=TRUE,$K$7=TRUE),"Required","") ->  | J14: =IF($H$4=FALSE,0,IF($K$6=TRUE,E14*0.3048,F14*0.3048)) -> 0 | K14: SI | L14: =+IF(E14<>"",1,0) + IF(F14<>"",1,0) -> 1
A15: Simulate Thinning? | C15: Optional | E15: =+IF($H$3=TRUE,"",IF(AND($K$6=TRUE,$E$13=""),"Need To Fill Data List","")) ->  | F15: =+IF($H$3=TRUE,"",IF(AND(L15<3,$K$7=TRUE),"Need to Enter Data","")) ->  | H15: FALSE | I15: =+IF(H15=TRUE,1,0) -> 0 | L15: =+SUM(L11,L12,L14) -> 3
D16: Already Thinned ? | F16: =+IF($H$4=TRUE,"Required","") ->  | J16: =+J13*4.356 -> 0 | L16: TRUE
A17: Assessing C Balance? | C17: Optional
A18: Simulate Multiple Rotations | C18: =+IF(B19*B6>500,"Error…... Maximum Simulation Length: 500 yrs.","") ->  | H18: FALSE | I18: =+IF(H18=TRUE,1,0) -> 0
A19: # Rotations to Simulate ? | B19: 4 | C19: =+IF(AND($H$18=TRUE,$B$19=""),"Need to Enter # Rotations","") -> 
D20: Burning Residues at Site Prep.? | F20: =+IF($H$18=TRUE, "Required","") ->  | H20: TRUE | I20: 0
A21: Thinning Type | B21: =IF($H$15=TRUE,"Select Type","") ->  | D21: Prescribed Burning | E21: =+IF(AND($E$22<>"",$E$23<>"",$E$22<H7),"Error…Age !!","") -> 
A22: Fixed Age | D22: Age first prescribed burned | E22: 9 | F22: =+IF($H$18=TRUE, "Required","") ->  | H22: =IF($J$22=1,TRUE,FALSE) -> TRUE | I22: =+IF(H22=TRUE,1,0) -> 1 | J22: 1 | L22: FALSE
A23: Target BA | D23: Burning Frequency (yrs.) | E23: 5 | H23: =IF($J$22=2,TRUE,FALSE) -> FALSE | I23: =+IF(H23=TRUE,1,0) -> 0 | L23: FALSE
A24: Target SDI | D24: Burned Before ? | H24: =IF($J$22=3,TRUE,FALSE) -> FALSE | I24: 0 | K24: FALSE | L24: FALSE
F25: =+IF($E$22>$B$6, "Error !","") ->  | H25: =+I22+I23*2+I24*3 -> 1 | I25: =+SUM(I22:I24) -> 1
A26: Thinning at Fixed Age | B26: Age (years) | C26: % Removal | D26: =+IF(AND(H22=TRUE,$H$15=TRUE),"Required","Not Needed") -> Not Needed
A27: Th1 | B27: 20 | C27: 0.33 | D27: =+IF(B27="","",IF($I$15=0,"",IF(AND($H$22=TRUE,B27<=$H$7),"ERROR IN THINNING AGE",IF(AND($H$22=TRUE,B27>$B$6),"ERROR IN THINNING AGE","")))) ->  | H27: Errors | I27: =IF($F$15<>"",1,0)+ IF($D$27<>"",1,0)+ IF($D$28<>"",1,0)+ IF($D$29<>"",1,0)+ IF($D$30<>"",1,0)+ IF($E$21<>"",1,0)+ IF($F$25<>"",1,0)+ IF($E$15<>"",1,0)+ IF($C$18<>"",1,0)+ IF($C$19<>"",1,0) + IF($B$6="",1,0) + IF($B$6<H7,1,0) + IF($B$7<>"",1,0) + IF($B$6<H7,1,0) + IF($C$13<>"",1,0) -> 0
A28: Th2 | B28: 50 | C28: 0.33 | D28: =+IF(B28="","",IF($I$15=0,"",IF(AND($H$22=TRUE,B28<=$H$7),"ERROR IN THINNING AGE",IF(AND($H$22=TRUE,B28>$B$6),"ERROR IN THINNING AGE","")))) -> 
A29: Th3 | B29: 60 | C29: 0.33 | D29: =+IF(B29="","",IF($I$15=0,"",IF(AND($H$22=TRUE,B29<=$H$7),"ERROR IN THINNING AGE",IF(AND($H$22=TRUE,B29>$B$6),"ERROR IN THINNING AGE","")))) ->  | H29: MultiRun_ST | I29: =+'LLM-ST'!L2 -> 1
A30: Th4 | D30: =+IF(B30="","",IF($I$15=0,"",IF(AND($H$22=TRUE,B30<=$H$7),"ERROR IN THINNING AGE",IF(AND($H$22=TRUE,B30>$B$6),"ERROR IN THINNING AGE","")))) -> 
A32: Upper Stocking Limit BA | B32: Residual BA | C32: =+IF($H$23=TRUE,"Required","Not Needed") -> Not Needed
A33: (ft2 / acre) | B33: (ft2 / acre)
A34: 113.256 | B34: 78.408 | H34: =0.229568*$A$34 -> 25.99995341 | I34: =0.229568*$B$34 -> 17.99996774
A36: Target SDI - Limits (% of Max.) | C36: =+IF($H$24=TRUE,"Required","Not Needed") -> Not Needed
A37: Self-thinning threshold | B37: Lower-Limit Full Site Occupancy | C37: Maximum SDI = | D37: 450 | E37: Trees per acre
A38: 0.55 | B38: 0.3 | H38: =+$A$38*$D$37*2.47105 -> 611.584875 | I38: =+$B$38*$D$37*2.47105 -> 333.59175
C51: Maximum SDI = | D51: 486

Sheet weibull (hidden)
A1: Age | B1: N | C1: Hdom | D1: BA | E1: Dq | F1: DBH Class | G1: a | H1: b | I1: c | J1: Weibull | K1: Weibull | L1: Freq
A2: Yrs. | B2: Trees/acre | C2: ft | D2: ft2/acre | E2: inch | F2: inch
A3: =+'Summary_G&Y'!B4 -> 1 | B3: =+'Summary_G&Y'!C4 -> 584.9996141 | C3: =+'Summary_G&Y'!D4 -> 1.286622357 | D3: =+'Summary_G&Y'!E4 -> 0 | E3: =+'Summary_G&Y'!F4 -> 0 | F3: =+IF(A3="","",1) -> 1 | G3: =+IF(A3="","",0.33) -> 0.33 | H3: =+IF(A3="","",8.939 + 0.4232*A3-0.0439*A3*LN(B3) - 55.9923/SQRT(C3) + 248.8361/(A3*SQRT(C3))) -> 179.0947045 | I3: =+IF(A3="","",1.3879 - 0.9166/H3) -> 1.382782037 | J3: =+IF(A3="","",1-EXP((-1*(((F3-G3)/H3)^(I3))))) -> 0.000440434526 | K3: =+IF(A3="","",J3) -> 0.000440434526 | L3: =+IF(A3="","",ROUND(K3*B3,0)) -> 0
A4: =+A3 -> 1 | B4: =+B3 -> 584.9996141 | C4: 1.286622357 | D4: 0 | E4: 0 | F4: =+IF(A4="","",F3+1) -> 2 | G4: 0.33 | H4: 179.0947045 | I4: 1.382782037 | J4: 0.001556351937 | K4: =+IF(A3="","",J4-J3) -> 0.001115917411 | L4: 1
A5: =+A4 -> 1 | B5: 584.9996141 | C5: 1.286622357 | D5: 0 | E5: 0 | F5: =+IF(A5="","",F4+1) -> 3 | G5: 0.33 | H5: 179.0947045 | I5: 1.382782037 | J5: 0.002975793389 | K5: 0.001419441452 | L5: 1
A6: 1 | B6: 584.9996141 | C6: 1.286622357 | D6: 0 | E6: 0 | F6: 4 | G6: 0.33 | H6: 179.0947045 | I6: 1.382782037 | J6: 0.004616187246 | K6: 0.001640393857 | L6: 1
A7: 1 | B7: 584.9996141 | C7: 1.286622357 | D7: 0 | E7: 0 | F7: 5 | G7: 0.33 | H7: 179.0947045 | I7: 1.382782037 | J7: 0.006435699464 | K7: 0.001819512218 | L7: 1
A8: 1 | B8: 584.9996141 | C8: 1.286622357 | D8: 0 | E8: 0 | F8: 6 | G8: 0.33 | H8: 179.0947045 | I8: 1.382782037 | J8: 0.008407881697 | K8: 0.001972182233 | L8: 1
A9: 1 | B9: 584.9996141 | C9: 1.286622357 | D9: 0 | E9: 0 | F9: 7 | G9: 0.33 | H9: 179.0947045 | I9: 1.382782037 | J9: 0.01051407049 | K9: 0.002106188796 | L9: 1
A10: 1 | B10: 584.9996141 | C10: 1.286622357 | D10: 0 | E10: 0 | F10: 8 | G10: 0.33 | H10: 179.0947045 | I10: 1.382782037 | J10: 0.01274017795 | K10: 0.002226107463 | L10: 1
A11: 1 | B11: 584.9996141 | C11: 1.286622357 | D11: 0 | E11: 0 | F11: 9 | G11: 0.33 | H11: 179.0947045 | I11: 1.382782037 | J11: 0.01507507046 | K11: 0.002334892504 | L11: 1
A12: 1 | B12: 584.9996141 | C12: 1.286622357 | D12: 0 | E12: 0 | F12: 10 | G12: 0.33 | H12: 179.0947045 | I12: 1.382782037 | J12: 0.0175096503 | K12: 0.002434579839 | L12: 1
A13: 1 | B13: 584.9996141 | C13: 1.286622357 | D13: 0 | E13: 0 | F13: 11 | G13: 0.33 | H13: 179.0947045 | I13: 1.382782037 | J13: 0.02003629195 | K13: 0.002526641657 | L13: 1
A14: 1 | B14: 584.9996141 | C14: 1.286622357 | D14: 0 | E14: 0 | F14: 12 | G14: 0.33 | H14: 179.0947045 | I14: 1.382782037 | J14: 0.02264847467 | K14: 0.002612182714 | L14: 2
A15: 1 | B15: 584.9996141 | C15: 1.286622357 | D15: 0 | E15: 0 | F15: 13 | G15: 0.33 | H15: 179.0947045 | I15: 1.382782037 | J15: 0.02534053154 | K15: 0.002692056875 | L15: 2
A16: 1 | B16: 584.9996141 | C16: 1.286622357 | D16: 0 | E16: 0 | F16: 14 | G16: 0.33 | H16: 179.0947045 | I16: 1.382782037 | J16: 0.02810747172 | K16: 0.002766940175 | L16: 2
A17: 1 | B17: 584.9996141 | C17: 1.286622357 | D17: 0 | E17: 0 | F17: 15 | G17: 0.33 | H17: 179.0947045 | I17: 1.382782037 | J17: 0.03094485041 | K17: 0.002837378691 | L17: 2
A18: 1 | B18: 584.9996141 | C18: 1.286622357 | D18: 0 | E18: 0 | F18: 16 | G18: 0.33 | H18: 179.0947045 | I18: 1.382782037 | J18: 0.03384867149 | K18: 0.002903821075 | L18: 2
A19: 1 | B19: 584.9996141 | C19: 1.286622357 | D19: 0 | E19: 0 | F19: 17 | G19: 0.33 | H19: 179.0947045 | I19: 1.382782037 | J19: 0.03681531282 | K19: 0.002966641338 | L19: 2
A20: 1 | B20: 584.9996141 | C20: 1.286622357 | D20: 0 | E20: 0 | F20: 18 | G20: 0.33 | H20: 179.0947045 | I20: 1.382782037 | J20: 0.03984146806 | K20: 0.003026155233 | L20: 2
A21: =+A20 -> 1 | B21: 584.9996141 | C21: 1.286622357 | D21: 0 | E21: 0 | F21: 19 | G21: 0.33 | H21: 179.0947045 | I21: 1.382782037 | J21: 0.04292410035 | K21: 0.003082632296 | L21: 2
A22: 1 | B22: 584.9996141 | C22: 1.286622357 | D22: 0 | E22: 0 | F22: 20 | G22: 0.33 | H22: 179.0947045 | I22: 1.382782037 | J22: 0.04606040523 | K22: 0.00313630488 | L22: 2
A23: 1 | B23: 584.9996141 | C23: 1.286622357 | D23: 0 | E23: 0 | F23: 21 | G23: 0.33 | H23: 179.0947045 | I23: 1.382782037 | J23: 0.04924778027 | K23: 0.003187375037 | L23: 2
A24: 1 | B24: 584.9996141 | C24: 1.286622357 | D24: 0 | E24: 0 | F24: 22 | G24: 0.33 | H24: 179.0947045 | I24: 1.382782037 | J24: 0.05248380013 | K24: 0.003236019856 | L24: 2
A25: 1 | B25: 584.9996141 | C25: 1.286622357 | D25: 0 | E25: 0 | F25: 23 | G25: 0.33 | H25: 179.0947045 | I25: 1.382782037 | J25: 0.05576619577 | K25: 0.003282395645 | L25: 2
A26: 1 | B26: 584.9996141 | C26: 1.286622357 | D26: 0 | E26: 0 | F26: 24 | G26: 0.33 | H26: 179.0947045 | I26: 1.382782037 | J26: 0.05909283703 | K26: 0.003326641259 | L26: 2
A27: 1 | B27: 584.9996141 | C27: 1.286622357 | D27: 0 | E27: 0 | F27: 25 | G27: 0.33 | H27: 179.0947045 | I27: 1.382782037 | J27: 0.06246171781 | K27: 0.003368880777 | L27: 2
A28: 1 | B28: 584.9996141 | C28: 1.286622357 | D28: 0 | E28: 0 | F28: 26 | G28: 0.33 | H28: 179.0947045 | I28: 1.382782037 | J28: 0.06587094347 | K28: 0.003409225666 | L28: 2
A29: 1 | B29: 584.9996141 | C29: 1.286622357 | D29: 0 | E29: 0 | F29: 27 | G29: 0.33 | H29: 179.0947045 | I29: 1.382782037 | J29: 0.06931872003 | K29: 0.003447776561 | L29: 2
A30: 1 | B30: 584.9996141 | C30: 1.286622357 | D30: 0 | E30: 0 | F30: 28 | G30: 0.33 | H30: 179.0947045 | I30: 1.382782037 | J30: 0.07280334477 | K30: 0.003484624733 | L30: 2
A31: 1 | B31: 584.9996141 | C31: 1.286622357 | D31: 0 | E31: 0 | F31: 29 | G31: 0.33 | H31: 179.0947045 | I31: 1.382782037 | J31: 0.07632319807 | K31: 0.003519853308 | L31: 2
A32: 1 | B32: 584.9996141 | C32: 1.286622357 | D32: 0 | E32: 0 | F32: 30 | G32: 0.33 | H32: 179.0947045 | I32: 1.382782037 | J32: 0.07987673637 | K32: 0.003553538294 | L32: 2
A33: 1 | B33: 584.9996141 | C33: 1.286622357 | D33: 0 | E33: 0 | F33: 31 | G33: 0.33 | H33: 179.0947045 | I33: 1.382782037 | J33: 0.08346248581 | K33: 0.003585749444 | L33: 2
A34: 1 | B34: 584.9996141 | C34: 1.286622357 | D34: 0 | E34: 0 | F34: 32 | G34: 0.33 | H34: 179.0947045 | I34: 1.382782037 | J34: 0.0870790368 | K34: 0.003616550988 | L34: 2
A35: 1 | B35: 584.9996141 | C35: 1.286622357 | D35: 0 | E35: 0 | F35: 33 | G35: 0.33 | H35: 179.0947045 | I35: 1.382782037 | J35: 0.09072503906 | K35: 0.003646002262 | L35: 2
A36: 1 | B36: 584.9996141 | C36: 1.286622357 | D36: 0 | E36: 0 | F36: 34 | G36: 0.33 | H36: 179.0947045 | I36: 1.382782037 | J36: 0.0943991973 | K36: 0.003674158243 | L36: 2
A37: =+A36 -> 1 | B37: 584.9996141 | C37: 1.286622357 | D37: 0 | E37: 0 | F37: 35 | G37: 0.33 | H37: 179.0947045 | I37: 1.382782037 | J37: 0.09810026732 | K37: 0.003701070014 | L37: 2
A38: 1 | B38: 584.9996141 | C38: 1.286622357 | D38: 0 | E38: 0 | F38: 36 | G38: 0.33 | H38: 179.0947045 | I38: 1.382782037 | J38: 0.1018270525 | K38: 0.003726785167 | L38: 2
A39: 1 | B39: 584.9996141 | C39: 1.286622357 | D39: 0 | E39: 0 | F39: 37 | G39: 0.33 | H39: 179.0947045 | I39: 1.382782037 | J39: 0.1055784006 | K39: 0.00375134815 | L39: 2
A40: 1 | B40: 584.9996141 | C40: 1.286622357 | D40: 0 | E40: 0 | F40: 38 | G40: 0.33 | H40: 179.0947045 | I40: 1.382782037 | J40: 0.1093532012 | K40: 0.003774800576 | L40: 2
A41: 1 | B41: 584.9996141 | C41: 1.286622357 | D41: 0 | E41: 0 | F41: 39 | G41: 0.33 | H41: 179.0947045 | I41: 1.382782037 | J41: 0.1131503827 | K41: 0.003797181488 | L41: 2
A42: 1 | B42: 584.9996141 | C42: 1.286622357 | D42: 0 | E42: 0 | F42: 40 | G42: 0.33 | H42: 179.0947045 | I42: 1.382782037 | J42: 0.1169689103 | K42: 0.003818527597 | L42: 2
A43: =+'Summary_G&Y'!B5 -> 2 | B43: =+'Summary_G&Y'!C5 -> 584.9932906 | C43: =+'Summary_G&Y'!D5 -> 3.078629897 | D43: =+'Summary_G&Y'!E5 -> 0 | E43: =+'Summary_G&Y'!F5 -> 0 | F43: =+IF(A43="","",1) -> 1 | G43: 0.33 | H43: 48.22383791 | I43: 1.368892803 | J43: 0.00286475383 | K43: =+IF(A43="","",J43) -> 0.00286475383 | L43: 2
A44: =+A43 -> 2 | B44: =+B43 -> 584.9932906 | C44: 3.078629897 | D44: 0 | E44: 0 | F44: =+IF(A44="","",F43+1) -> 2 | G44: 0.33 | H44: 48.22383791 | I44: 1.368892803 | J44: 0.009965452905 | K44: =+IF(A43="","",J44-J43) -> 0.007100699075 | L44: 4
A45: =+A44 -> 2 | B45: 584.9932906 | C45: 3.078629897 | D45: 0 | E45: 0 | F45: =+IF(A45="","",F44+1) -> 3 | G45: 0.33 | H45: 48.22383791 | I45: 1.368892803 | J45: 0.01885886597 | K45: 0.008893413063 | L45: 5
A46: 2 | B46: 584.9932906 | C46: 3.078629897 | D46: 0 | E46: 0 | F46: 4 | G46: 0.33 | H46: 48.22383791 | I46: 1.368892803 | J46: 0.02899932077 | K46: 0.0101404548 | L46: 6
A47: 2 | B47: 584.9932906 | C47: 3.078629897 | D47: 0 | E47: 0 | F47: 5 | G47: 0.33 | H47: 48.22383791 | I47: 1.368892803 | J47: 0.04010154408 | K47: 0.01110222331 | L47: 6
A48: 2 | B48: 584.9932906 | C48: 3.078629897 | D48: 0 | E48: 0 | F48: 6 | G48: 0.33 | H48: 48.22383791 | I48: 1.368892803 | J48: 0.05197924694 | K48: 0.01187770287 | L48: 7
A49: 2 | B49: 584.9932906 | C49: 3.078629897 | D49: 0 | E49: 0 | F49: 7 | G49: 0.33 | H49: 48.22383791 | I49: 1.368892803 | J49: 0.06449678593 | K49: 0.01251753899 | L49: 7
A50: 2 | B50: 584.9932906 | C50: 3.078629897 | D50: 0 | E50: 0 | F50: 8 | G50: 0.33 | H50: 48.22383791 | I50: 1.368892803 | J50: 0.07754873183 | K50: 0.0130519459 | L50: 8
A51: 2 | B51: 584.9932906 | C51: 3.078629897 | D51: 0 | E51: 0 | F51: 9 | G51: 0.33 | H51: 48.22383791 | I51: 1.368892803 | J51: 0.0910495242 | K51: 0.01350079237 | L51: 8
A52: 2 | B52: 584.9932906 | C52: 3.078629897 | D52: 0 | E52: 0 | F52: 10 | G52: 0.33 | H52: 48.22383791 | I52: 1.368892803 | J52: 0.1049275913 | K52: 0.0138780671 | L52: 8
A53: 2 | B53: 584.9932906 | C53: 3.078629897 | D53: 0 | E53: 0 | F53: 11 | G53: 0.33 | H53: 48.22383791 | I53: 1.368892803 | J53: 0.1191217243 | K53: 0.01419413299 | L53: 8
A54: 2 | B54: 584.9932906 | C54: 3.078629897 | D54: 0 | E54: 0 | F54: 12 | G54: 0.33 | H54: 48.22383791 | I54: 1.368892803 | J54: 0.1335787007 | K54: 0.01445697644 | L54: 8
A55: 2 | B55: 584.9932906 | C55: 3.078629897 | D55: 0 | E55: 0 | F55: 13 | G55: 0.33 | H55: 48.22383791 | I55: 1.368892803 | J55: 0.1482516506 | K55: 0.01467294987 | L55: 9
A56: 2 | B56: 584.9932906 | C56: 3.078629897 | D56: 0 | E56: 0 | F56: 14 | G56: 0.33 | H56: 48.22383791 | I56: 1.368892803 | J56: 0.1630988887 | K56: 0.01484723809 | L56: 9
A57: 2 | B57: 584.9932906 | C57: 3.078629897 | D57: 0 | E57: 0 | F57: 15 | G57: 0.33 | H57: 48.22383791 | I57: 1.368892803 | J57: 0.178083053 | K57: 0.01498416431 | L57: 9
A58: 2 | B58: 584.9932906 | C58: 3.078629897 | D58: 0 | E58: 0 | F58: 16 | G58: 0.33 | H58: 48.22383791 | I58: 1.368892803 | J58: 0.1931704515 | K58: 0.01508739855 | L58: 9
A59: 2 | B59: 584.9932906 | C59: 3.078629897 | D59: 0 | E59: 0 | F59: 17 | G59: 0.33 | H59: 48.22383791 | I59: 1.368892803 | J59: 0.2083305554 | K59: 0.0151601039 | L59: 9
A60: 2 | B60: 584.9932906 | C60: 3.078629897 | D60: 0 | E60: 0 | F60: 18 | G60: 0.33 | H60: 48.22383791 | I60: 1.368892803 | J60: 0.2235355973 | K60: 0.01520504189 | L60: 9
A61: =+A60 -> 2 | B61: 584.9932906 | C61: 3.078629897 | D61: 0 | E61: 0 | F61: 19 | G61: 0.33 | H61: 48.22383791 | I61: 1.368892803 | J61: 0.2387602476 | K61: 0.01522465022 | L61: 9
A62: 2 | B62: 584.9932906 | C62: 3.078629897 | D62: 0 | E62: 0 | F62: 20 | G62: 0.33 | H62: 48.22383791 | I62: 1.368892803 | J62: 0.2539813487 | K62: 0.01522110114 | L62: 9
... 53 more rows

Sheet weibull_rot (hidden)
A1: Age | B1: DBH Class | C1: N | D1: Hdom | E1: BA | F1: Dq | G1: Freq
A2: Yrs. | B2: inch | C2: Trees/acre | D2: ft | E2: ft2/acre | F2: inch
A3: =+IF(weibull!A3=Inputs!$B$6,weibull!A3,"") ->  | B3: =+IF(F3="","",weibull!F3) ->  | C3: =+IF(A3="","",weibull!B3) ->  | D3: =+IF(C3="","",weibull!C3) ->  | E3: =+IF(D3="","",weibull!D3) ->  | F3: =+IF(E3="","",weibull!E3) ->  | G3: =+IF(B3="","",weibull!L3) -> 
A4: =+IF(weibull!A4=Inputs!$B$6,weibull!A4,"") ->  | B4: =+IF(F4="","",weibull!F4) ->  | C4: =+IF(A4="","",weibull!B4) ->  | D4: =+IF(C4="","",weibull!C4) ->  | E4: =+IF(D4="","",weibull!D4) ->  | F4: =+IF(E4="","",weibull!E4) ->  | G4: =+IF(B4="","",weibull!L4) -> 
A5: =+IF(weibull!A5=Inputs!$B$6,weibull!A5,"") ->  | B5: =+IF(F5="","",weibull!F5) ->  | C5: =+IF(A5="","",weibull!B5) ->  | D5: =+IF(C5="","",weibull!C5) ->  | E5: =+IF(D5="","",weibull!D5) ->  | F5: =+IF(E5="","",weibull!E5) ->  | G5: =+IF(B5="","",weibull!L5) -> 
A6: =+IF(weibull!A6=Inputs!$B$6,weibull!A6,"") ->  | B6: =+IF(F6="","",weibull!F6) ->  | C6: =+IF(A6="","",weibull!B6) ->  | D6: =+IF(C6="","",weibull!C6) ->  | E6: =+IF(D6="","",weibull!D6) ->  | F6: =+IF(E6="","",weibull!E6) ->  | G6: =+IF(B6="","",weibull!L6) -> 
A7: =+IF(weibull!A7=Inputs!$B$6,weibull!A7,"") ->  | B7: =+IF(F7="","",weibull!F7) ->  | C7: =+IF(A7="","",weibull!B7) ->  | D7: =+IF(C7="","",weibull!C7) ->  | E7: =+IF(D7="","",weibull!D7) ->  | F7: =+IF(E7="","",weibull!E7) ->  | G7: =+IF(B7="","",weibull!L7) -> 
A8: =+IF(weibull!A8=Inputs!$B$6,weibull!A8,"") ->  | B8: =+IF(F8="","",weibull!F8) ->  | C8: =+IF(A8="","",weibull!B8) ->  | D8: =+IF(C8="","",weibull!C8) ->  | E8: =+IF(D8="","",weibull!D8) ->  | F8: =+IF(E8="","",weibull!E8) ->  | G8: =+IF(B8="","",weibull!L8) -> 
A9: =+IF(weibull!A9=Inputs!$B$6,weibull!A9,"") ->  | B9: =+IF(F9="","",weibull!F9) ->  | C9: =+IF(A9="","",weibull!B9) ->  | D9: =+IF(C9="","",weibull!C9) ->  | E9: =+IF(D9="","",weibull!D9) ->  | F9: =+IF(E9="","",weibull!E9) ->  | G9: =+IF(B9="","",weibull!L9) -> 
A10: =+IF(weibull!A10=Inputs!$B$6,weibull!A10,"") ->  | B10: =+IF(F10="","",weibull!F10) ->  | C10: =+IF(A10="","",weibull!B10) ->  | D10: =+IF(C10="","",weibull!C10) ->  | E10: =+IF(D10="","",weibull!D10) ->  | F10: =+IF(E10="","",weibull!E10) ->  | G10: =+IF(B10="","",weibull!L10) -> 
A11: =+IF(weibull!A11=Inputs!$B$6,weibull!A11,"") ->  | B11: =+IF(F11="","",weibull!F11) ->  | C11: =+IF(A11="","",weibull!B11) ->  | D11: =+IF(C11="","",weibull!C11) ->  | E11: =+IF(D11="","",weibull!D11) ->  | F11: =+IF(E11="","",weibull!E11) ->  | G11: =+IF(B11="","",weibull!L11) -> 
A12: =+IF(weibull!A12=Inputs!$B$6,weibull!A12,"") ->  | B12: =+IF(F12="","",weibull!F12) ->  | C12: =+IF(A12="","",weibull!B12) ->  | D12: =+IF(C12="","",weibull!C12) ->  | E12: =+IF(D12="","",weibull!D12) ->  | F12: =+IF(E12="","",weibull!E12) ->  | G12: =+IF(B12="","",weibull!L12) -> 
A13: =+IF(weibull!A13=Inputs!$B$6,weibull!A13,"") ->  | B13: =+IF(F13="","",weibull!F13) ->  | C13: =+IF(A13="","",weibull!B13) ->  | D13: =+IF(C13="","",weibull!C13) ->  | E13: =+IF(D13="","",weibull!D13) ->  | F13: =+IF(E13="","",weibull!E13) ->  | G13: =+IF(B13="","",weibull!L13) -> 
A14: =+IF(weibull!A14=Inputs!$B$6,weibull!A14,"") ->  | B14: =+IF(F14="","",weibull!F14) ->  | C14: =+IF(A14="","",weibull!B14) ->  | D14: =+IF(C14="","",weibull!C14) ->  | E14: =+IF(D14="","",weibull!D14) ->  | F14: =+IF(E14="","",weibull!E14) ->  | G14: =+IF(B14="","",weibull!L14) -> 
A15: =+IF(weibull!A15=Inputs!$B$6,weibull!A15,"") ->  | B15: =+IF(F15="","",weibull!F15) ->  | C15: =+IF(A15="","",weibull!B15) ->  | D15: =+IF(C15="","",weibull!C15) ->  | E15: =+IF(D15="","",weibull!D15) ->  | F15: =+IF(E15="","",weibull!E15) ->  | G15: =+IF(B15="","",weibull!L15) -> 
A16: =+IF(weibull!A16=Inputs!$B$6,weibull!A16,"") ->  | B16: =+IF(F16="","",weibull!F16) ->  | C16: =+IF(A16="","",weibull!B16) ->  | D16: =+IF(C16="","",weibull!C16) ->  | E16: =+IF(D16="","",weibull!D16) ->  | F16: =+IF(E16="","",weibull!E16) ->  | G16: =+IF(B16="","",weibull!L16) -> 
A17: =+IF(weibull!A17=Inputs!$B$6,weibull!A17,"") ->  | B17: =+IF(F17="","",weibull!F17) ->  | C17: =+IF(A17="","",weibull!B17) ->  | D17: =+IF(C17="","",weibull!C17) ->  | E17: =+IF(D17="","",weibull!D17) ->  | F17: =+IF(E17="","",weibull!E17) ->  | G17: =+IF(B17="","",weibull!L17) -> 
A18: =+IF(weibull!A18=Inputs!$B$6,weibull!A18,"") ->  | B18: =+IF(F18="","",weibull!F18) ->  | C18: =+IF(A18="","",weibull!B18) ->  | D18: =+IF(C18="","",weibull!C18) ->  | E18: =+IF(D18="","",weibull!D18) ->  | F18: =+IF(E18="","",weibull!E18) ->  | G18: =+IF(B18="","",weibull!L18) -> 
A19: =+IF(weibull!A19=Inputs!$B$6,weibull!A19,"") ->  | B19: =+IF(F19="","",weibull!F19) ->  | C19: =+IF(A19="","",weibull!B19) ->  | D19: =+IF(C19="","",weibull!C19) ->  | E19: =+IF(D19="","",weibull!D19) ->  | F19: =+IF(E19="","",weibull!E19) ->  | G19: =+IF(B19="","",weibull!L19) -> 
A20: =+IF(weibull!A20=Inputs!$B$6,weibull!A20,"") ->  | B20: =+IF(F20="","",weibull!F20) ->  | C20: =+IF(A20="","",weibull!B20) ->  | D20: =+IF(C20="","",weibull!C20) ->  | E20: =+IF(D20="","",weibull!D20) ->  | F20: =+IF(E20="","",weibull!E20) ->  | G20: =+IF(B20="","",weibull!L20) -> 
A21: =+IF(weibull!A21=Inputs!$B$6,weibull!A21,"") ->  | B21: =+IF(F21="","",weibull!F21) ->  | C21: =+IF(A21="","",weibull!B21) ->  | D21: =+IF(C21="","",weibull!C21) ->  | E21: =+IF(D21="","",weibull!D21) ->  | F21: =+IF(E21="","",weibull!E21) ->  | G21: =+IF(B21="","",weibull!L21) -> 
A22: =+IF(weibull!A22=Inputs!$B$6,weibull!A22,"") ->  | B22: =+IF(F22="","",weibull!F22) ->  | C22: =+IF(A22="","",weibull!B22) ->  | D22: =+IF(C22="","",weibull!C22) ->  | E22: =+IF(D22="","",weibull!D22) ->  | F22: =+IF(E22="","",weibull!E22) ->  | G22: =+IF(B22="","",weibull!L22) -> 
A23: =+IF(weibull!A23=Inputs!$B$6,weibull!A23,"") ->  | B23: =+IF(F23="","",weibull!F23) ->  | C23: =+IF(A23="","",weibull!B23) ->  | D23: =+IF(C23="","",weibull!C23) ->  | E23: =+IF(D23="","",weibull!D23) ->  | F23: =+IF(E23="","",weibull!E23) ->  | G23: =+IF(B23="","",weibull!L23) -> 
A24: =+IF(weibull!A24=Inputs!$B$6,weibull!A24,"") ->  | B24: =+IF(F24="","",weibull!F24) ->  | C24: =+IF(A24="","",weibull!B24) ->  | D24: =+IF(C24="","",weibull!C24) ->  | E24: =+IF(D24="","",weibull!D24) ->  | F24: =+IF(E24="","",weibull!E24) ->  | G24: =+IF(B24="","",weibull!L24) -> 
A25: =+IF(weibull!A25=Inputs!$B$6,weibull!A25,"") ->  | B25: =+IF(F25="","",weibull!F25) ->  | C25: =+IF(A25="","",weibull!B25) ->  | D25: =+IF(C25="","",weibull!C25) ->  | E25: =+IF(D25="","",weibull!D25) ->  | F25: =+IF(E25="","",weibull!E25) ->  | G25: =+IF(B25="","",weibull!L25) -> 
A26: =+IF(weibull!A26=Inputs!$B$6,weibull!A26,"") ->  | B26: =+IF(F26="","",weibull!F26) ->  | C26: =+IF(A26="","",weibull!B26) ->  | D26: =+IF(C26="","",weibull!C26) ->  | E26: =+IF(D26="","",weibull!D26) ->  | F26: =+IF(E26="","",weibull!E26) ->  | G26: =+IF(B26="","",weibull!L26) -> 
A27: =+IF(weibull!A27=Inputs!$B$6,weibull!A27,"") ->  | B27: =+IF(F27="","",weibull!F27) ->  | C27: =+IF(A27="","",weibull!B27) ->  | D27: =+IF(C27="","",weibull!C27) ->  | E27: =+IF(D27="","",weibull!D27) ->  | F27: =+IF(E27="","",weibull!E27) ->  | G27: =+IF(B27="","",weibull!L27) -> 
A28: =+IF(weibull!A28=Inputs!$B$6,weibull!A28,"") ->  | B28: =+IF(F28="","",weibull!F28) ->  | C28: =+IF(A28="","",weibull!B28) ->  | D28: =+IF(C28="","",weibull!C28) ->  | E28: =+IF(D28="","",weibull!D28) ->  | F28: =+IF(E28="","",weibull!E28) ->  | G28: =+IF(B28="","",weibull!L28) -> 
A29: =+IF(weibull!A29=Inputs!$B$6,weibull!A29,"") ->  | B29: =+IF(F29="","",weibull!F29) ->  | C29: =+IF(A29="","",weibull!B29) ->  | D29: =+IF(C29="","",weibull!C29) ->  | E29: =+IF(D29="","",weibull!D29) ->  | F29: =+IF(E29="","",weibull!E29) ->  | G29: =+IF(B29="","",weibull!L29) -> 
A30: =+IF(weibull!A30=Inputs!$B$6,weibull!A30,"") ->  | B30: =+IF(F30="","",weibull!F30) ->  | C30: =+IF(A30="","",weibull!B30) ->  | D30: =+IF(C30="","",weibull!C30) ->  | E30: =+IF(D30="","",weibull!D30) ->  | F30: =+IF(E30="","",weibull!E30) ->  | G30: =+IF(B30="","",weibull!L30) -> 
A31: =+IF(weibull!A31=Inputs!$B$6,weibull!A31,"") ->  | B31: =+IF(F31="","",weibull!F31) ->  | C31: =+IF(A31="","",weibull!B31) ->  | D31: =+IF(C31="","",weibull!C31) ->  | E31: =+IF(D31="","",weibull!D31) ->  | F31: =+IF(E31="","",weibull!E31) ->  | G31: =+IF(B31="","",weibull!L31) -> 
A32: =+IF(weibull!A32=Inputs!$B$6,weibull!A32,"") ->  | B32: =+IF(F32="","",weibull!F32) ->  | C32: =+IF(A32="","",weibull!B32) ->  | D32: =+IF(C32="","",weibull!C32) ->  | E32: =+IF(D32="","",weibull!D32) ->  | F32: =+IF(E32="","",weibull!E32) ->  | G32: =+IF(B32="","",weibull!L32) -> 
A33: =+IF(weibull!A33=Inputs!$B$6,weibull!A33,"") ->  | B33: =+IF(F33="","",weibull!F33) ->  | C33: =+IF(A33="","",weibull!B33) ->  | D33: =+IF(C33="","",weibull!C33) ->  | E33: =+IF(D33="","",weibull!D33) ->  | F33: =+IF(E33="","",weibull!E33) ->  | G33: =+IF(B33="","",weibull!L33) -> 
A34: =+IF(weibull!A34=Inputs!$B$6,weibull!A34,"") ->  | B34: =+IF(F34="","",weibull!F34) ->  | C34: =+IF(A34="","",weibull!B34) ->  | D34: =+IF(C34="","",weibull!C34) ->  | E34: =+IF(D34="","",weibull!D34) ->  | F34: =+IF(E34="","",weibull!E34) ->  | G34: =+IF(B34="","",weibull!L34) -> 
A35: =+IF(weibull!A35=Inputs!$B$6,weibull!A35,"") ->  | B35: =+IF(F35="","",weibull!F35) ->  | C35: =+IF(A35="","",weibull!B35) ->  | D35: =+IF(C35="","",weibull!C35) ->  | E35: =+IF(D35="","",weibull!D35) ->  | F35: =+IF(E35="","",weibull!E35) ->  | G35: =+IF(B35="","",weibull!L35) -> 
A36: =+IF(weibull!A36=Inputs!$B$6,weibull!A36,"") ->  | B36: =+IF(F36="","",weibull!F36) ->  | C36: =+IF(A36="","",weibull!B36) ->  | D36: =+IF(C36="","",weibull!C36) ->  | E36: =+IF(D36="","",weibull!D36) ->  | F36: =+IF(E36="","",weibull!E36) ->  | G36: =+IF(B36="","",weibull!L36) -> 
A37: =+IF(weibull!A37=Inputs!$B$6,weibull!A37,"") ->  | B37: =+IF(F37="","",weibull!F37) ->  | C37: =+IF(A37="","",weibull!B37) ->  | D37: =+IF(C37="","",weibull!C37) ->  | E37: =+IF(D37="","",weibull!D37) ->  | F37: =+IF(E37="","",weibull!E37) ->  | G37: =+IF(B37="","",weibull!L37) -> 
A38: =+IF(weibull!A38=Inputs!$B$6,weibull!A38,"") ->  | B38: =+IF(F38="","",weibull!F38) ->  | C38: =+IF(A38="","",weibull!B38) ->  | D38: =+IF(C38="","",weibull!C38) ->  | E38: =+IF(D38="","",weibull!D38) ->  | F38: =+IF(E38="","",weibull!E38) ->  | G38: =+IF(B38="","",weibull!L38) -> 
A39: =+IF(weibull!A39=Inputs!$B$6,weibull!A39,"") ->  | B39: =+IF(F39="","",weibull!F39) ->  | C39: =+IF(A39="","",weibull!B39) ->  | D39: =+IF(C39="","",weibull!C39) ->  | E39: =+IF(D39="","",weibull!D39) ->  | F39: =+IF(E39="","",weibull!E39) ->  | G39: =+IF(B39="","",weibull!L39) -> 
A40: =+IF(weibull!A40=Inputs!$B$6,weibull!A40,"") ->  | B40: =+IF(F40="","",weibull!F40) ->  | C40: =+IF(A40="","",weibull!B40) ->  | D40: =+IF(C40="","",weibull!C40) ->  | E40: =+IF(D40="","",weibull!D40) ->  | F40: =+IF(E40="","",weibull!E40) ->  | G40: =+IF(B40="","",weibull!L40) -> 
A41: =+IF(weibull!A41=Inputs!$B$6,weibull!A41,"") ->  | B41: =+IF(F41="","",weibull!F41) ->  | C41: =+IF(A41="","",weibull!B41) ->  | D41: =+IF(C41="","",weibull!C41) ->  | E41: =+IF(D41="","",weibull!D41) ->  | F41: =+IF(E41="","",weibull!E41) ->  | G41: =+IF(B41="","",weibull!L41) -> 
A42: =+IF(weibull!A42=Inputs!$B$6,weibull!A42,"") ->  | B42: =+IF(F42="","",weibull!F42) ->  | C42: =+IF(A42="","",weibull!B42) ->  | D42: =+IF(C42="","",weibull!C42) ->  | E42: =+IF(D42="","",weibull!D42) ->  | F42: =+IF(E42="","",weibull!E42) ->  | G42: =+IF(B42="","",weibull!L42) -> 
A43: =+IF(weibull!A43=Inputs!$B$6,weibull!A43,"") ->  | B43: =+IF(F43="","",weibull!F43) ->  | C43: =+IF(A43="","",weibull!B43) ->  | D43: =+IF(C43="","",weibull!C43) ->  | E43: =+IF(D43="","",weibull!D43) ->  | F43: =+IF(E43="","",weibull!E43) ->  | G43: =+IF(B43="","",weibull!L43) -> 
A44: =+IF(weibull!A44=Inputs!$B$6,weibull!A44,"") ->  | B44: =+IF(F44="","",weibull!F44) ->  | C44: =+IF(A44="","",weibull!B44) ->  | D44: =+IF(C44="","",weibull!C44) ->  | E44: =+IF(D44="","",weibull!D44) ->  | F44: =+IF(E44="","",weibull!E44) ->  | G44: =+IF(B44="","",weibull!L44) -> 
A45: =+IF(weibull!A45=Inputs!$B$6,weibull!A45,"") ->  | B45: =+IF(F45="","",weibull!F45) ->  | C45: =+IF(A45="","",weibull!B45) ->  | D45: =+IF(C45="","",weibull!C45) ->  | E45: =+IF(D45="","",weibull!D45) ->  | F45: =+IF(E45="","",weibull!E45) ->  | G45: =+IF(B45="","",weibull!L45) -> 
A46: =+IF(weibull!A46=Inputs!$B$6,weibull!A46,"") ->  | B46: =+IF(F46="","",weibull!F46) ->  | C46: =+IF(A46="","",weibull!B46) ->  | D46: =+IF(C46="","",weibull!C46) ->  | E46: =+IF(D46="","",weibull!D46) ->  | F46: =+IF(E46="","",weibull!E46) ->  | G46: =+IF(B46="","",weibull!L46) -> 
A47: =+IF(weibull!A47=Inputs!$B$6,weibull!A47,"") ->  | B47: =+IF(F47="","",weibull!F47) ->  | C47: =+IF(A47="","",weibull!B47) ->  | D47: =+IF(C47="","",weibull!C47) ->  | E47: =+IF(D47="","",weibull!D47) ->  | F47: =+IF(E47="","",weibull!E47) ->  | G47: =+IF(B47="","",weibull!L47) -> 
A48: =+IF(weibull!A48=Inputs!$B$6,weibull!A48,"") ->  | B48: =+IF(F48="","",weibull!F48) ->  | C48: =+IF(A48="","",weibull!B48) ->  | D48: =+IF(C48="","",weibull!C48) ->  | E48: =+IF(D48="","",weibull!D48) ->  | F48: =+IF(E48="","",weibull!E48) ->  | G48: =+IF(B48="","",weibull!L48) -> 
A49: =+IF(weibull!A49=Inputs!$B$6,weibull!A49,"") ->  | B49: =+IF(F49="","",weibull!F49) ->  | C49: =+IF(A49="","",weibull!B49) ->  | D49: =+IF(C49="","",weibull!C49) ->  | E49: =+IF(D49="","",weibull!D49) ->  | F49: =+IF(E49="","",weibull!E49) ->  | G49: =+IF(B49="","",weibull!L49) -> 
A50: =+IF(weibull!A50=Inputs!$B$6,weibull!A50,"") ->  | B50: =+IF(F50="","",weibull!F50) ->  | C50: =+IF(A50="","",weibull!B50) ->  | D50: =+IF(C50="","",weibull!C50) ->  | E50: =+IF(D50="","",weibull!D50) ->  | F50: =+IF(E50="","",weibull!E50) ->  | G50: =+IF(B50="","",weibull!L50) -> 
A51: =+IF(weibull!A51=Inputs!$B$6,weibull!A51,"") ->  | B51: =+IF(F51="","",weibull!F51) ->  | C51: =+IF(A51="","",weibull!B51) ->  | D51: =+IF(C51="","",weibull!C51) ->  | E51: =+IF(D51="","",weibull!D51) ->  | F51: =+IF(E51="","",weibull!E51) ->  | G51: =+IF(B51="","",weibull!L51) -> 
A52: =+IF(weibull!A52=Inputs!$B$6,weibull!A52,"") ->  | B52: =+IF(F52="","",weibull!F52) ->  | C52: =+IF(A52="","",weibull!B52) ->  | D52: =+IF(C52="","",weibull!C52) ->  | E52: =+IF(D52="","",weibull!D52) ->  | F52: =+IF(E52="","",weibull!E52) ->  | G52: =+IF(B52="","",weibull!L52) -> 
A53: =+IF(weibull!A53=Inputs!$B$6,weibull!A53,"") ->  | B53: =+IF(F53="","",weibull!F53) ->  | C53: =+IF(A53="","",weibull!B53) ->  | D53: =+IF(C53="","",weibull!C53) ->  | E53: =+IF(D53="","",weibull!D53) ->  | F53: =+IF(E53="","",weibull!E53) ->  | G53: =+IF(B53="","",weibull!L53) -> 
A54: =+IF(weibull!A54=Inputs!$B$6,weibull!A54,"") ->  | B54: =+IF(F54="","",weibull!F54) ->  | C54: =+IF(A54="","",weibull!B54) ->  | D54: =+IF(C54="","",weibull!C54) ->  | E54: =+IF(D54="","",weibull!D54) ->  | F54: =+IF(E54="","",weibull!E54) ->  | G54: =+IF(B54="","",weibull!L54) -> 
A55: =+IF(weibull!A55=Inputs!$B$6,weibull!A55,"") ->  | B55: =+IF(F55="","",weibull!F55) ->  | C55: =+IF(A55="","",weibull!B55) ->  | D55: =+IF(C55="","",weibull!C55) ->  | E55: =+IF(D55="","",weibull!D55) ->  | F55: =+IF(E55="","",weibull!E55) ->  | G55: =+IF(B55="","",weibull!L55) -> 
A56: =+IF(weibull!A56=Inputs!$B$6,weibull!A56,"") ->  | B56: =+IF(F56="","",weibull!F56) ->  | C56: =+IF(A56="","",weibull!B56) ->  | D56: =+IF(C56="","",weibull!C56) ->  | E56: =+IF(D56="","",weibull!D56) ->  | F56: =+IF(E56="","",weibull!E56) ->  | G56: =+IF(B56="","",weibull!L56) -> 
A57: =+IF(weibull!A57=Inputs!$B$6,weibull!A57,"") ->  | B57: =+IF(F57="","",weibull!F57) ->  | C57: =+IF(A57="","",weibull!B57) ->  | D57: =+IF(C57="","",weibull!C57) ->  | E57: =+IF(D57="","",weibull!D57) ->  | F57: =+IF(E57="","",weibull!E57) ->  | G57: =+IF(B57="","",weibull!L57) -> 
A58: =+IF(weibull!A58=Inputs!$B$6,weibull!A58,"") ->  | B58: =+IF(F58="","",weibull!F58) ->  | C58: =+IF(A58="","",weibull!B58) ->  | D58: =+IF(C58="","",weibull!C58) ->  | E58: =+IF(D58="","",weibull!D58) ->  | F58: =+IF(E58="","",weibull!E58) ->  | G58: =+IF(B58="","",weibull!L58) -> 
A59: =+IF(weibull!A59=Inputs!$B$6,weibull!A59,"") ->  | B59: =+IF(F59="","",weibull!F59) ->  | C59: =+IF(A59="","",weibull!B59) ->  | D59: =+IF(C59="","",weibull!C59) ->  | E59: =+IF(D59="","",weibull!D59) ->  | F59: =+IF(E59="","",weibull!E59) ->  | G59: =+IF(B59="","",weibull!L59) -> 
A60: =+IF(weibull!A60=Inputs!$B$6,weibull!A60,"") ->  | B60: =+IF(F60="","",weibull!F60) ->  | C60: =+IF(A60="","",weibull!B60) ->  | D60: =+IF(C60="","",weibull!C60) ->  | E60: =+IF(D60="","",weibull!D60) ->  | F60: =+IF(E60="","",weibull!E60) ->  | G60: =+IF(B60="","",weibull!L60) -> 
A61: =+IF(weibull!A61=Inputs!$B$6,weibull!A61,"") ->  | B61: =+IF(F61="","",weibull!F61) ->  | C61: =+IF(A61="","",weibull!B61) ->  | D61: =+IF(C61="","",weibull!C61) ->  | E61: =+IF(D61="","",weibull!D61) ->  | F61: =+IF(E61="","",weibull!E61) ->  | G61: =+IF(B61="","",weibull!L61) -> 
A62: =+IF(weibull!A62=Inputs!$B$6,weibull!A62,"") ->  | B62: =+IF(F62="","",weibull!F62) ->  | C62: =+IF(A62="","",weibull!B62) ->  | D62: =+IF(C62="","",weibull!C62) ->  | E62: =+IF(D62="","",weibull!D62) ->  | F62: =+IF(E62="","",weibull!E62) ->  | G62: =+IF(B62="","",weibull!L62) -> 
... 77 more rows

Sheet List2 (hidden)
A1: Age | B1: DBH Class (inch) | C1: Freq_1.56 | D1: dbh | E1: height
A2: 80 | B2: 1 | C2: 4 | D2: 3.062090679 | E2: 2.420573144
A3: 80 | B3: 1 | C3: 4 | D3: 2.62489701 | E3: 1.876372772
A4: 80 | B4: 1 | C4: 4 | D4: 2.741977285 | E4: 2.001848062
A5: 80 | B5: 1 | C5: 4 | D5: 2.005488658 | E5: 1.465095239
A6: 80 | B6: 2 | C6: 9 | D6: 4.576947948 | E6: 5.428050464
A7: 80 | B7: 2 | C7: 9 | D7: 5.777839854 | E7: 8.197742882
A8: 80 | B8: 2 | C8: 9 | D8: 3.84560481 | E8: 3.825679208
A9: 80 | B9: 2 | C9: 9 | D9: 5.742237921 | E9: 8.116891818
A10: 80 | B10: 2 | C10: 9 | D10: 5.878804651 | E10: 8.426073211
A11: 80 | B11: 2 | C11: 9 | D11: 5.610956266 | E11: 7.817366373
A12: 80 | B12: 2 | C12: 9 | D12: 3.925196003 | E12: 3.990628118
A13: 80 | B13: 2 | C13: 9 | D13: 4.861643052 | E13: 6.083891454
A14: 80 | B14: 2 | C14: 9 | D14: 6.001053125 | E14: 8.700494402
A15: 80 | B15: 3 | C15: 10 | D15: 8.357819245 | E15: 13.39617509
A16: 80 | B16: 3 | C16: 10 | D16: 7.298781871 | E16: 11.4374064
A17: 80 | B17: 3 | C17: 10 | D17: 8.793361034 | E17: 14.12932124
A18: 80 | B18: 3 | C18: 10 | D18: 8.56347242 | E18: 13.74746541
A19: 80 | B19: 3 | C19: 10 | D19: 6.492841632 | E19: 9.778212056
A20: 80 | B20: 3 | C20: 10 | D20: 8.761873888 | E20: 14.07768719
A21: 80 | B21: 3 | C21: 10 | D21: 7.274607444 | E21: 11.38972634
A22: 80 | B22: 3 | C22: 10 | D22: 7.683165809 | E22: 12.17771247
A23: 80 | B23: 3 | C23: 10 | D23: 8.298463614 | E23: 13.29305992
A24: 80 | B24: 3 | C24: 10 | D24: 6.485901498 | E24: 9.763323674
A25: 80 | B25: 4 | C25: 12 | D25: 10.39484395 | E25: 16.49441575
A26: 80 | B26: 4 | C26: 12 | D26: 10.08049828 | E26: 16.06840699
A27: 80 | B27: 4 | C27: 12 | D27: 9.647340219 | E27: 15.45194283
A28: 80 | B28: 4 | C28: 12 | D28: 10.47164961 | E28: 16.59587706
A29: 80 | B29: 4 | C29: 12 | D29: 10.53546582 | E29: 16.67941124
A30: 80 | B30: 4 | C30: 12 | D30: 9.560034047 | E30: 15.32339943
A31: 80 | B31: 4 | C31: 12 | D31: 9.599528821 | E31: 15.38173082
A32: 80 | B32: 4 | C32: 12 | D32: 10.99769611 | E32: 17.26425811
A33: 80 | B33: 4 | C33: 12 | D33: 10.9844894 | E33: 17.24802842
A34: 80 | B34: 4 | C34: 12 | D34: 10.38647403 | E34: 16.48329754
A35: 80 | B35: 4 | C35: 12 | D35: 11.39467664 | E35: 17.73947253
A36: 80 | B36: 4 | C36: 12 | D36: 11.20384935 | E36: 17.51405695
A37: 80 | B37: 5 | C37: 12 | D37: 12.00623966 | E37: 18.42611325
A38: 80 | B38: 5 | C38: 12 | D38: 13.19559339 | E38: 19.62043077
A39: 80 | B39: 5 | C39: 12 | D39: 13.91920822 | E39: 20.26710132
A40: 80 | B40: 5 | C40: 12 | D40: 12.04958564 | E40: 18.47279951
A41: 80 | B41: 5 | C41: 12 | D41: 12.78603763 | E41: 19.22871129
A42: 80 | B42: 5 | C42: 12 | D42: 11.70017897 | E42: 18.08912272
A43: 80 | B43: 5 | C43: 12 | D43: 13.96851299 | E43: 20.30917788
A44: 80 | B44: 5 | C44: 12 | D44: 13.14748677 | E44: 19.57542138
A45: 80 | B45: 5 | C45: 12 | D45: 11.46988795 | E45: 17.82681744
A46: 80 | B46: 5 | C46: 12 | D46: 12.89096687 | E46: 19.33093782
A47: 80 | B47: 5 | C47: 12 | D47: 11.68413268 | E47: 18.07109308
A48: 80 | B48: 5 | C48: 12 | D48: 11.69167749 | E48: 18.079575
A49: 80 | B49: 6 | C49: 14 | D49: 15.99916636 | E49: 21.85100131
A50: 80 | B50: 6 | C50: 14 | D50: 14.6925799 | E50: 20.90008119
A51: 80 | B51: 6 | C51: 14 | D51: 14.08594889 | E51: 20.40842329
A52: 80 | B52: 6 | C52: 14 | D52: 14.72126304 | E52: 20.92248942
A53: 80 | B53: 6 | C53: 14 | D53: 14.94030717 | E53: 21.09122317
A54: 80 | B54: 6 | C54: 14 | D54: 14.73446506 | E54: 20.93277866
A55: 80 | B55: 6 | C55: 14 | D55: 16.37937056 | E55: 22.10300203
A56: 80 | B56: 6 | C56: 14 | D56: 16.4587666 | E56: 22.15433884
A57: 80 | B57: 6 | C57: 14 | D57: 14.98949082 | E57: 21.12853763
A58: 80 | B58: 6 | C58: 14 | D58: 14.6768311 | E58: 20.88774646
A59: 80 | B59: 6 | C59: 14 | D59: 14.37752146 | E59: 20.64903705
A60: 80 | B60: 6 | C60: 14 | D60: 14.38356684 | E60: 20.65394028
A61: 80 | B61: 6 | C61: 14 | D61: 15.61233132 | E61: 21.58369548
A62: 80 | B62: 6 | C62: 14 | D62: 15.01158598 | E62: 21.14523334
... 77 more rows

Sheet List (hidden)
A1: Count | B1: Freq | C1: Age | D1: BA | E1: SI | F1: DBH Class (inch) | G1: Freq_1.56
A2: 1 | B2: =+VLOOKUP(A2,weibull_rot!$B$3:$G$4002,6,TRUE) -> 3 | C2: =+IF(D2="","",Inputs!$B$6) -> 80 | D2: =+IF(B2=0,"",VLOOKUP(A2,weibull_rot!$B$3:$G$4002,4,TRUE)*0.229568) -> 35.7551674 | E2: =+IF(B2=0,"",Inputs!$H$8) -> 22.86 | F2: =+IF(B2=0,"",A2) -> 1 | G2: =+IF(B2=0,"",ROUNDDOWN(B2*1.56,0)) -> 4
A3: =+A2+1 -> 2 | B3: =+VLOOKUP(A3,weibull_rot!$B$3:$G$4002,6,TRUE) -> 6 | C3: =+IF(D3="","",Inputs!$B$6) -> 80 | D3: =+IF(B3=0,"",VLOOKUP(A3,weibull_rot!$B$3:$G$4002,4,TRUE)*0.229568) -> 35.7551674 | E3: =+IF(B3=0,"",Inputs!$H$8) -> 22.86 | F3: =+IF(B3=0,"",A3) -> 2 | G3: =+IF(B3=0,"",ROUNDDOWN(B3*1.56,0)) -> 9
A4: =+A3+1 -> 3 | B4: =+VLOOKUP(A4,weibull_rot!$B$3:$G$4002,6,TRUE) -> 7 | C4: =+IF(D4="","",Inputs!$B$6) -> 80 | D4: =+IF(B4=0,"",VLOOKUP(A4,weibull_rot!$B$3:$G$4002,4,TRUE)*0.229568) -> 35.7551674 | E4: =+IF(B4=0,"",Inputs!$H$8) -> 22.86 | F4: 3 | G4: 10
A5: 4 | B5: =+VLOOKUP(A5,weibull_rot!$B$3:$G$4002,6,TRUE) -> 8 | C5: =+IF(D5="","",Inputs!$B$6) -> 80 | D5: =+IF(B5=0,"",VLOOKUP(A5,weibull_rot!$B$3:$G$4002,4,TRUE)*0.229568) -> 35.7551674 | E5: =+IF(B5=0,"",Inputs!$H$8) -> 22.86 | F5: 4 | G5: 12
A6: 5 | B6: =+VLOOKUP(A6,weibull_rot!$B$3:$G$4002,6,TRUE) -> 8 | C6: =+IF(D6="","",Inputs!$B$6) -> 80 | D6: =+IF(B6=0,"",VLOOKUP(A6,weibull_rot!$B$3:$G$4002,4,TRUE)*0.229568) -> 35.7551674 | E6: =+IF(B6=0,"",Inputs!$H$8) -> 22.86 | F6: 5 | G6: 12
A7: 6 | B7: =+VLOOKUP(A7,weibull_rot!$B$3:$G$4002,6,TRUE) -> 9 | C7: =+IF(D7="","",Inputs!$B$6) -> 80 | D7: =+IF(B7=0,"",VLOOKUP(A7,weibull_rot!$B$3:$G$4002,4,TRUE)*0.229568) -> 35.7551674 | E7: =+IF(B7=0,"",Inputs!$H$8) -> 22.86 | F7: 6 | G7: 14
A8: 7 | B8: =+VLOOKUP(A8,weibull_rot!$B$3:$G$4002,6,TRUE) -> 9 | C8: =+IF(D8="","",Inputs!$B$6) -> 80 | D8: =+IF(B8=0,"",VLOOKUP(A8,weibull_rot!$B$3:$G$4002,4,TRUE)*0.229568) -> 35.7551674 | E8: =+IF(B8=0,"",Inputs!$H$8) -> 22.86 | F8: 7 | G8: 14
A9: 8 | B9: =+VLOOKUP(A9,weibull_rot!$B$3:$G$4002,6,TRUE) -> 9 | C9: =+IF(D9="","",Inputs!$B$6) -> 80 | D9: =+IF(B9=0,"",VLOOKUP(A9,weibull_rot!$B$3:$G$4002,4,TRUE)*0.229568) -> 35.7551674 | E9: =+IF(B9=0,"",Inputs!$H$8) -> 22.86 | F9: 8 | G9: 14
A10: 9 | B10: =+VLOOKUP(A10,weibull_rot!$B$3:$G$4002,6,TRUE) -> 9 | C10: =+IF(D10="","",Inputs!$B$6) -> 80 | D10: =+IF(B10=0,"",VLOOKUP(A10,weibull_rot!$B$3:$G$4002,4,TRUE)*0.229568) -> 35.7551674 | E10: =+IF(B10=0,"",Inputs!$H$8) -> 22.86 | F10: 9 | G10: 14
A11: 10 | B11: =+VLOOKUP(A11,weibull_rot!$B$3:$G$4002,6,TRUE) -> 9 | C11: =+IF(D11="","",Inputs!$B$6) -> 80 | D11: =+IF(B11=0,"",VLOOKUP(A11,weibull_rot!$B$3:$G$4002,4,TRUE)*0.229568) -> 35.7551674 | E11: =+IF(B11=0,"",Inputs!$H$8) -> 22.86 | F11: 10 | G11: 14
A12: 11 | B12: =+VLOOKUP(A12,weibull_rot!$B$3:$G$4002,6,TRUE) -> 8 | C12: =+IF(D12="","",Inputs!$B$6) -> 80 | D12: =+IF(B12=0,"",VLOOKUP(A12,weibull_rot!$B$3:$G$4002,4,TRUE)*0.229568) -> 35.7551674 | E12: =+IF(B12=0,"",Inputs!$H$8) -> 22.86 | F12: 11 | G12: 12
A13: 12 | B13: =+VLOOKUP(A13,weibull_rot!$B$3:$G$4002,6,TRUE) -> 8 | C13: =+IF(D13="","",Inputs!$B$6) -> 80 | D13: =+IF(B13=0,"",VLOOKUP(A13,weibull_rot!$B$3:$G$4002,4,TRUE)*0.229568) -> 35.7551674 | E13: =+IF(B13=0,"",Inputs!$H$8) -> 22.86 | F13: 12 | G13: 12
A14: 13 | B14: =+VLOOKUP(A14,weibull_rot!$B$3:$G$4002,6,TRUE) -> 8 | C14: =+IF(D14="","",Inputs!$B$6) -> 80 | D14: =+IF(B14=0,"",VLOOKUP(A14,weibull_rot!$B$3:$G$4002,4,TRUE)*0.229568) -> 35.7551674 | E14: =+IF(B14=0,"",Inputs!$H$8) -> 22.86 | F14: 13 | G14: 12
A15: 14 | B15: =+VLOOKUP(A15,weibull_rot!$B$3:$G$4002,6,TRUE) -> 8 | C15: =+IF(D15="","",Inputs!$B$6) -> 80 | D15: =+IF(B15=0,"",VLOOKUP(A15,weibull_rot!$B$3:$G$4002,4,TRUE)*0.229568) -> 35.7551674 | E15: =+IF(B15=0,"",Inputs!$H$8) -> 22.86 | F15: 14 | G15: 12
A16: 15 | B16: =+VLOOKUP(A16,weibull_rot!$B$3:$G$4002,6,TRUE) -> 7 | C16: =+IF(D16="","",Inputs!$B$6) -> 80 | D16: =+IF(B16=0,"",VLOOKUP(A16,weibull_rot!$B$3:$G$4002,4,TRUE)*0.229568) -> 35.7551674 | E16: =+IF(B16=0,"",Inputs!$H$8) -> 22.86 | F16: 15 | G16: 10
A17: 16 | B17: =+VLOOKUP(A17,weibull_rot!$B$3:$G$4002,6,TRUE) -> 7 | C17: =+IF(D17="","",Inputs!$B$6) -> 80 | D17: =+IF(B17=0,"",VLOOKUP(A17,weibull_rot!$B$3:$G$4002,4,TRUE)*0.229568) -> 35.7551674 | E17: =+IF(B17=0,"",Inputs!$H$8) -> 22.86 | F17: 16 | G17: 10
A18: 17 | B18: =+VLOOKUP(A18,weibull_rot!$B$3:$G$4002,6,TRUE) -> 7 | C18: =+IF(D18="","",Inputs!$B$6) -> 80 | D18: =+IF(B18=0,"",VLOOKUP(A18,weibull_rot!$B$3:$G$4002,4,TRUE)*0.229568) -> 35.7551674 | E18: =+IF(B18=0,"",Inputs!$H$8) -> 22.86 | F18: 17 | G18: 10
A19: 18 | B19: =+VLOOKUP(A19,weibull_rot!$B$3:$G$4002,6,TRUE) -> 6 | C19: =+IF(D19="","",Inputs!$B$6) -> 80 | D19: =+IF(B19=0,"",VLOOKUP(A19,weibull_rot!$B$3:$G$4002,4,TRUE)*0.229568) -> 35.7551674 | E19: =+IF(B19=0,"",Inputs!$H$8) -> 22.86 | F19: 18 | G19: 9
A20: 19 | B20: =+VLOOKUP(A20,weibull_rot!$B$3:$G$4002,6,TRUE) -> 6 | C20: =+IF(D20="","",Inputs!$B$6) -> 80 | D20: =+IF(B20=0,"",VLOOKUP(A20,weibull_rot!$B$3:$G$4002,4,TRUE)*0.229568) -> 35.7551674 | E20: =+IF(B20=0,"",Inputs!$H$8) -> 22.86 | F20: 19 | G20: 9
A21: 20 | B21: =+VLOOKUP(A21,weibull_rot!$B$3:$G$4002,6,TRUE) -> 6 | C21: =+IF(D21="","",Inputs!$B$6) -> 80 | D21: =+IF(B21=0,"",VLOOKUP(A21,weibull_rot!$B$3:$G$4002,4,TRUE)*0.229568) -> 35.7551674 | E21: =+IF(B21=0,"",Inputs!$H$8) -> 22.86 | F21: 20 | G21: 9
A22: 21 | B22: =+VLOOKUP(A22,weibull_rot!$B$3:$G$4002,6,TRUE) -> 5 | C22: =+IF(D22="","",Inputs!$B$6) -> 80 | D22: =+IF(B22=0,"",VLOOKUP(A22,weibull_rot!$B$3:$G$4002,4,TRUE)*0.229568) -> 35.7551674 | E22: =+IF(B22=0,"",Inputs!$H$8) -> 22.86 | F22: 21 | G22: 7
A23: 22 | B23: =+VLOOKUP(A23,weibull_rot!$B$3:$G$4002,6,TRUE) -> 5 | C23: =+IF(D23="","",Inputs!$B$6) -> 80 | D23: =+IF(B23=0,"",VLOOKUP(A23,weibull_rot!$B$3:$G$4002,4,TRUE)*0.229568) -> 35.7551674 | E23: =+IF(B23=0,"",Inputs!$H$8) -> 22.86 | F23: 22 | G23: 7
A24: 23 | B24: =+VLOOKUP(A24,weibull_rot!$B$3:$G$4002,6,TRUE) -> 5 | C24: =+IF(D24="","",Inputs!$B$6) -> 80 | D24: =+IF(B24=0,"",VLOOKUP(A24,weibull_rot!$B$3:$G$4002,4,TRUE)*0.229568) -> 35.7551674 | E24: =+IF(B24=0,"",Inputs!$H$8) -> 22.86 | F24: 23 | G24: 7
A25: 24 | B25: =+VLOOKUP(A25,weibull_rot!$B$3:$G$4002,6,TRUE) -> 4 | C25: =+IF(D25="","",Inputs!$B$6) -> 80 | D25: =+IF(B25=0,"",VLOOKUP(A25,weibull_rot!$B$3:$G$4002,4,TRUE)*0.229568) -> 35.7551674 | E25: =+IF(B25=0,"",Inputs!$H$8) -> 22.86 | F25: 24 | G25: 6
A26: 25 | B26: =+VLOOKUP(A26,weibull_rot!$B$3:$G$4002,6,TRUE) -> 4 | C26: =+IF(D26="","",Inputs!$B$6) -> 80 | D26: =+IF(B26=0,"",VLOOKUP(A26,weibull_rot!$B$3:$G$4002,4,TRUE)*0.229568) -> 35.7551674 | E26: =+IF(B26=0,"",Inputs!$H$8) -> 22.86 | F26: 25 | G26: 6
A27: 26 | B27: =+VLOOKUP(A27,weibull_rot!$B$3:$G$4002,6,TRUE) -> 4 | C27: =+IF(D27="","",Inputs!$B$6) -> 80 | D27: =+IF(B27=0,"",VLOOKUP(A27,weibull_rot!$B$3:$G$4002,4,TRUE)*0.229568) -> 35.7551674 | E27: =+IF(B27=0,"",Inputs!$H$8) -> 22.86 | F27: 26 | G27: 6
A28: 27 | B28: =+VLOOKUP(A28,weibull_rot!$B$3:$G$4002,6,TRUE) -> 4 | C28: =+IF(D28="","",Inputs!$B$6) -> 80 | D28: =+IF(B28=0,"",VLOOKUP(A28,weibull_rot!$B$3:$G$4002,4,TRUE)*0.229568) -> 35.7551674 | E28: =+IF(B28=0,"",Inputs!$H$8) -> 22.86 | F28: 27 | G28: 6
A29: 28 | B29: =+VLOOKUP(A29,weibull_rot!$B$3:$G$4002,6,TRUE) -> 3 | C29: =+IF(D29="","",Inputs!$B$6) -> 80 | D29: =+IF(B29=0,"",VLOOKUP(A29,weibull_rot!$B$3:$G$4002,4,TRUE)*0.229568) -> 35.7551674 | E29: =+IF(B29=0,"",Inputs!$H$8) -> 22.86 | F29: 28 | G29: 4
A30: 29 | B30: =+VLOOKUP(A30,weibull_rot!$B$3:$G$4002,6,TRUE) -> 3 | C30: =+IF(D30="","",Inputs!$B$6) -> 80 | D30: =+IF(B30=0,"",VLOOKUP(A30,weibull_rot!$B$3:$G$4002,4,TRUE)*0.229568) -> 35.7551674 | E30: =+IF(B30=0,"",Inputs!$H$8) -> 22.86 | F30: 29 | G30: 4
A31: 30 | B31: =+VLOOKUP(A31,weibull_rot!$B$3:$G$4002,6,TRUE) -> 3 | C31: =+IF(D31="","",Inputs!$B$6) -> 80 | D31: =+IF(B31=0,"",VLOOKUP(A31,weibull_rot!$B$3:$G$4002,4,TRUE)*0.229568) -> 35.7551674 | E31: =+IF(B31=0,"",Inputs!$H$8) -> 22.86 | F31: 30 | G31: 4
A32: 31 | B32: =+VLOOKUP(A32,weibull_rot!$B$3:$G$4002,6,TRUE) -> 3 | C32: =+IF(D32="","",Inputs!$B$6) -> 80 | D32: =+IF(B32=0,"",VLOOKUP(A32,weibull_rot!$B$3:$G$4002,4,TRUE)*0.229568) -> 35.7551674 | E32: =+IF(B32=0,"",Inputs!$H$8) -> 22.86 | F32: 31 | G32: 4
A33: 32 | B33: =+VLOOKUP(A33,weibull_rot!$B$3:$G$4002,6,TRUE) -> 2 | C33: =+IF(D33="","",Inputs!$B$6) -> 80 | D33: =+IF(B33=0,"",VLOOKUP(A33,weibull_rot!$B$3:$G$4002,4,TRUE)*0.229568) -> 35.7551674 | E33: =+IF(B33=0,"",Inputs!$H$8) -> 22.86 | F33: 32 | G33: 3
A34: 33 | B34: =+VLOOKUP(A34,weibull_rot!$B$3:$G$4002,6,TRUE) -> 2 | C34: =+IF(D34="","",Inputs!$B$6) -> 80 | D34: =+IF(B34=0,"",VLOOKUP(A34,weibull_rot!$B$3:$G$4002,4,TRUE)*0.229568) -> 35.7551674 | E34: =+IF(B34=0,"",Inputs!$H$8) -> 22.86 | F34: 33 | G34: 3
A35: 34 | B35: =+VLOOKUP(A35,weibull_rot!$B$3:$G$4002,6,TRUE) -> 2 | C35: =+IF(D35="","",Inputs!$B$6) -> 80 | D35: =+IF(B35=0,"",VLOOKUP(A35,weibull_rot!$B$3:$G$4002,4,TRUE)*0.229568) -> 35.7551674 | E35: =+IF(B35=0,"",Inputs!$H$8) -> 22.86 | F35: 34 | G35: 3
A36: 35 | B36: =+VLOOKUP(A36,weibull_rot!$B$3:$G$4002,6,TRUE) -> 2 | C36: =+IF(D36="","",Inputs!$B$6) -> 80 | D36: =+IF(B36=0,"",VLOOKUP(A36,weibull_rot!$B$3:$G$4002,4,TRUE)*0.229568) -> 35.7551674 | E36: =+IF(B36=0,"",Inputs!$H$8) -> 22.86 | F36: 35 | G36: 3
A37: 36 | B37: =+VLOOKUP(A37,weibull_rot!$B$3:$G$4002,6,TRUE) -> 2 | C37: =+IF(D37="","",Inputs!$B$6) -> 80 | D37: =+IF(B37=0,"",VLOOKUP(A37,weibull_rot!$B$3:$G$4002,4,TRUE)*0.229568) -> 35.7551674 | E37: =+IF(B37=0,"",Inputs!$H$8) -> 22.86 | F37: 36 | G37: 3
A38: 37 | B38: =+VLOOKUP(A38,weibull_rot!$B$3:$G$4002,6,TRUE) -> 2 | C38: =+IF(D38="","",Inputs!$B$6) -> 80 | D38: =+IF(B38=0,"",VLOOKUP(A38,weibull_rot!$B$3:$G$4002,4,TRUE)*0.229568) -> 35.7551674 | E38: =+IF(B38=0,"",Inputs!$H$8) -> 22.86 | F38: 37 | G38: 3
A39: 38 | B39: =+VLOOKUP(A39,weibull_rot!$B$3:$G$4002,6,TRUE) -> 2 | C39: =+IF(D39="","",Inputs!$B$6) -> 80 | D39: =+IF(B39=0,"",VLOOKUP(A39,weibull_rot!$B$3:$G$4002,4,TRUE)*0.229568) -> 35.7551674 | E39: =+IF(B39=0,"",Inputs!$H$8) -> 22.86 | F39: 38 | G39: 3
A40: 39 | B40: =+VLOOKUP(A40,weibull_rot!$B$3:$G$4002,6,TRUE) -> 1 | C40: =+IF(D40="","",Inputs!$B$6) -> 80 | D40: =+IF(B40=0,"",VLOOKUP(A40,weibull_rot!$B$3:$G$4002,4,TRUE)*0.229568) -> 35.7551674 | E40: =+IF(B40=0,"",Inputs!$H$8) -> 22.86 | F40: 39 | G40: 1
A41: 40 | B41: =+VLOOKUP(A41,weibull_rot!$B$3:$G$4002,6,TRUE) -> 1 | C41: =+IF(D41="","",Inputs!$B$6) -> 80 | D41: =+IF(B41=0,"",VLOOKUP(A41,weibull_rot!$B$3:$G$4002,4,TRUE)*0.229568) -> 35.7551674 | E41: =+IF(B41=0,"",Inputs!$H$8) -> 22.86 | F41: 40 | G41: 1
A42: 41 | B42: =+VLOOKUP(A42,weibull_rot!$B$3:$G$4002,6,TRUE) -> 1 | C42: =+IF(D42="","",Inputs!$B$6) -> 80 | D42: =+IF(B42=0,"",VLOOKUP(A42,weibull_rot!$B$3:$G$4002,4,TRUE)*0.229568) -> 35.7551674 | E42: =+IF(B42=0,"",Inputs!$H$8) -> 22.86 | F42: 41 | G42: 1
A43: 42 | B43: =+VLOOKUP(A43,weibull_rot!$B$3:$G$4002,6,TRUE) -> 1 | C43: =+IF(D43="","",Inputs!$B$6) -> 80 | D43: =+IF(B43=0,"",VLOOKUP(A43,weibull_rot!$B$3:$G$4002,4,TRUE)*0.229568) -> 35.7551674 | E43: =+IF(B43=0,"",Inputs!$H$8) -> 22.86 | F43: 42 | G43: 1
A44: 43 | B44: =+VLOOKUP(A44,weibull_rot!$B$3:$G$4002,6,TRUE) -> 1 | C44: =+IF(D44="","",Inputs!$B$6) -> 80 | D44: =+IF(B44=0,"",VLOOKUP(A44,weibull_rot!$B$3:$G$4002,4,TRUE)*0.229568) -> 35.7551674 | E44: =+IF(B44=0,"",Inputs!$H$8) -> 22.86 | F44: 43 | G44: 1
A45: 44 | B45: =+VLOOKUP(A45,weibull_rot!$B$3:$G$4002,6,TRUE) -> 1 | C45: =+IF(D45="","",Inputs!$B$6) -> 80 | D45: =+IF(B45=0,"",VLOOKUP(A45,weibull_rot!$B$3:$G$4002,4,TRUE)*0.229568) -> 35.7551674 | E45: =+IF(B45=0,"",Inputs!$H$8) -> 22.86 | F45: 44 | G45: 1
A46: 45 | B46: =+VLOOKUP(A46,weibull_rot!$B$3:$G$4002,6,TRUE) -> 1 | C46: =+IF(D46="","",Inputs!$B$6) -> 80 | D46: =+IF(B46=0,"",VLOOKUP(A46,weibull_rot!$B$3:$G$4002,4,TRUE)*0.229568) -> 35.7551674 | E46: =+IF(B46=0,"",Inputs!$H$8) -> 22.86 | F46: 45 | G46: 1
A47: 46 | B47: =+VLOOKUP(A47,weibull_rot!$B$3:$G$4002,6,TRUE) -> 1 | C47: =+IF(D47="","",Inputs!$B$6) -> 80 | D47: =+IF(B47=0,"",VLOOKUP(A47,weibull_rot!$B$3:$G$4002,4,TRUE)*0.229568) -> 35.7551674 | E47: =+IF(B47=0,"",Inputs!$H$8) -> 22.86 | F47: 46 | G47: 1
A48: 47 | B48: =+VLOOKUP(A48,weibull_rot!$B$3:$G$4002,6,TRUE) -> 1 | C48: =+IF(D48="","",Inputs!$B$6) -> 80 | D48: =+IF(B48=0,"",VLOOKUP(A48,weibull_rot!$B$3:$G$4002,4,TRUE)*0.229568) -> 35.7551674 | E48: =+IF(B48=0,"",Inputs!$H$8) -> 22.86 | F48: 47 | G48: 1
A49: 48 | B49: =+VLOOKUP(A49,weibull_rot!$B$3:$G$4002,6,TRUE) -> 1 | C49: =+IF(D49="","",Inputs!$B$6) -> 80 | D49: =+IF(B49=0,"",VLOOKUP(A49,weibull_rot!$B$3:$G$4002,4,TRUE)*0.229568) -> 35.7551674 | E49: =+IF(B49=0,"",Inputs!$H$8) -> 22.86 | F49: 48 | G49: 1
A50: 49 | B50: =+VLOOKUP(A50,weibull_rot!$B$3:$G$4002,6,TRUE) -> 1 | C50: =+IF(D50="","",Inputs!$B$6) -> 80 | D50: =+IF(B50=0,"",VLOOKUP(A50,weibull_rot!$B$3:$G$4002,4,TRUE)*0.229568) -> 35.7551674 | E50: =+IF(B50=0,"",Inputs!$H$8) -> 22.86 | F50: 49 | G50: 1
A51: 50 | B51: =+VLOOKUP(A51,weibull_rot!$B$3:$G$4002,6,TRUE) -> 1 | C51: =+IF(D51="","",Inputs!$B$6) -> 80 | D51: =+IF(B51=0,"",VLOOKUP(A51,weibull_rot!$B$3:$G$4002,4,TRUE)*0.229568) -> 35.7551674 | E51: =+IF(B51=0,"",Inputs!$H$8) -> 22.86 | F51: 50 | G51: 1
A52: 51 | B52: =+VLOOKUP(A52,weibull_rot!$B$3:$G$4002,6,TRUE) -> 1 | C52: =+IF(D52="","",Inputs!$B$6) -> 80 | D52: =+IF(B52=0,"",VLOOKUP(A52,weibull_rot!$B$3:$G$4002,4,TRUE)*0.229568) -> 35.7551674 | E52: =+IF(B52=0,"",Inputs!$H$8) -> 22.86 | F52: 51 | G52: 1
A53: 52 | C53: =+IF(D53="","",Inputs!$B$6) ->  | D53: =+IF(B53=0,"",VLOOKUP(A53,weibull_rot!$B$3:$G$4002,4,TRUE)*0.229568) ->  | E53: =+IF(B53=0,"",Inputs!$H$8) -> 
A54: 53 | C54: =+IF(D54="","",Inputs!$B$6) ->  | D54: =+IF(B54=0,"",VLOOKUP(A54,weibull_rot!$B$3:$G$4002,4,TRUE)*0.229568) ->  | E54: =+IF(B54=0,"",Inputs!$H$8) -> 
A55: 54 | C55: =+IF(D55="","",Inputs!$B$6) ->  | D55: =+IF(B55=0,"",VLOOKUP(A55,weibull_rot!$B$3:$G$4002,4,TRUE)*0.229568) ->  | E55: =+IF(B55=0,"",Inputs!$H$8) -> 
A56: 55 | C56: =+IF(D56="","",Inputs!$B$6) ->  | D56: =+IF(B56=0,"",VLOOKUP(A56,weibull_rot!$B$3:$G$4002,4,TRUE)*0.229568) ->  | E56: =+IF(B56=0,"",Inputs!$H$8) -> 
A57: 56 | C57: =+IF(D57="","",Inputs!$B$6) ->  | D57: =+IF(B57=0,"",VLOOKUP(A57,weibull_rot!$B$3:$G$4002,4,TRUE)*0.229568) ->  | E57: =+IF(B57=0,"",Inputs!$H$8) -> 
A58: 57 | C58: =+IF(D58="","",Inputs!$B$6) ->  | D58: =+IF(B58=0,"",VLOOKUP(A58,weibull_rot!$B$3:$G$4002,4,TRUE)*0.229568) ->  | E58: =+IF(B58=0,"",Inputs!$H$8) -> 
A59: 58 | C59: =+IF(D59="","",Inputs!$B$6) ->  | D59: =+IF(B59=0,"",VLOOKUP(A59,weibull_rot!$B$3:$G$4002,4,TRUE)*0.229568) ->  | E59: =+IF(B59=0,"",Inputs!$H$8) -> 
A60: 59 | C60: =+IF(D60="","",Inputs!$B$6) ->  | D60: =+IF(B60=0,"",VLOOKUP(A60,weibull_rot!$B$3:$G$4002,4,TRUE)*0.229568) ->  | E60: =+IF(B60=0,"",Inputs!$H$8) -> 
A61: 60 | C61: =+IF(D61="","",Inputs!$B$6) ->  | D61: =+IF(B61=0,"",VLOOKUP(A61,weibull_rot!$B$3:$G$4002,4,TRUE)*0.229568) ->  | E61: =+IF(B61=0,"",Inputs!$H$8) -> 
A62: 61 | C62: =+IF(D62="","",Inputs!$B$6) ->  | D62: =+IF(B62=0,"",VLOOKUP(A62,weibull_rot!$B$3:$G$4002,4,TRUE)*0.229568) ->  | E62: =+IF(B62=0,"",Inputs!$H$8) -> 
... 70 more rows

Sheet Equations - Parameters (hidden)
A1: Yield prediction & Growth projection
A2: Pineville Dataset - Longleaf Pine Plantations
A3: Equations from: Gonzalez-Benecke et al. 2012
A4: Survival Prediction Function - Includding Hdom and SDI
B5: model N_m = N1_m*exp((j*(Hdom1_m3/100) + v*SDIR1_m)*((Age**k)-(Age1**k))) ; | I5: Unpublished
D6: j | E6: v | F6: k
A7: Metric | H7: SDImax = | I7: 1200
D9: 0.0087247 | E9: -0.0117265 | F9: 1.2543404
A10: Height Prediction | K10: Height Prediction For Natural Stands | R10: Lauer and Kush 2011
I11: Gonzalez-Benecke et al. 2012
A13: Metric | E13: b | F13: c | L13: h1 | M13: h2 | N13: h3
K14: Hdom2 | L14: 77.08 | M14: 1723.39 | N14: 1.235
C15: SI50 | E15: -0.0369815 | F15: 1.2928702
A16: Basal Area Prediction
A17: Unthinned Stands | C17: ln BA = | D17: b0+〖b1∙ln〗⁡(N)+ 〖b2∙ln〗⁡(H_dom ) | I17: Gonzalez-Benecke et al. 2012
D18: b0 | E18: b1 | F18: b2
A20: Metric
D21: -4.6484039 | E21: 0.4452486 | F21: 1.6526307
A22: Competition Index
A23: Thinned Stands | C23: CI2 = | D23: CI1*exp((b1 + b2/Age)*(A2-A1)) | I23: Gonzalez-Benecke et al. 2012
D24: b1 | E24: b2
A25: Metric
D27: 0 | E27: -1.5476196
A28: Volume Prediction
A30: Metric | D30: b1 | E30: b2 | F30: b3 | G30: b4 | H30: b5 | I30: Gonzalez-Benecke et al. 2012
A33: VOB (m3/ha)) | D33: 3.1110579 | E33: -0.1406022 | F33: 1.182631 | G33: -2.4435259 | H33: -0.078288
A34: VIB (m3/ha)) | D34: 3.0888853 | E34: -0.1943861 | F34: 1.258058 | G34: -3.1281571 | H34: -0.098259
A35: Percentile Diameter
D36: model lnP25= lnN_m lnBA_m lnSI50 | I36: Unpublished
C37: a | D37: b | E37: c | F37: d | G37: RMSE
A38: P25 | C38: 4.41173 | D38: -0.6201 | E38: 0.50836 | F38: 0.2391 | G38: 0.14274
A39: P35 | C39: 4.39641 | D39: -0.57351 | E39: 0.50704 | F39: 0.194 | G39: 0.08956
A41: Merchantable Volume for Whole Stand Volume Equations
A42: Yield Breakdown Function:
D43: Ym = | E43: Y*EXP(b1*(t/Dq)^b2 + b3*N^b4*(d/Dq)^b5) | I43: Gonzalez-Benecke et al. 2012
A44: Metric | D44: b1 | E44: b2 | F44: b3 | G44: b4 | H44: b5
A47: VOB (m3/ha)) | D47: -1.0385828 | E47: 4.252617 | F47: -0.626685 | G47: -0.1246646 | H47: 9.1649608
A48: VIB (m3/ha)) | D48: -1.0537628 | E48: 4.2527499 | F48: -0.6545719 | G48: -0.1365633 | H48: 9.3108306
A49: Where:
A50: Ym = Mechantable yield per ha for trees d inches DBH and above to a top diameter of t inches outside bark,
A51: Y = Total yield per ha (TVOB/TBIB at time i)
A52: Dq = Quadratic mean diameter dbh
A53: N = Number of trees per ha
A54: t = Top diameter (merchantability limit)
A55: d = Threshol dbh limit (minimum DBH to be included in this category)
A56: Individual Height
I58: Gonzalez-Benecke et al. 2013
B59: H_m = 1.37 + exp(a + b*dbh_m**k + Age**x + BA_m**z)
B61: a | C61: b | D61: k | E61: x | F61: z
B62: 0.05942 | C62: -10.80378 | D62: -1.1275 | E62: 0.15053 | F62: 0.12124
... 60 more rows

Sheet Inventory (hidden)
A1: Note: Input Values in English Units From a Single Inventory Plot | U1: OUTPUTS | AE1: Age | AF1: 50
AE2: Plot Size | AF2: 0.1
A3: Tree Number | B3: DBH (inch) | C3: Height (ft) | D3: lnD | E3: D_1 | F3: lnH | G3: ba ft2 | H3: count | I3: Height2 (ft) | J3: count | K3: Rank | L3: Height (ft) Dom. Trees | P3: Age | R3: years | U3: Stand-Level Parameters | AE3: D | AF3: H
A4: =+IF(B4="","",1) ->  | D4: =IF(B4="","",LN(B4)) ->  | E4: =IF(B4="","",1/B4) ->  | F4: =IF(C4="","",LN(C4)) ->  | G4: =IF(B4="","",(PI()*(B4/12)^2)/4) ->  | H4: =+IF(B4=0,0,IF(B4="",0,1)) -> 0 | I4: =IF(B4="","",IF(C4<>"",C4,IF($J$6<>"",EXP($J$8+$J$6*E4),3.28084*(1.37 + EXP('Equations - Parameters'!$B$62+('Equations - Parameters'!$C$62*(B4*2.54)^'Equations - Parameters'!$D$62)+$Q$3^'Equations - Parameters'!$E$62 + ($V$5*0.229568)^'Equations - Parameters'!$F$62))))) ->  | J4: =+COUNT(C4:C1003) -> 0 | K4: =IF(B4="","",RANK(I4,ListH,0)) ->  | L4: =+IF(K4<=$M$10,I4,"") ->  | M4: percentile (top 25%) | P4: Plot Size | R4: acre | U4: TPA (acre-1) | V4: =+IF(A4="","",IF(Q4="","",COUNTIF(H4:H1003,1)/$Q$4)) ->  | AE4: 16.3
A5: =+IF(B5="","",A4+1) ->  | D5: =IF(B5="","",LN(B5)) ->  | E5: =IF(B5="","",1/B5) ->  | H5: 0 | I5: =IF(B5="","",IF(C5<>"",C5,IF($J$6<>"",EXP($J$8+$J$6*E5),3.28084*(1.37 + EXP('Equations - Parameters'!$B$62+('Equations - Parameters'!$C$62*(B5*2.54)^'Equations - Parameters'!$D$62)+$Q$3^'Equations - Parameters'!$E$62 + ($V$5*0.229568)^'Equations - Parameters'!$F$62))))) ->  | J5: slope | M5: =+_xlfn.PERCENTILE.INC(I4:I1003,0.75) ->  | U5: BA (ft2/acre) | V5: =+IF(A4="","",IF(Q4="","",SUM(G4:G1003)/$Q$4)) ->  | AE5: 8.9 | AF5: 72
A6: =+IF(B6="","",A5+1) ->  | H6: 0 | I6: =IF(B6="","",IF(C6<>"",C6,IF($J$6<>"",EXP($J$8+$J$6*E6),3.28084*(1.37 + EXP('Equations - Parameters'!$B$62+('Equations - Parameters'!$C$62*(B6*2.54)^'Equations - Parameters'!$D$62)+$Q$3^'Equations - Parameters'!$E$62 + ($V$5*0.229568)^'Equations - Parameters'!$F$62))))) ->  | J6: =+IF(J4<3,"",SLOPE(F4:F1003,E4:E1003)) ->  | M6: N_plot | U6: Hdom (ft) | V6: =+IF(A4="","",IF(Q4="","",AVERAGE(L4:L1003))) ->  | AE6: 10.7
H7: 0 | I7: =IF(B7="","",IF(C7<>"",C7,IF($J$6<>"",EXP($J$8+$J$6*E7),3.28084*(1.37 + EXP('Equations - Parameters'!$B$62+('Equations - Parameters'!$C$62*(B7*2.54)^'Equations - Parameters'!$D$62)+$Q$3^'Equations - Parameters'!$E$62 + ($V$5*0.229568)^'Equations - Parameters'!$F$62))))) ->  | J7: intercept | M7: =+MAX(A4:A1003) -> 0 | U7: SI (ft) base age=50 yrs. | V7: =+IF(A4="","",IF(Q4="","",$V$6/((1-EXP('Equations - Parameters'!$E$15*$Q$3))/(1-EXP('Equations - Parameters'!$E$15*50)))^'Equations - Parameters'!$F$15)) ->  | AE7: 8.8 | AF7: 71
H8: 0 | I8: =IF(B8="","",IF(C8<>"",C8,IF($J$6<>"",EXP($J$8+$J$6*E8),3.28084*(1.37 + EXP('Equations - Parameters'!$B$62+('Equations - Parameters'!$C$62*(B8*2.54)^'Equations - Parameters'!$D$62)+$Q$3^'Equations - Parameters'!$E$62 + ($V$5*0.229568)^'Equations - Parameters'!$F$62))))) ->  | J8: =+IF(J4<3,"",INTERCEPT(F4:F1003,E4:E1003)) ->  | AE8: 4.9
H9: 0 | I9: =IF(B9="","",IF(C9<>"",C9,IF($J$6<>"",EXP($J$8+$J$6*E9),3.28084*(1.37 + EXP('Equations - Parameters'!$B$62+('Equations - Parameters'!$C$62*(B9*2.54)^'Equations - Parameters'!$D$62)+$Q$3^'Equations - Parameters'!$E$62 + ($V$5*0.229568)^'Equations - Parameters'!$F$62))))) ->  | L9: =+IF(K9<=$M$10,I9,"") ->  | M9: Rank75% | AE9: 13.5 | AF9: 72
G10: =IF(B10="","",(PI()*(B10/12)^2)/4) ->  | H10: 0 | I10: =IF(B10="","",IF(C10<>"",C10,IF($J$6<>"",EXP($J$8+$J$6*E10),3.28084*(1.37 + EXP('Equations - Parameters'!$B$62+('Equations - Parameters'!$C$62*(B10*2.54)^'Equations - Parameters'!$D$62)+$Q$3^'Equations - Parameters'!$E$62 + ($V$5*0.229568)^'Equations - Parameters'!$F$62))))) ->  | L10: =+IF(K10<=$M$10,I10,"") ->  | M10: =ROUND(0.25*M7,0) -> 0 | AE10: 12.3 | AF10: 71
H11: 0 | I11: =IF(B11="","",IF(C11<>"",C11,IF($J$6<>"",EXP($J$8+$J$6*E11),3.28084*(1.37 + EXP('Equations - Parameters'!$B$62+('Equations - Parameters'!$C$62*(B11*2.54)^'Equations - Parameters'!$D$62)+$Q$3^'Equations - Parameters'!$E$62 + ($V$5*0.229568)^'Equations - Parameters'!$F$62))))) ->  | AE11: 12 | AF11: 69
H12: 0 | I12: =IF(B12="","",IF(C12<>"",C12,IF($J$6<>"",EXP($J$8+$J$6*E12),3.28084*(1.37 + EXP('Equations - Parameters'!$B$62+('Equations - Parameters'!$C$62*(B12*2.54)^'Equations - Parameters'!$D$62)+$Q$3^'Equations - Parameters'!$E$62 + ($V$5*0.229568)^'Equations - Parameters'!$F$62))))) ->  | AE12: 10.2 | AF12: 64
F13: =IF(C13="","",LN(C13)) ->  | H13: 0 | I13: =IF(B13="","",IF(C13<>"",C13,IF($J$6<>"",EXP($J$8+$J$6*E13),3.28084*(1.37 + EXP('Equations - Parameters'!$B$62+('Equations - Parameters'!$C$62*(B13*2.54)^'Equations - Parameters'!$D$62)+$Q$3^'Equations - Parameters'!$E$62 + ($V$5*0.229568)^'Equations - Parameters'!$F$62))))) ->  | AE13: 12.2 | AF13: 74
F14: =IF(C14="","",LN(C14)) ->  | H14: 0 | I14: =IF(B14="","",IF(C14<>"",C14,IF($J$6<>"",EXP($J$8+$J$6*E14),3.28084*(1.37 + EXP('Equations - Parameters'!$B$62+('Equations - Parameters'!$C$62*(B14*2.54)^'Equations - Parameters'!$D$62)+$Q$3^'Equations - Parameters'!$E$62 + ($V$5*0.229568)^'Equations - Parameters'!$F$62))))) ->  | AE14: 15.5 | AF14: 78
H15: 0 | I15: =IF(B15="","",IF(C15<>"",C15,IF($J$6<>"",EXP($J$8+$J$6*E15),3.28084*(1.37 + EXP('Equations - Parameters'!$B$62+('Equations - Parameters'!$C$62*(B15*2.54)^'Equations - Parameters'!$D$62)+$Q$3^'Equations - Parameters'!$E$62 + ($V$5*0.229568)^'Equations - Parameters'!$F$62))))) ->  | AE15: 11.5 | AF15: 73
H16: 0 | I16: =IF(B16="","",IF(C16<>"",C16,IF($J$6<>"",EXP($J$8+$J$6*E16),3.28084*(1.37 + EXP('Equations - Parameters'!$B$62+('Equations - Parameters'!$C$62*(B16*2.54)^'Equations - Parameters'!$D$62)+$Q$3^'Equations - Parameters'!$E$62 + ($V$5*0.229568)^'Equations - Parameters'!$F$62))))) -> 
H17: 0 | I17: =IF(B17="","",IF(C17<>"",C17,IF($J$6<>"",EXP($J$8+$J$6*E17),3.28084*(1.37 + EXP('Equations - Parameters'!$B$62+('Equations - Parameters'!$C$62*(B17*2.54)^'Equations - Parameters'!$D$62)+$Q$3^'Equations - Parameters'!$E$62 + ($V$5*0.229568)^'Equations - Parameters'!$F$62))))) -> 
H18: 0 | I18: =IF(B18="","",IF(C18<>"",C18,IF($J$6<>"",EXP($J$8+$J$6*E18),3.28084*(1.37 + EXP('Equations - Parameters'!$B$62+('Equations - Parameters'!$C$62*(B18*2.54)^'Equations - Parameters'!$D$62)+$Q$3^'Equations - Parameters'!$E$62 + ($V$5*0.229568)^'Equations - Parameters'!$F$62))))) -> 
H19: 0 | I19: =IF(B19="","",IF(C19<>"",C19,IF($J$6<>"",EXP($J$8+$J$6*E19),3.28084*(1.37 + EXP('Equations - Parameters'!$B$62+('Equations - Parameters'!$C$62*(B19*2.54)^'Equations - Parameters'!$D$62)+$Q$3^'Equations - Parameters'!$E$62 + ($V$5*0.229568)^'Equations - Parameters'!$F$62))))) -> 
H20: 0 | I20: =IF(B20="","",IF(C20<>"",C20,IF($J$6<>"",EXP($J$8+$J$6*E20),3.28084*(1.37 + EXP('Equations - Parameters'!$B$62+('Equations - Parameters'!$C$62*(B20*2.54)^'Equations - Parameters'!$D$62)+$Q$3^'Equations - Parameters'!$E$62 + ($V$5*0.229568)^'Equations - Parameters'!$F$62))))) -> 
H21: 0 | I21: =IF(B21="","",IF(C21<>"",C21,IF($J$6<>"",EXP($J$8+$J$6*E21),3.28084*(1.37 + EXP('Equations - Parameters'!$B$62+('Equations - Parameters'!$C$62*(B21*2.54)^'Equations - Parameters'!$D$62)+$Q$3^'Equations - Parameters'!$E$62 + ($V$5*0.229568)^'Equations - Parameters'!$F$62))))) -> 
H22: 0 | I22: =IF(B22="","",IF(C22<>"",C22,IF($J$6<>"",EXP($J$8+$J$6*E22),3.28084*(1.37 + EXP('Equations - Parameters'!$B$62+('Equations - Parameters'!$C$62*(B22*2.54)^'Equations - Parameters'!$D$62)+$Q$3^'Equations - Parameters'!$E$62 + ($V$5*0.229568)^'Equations - Parameters'!$F$62))))) -> 
H23: 0 | I23: =IF(B23="","",IF(C23<>"",C23,IF($J$6<>"",EXP($J$8+$J$6*E23),3.28084*(1.37 + EXP('Equations - Parameters'!$B$62+('Equations - Parameters'!$C$62*(B23*2.54)^'Equations - Parameters'!$D$62)+$Q$3^'Equations - Parameters'!$E$62 + ($V$5*0.229568)^'Equations - Parameters'!$F$62))))) -> 
H24: 0 | I24: =IF(B24="","",IF(C24<>"",C24,IF($J$6<>"",EXP($J$8+$J$6*E24),3.28084*(1.37 + EXP('Equations - Parameters'!$B$62+('Equations - Parameters'!$C$62*(B24*2.54)^'Equations - Parameters'!$D$62)+$Q$3^'Equations - Parameters'!$E$62 + ($V$5*0.229568)^'Equations - Parameters'!$F$62))))) -> 
H25: 0 | I25: =IF(B25="","",IF(C25<>"",C25,IF($J$6<>"",EXP($J$8+$J$6*E25),3.28084*(1.37 + EXP('Equations - Parameters'!$B$62+('Equations - Parameters'!$C$62*(B25*2.54)^'Equations - Parameters'!$D$62)+$Q$3^'Equations - Parameters'!$E$62 + ($V$5*0.229568)^'Equations - Parameters'!$F$62))))) -> 
H26: 0 | I26: =IF(B26="","",IF(C26<>"",C26,IF($J$6<>"",EXP($J$8+$J$6*E26),3.28084*(1.37 + EXP('Equations - Parameters'!$B$62+('Equations - Parameters'!$C$62*(B26*2.54)^'Equations - Parameters'!$D$62)+$Q$3^'Equations - Parameters'!$E$62 + ($V$5*0.229568)^'Equations - Parameters'!$F$62))))) -> 
H27: 0 | I27: =IF(B27="","",IF(C27<>"",C27,IF($J$6<>"",EXP($J$8+$J$6*E27),3.28084*(1.37 + EXP('Equations - Parameters'!$B$62+('Equations - Parameters'!$C$62*(B27*2.54)^'Equations - Parameters'!$D$62)+$Q$3^'Equations - Parameters'!$E$62 + ($V$5*0.229568)^'Equations - Parameters'!$F$62))))) -> 
H28: 0 | I28: =IF(B28="","",IF(C28<>"",C28,IF($J$6<>"",EXP($J$8+$J$6*E28),3.28084*(1.37 + EXP('Equations - Parameters'!$B$62+('Equations - Parameters'!$C$62*(B28*2.54)^'Equations - Parameters'!$D$62)+$Q$3^'Equations - Parameters'!$E$62 + ($V$5*0.229568)^'Equations - Parameters'!$F$62))))) -> 
H29: 0 | I29: =IF(B29="","",IF(C29<>"",C29,IF($J$6<>"",EXP($J$8+$J$6*E29),3.28084*(1.37 + EXP('Equations - Parameters'!$B$62+('Equations - Parameters'!$C$62*(B29*2.54)^'Equations - Parameters'!$D$62)+$Q$3^'Equations - Parameters'!$E$62 + ($V$5*0.229568)^'Equations - Parameters'!$F$62))))) -> 
H30: 0 | I30: =IF(B30="","",IF(C30<>"",C30,IF($J$6<>"",EXP($J$8+$J$6*E30),3.28084*(1.37 + EXP('Equations - Parameters'!$B$62+('Equations - Parameters'!$C$62*(B30*2.54)^'Equations - Parameters'!$D$62)+$Q$3^'Equations - Parameters'!$E$62 + ($V$5*0.229568)^'Equations - Parameters'!$F$62))))) -> 
H31: 0 | I31: =IF(B31="","",IF(C31<>"",C31,IF($J$6<>"",EXP($J$8+$J$6*E31),3.28084*(1.37 + EXP('Equations - Parameters'!$B$62+('Equations - Parameters'!$C$62*(B31*2.54)^'Equations - Parameters'!$D$62)+$Q$3^'Equations - Parameters'!$E$62 + ($V$5*0.229568)^'Equations - Parameters'!$F$62))))) -> 
H32: 0 | I32: =IF(B32="","",IF(C32<>"",C32,IF($J$6<>"",EXP($J$8+$J$6*E32),3.28084*(1.37 + EXP('Equations - Parameters'!$B$62+('Equations - Parameters'!$C$62*(B32*2.54)^'Equations - Parameters'!$D$62)+$Q$3^'Equations - Parameters'!$E$62 + ($V$5*0.229568)^'Equations - Parameters'!$F$62))))) -> 
H33: 0 | I33: =IF(B33="","",IF(C33<>"",C33,IF($J$6<>"",EXP($J$8+$J$6*E33),3.28084*(1.37 + EXP('Equations - Parameters'!$B$62+('Equations - Parameters'!$C$62*(B33*2.54)^'Equations - Parameters'!$D$62)+$Q$3^'Equations - Parameters'!$E$62 + ($V$5*0.229568)^'Equations - Parameters'!$F$62))))) -> 
H34: 0 | I34: =IF(B34="","",IF(C34<>"",C34,IF($J$6<>"",EXP($J$8+$J$6*E34),3.28084*(1.37 + EXP('Equations - Parameters'!$B$62+('Equations - Parameters'!$C$62*(B34*2.54)^'Equations - Parameters'!$D$62)+$Q$3^'Equations - Parameters'!$E$62 + ($V$5*0.229568)^'Equations - Parameters'!$F$62))))) -> 
H35: 0 | I35: =IF(B35="","",IF(C35<>"",C35,IF($J$6<>"",EXP($J$8+$J$6*E35),3.28084*(1.37 + EXP('Equations - Parameters'!$B$62+('Equations - Parameters'!$C$62*(B35*2.54)^'Equations - Parameters'!$D$62)+$Q$3^'Equations - Parameters'!$E$62 + ($V$5*0.229568)^'Equations - Parameters'!$F$62))))) -> 
H36: =+IF(B36=0,0,IF(B36="",0,1)) -> 0 | I36: =IF(B36="","",IF(C36<>"",C36,IF($J$6<>"",EXP($J$8+$J$6*E36),3.28084*(1.37 + EXP('Equations - Parameters'!$B$62+('Equations - Parameters'!$C$62*(B36*2.54)^'Equations - Parameters'!$D$62)+$Q$3^'Equations - Parameters'!$E$62 + ($V$5*0.229568)^'Equations - Parameters'!$F$62))))) -> 
H37: 0 | I37: =IF(B37="","",IF(C37<>"",C37,IF($J$6<>"",EXP($J$8+$J$6*E37),3.28084*(1.37 + EXP('Equations - Parameters'!$B$62+('Equations - Parameters'!$C$62*(B37*2.54)^'Equations - Parameters'!$D$62)+$Q$3^'Equations - Parameters'!$E$62 + ($V$5*0.229568)^'Equations - Parameters'!$F$62))))) -> 
H38: 0 | I38: =IF(B38="","",IF(C38<>"",C38,IF($J$6<>"",EXP($J$8+$J$6*E38),3.28084*(1.37 + EXP('Equations - Parameters'!$B$62+('Equations - Parameters'!$C$62*(B38*2.54)^'Equations - Parameters'!$D$62)+$Q$3^'Equations - Parameters'!$E$62 + ($V$5*0.229568)^'Equations - Parameters'!$F$62))))) -> 
H39: 0 | I39: =IF(B39="","",IF(C39<>"",C39,IF($J$6<>"",EXP($J$8+$J$6*E39),3.28084*(1.37 + EXP('Equations - Parameters'!$B$62+('Equations - Parameters'!$C$62*(B39*2.54)^'Equations - Parameters'!$D$62)+$Q$3^'Equations - Parameters'!$E$62 + ($V$5*0.229568)^'Equations - Parameters'!$F$62))))) -> 
H40: 0 | I40: =IF(B40="","",IF(C40<>"",C40,IF($J$6<>"",EXP($J$8+$J$6*E40),3.28084*(1.37 + EXP('Equations - Parameters'!$B$62+('Equations - Parameters'!$C$62*(B40*2.54)^'Equations - Parameters'!$D$62)+$Q$3^'Equations - Parameters'!$E$62 + ($V$5*0.229568)^'Equations - Parameters'!$F$62))))) -> 
H41: 0 | I41: =IF(B41="","",IF(C41<>"",C41,IF($J$6<>"",EXP($J$8+$J$6*E41),3.28084*(1.37 + EXP('Equations - Parameters'!$B$62+('Equations - Parameters'!$C$62*(B41*2.54)^'Equations - Parameters'!$D$62)+$Q$3^'Equations - Parameters'!$E$62 + ($V$5*0.229568)^'Equations - Parameters'!$F$62))))) -> 
H42: 0 | I42: =IF(B42="","",IF(C42<>"",C42,IF($J$6<>"",EXP($J$8+$J$6*E42),3.28084*(1.37 + EXP('Equations - Parameters'!$B$62+('Equations - Parameters'!$C$62*(B42*2.54)^'Equations - Parameters'!$D$62)+$Q$3^'Equations - Parameters'!$E$62 + ($V$5*0.229568)^'Equations - Parameters'!$F$62))))) -> 
H43: 0 | I43: =IF(B43="","",IF(C43<>"",C43,IF($J$6<>"",EXP($J$8+$J$6*E43),3.28084*(1.37 + EXP('Equations - Parameters'!$B$62+('Equations - Parameters'!$C$62*(B43*2.54)^'Equations - Parameters'!$D$62)+$Q$3^'Equations - Parameters'!$E$62 + ($V$5*0.229568)^'Equations - Parameters'!$F$62))))) -> 
H44: 0 | I44: =IF(B44="","",IF(C44<>"",C44,IF($J$6<>"",EXP($J$8+$J$6*E44),3.28084*(1.37 + EXP('Equations - Parameters'!$B$62+('Equations - Parameters'!$C$62*(B44*2.54)^'Equations - Parameters'!$D$62)+$Q$3^'Equations - Parameters'!$E$62 + ($V$5*0.229568)^'Equations - Parameters'!$F$62))))) -> 
H45: 0 | I45: =IF(B45="","",IF(C45<>"",C45,IF($J$6<>"",EXP($J$8+$J$6*E45),3.28084*(1.37 + EXP('Equations - Parameters'!$B$62+('Equations - Parameters'!$C$62*(B45*2.54)^'Equations - Parameters'!$D$62)+$Q$3^'Equations - Parameters'!$E$62 + ($V$5*0.229568)^'Equations - Parameters'!$F$62))))) -> 
H46: 0 | I46: =IF(B46="","",IF(C46<>"",C46,IF($J$6<>"",EXP($J$8+$J$6*E46),3.28084*(1.37 + EXP('Equations - Parameters'!$B$62+('Equations - Parameters'!$C$62*(B46*2.54)^'Equations - Parameters'!$D$62)+$Q$3^'Equations - Parameters'!$E$62 + ($V$5*0.229568)^'Equations - Parameters'!$F$62))))) -> 
H47: 0 | I47: =IF(B47="","",IF(C47<>"",C47,IF($J$6<>"",EXP($J$8+$J$6*E47),3.28084*(1.37 + EXP('Equations - Parameters'!$B$62+('Equations - Parameters'!$C$62*(B47*2.54)^'Equations - Parameters'!$D$62)+$Q$3^'Equations - Parameters'!$E$62 + ($V$5*0.229568)^'Equations - Parameters'!$F$62))))) -> 
H48: 0 | I48: =IF(B48="","",IF(C48<>"",C48,IF($J$6<>"",EXP($J$8+$J$6*E48),3.28084*(1.37 + EXP('Equations - Parameters'!$B$62+('Equations - Parameters'!$C$62*(B48*2.54)^'Equations - Parameters'!$D$62)+$Q$3^'Equations - Parameters'!$E$62 + ($V$5*0.229568)^'Equations - Parameters'!$F$62))))) -> 
H49: 0 | I49: =IF(B49="","",IF(C49<>"",C49,IF($J$6<>"",EXP($J$8+$J$6*E49),3.28084*(1.37 + EXP('Equations - Parameters'!$B$62+('Equations - Parameters'!$C$62*(B49*2.54)^'Equations - Parameters'!$D$62)+$Q$3^'Equations - Parameters'!$E$62 + ($V$5*0.229568)^'Equations - Parameters'!$F$62))))) -> 
H50: 0 | I50: =IF(B50="","",IF(C50<>"",C50,IF($J$6<>"",EXP($J$8+$J$6*E50),3.28084*(1.37 + EXP('Equations - Parameters'!$B$62+('Equations - Parameters'!$C$62*(B50*2.54)^'Equations - Parameters'!$D$62)+$Q$3^'Equations - Parameters'!$E$62 + ($V$5*0.229568)^'Equations - Parameters'!$F$62))))) -> 
H51: 0 | I51: =IF(B51="","",IF(C51<>"",C51,IF($J$6<>"",EXP($J$8+$J$6*E51),3.28084*(1.37 + EXP('Equations - Parameters'!$B$62+('Equations - Parameters'!$C$62*(B51*2.54)^'Equations - Parameters'!$D$62)+$Q$3^'Equations - Parameters'!$E$62 + ($V$5*0.229568)^'Equations - Parameters'!$F$62))))) -> 
H52: 0 | I52: =IF(B52="","",IF(C52<>"",C52,IF($J$6<>"",EXP($J$8+$J$6*E52),3.28084*(1.37 + EXP('Equations - Parameters'!$B$62+('Equations - Parameters'!$C$62*(B52*2.54)^'Equations - Parameters'!$D$62)+$Q$3^'Equations - Parameters'!$E$62 + ($V$5*0.229568)^'Equations - Parameters'!$F$62))))) -> 
H53: 0 | I53: =IF(B53="","",IF(C53<>"",C53,IF($J$6<>"",EXP($J$8+$J$6*E53),3.28084*(1.37 + EXP('Equations - Parameters'!$B$62+('Equations - Parameters'!$C$62*(B53*2.54)^'Equations - Parameters'!$D$62)+$Q$3^'Equations - Parameters'!$E$62 + ($V$5*0.229568)^'Equations - Parameters'!$F$62))))) -> 
H54: 0 | I54: =IF(B54="","",IF(C54<>"",C54,IF($J$6<>"",EXP($J$8+$J$6*E54),3.28084*(1.37 + EXP('Equations - Parameters'!$B$62+('Equations - Parameters'!$C$62*(B54*2.54)^'Equations - Parameters'!$D$62)+$Q$3^'Equations - Parameters'!$E$62 + ($V$5*0.229568)^'Equations - Parameters'!$F$62))))) -> 
H55: 0 | I55: =IF(B55="","",IF(C55<>"",C55,IF($J$6<>"",EXP($J$8+$J$6*E55),3.28084*(1.37 + EXP('Equations - Parameters'!$B$62+('Equations - Parameters'!$C$62*(B55*2.54)^'Equations - Parameters'!$D$62)+$Q$3^'Equations - Parameters'!$E$62 + ($V$5*0.229568)^'Equations - Parameters'!$F$62))))) -> 
H56: 0 | I56: =IF(B56="","",IF(C56<>"",C56,IF($J$6<>"",EXP($J$8+$J$6*E56),3.28084*(1.37 + EXP('Equations - Parameters'!$B$62+('Equations - Parameters'!$C$62*(B56*2.54)^'Equations - Parameters'!$D$62)+$Q$3^'Equations - Parameters'!$E$62 + ($V$5*0.229568)^'Equations - Parameters'!$F$62))))) -> 
H57: 0 | I57: =IF(B57="","",IF(C57<>"",C57,IF($J$6<>"",EXP($J$8+$J$6*E57),3.28084*(1.37 + EXP('Equations - Parameters'!$B$62+('Equations - Parameters'!$C$62*(B57*2.54)^'Equations - Parameters'!$D$62)+$Q$3^'Equations - Parameters'!$E$62 + ($V$5*0.229568)^'Equations - Parameters'!$F$62))))) -> 
H58: 0 | I58: =IF(B58="","",IF(C58<>"",C58,IF($J$6<>"",EXP($J$8+$J$6*E58),3.28084*(1.37 + EXP('Equations - Parameters'!$B$62+('Equations - Parameters'!$C$62*(B58*2.54)^'Equations - Parameters'!$D$62)+$Q$3^'Equations - Parameters'!$E$62 + ($V$5*0.229568)^'Equations - Parameters'!$F$62))))) -> 
H59: 0 | I59: =IF(B59="","",IF(C59<>"",C59,IF($J$6<>"",EXP($J$8+$J$6*E59),3.28084*(1.37 + EXP('Equations - Parameters'!$B$62+('Equations - Parameters'!$C$62*(B59*2.54)^'Equations - Parameters'!$D$62)+$Q$3^'Equations - Parameters'!$E$62 + ($V$5*0.229568)^'Equations - Parameters'!$F$62))))) -> 
H60: 0 | I60: =IF(B60="","",IF(C60<>"",C60,IF($J$6<>"",EXP($J$8+$J$6*E60),3.28084*(1.37 + EXP('Equations - Parameters'!$B$62+('Equations - Parameters'!$C$62*(B60*2.54)^'Equations - Parameters'!$D$62)+$Q$3^'Equations - Parameters'!$E$62 + ($V$5*0.229568)^'Equations - Parameters'!$F$62))))) -> 
H61: 0 | I61: =IF(B61="","",IF(C61<>"",C61,IF($J$6<>"",EXP($J$8+$J$6*E61),3.28084*(1.37 + EXP('Equations - Parameters'!$B$62+('Equations - Parameters'!$C$62*(B61*2.54)^'Equations - Parameters'!$D$62)+$Q$3^'Equations - Parameters'!$E$62 + ($V$5*0.229568)^'Equations - Parameters'!$F$62))))) -> 
H62: 0 | I62: =IF(B62="","",IF(C62<>"",C62,IF($J$6<>"",EXP($J$8+$J$6*E62),3.28084*(1.37 + EXP('Equations - Parameters'!$B$62+('Equations - Parameters'!$C$62*(B62*2.54)^'Equations - Parameters'!$D$62)+$Q$3^'Equations - Parameters'!$E$62 + ($V$5*0.229568)^'Equations - Parameters'!$F$62))))) -> 
... 77 more rows

Sheet Growth&Yield (hidden)
E1: Unthinned | I1: N/ha - Thinning %BA at Fixed Age | N1: QMD | S1: SDI | X1: Thinning % BA | AT1: N/ha - Target BA | AY1: N/ha - Target BA | BD1: BA | BI1: QMD | BN1: SDI | BS1: Thinning - Target BA | CV1: N/ha - Target SDI | DA1: N/ha - Target SDI | DF1: BA | DK1: Thinning - Target SDI | FH1: Nha | FM1: BA | FR1: QMD (cm) | FW1: SDI | GB1: Volume Over Bark | GG1: Volume Inside Bark | GL1: Thinning ID | GQ1: Age of Thinning | GV1: BA Removed | HA1: BA Before Thinning | HF1: BA After Thinning | HK1: N Removed | HP1: N Before Thinning | HU1: N After Thinning | HZ1: Vol (OB) Removed | IE1: Vol (OB) Before Thinning | IJ1: Vol (OB) After Thinning | IO1: Vol (IB) Removed | IT1: Vol (IB) Before Thinning | IY1: Vol (IB) After Thinning | JD1: QMD (cm) Removed | JI1: Merchantable Volume 0B Unthinned | JL1: Merchantable Volume OB Thinning1 | JO1: Merchantable Volume OB Thinning2 | JR1: Merchantable Volume OB Thinning3 | JU1: Merchantable Volume OB Thinning4 | JX1: Removed Merchantable Volume OB Unthinned | KA1: Removed Merchantable Volume OB Thinning 1 | KD1: Removed Merchantable Volume OB Thinning 2 | KG1: Removed Merchantable Volume OB Thinning 3 | KJ1: Removed Merchantable Volume OB Thinning 4 | KM1: Merchantable Volume IB Unthinned | KP1: Merchantable Volume IB Thinning1 | KS1: Merchantable Volume IB Thinning2 | KV1: Merchantable Volume IB Thinning3 | KY1: Merchantable Volume IB Thinning4 | LB1: Removed Merchantable Volume IB Unthinned | LE1: Removed Merchantable Volume IB Thinning 1 | LH1: Removed Merchantable Volume IB Thinning 2 | LK1: Removed Merchantable Volume IB Thinning 3 | LN1: Removed Merchantable Volume IB Thinning 4
A2: Year | B2: Rotation | C2: Age | D2: Hdom (m) | E2: N/acre | F2: BA | G2: QMD | H2: SDI | N2: Unthinned | O2: Thinning 1 | P2: Thinning 2 | Q2: Thinning 3 | R2: Thinning 4 | S2: Unthinned | T2: Thinning 1 | U2: Thinning 2 | V2: Thinning 3 | W2: Thinning 4 | X2: BA unthinned counterpart Th3_1 | Y2: BA unthinned | Z2: BA removed at Th4_1 | AA2: BA unthinned counterpart Th2 | AB2: BA removed at Th2 | AC2: BA unthinned counterpart Th3 | AD2: BA removed at Th3 | AE2: BA unthinned counterpart Th4 | AF2: BA removed at Th4 | AG2: BA_Th1 | AH2: Th2 ID | AI2: C I Th4_1 | AJ2: BA_Th2 | AK2: Th2 ID | AL2: C I Th4_2 | AM2: BA_Th3 | AN2: Th3 ID | AO2: C I Th3 | AP2: BA_Th4 | AQ2: Th4 ID | AR2: C I Th4 | AS2: BA Residual | AT2: Unthinned | AU2: Thinning 1 | AV2: Thinning 2 | AW2: Thinning 3 | AX2: Thinning 4 | AY2: Unthinned | AZ2: Thinning 1 | BA2: Thinning 2 | BB2: Thinning 3 | BC2: Thinning 4 | BD2: Unthinned | BE2: Thinning 1 | BF2: Thinning 2 | BG2: Thinning 3 | BH2: Thinning 4 | BI2: Unthinned | BJ2: Thinning 1 | BK2: Thinning 2 | BL2: Thinning 3 | BM2: Thinning 4 | BN2: Unthinned | BO2: Thinning 1 | BP2: Thinning 2 | BQ2: Thinning 3 | BR2: Thinning 4 | BS2: BA unthinned counterpart Th1 | BT2: BA unthinned | BU2: BA Th1 | BV2: Th1 ID | BW2: BA residual at Th1 | BX2: BA removed at Th1 | BY2: Age at Th1 | BZ2: C I Th1 | CA2: BA unthinned counterpart Th2 | CB2: BA Th2 | CC2: Th2 ID | CD2: BA residual at Th2 | CE2: BA removed at Th2 | CF2: Age at Th2 | CG2: C I Th2 | CH2: BA unthinned counterpart Th3 | CI2: BA Th3 | CJ2: Th3 ID | CK2: BA residual at Th3 | CL2: BA removed at Th3 | CM2: Age at Th3 | CN2: C I Th3 | CO2: BA unthinned counterpart Th4 | CP2: BA Th4 | CQ2: Th4 ID | CR2: BA residual at Th4 | CS2: BA removed at Th4 | CT2: Age at Th4 | CU2: C I Th4 | CV2: Unthinned | CW2: Thinning 1 | CX2: Thinning 2 | CY2: Thinning 3 | CZ2: Thinning 4 | DA2: Unthinned | DB2: Thinning 1 | DC2: Thinning 2 | DD2: Thinning 3 | DE2: Thinning 4 | DF2: Unthinned | DG2: Thinning 1 | DH2: Thinning 2 | DI2: Thinning 3 | DJ2: Thinning 4 | DK2: BA unthinned counterpart Th1 | DL2: BA unthinned | DM2: QMD unthinned | DN2: SDI unthinned | DO2: BA Th1 | DP2: QMD Th1 | DQ2: SDI Th1 | DR2: Th1 ID | DS2: SDI residual at Th1 | DT2: SDI removed at Th1 | DU2: BA residual at Th1 | DV2: BA removed at Th1 | DW2: Age at Th1 | DX2: C I Th1 | DY2: BA unthinned counterpart Th2 | DZ2: BA Th2 | EA2: QMD Th2 | EB2: SDI Th2 | EC2: Th2 ID | ED2: SDI residual at Th2 | EE2: SDI removed at Th2 | EF2: BA residual at Th2 | EG2: BA removed at Th2 | EH2: Age at Th2 | EI2: C I Th2 | EJ2: BA unthinned counterpart Th3 | EK2: BA Th3 | EL2: QMD Th3 | EM2: SDI Th3 | EN2: Th3 ID | EO2: SDI residual at Th3 | EP2: SDI removed at Th3 | EQ2: BA residual at Th3 | ER2: BA removed at Th3 | ES2: Age at Th3 | ET2: C I Th3 | EU2: BA unthinned counterpart Th4 | EV2: BA Th4 | EW2: QMD Th4 | EX2: SDI Th4 | EY2: Th4 ID | EZ2: SDI residual at Th4 | FA2: SDI removed at Th4 | FB2: BA residual at Th4 | FC2: BA removed at Th4 | FD2: Age at Th4 | FE2: C I Th4 | FF2: Age | FG2: Hdom (m) | FH2: Unthinned | FI2: Thinning 1 | FJ2: Thinning 2 | FK2: Thinning 3 | FL2: Thinning 4 | FM2: Unthinned | FN2: Thinning 1 | FO2: Thinning 2 | FP2: Thinning 3 | FQ2: Thinning 4 | FR2: Unthinned | FS2: Thinning 1 | FT2: Thinning 2 | FU2: Thinning 3 | FV2: Thinning 4 | FW2: Unthinned | FX2: Thinning 1 | FY2: Thinning 2 | FZ2: Thinning 3 | GA2: Thinning 4 | GB2: Unthinned | GC2: Thinning 1 | GD2: Thinning 2 | GE2: Thinning 3 | GF2: Thinning 4 | GG2: Unthinned | GH2: Thinning 1 | GI2: Thinning 2 | GJ2: Thinning 3 | GK2: Thinning 4 | GL2: Unthinned | GM2: Thinning 1 | GN2: Thinning 2 | GO2: Thinning 3 | GP2: Thinning 4 | GQ2: Unthinned | GR2: Thinning 1 | GS2: Thinning 2 | GT2: Thinning 3 | GU2: Thinning 4 | GV2: Unthinned | GW2: Thinning 1 | GX2: Thinning 2 | GY2: Thinning 3 | GZ2: Thinning 4 | HA2: Unthinned | HB2: Thinning 1 | HC2: Thinning 2 | HD2: Thinning 3 | HE2: Thinning 4 | HF2: Unthinned | HG2: Thinning 1 | HH2: Thinning 2 | HI2: Thinning 3 | HJ2: Thinning 4 | HK2: Unthinned | HL2: Thinning 1 | HM2: Thinning 2 | HN2: Thinning 3 | HO2: Thinning 4 | HP2: Unthinned | HQ2: Thinning 1 | HR2: Thinning 2 | HS2: Thinning 3 | HT2: Thinning 4 | HU2: Unthinned | HV2: Thinning 1 | HW2: Thinning 2 | HX2: Thinning 3 | HY2: Thinning 4 | HZ2: Unthinned | IA2: Thinning 1 | IB2: Thinning 2 | IC2: Thinning 3 | ID2: Thinning 4 | IE2: Unthinned | IF2: Thinning 1 | IG2: Thinning 2 | IH2: Thinning 3 | II2: Thinning 4 | IJ2: Unthinned | IK2: Thinning 1 | IL2: Thinning 2 | IM2: Thinning 3 | IN2: Thinning 4 | IO2: Unthinned | IP2: Thinning 1 | IQ2: Thinning 2 | IR2: Thinning 3 | IS2: Thinning 4 | IT2: Unthinned | IU2: Thinning 1 | IV2: Thinning 2 | IW2: Thinning 3 | IX2: Thinning 4 | IY2: Unthinned | IZ2: Thinning 1 | JA2: Thinning 2 | JB2: Thinning 3 | JC2: Thinning 4 | JD2: Unthinned | JE2: Thinning 1 | JF2: Thinning 2 | JG2: Thinning 3 | JH2: Thinning 4 | JI2: Sawtimber | JJ2: CNS | JK2: Pulpwood | JL2: Sawtimber | JM2: CNS | JN2: Pulpwood | JO2: Sawtimber | JP2: CNS | JQ2: Pulpwood | JR2: Sawtimber | JS2: CNS | JT2: Pulpwood | JU2: Sawtimber | JV2: CNS | JW2: Pulpwood | JX2: Sawtimber | JY2: CNS | JZ2: Pulpwood | KA2: Sawtimber | KB2: CNS | KC2: Pulpwood | KD2: Sawtimber | KE2: CNS | KF2: Pulpwood | KG2: Sawtimber | KH2: CNS | KI2: Pulpwood | KJ2: Sawtimber | KK2: CNS | KL2: Pulpwood | KM2: Sawtimber | KN2: CNS | KO2: Pulpwood | KP2: Sawtimber | KQ2: CNS | KR2: Pulpwood | KS2: Sawtimber | KT2: CNS | KU2: Pulpwood | KV2: Sawtimber | KW2: CNS | KX2: Pulpwood | KY2: Sawtimber | KZ2: CNS | LA2: Pulpwood | LB2: Sawtimber | LC2: CNS | LD2: Pulpwood | LE2: Sawtimber | LF2: CNS | LG2: Pulpwood | LH2: Sawtimber | LI2: CNS | LJ2: Pulpwood | LK2: Sawtimber | LL2: CNS | LM2: Pulpwood | LN2: Sawtimber | LO2: CNS | LP2: Pulpwood
E3: trees acre-1 | F3: ft2 acre-1 | G3: inch | H3: trees acre-1 | I3: Unthinned | J3: Thinning 1 | K3: Thinning 2 | L3: Thinning 3 | M3: Thinning 4 | N3: (cm) | S3: (trees ha-1) | AG3: m2 ha-1 | AJ3: m2 ha-1 | AM3: m2 ha-1 | AP3: m2 ha-1 | AS3: Thining 4 | BI3: (cm) | BN3: (trees ha-1) | FH3: (trees / ha) | FM3: (m2 / ha) | FR3: (cm) | FW3: (trees / ha) | GB3: (m3 / ha) | GG3: (m3 / ha) | GQ3: (year) | GV3: (m2 / ha) | HA3: (m2 / ha) | HF3: (m2 / ha) | HK3: (trees / ha) | HP3: (trees / ha) | HU3: (trees / ha) | HZ3: (m3 / ha) | IE3: (m3 / ha) | IJ3: (m3 / ha) | IO3: (m3 / ha) | IT3: (m3 / ha) | IY3: (m3 / ha) | JD3: (cm) | JI3: (m3 / ha) | JL3: (m3 / ha) | JO3: (m3 / ha) | JR3: (m3 / ha) | JU3: (m3 / ha) | JX3: (m3 / ha) | KA3: (m3 / ha) | KD3: (m3 / ha) | KG3: (m3 / ha) | KJ3: (m3 / ha) | KM3: (m3 / ha) | KP3: (m3 / ha) | KS3: (m3 / ha) | KV3: (m3 / ha) | KY3: (m3 / ha) | LB3: (m3 / ha) | LE3: (m3 / ha) | LH3: (m3 / ha) | LK3: (m3 / ha) | LN3: (m3 / ha)
A4: 0 | B4: =+IF(AND(Inputs!$H$18=FALSE,A4+Inputs!$H$7-1>Inputs!$B$6),"",IF(AND(Inputs!$H$3=TRUE,A4<=Inputs!$B$6),1,IF(AND(Inputs!$H$4=TRUE,A4+Inputs!$H$7<=Inputs!$B$6),1,IF(Inputs!$H$3=TRUE,ROUNDDOWN((A4-1)/(Inputs!$B$6),0)+1,ROUNDDOWN((A4+Inputs!$H$7-1)/(Inputs!$B$6),0)+1)))) -> 1 | C4: =+IF(B4="","",IF(AND(Inputs!$H$18=FALSE,A4+Inputs!$H$7-1>Inputs!$B$6),"",IF(C3=Inputs!$B$6,1,IF(AND(Inputs!$H$3=TRUE,A4=0),0,IF(AND(Inputs!$H$4=TRUE,A4=0),Inputs!$H$7,IF(C3=Inputs!$B$6,0,C3+1)))))) -> 0 | D4: =+IF($C4="","",IF(C4=0,0,IF(Inputs!$H$3=TRUE,Inputs!$H$13*((1-EXP('Equations - Parameters'!$E$15*C4))/(1-EXP('Equations - Parameters'!$E$15*50)))^'Equations - Parameters'!$F$15,Inputs!$J$14*((1-EXP('Equations - Parameters'!$E$15*C4))/(1-EXP('Equations - Parameters'!$E$15*50)))^'Equations - Parameters'!$F$15))) -> 0 | E4: =+IF($C4="","",IF($C4=0,0,IF(Inputs!$H$15=TRUE,0,IF(C4=1,Inputs!$H$11*Inputs!$B$11,IF(Inputs!$H$15=TRUE,0,IF(AND(Inputs!$H$3=TRUE,$A4=0),Inputs!$H$11*Inputs!$B$11,IF(AND(Inputs!$H$4=TRUE,$A4=0),Inputs!$J$12,E3*EXP(('Equations - Parameters'!$D$9*D3/100+'Equations - Parameters'!$E$9*H3/'Equations - Parameters'!$I$7)*(C4^'Equations - Parameters'!$F$9-C3^'Equations - Parameters'!$F$9))))))))) -> 0 | F4: =+IF($C4="","",IF($C4=0,0,IF(Inputs!$H$15=TRUE,0,IF(AND(Inputs!$H$4=TRUE,$C4=Inputs!$H$7),Inputs!$J$13,IF(Inputs!$H$4=TRUE,F3*((E4/E3)^'Equations - Parameters'!$E$21)*((D4/D3)^'Equations - Parameters'!$F$21),EXP('Equations - Parameters'!$D$21+'Equations - Parameters'!$E$21*LN(E4)+'Equations - Parameters'!$F$21*LN(D4))))))) -> 0 | G4: =+IF(C4="","",IF($C4=0,0,IF(F4=0,0,200*SQRT(F4/(E4*PI()))))) -> 0 | H4: =+IF(C4="","",IF($C4=0,0,E4*(G4/25.4)^1.605)) -> 0 | I4: =+IF($C4="","",IF($C4=0,0,IF(Inputs!$H$15=FALSE,0,IF($C4=1,Inputs!$H$11*Inputs!$B$11,IF(Inputs!$H$22=FALSE,0,IF(AND(Inputs!$H$3=TRUE,$A4=0),Inputs!$H$11*Inputs!$B$11,IF(AND(Inputs!$H$4=TRUE,$A4=0),Inputs!$J$12,I3*EXP(('Equations - Parameters'!$D$9*D3/100+'Equations - Parameters'!$E$9*S3/'Equations - Parameters'!$I$7)*($C4^'Equations - Parameters'!$F$9-$C3^'Equations - Parameters'!$F$9))))))))) -> 0 | J4: =+IF(C4="","",IF(Inputs!$H$15=FALSE,0,IF(Inputs!$H$22=FALSE,0,IF(Inputs!$B$27="",0,IF(C4<Inputs!$B$27,I4,IF(C4=Inputs!$B$27,(I4-(Inputs!$C$27*I4)),J3*EXP(('Equations - Parameters'!$D$9*D3/100+'Equations - Parameters'!$E$9*T3/'Equations - Parameters'!$I$7)*(C4^'Equations - Parameters'!$F$9-C3^'Equations - Parameters'!$F$9)))))))) -> 0 | K4: =+IF(C4="","",IF(Inputs!$H$15=FALSE,0,IF(Inputs!$H$22=FALSE,0,IF(Inputs!$B$28="",0,IF(C4<Inputs!$B$28,J4,IF(C4=Inputs!$B$28,(J4-(Inputs!$C$28*J4)),K3*EXP(('Equations - Parameters'!$D$9*D3/100+'Equations - Parameters'!$E$9*U3/'Equations - Parameters'!$I$7)*(C4^'Equations - Parameters'!$F$9-C3^'Equations - Parameters'!$F$9)))))))) -> 0 | L4: =+IF(C4="","",IF(Inputs!$H$15=FALSE,0,IF(Inputs!$H$22=FALSE,0,IF(Inputs!$B$29="",0,IF(C4<Inputs!$B$29,K4,IF(C4=Inputs!$B$29,(K4-(Inputs!$C$29*K4)),L3*EXP(('Equations - Parameters'!$D$9*D3/100+'Equations - Parameters'!$E$9*V3/'Equations - Parameters'!$I$7)*(C4^'Equations - Parameters'!$F$9-C3^'Equations - Parameters'!$F$9)))))))) -> 0 | M4: =+IF(C4="","",IF(Inputs!$H$15=FALSE,0,IF(Inputs!$H$22=FALSE,0,IF(Inputs!$B$30="",0,IF(C4<Inputs!$B$30,L4,IF(C4=Inputs!$B$30,(L4-(Inputs!$C$30*L4)),M3*EXP(('Equations - Parameters'!$D$9*D3/100+'Equations - Parameters'!$E$9*W3/'Equations - Parameters'!$I$7)*(C4^'Equations - Parameters'!$F$9-C3^'Equations - Parameters'!$F$9)))))))) -> 0 | N4: =+IF(C4="","",IF(Inputs!$H$15=FALSE,0,IF(Y4=0,0,200*SQRT(Y4/(I4*PI()))))) -> 0 | O4: =+IF(C4="","",IF(Inputs!$H$15=FALSE,0,IF(AG4=0,0,200*SQRT(AG4/(J4*PI()))))) -> 0 | P4: =+IF(C4="","",IF(Inputs!$H$15=FALSE,0,IF(AJ4=0,0,200*SQRT(AJ4/(K4*PI()))))) -> 0 | Q4: =+IF(C4="","",IF(Inputs!$H$15=FALSE,0,IF(AM4=0,0,200*SQRT(AM4/(L4*PI()))))) -> 0 | R4: =+IF(C4="","",IF(Inputs!$H$15=FALSE,0,IF(AP4=0,0,200*SQRT(AP4/(M4*PI()))))) -> 0 | S4: =+IF(C4="","",IF(Inputs!$H$15=FALSE,0,I4*(N4/25.4)^1.605)) -> 0 | T4: =+IF(C4="","",IF(Inputs!$H$15=FALSE,0,J4*(O4/25.4)^1.605)) -> 0 | U4: =+IF(C4="","",IF(Inputs!$H$15=FALSE,0,K4*(P4/25.4)^1.605)) -> 0 | V4: =+IF(C4="","",IF(Inputs!$H$15=FALSE,0,L4*(Q4/25.4)^1.605)) -> 0 | W4: =+IF(C4="","",IF(Inputs!$H$15=FALSE,0,M4*(R4/25.4)^1.605)) -> 0 | X4: =+IF(C4="","",IF(Inputs!$H$15=FALSE,0,IF(Inputs!$B$27="",0,IF(C4<Inputs!$B$27,0,EXP('Equations - Parameters'!$D$21+'Equations - Parameters'!$E$21*LN(J4)+'Equations - Parameters'!$F$21*LN(D4)))))) -> 0 | Y4: =+IF(C4="","",IF(Inputs!$H$15=FALSE,0,IF($C4=0,0,IF(AND($B4=1,Inputs!$H$4=TRUE,$C4=Inputs!$H$7),Inputs!$J$13,IF(AND($B4=1,Inputs!$H$4=TRUE,$C4<>Inputs!$H$7),Y3*((I4/I3)^('Equations - Parameters'!$E$21))*((D4/D3)^('Equations - Parameters'!$F$21)),EXP('Equations - Parameters'!$D$21+'Equations - Parameters'!$E$21*LN(I4)+'Equations - Parameters'!$F$21*LN(D4))))))) -> 0 | Z4: =+IF(C4="","",IF(Inputs!$H$15=FALSE,0,IF(Inputs!$B$27="",0,IF($C4=Inputs!$B$27,Y4-AS4,0)))) -> 0 | AA4: =+IF(C4="","",IF(Inputs!$H$15=FALSE,0,IF(Inputs!$B$28="",0,IF(C4<Inputs!$B$28,0,EXP('Equations - Parameters'!$D$21+'Equations - Parameters'!$E$21*LN(K4)+'Equations - Parameters'!$F$21*LN(D4)))))) -> 0 | AB4: =+IF(C4="","",IF(Inputs!$H$15=FALSE,0,IF(Inputs!$B$28="",0,IF($C4=Inputs!$B$28,AG4-$AS4,0)))) -> 0 | AC4: =+IF(C4="","",IF(Inputs!$H$15=FALSE,0,IF(Inputs!$B$29="",0,IF($C4<Inputs!$B$29,0,EXP('Equations - Parameters'!$D$21+'Equations - Parameters'!$E$21*LN(L4)+'Equations - Parameters'!$F$21*LN(D4)))))) -> 0 | AD4: =+IF(C4="","",IF(Inputs!$H$15=FALSE,0,IF(Inputs!$B$29="",0,IF($C4=Inputs!$B$29,AJ4-$AS4,0)))) -> 0 | AE4: =+IF(C4="","",IF(Inputs!$H$15=FALSE,0,IF(Inputs!$B$30="",0,IF($C4<Inputs!$B$30,0,EXP('Equations - Parameters'!$D$21+'Equations - Parameters'!$E$21*LN(M4)+'Equations - Parameters'!$F$21*LN(D4)))))) -> 0 | AF4: =+IF(C4="","",IF(Inputs!$H$15=FALSE,0,IF(Inputs!$B$30="",0,IF($C4=Inputs!$B$30,AM4-$AS4,0)))) -> 0 | AG4: =+IF(C4="","",IF(Inputs!$B$27="",0,IF(Inputs!$H$15=FALSE,0,IF($C4<Inputs!$B$27,Y4,IF(C4=Inputs!$B$27,AS4,X4*(1-AI4)))))) -> 0 | AH4: =+IF(C4="","",IF(Inputs!$H$15=FALSE,0,IF(SUM($Z$4:$Z$504)>0,1,0))) -> 0 | AI4: =+IF(C4="","",IF(Inputs!$H$15=FALSE,0,IF(Inputs!$B$27="",0,IF(C4<Inputs!$B$27,0,IF(C4=Inputs!$B$27,1-(AG4/X4),AI3*EXP(('Equations - Parameters'!$E$27/C4)*(C4-C3))))))) -> 0 | AJ4: =+IF(C4="","",IF(Inputs!$H$15=FALSE,0,IF(Inputs!$B$28="",0,IF($C4<Inputs!$B$28,AG4,IF($C4=Inputs!$B$28,AS4,AA4*(1-AL4)))))) -> 0 | AK4: =+IF(C4="","",IF(Inputs!$H$15=FALSE,0,IF(SUM($AB$4:$AB$504)>0,1,0))) -> 0 | AL4: =+IF(C4="","",IF(Inputs!$H$15=FALSE,0,IF(Inputs!$B$28="",0,IF($C4<Inputs!$B$28,0,IF($C4=Inputs!$B$28,1-(AJ4/AA4),AL3*EXP(('Equations - Parameters'!$E$27/C4)*($C4-$C3))))))) -> 0 | AM4: =+IF(C4="","",IF(Inputs!$H$15=FALSE,0,IF(Inputs!$B$29="",0,IF($C4<Inputs!$B$29,AJ4,IF($C4=Inputs!$B$29,AS4,AC4*(1-AO4)))))) -> 0 | AN4: =+IF(C4="","",IF(Inputs!$H$15=FALSE,0,IF(SUM($AD$4:$AD$504)>0,1,0))) -> 0 | AO4: =+IF(C4="","",IF(Inputs!$H$15=FALSE,0,IF(Inputs!$B$29="",0,IF($C4<Inputs!$B$29,0,IF($C4=Inputs!$B$29,1-(AM4/AC4),AO3*EXP(('Equations - Parameters'!$E$27/C4)*($C4-$C3))))))) -> 0 | AP4: =+IF(C4="","",IF(Inputs!$H$15=FALSE,0,IF(Inputs!$B$30="",0,IF($C4<Inputs!$B$30,AM4,IF($C4=Inputs!$B$30,AS4,AE4*(1-AR4)))))) -> 0 | AQ4: =+IF(C4="","",IF(Inputs!$H$15=FALSE,0,IF(SUM($AF$4:$AF$504)>0,1,0))) -> 0 | AR4: =+IF(C4="","",IF(Inputs!$H$15=FALSE,0,IF(Inputs!$B$30="",0,IF($C4<Inputs!$B$30,0,IF($C4=Inputs!$B$30,1-(AP4/AE4),AR3*EXP(('Equations - Parameters'!$E$27/C4)*($C4-$C3))))))) -> 0 | AS4: =+IF(C4="","",IF(Inputs!$H$15=FALSE,0,IF(C4=Inputs!$B$27,Y4*(1-Inputs!$C$27),IF(C4=Inputs!$B$28,AG4*(1-Inputs!$C$28),IF(C4=Inputs!$B$29,AJ4*(1-Inputs!$C$29),IF(C4=Inputs!$B$30,AM4*(1-Inputs!$C$30),0)))))) -> 0 | AT4: =+IF($C4="","",IF($C4=0,0,IF(Inputs!$H$15=FALSE,0,IF(C4=1,Inputs!$H$11*Inputs!$B$11,IF(Inputs!$H$23=FALSE,0,IF(AND(Inputs!$H$3=TRUE,$A4=0),Inputs!$H$11*Inputs!$B$11,IF(AND(Inputs!$H$4=TRUE,$A4=0),Inputs!$J$12,AT3*EXP(('Equations - Parameters'!$D$9*D3/100+'Equations - Parameters'!$E$9*BN3/'Equations - Parameters'!$I$7)*(C4^'Equations - Parameters'!$F$9-C3^'Equations - Parameters'!$F$9))))))))) -> 0 | AU4: =+IF(C4="","",IF(Inputs!$H$15=FALSE,0,IF(BW4=0,AT4,IF(BX4<>0,AT4*(1-BX4/BT4),AU3*EXP(('Equations - Parameters'!$D$9*D3/100+'Equations - Parameters'!$E$9*BO3/'Equations - Parameters'!$I$7)*(C4^'Equations - Parameters'!$F$9-C3^'Equations - Parameters'!$F$9)))))) -> 0 | AV4: =+IF(C4="","",IF(Inputs!$H$15=FALSE,0,IF(CD4=0,AU4,IF(CE4<>0,AU4*(1-CE4/BU4),AV3*EXP(('Equations - Parameters'!$D$9*D3/100+'Equations - Parameters'!$E$9*BP3/'Equations - Parameters'!$I$7)*(C4^'Equations - Parameters'!$F$9-C3^'Equations - Parameters'!$F$9)))))) -> 0 | AW4: =+IF(C4="","",IF(Inputs!$H$15=FALSE,0,IF(CK4=0,AV4,IF(CL4<>0,AV4*(1-CL4/CB4),AW3*EXP(('Equations - Parameters'!$D$9*D3/100+'Equations - Parameters'!$E$9*BQ3/'Equations - Parameters'!$I$7)*(C4^'Equations - Parameters'!$F$9-C3^'Equations - Parameters'!$F$9)))))) -> 0 | AX4: =+IF(C4="","",IF(Inputs!$H$15=FALSE,0,IF(CR4=0,AW4,IF(CS4<>0,AW4*(1-CS4/CI4),AX3*EXP(('Equations - Parameters'!$D$9*D3/100+'Equations - Parameters'!$E$9*BR3/'Equations - Parameters'!$I$7)*(C4^'Equations - Parameters'!$F$9-C3^'Equations - Parameters'!$F$9)))))) -> 0 | AY4: =+IF(C4="","",IF(Inputs!$H$15=FALSE,0,AT4)) -> 0 | AZ4: =+IF(C4="","",IF(Inputs!$H$15=FALSE,0,IF(BV4=1,AU4,0))) -> 0 | BA4: =+IF(C4="","",IF(Inputs!$H$15=FALSE,0,IF(CC4=1,AV4,0))) -> 0 | BB4: =+IF(C4="","",IF(Inputs!$H$15=FALSE,0,IF(CJ4=1,AW4,0))) -> 0 | BC4: =+IF(C4="","",IF(Inputs!$H$15=FALSE,0,IF(CQ4=1,AX4,0))) -> 0 | BD4: =+IF(C4="","",IF(Inputs!$H$15=FALSE,0,BT4)) -> 0 | BE4: =+IF(C4="","",IF(Inputs!$H$15=FALSE,0,IF(BV4=1,BU4,0))) -> 0 | BF4: =+IF(C4="","",IF(Inputs!$H$15=FALSE,0,IF(CC4=1,CB4,0))) -> 0 | BG4: =+IF(C4="","",IF(Inputs!$H$15=FALSE,0,IF(CJ4=1,CI4,0))) -> 0 | BH4: =+IF(C4="","",IF(Inputs!$H$15=FALSE,0,IF(CQ4=1,CP4,0))) -> 0 | BI4: =+IF(C4="","",IF(Inputs!$H$15=FALSE,0,IF(BD4=0,0,200*SQRT(BD4/(AY4*PI()))))) -> 0 | BJ4: =+IF(C4="","",IF(Inputs!$H$15=FALSE,0,IF(AZ4=0,0,200*SQRT(BE4/(AZ4*PI()))))) -> 0 | BK4: =+IF(C4="","",IF(Inputs!$H$15=FALSE,0,IF(BA4=0,0,200*SQRT(BF4/(BA4*PI()))))) -> 0 | BL4: =+IF(C4="","",IF(Inputs!$H$15=FALSE,0,IF(BB4=0,0,200*SQRT(BG4/(BB4*PI()))))) -> 0 | BM4: =+IF(C4="","",IF(Inputs!$H$15=FALSE,0,IF(BC4=0,0,200*SQRT(BH4/(BC4*PI()))))) -> 0 | BN4: =+IF(C4="","",IF(Inputs!$H$15=FALSE,0,AY4*(BI4/25.4)^1.605)) -> 0 | BO4: =+IF(C4="","",IF(Inputs!$H$15=FALSE,0,AZ4*(BJ4/25.4)^1.605)) -> 0 | BP4: =+IF(C4="","",IF(Inputs!$H$15=FALSE,0,BA4*(BK4/25.4)^1.605)) -> 0 | BQ4: =+IF(C4="","",IF(Inputs!$H$15=FALSE,0,BB4*(BL4/25.4)^1.605)) -> 0 | BR4: =+IF(C4="","",IF(Inputs!$H$15=FALSE,0,BC4*(BM4/25.4)^1.605)) -> 0 | BS4: =+IF(C4="","",IF(Inputs!$H$15=FALSE,0,IF(BW4=0,0,EXP('Equations - Parameters'!$D$21+'Equations - Parameters'!$E$21*LN(AU4)+'Equations - Parameters'!$F$21*LN($D4))))) -> 0 | BT4: =+IF(C4="","",IF(Inputs!$H$15=FALSE,0,IF(C4=0,0,IF(AND(Inputs!$B$4=TRUE,$C4=Inputs!$H$7),Inputs!$J$13,IF(AND(Inputs!$H$23=TRUE,$C4<>Inputs!$H$7),BT3*((AT4/AT3)^('Equations - Parameters'!$E$21))*((D4/D3)^('Equations - Parameters'!$F$21)),EXP('Equations - Parameters'!$D$21+'Equations - Parameters'!$E$21*LN(AT4)+'Equations - Parameters'!$F$21*LN(D4))))))) -> 0 | BU4: =+IF(C4="","",IF(Inputs!$H$15=FALSE,0,IF(BW4=0,BT4,IF((BW4-BW3)>0,BW4,BS4*(1-BZ4))))) -> 0 | BV4: =+IF(C4="","",IF(Inputs!$H$15=FALSE,0,IF(SUM($BX$4:$BX$504)>0,1,0))) -> 0 | BW4: =+IF(C4="","",IF(Inputs!$H$15=FALSE,0,IF(BT4>Inputs!$H$34,Inputs!$I$34,0))) -> 0 | BX4: =+IF(C4="","",IF(C4=Inputs!$H$7,0,IF(Inputs!$H$15=FALSE,0,IF((BW4-BW3)=0,0,BT4-BW4)))) -> 0 | BY4: =+IF(C4="","",IF(C4=Inputs!$H$7,0,IF((BW4-BW3)=0,0,$C4))) -> 0 | BZ4: =+IF(C4="","",IF(Inputs!$H$15=FALSE,0,IF(BW4=0,0,IF(BX4<>0,1-(BU4/BS4),BZ3*EXP(('Equations - Parameters'!$E$27/C4)*($C4-$C3)))))) -> 0 | CA4: =+IF($C4="","",IF($C4=1,0,IF(Inputs!$H$15=FALSE,0,IF(CD4=0,0,EXP('Equations - Parameters'!$D$21+'Equations - Parameters'!$E$21*LN(AV4)+'Equations - Parameters'!$F$21*LN(D4)))))) -> 0 | CB4: =+IF(C4="","",IF(Inputs!$H$15=FALSE,0,IF(CD4=0,BU4,IF((CD4-CD3)>0,CD4,CA4*(1-CG4))))) -> 0 | CC4: =+IF(C4="","",IF(Inputs!$H$15=FALSE,0,IF(SUM($CE$4:$CE$504)>0,1,0))) -> 0 | CD4: =+IF(C4="","",IF(Inputs!$H$15=FALSE,0,IF(C4=0,0,IF(C4=1,0,IF(BU4>Inputs!$H$34,Inputs!$I$34,IF(CD3>0,Inputs!$I$34,0)))))) -> 0 | CE4: =+IF(C4="","",IF(C4=1,0,IF(Inputs!$H$15=FALSE,0,IF((CD4-CD3)=0,0,BU4-CD4)))) -> 0 | CF4: =+IF($C4="","",IF(C4=1,0,IF((CD4-CD3)=0,0,$C4))) -> 0 | CG4: =+IF($C4="","",IF($C4=1,0,IF(Inputs!$H$15=FALSE,0,IF(CD4=0,0,IF(CE4<>0,1-(CB4/CA4),CG3*EXP(('Equations - Parameters'!$E$27/C4)*($C4-$C3))))))) -> 0 | CH4: =+IF(C4="","",IF(Inputs!$H$15=FALSE,0,IF(CK4=0,0,EXP('Equations - Parameters'!$D$21+'Equations - Parameters'!$E$21*LN(AW4)+'Equations - Parameters'!$F$21*LN(D4))))) -> 0 | CI4: =+IF(C4="","",IF(Inputs!$H$15=FALSE,0,IF(CK4=0,CB4,IF((CK4-CK3)>0,CK4,CH4*(1-CN4))))) -> 0 | CJ4: =+IF(C4="","",IF(Inputs!$H$15=FALSE,0,IF(SUM($CL$4:$CL$504)>0,1,0))) -> 0 | CK4: =+IF(C4="","",IF(C4=1,0,IF(Inputs!$H$15=FALSE,0,IF(C4=0,0,IF(CB4>Inputs!$H$34,Inputs!$I$34,IF(CK3>0,Inputs!$I$34,0)))))) -> 0 | CL4: =+IF(C4="","",IF(C4=1,0,IF(Inputs!$H$15=FALSE,0,IF((CK4-CK3)=0,0,CB4-CK4)))) -> 0 | CM4: =+IF(C4="","",IF(C4=1,0,IF((CK4-CK3)=0,0,$C4))) -> 0 | CN4: =+IF($C4="","",IF($C4=1,0,IF(Inputs!$H$15=FALSE,0,IF(CK4=0,0,IF(CL4<>0,1-(CI4/CH4),CN3*EXP('Equations - Parameters'!$E$27/C4)*($C4-$C3)))))) -> 0 | CO4: =+IF($C4="","",IF($C4=1,0,IF(Inputs!$H$15=FALSE,0,IF(CR4=0,0,EXP('Equations - Parameters'!$D$21+'Equations - Parameters'!$E$21*LN(AX4)+'Equations - Parameters'!$F$21*LN(D4)))))) -> 0 | CP4: =+IF($C4="","",IF($C4=1,0,IF(Inputs!$H$15=FALSE,0,IF(CR4=0,CI4,IF((CR4-CR3)>0,CR4,CO4*(1-CU4)))))) -> 0 | CQ4: =+IF(C4="","",IF(Inputs!$H$15=FALSE,0,IF(SUM($CS$4:$CS$504)>0,1,0))) -> 0 | CR4: =+IF($C4="","",IF($C4=1,0,IF(Inputs!$H$15=FALSE,0,IF(C4=0,0,IF(CI4>Inputs!$H$34,Inputs!$I$34,IF(CR3>0,Inputs!$I$34,0)))))) -> 0 | CS4: =+IF($C4="","",IF($C4=1,0,IF(Inputs!$H$15=FALSE,0,IF((CR4-CR3)=0,0,CI4-CR4)))) -> 0 | CT4: =+IF($C4="","",IF($C4=1,0,IF((CR4-CR3)=0,0,$C4))) -> 0 | CU4: =+IF($C4="","",IF($C4=1,0,IF(Inputs!$H$15=FALSE,0,IF(CR4=0,0,IF(CS4<>0,1-(CP4/CO4),CU3*EXP('Equations - Parameters'!$E$27/D4)*($C4-$C3)))))) -> 0 | CV4: =+IF($C4="","",IF($C4=0,0,IF(Inputs!$H$15=FALSE,0,IF(C4=1,Inputs!$H$11*Inputs!$B$11,IF(Inputs!$H$24=FALSE,0,IF(AND(Inputs!$H$3=TRUE,$A4=0),Inputs!$H$11*Inputs!$B$11,IF(AND(Inputs!$H$4=TRUE,$A4=0),Inputs!$J$12,CV3*EXP(('Equations - Parameters'!$D$9*D3/100+'Equations - Parameters'!$E$9*DN3/'Equations - Parameters'!$I$7)*(C4^'Equations - Parameters'!$F$9-C3^'Equations - Parameters'!$F$9))))))))) -> 0 | CW4: =+IF($C4="","",IF($C4=0,0,IF(Inputs!$H$15=FALSE,0,IF(C4=1,Inputs!$H$11*Inputs!$B$11,IF(DS4=0,CV4,IF(DT4<>0,CV4*(DS4/DN4),CW3*EXP(('Equations - Parameters'!$D$9*D3/100+'Equations - Parameters'!$E$9*DQ3/'Equations - Parameters'!$I$7)*(C4^'Equations - Parameters'!$F$9-C3^'Equations - Parameters'!$F$9)))))))) -> 0 | CX4: =+IF($C4="","",IF($C4=0,0,IF(Inputs!$H$15=FALSE,0,IF(C4=1,Inputs!$H$11*Inputs!$B$11,IF(ED4=0,CW4,IF(EE4<>0,CW4*(ED4/DQ4),CX3*EXP(('Equations - Parameters'!$D$9*D3/100+'Equations - Parameters'!$E$9*EB3/'Equations - Parameters'!$I$7)*(C4^'Equations - Parameters'!$F$9-C3^'Equations - Parameters'!$F$9)))))))) -> 0 | CY4: =+IF($C4="","",IF($C4=0,0,IF(Inputs!$H$15=FALSE,0,IF(C4=1,Inputs!$H$11*Inputs!$B$11,IF(EO4=0,CX4,IF(EP4<>0,CX4*(EO4/EB4),CY3*EXP(('Equations - Parameters'!$D$9*D3/100+'Equations - Parameters'!$E$9*EM3/'Equations - Parameters'!$I$7)*(C4^'Equations - Parameters'!$F$9-C3^'Equations - Parameters'!$F$9)))))))) -> 0 | CZ4: =+IF($C4="","",IF($C4=0,0,IF(Inputs!$H$15=FALSE,0,IF(C4=1,Inputs!$H$11*Inputs!$B$11,IF(EZ4=0,CY4,IF(FB4<>0,CY4*(EZ4/EM4),CZ3*EXP(('Equations - Parameters'!$D$9*D3/100+'Equations - Parameters'!$E$9*EX3/'Equations - Parameters'!$I$7)*(C4^'Equations - Parameters'!$F$9-C3^'Equations - Parameters'!$F$9)))))))) -> 0 | DA4: =+IF(C4="","",IF(Inputs!$H$15=FALSE,0,CV4)) -> 0 | DB4: =+IF(C4="","",IF(Inputs!$H$15=FALSE,0,IF(DR4=1,CW4,0))) -> 0 | DC4: =+IF(C4="","",IF(Inputs!$H$15=FALSE,0,IF(EC4=1,CX4,0))) -> 0 | DD4: =+IF(C4="","",IF(Inputs!$H$15=FALSE,0,IF(EN4=1,CY4,0))) -> 0 | DE4: =+IF(C4="","",IF(Inputs!$H$15=FALSE,0,IF(EY4=1,CZ4,0))) -> 0 | DF4: =+IF($C4="","",IF(Inputs!$H$15=FALSE,0,DL4)) -> 0 | DG4: =+IF(C4="","",IF(Inputs!$H$15=FALSE,0,IF(DR4=1,DO4,0))) -> 0 | DH4: =+IF(C4="","",IF(Inputs!$H$15=FALSE,0,IF(EC4=1,DZ4,0))) -> 0 | DI4: =+IF(C4="","",IF(Inputs!$H$15=FALSE,0,IF(EN4=1,EK4,0))) -> 0 | DJ4: =+IF(C4="","",IF(Inputs!$H$15=FALSE,0,IF(EY4=1,EV4,0))) -> 0 | DK4: =+IF($C4="","",IF(Inputs!$H$15=FALSE,0,IF(DS4=0,0,EXP('Equations - Parameters'!$D$21+'Equations - Parameters'!$E$21*LN(CW4)+'Equations - Parameters'!$F$21*LN(D4))))) -> 0 | DL4: =+IF($C4="","",IF(Inputs!$H$15=FALSE,0,IF(C4=0,0,IF(AND(Inputs!$H$4=TRUE,$C4=Inputs!$H$7),Inputs!$J$13,IF(AND(Inputs!$H$4=TRUE,$C4<>Inputs!$H$7),DL3*((CV4/CV3)^('Equations - Parameters'!$E$21))*((D4/D3)^('Equations - Parameters'!$F$21)),IF(C4=0,0,EXP('Equations - Parameters'!$D$21+'Equations - Parameters'!$E$21*LN(CV4)+'Equations - Parameters'!$F$21*LN($D4)))))))) -> 0 | DM4: =+IF($C4="","",IF(Inputs!$H$15=FALSE,0,IF($C4=0,0,200*SQRT(DL4/(CV4*PI()))))) -> 0 | DN4: =+IF($C4="","",IF(Inputs!$H$15=FALSE,0,CV4*(DM4/25.4)^1.605)) -> 0 | DO4: =+IF($C4="","",IF(Inputs!$H$15=FALSE,0,IF(DS4=0,DL4,IF((DS4-DS3)>0,DU4,DK4*(1-DX4))))) -> 0 | DP4: =+IF($C4="","",IF(Inputs!$H$15=FALSE,0,IF($C4=0,0,200*SQRT(DO4/(CW4*PI()))))) -> 0 | DQ4: =+IF($C4="","",IF(Inputs!$H$15=FALSE,0,CW4*(DP4/25.4)^1.605)) -> 0 | DR4: =+IF($C4="","",IF(Inputs!$H$15=FALSE,0,IF(SUM($DT$4:$DT$504)>0,1,0))) -> 0 | DS4: =+IF($C4="","",IF(Inputs!$H$15=FALSE,0,IF(C4=0,0,IF(C4=1,0,IF(DN4>Inputs!$H$38,Inputs!$I$38,IF(DS3>0,Inputs!$I$38,0)))))) -> 0 | DT4: =+IF($C4="","",IF(Inputs!$H$15=FALSE,0,IF((DS4-DS3)=0,0,DN4-DS4))) -> 0 | DU4: =+IF($C4="","",IF(Inputs!$H$15=FALSE,0,IF(DT4=0,0,DL4*DS4/DN4))) -> 0 | DV4: =+IF($C4="","",IF(Inputs!$H$15=FALSE,0,IF((DT4)=0,0,DL4-DU4))) -> 0 | DW4: =+IF($C4="","",IF((DS4-DS3)=0,0,C4)) -> 0 | DX4: =+IF($C4="","",IF($C4=1,0,IF(Inputs!$H$15=FALSE,0,IF(DS4=0,0,IF(DV4<>0,1-(DU4/DK4),DX3*EXP(('Equations - Parameters'!$E$27/$C4)*($C4-$C3))))))) -> 0 | DY4: =+IF($C4="","",IF(Inputs!$H$15=FALSE,0,IF(ED4=0,0,EXP('Equations - Parameters'!$D$21+'Equations - Parameters'!$E$21*LN(CX4)+'Equations - Parameters'!$F$21*LN($D4))))) -> 0 | DZ4: =+IF($C4="","",IF(Inputs!$H$15=FALSE,0,IF(ED4=0,DO4,IF((ED4-ED3)>0,EF4,DY4*(1-EI4))))) -> 0 | EA4: =+IF($C4="","",IF(Inputs!$H$15=FALSE,0,IF($C4=0,0,200*SQRT(DZ4/(CX4*PI()))))) -> 0 | EB4: =+IF($C4="","",IF(Inputs!$H$15=FALSE,0,$CX4*($EA4/25.4)^1.605)) -> 0 | EC4: =+IF($C4="","",IF(Inputs!$H$15=FALSE,0,IF(SUM($EE$4:$EE$504)>0,1,0))) -> 0 | ED4: =+IF($C4="","",IF(Inputs!$H$15=FALSE,0,IF($C4=0,0,IF($C4=1,0,IF(DQ4>Inputs!$H$38,Inputs!$I$38,IF(ED3>0,Inputs!$I$38,0)))))) -> 0 | EE4: =+IF($C4="","",IF($C4=1,0,IF(Inputs!$H$15=FALSE,0,IF((ED4-ED3)=0,0,DQ4-ED4)))) -> 0 | EF4: =+IF($C4="","",IF($C4=1,0,IF(Inputs!$H$15=FALSE,0,IF(EE4=0,0,DO4*ED4/DQ4)))) -> 0 | EG4: =+IF($C4="","",IF($C4=1,0,IF(Inputs!$H$15=FALSE,0,IF((EE4)=0,0,DO4-EF4)))) -> 0 | EH4: =+IF($C4="","",IF($C4=1,0,IF((ED4-ED3)=0,0,$C4))) -> 0 | EI4: =+IF($C4="","",IF($C4=1,0,IF(Inputs!$H$15=FALSE,0,IF(ED4=0,0,IF(EG4<>0,1-(EF4/DY4),EI3*EXP(('Equations - Parameters'!$E$27/$C4)*($C4-$C3))))))) -> 0 | EJ4: =+IF($C4="","",IF($C4=1,0,IF(Inputs!$H$15=FALSE,0,IF(EO4=0,0,EXP('Equations - Parameters'!$D$21+'Equations - Parameters'!$E$21*LN(CX4)+'Equations - Parameters'!$F$21*LN($D4)))))) -> 0 | EK4: =+IF($C4="","",IF(Inputs!$H$15=FALSE,0,IF(EO4=0,DZ4,IF((EO4-EO3)>0,EQ4,EJ4*(1-ET4))))) -> 0 | EL4: =+IF($C4="","",IF(Inputs!$H$15=FALSE,0,IF($C4=0,0,200*SQRT(EK4/(CY4*PI()))))) -> 0 | EM4: =+IF($C4="","",IF(Inputs!$H$15=FALSE,0,$CY4*($EL4/25.4)^1.605)) -> 0 | EN4: =+IF($C4="","",IF(Inputs!$H$15=FALSE,0,IF(SUM($EP$4:$EP$504)>0,1,0))) -> 0 | EO4: =+IF($C4="","",IF(Inputs!$H$15=FALSE,0,IF(C4=0,0,IF(C4=1,0,IF(EB4>Inputs!$H$38,Inputs!$I$38,IF(EO3>0,Inputs!$I$38,0)))))) -> 0 | EP4: =+IF($C4="","",IF(C4=1,0,IF(Inputs!$H$15=FALSE,0,IF((EO4-EO3)=0,0,EB4-EO4)))) -> 0 | EQ4: =+IF($C4="","",IF(C4=1,0,IF(Inputs!$H$15=FALSE,0,IF(EP4=0,0,DZ4*EO4/EB4)))) -> 0 | ER4: =+IF($C4="","",IF(C4=1,0,IF(Inputs!$H$15=FALSE,0,IF((EP4)=0,0,DZ4-EQ4)))) -> 0 | ES4: =+IF($C4="","",IF(C4=1,0,IF((EO4-EO3)=0,0,$C4))) -> 0 | ET4: =+IF($C4="","",IF(C4=1,0,IF(Inputs!$H$15=FALSE,0,IF(EO4=0,0,IF(ER4<>0,1-(EQ4/EJ4),ET3*EXP(('Equations - Parameters'!$E$27/$C4)*($C4-$C3))))))) -> 0 | EU4: =+IF($C4="","",IF($C4=1,0,IF(Inputs!$H$15=FALSE,0,IF(EZ4=0,0,EXP('Equations - Parameters'!$D$21+'Equations - Parameters'!$E$21*LN(CY4)+'Equations - Parameters'!$F$21*LN($D4)))))) -> 0 | EV4: =+IF($C4="","",IF(Inputs!$H$15=FALSE,0,IF(EZ4=0,EK4,IF((EZ4-EZ3)>0,FB4,EU4*(1-FE4))))) -> 0 | EW4: =+IF($C4="","",IF(Inputs!$H$15=FALSE,0,IF($C4=0,0,200*SQRT(EV4/(CZ4*PI()))))) -> 0 | EX4: =+IF($C4="","",IF(Inputs!$H$15=FALSE,0,$CZ4*($EW4/25.4)^1.605)) -> 0 | EY4: =+IF($C4="","",IF(Inputs!$H$15=FALSE,0,IF(SUM($FA$4:$FA$504)>0,1,0))) -> 0 | EZ4: =+IF($C4="","",IF(Inputs!$H$15=FALSE,0,IF(C4=0,0,IF(C4=1,0,IF(EM4>Inputs!$H$38,Inputs!$I$38,IF(EZ3>0,Inputs!$I$38,0)))))) -> 0 | FA4: =+IF($C4="","",IF(Inputs!$H$15=FALSE,0,IF(C4=0,0,IF(C4=1,0,IF((EZ4-EZ3)=0,0,EM4-EZ4))))) -> 0 | FB4: =+IF($C4="","",IF(Inputs!$H$15=FALSE,0,IF(C4=0,0,IF(C4=1,0,IF(FA4=0,0,EK4*EZ4/EM4))))) -> 0 | FC4: =+IF($C4="","",IF(Inputs!$H$15=FALSE,0,IF(C4=0,0,IF(C4=1,0,IF((FA4)=0,0,EK4-FB4))))) -> 0 | FD4: =+IF($C4="","",IF(Inputs!$H$15=FALSE,0,IF(C4=0,0,IF(C4=1,0,IF((EZ4-EZ3)=0,0,$C4))))) -> 0 | FE4: =+IF($C4="","",IF(Inputs!$H$15=FALSE,0,IF(C4=0,0,IF(C4=1,0,IF(EZ4=0,0,IF(FC4<>0,1-(FB4/EU4),FE3*EXP(('Equations - Parameters'!$E$27/$C4)*($C4-$C3)))))))) -> 0 | FF4: =+IF(AND(Inputs!$H$18=FALSE,A4+Inputs!$H$7-1>Inputs!$B$6),"",IF(C3=Inputs!$B$6,1,IF(AND(Inputs!$H$3=TRUE,A4=0),0,IF(AND(Inputs!$H$4=TRUE,A4=0),Inputs!$H$7,IF(C3=Inputs!$B$6,0,C3+1))))) -> 0 | FG4: =+IF($C4="","",IF(C4=0,0,IF(Inputs!$H$3=TRUE,Inputs!$H$13*((1-EXP('Equations - Parameters'!$E$15*C4))/(1-EXP('Equations - Parameters'!$E$15*50)))^'Equations - Parameters'!$F$15,Inputs!$J$14*((1-EXP('Equations - Parameters'!$E$15*C4))/(1-EXP('Equations - Parameters'!$E$15*50)))^'Equations - Parameters'!$F$15))) -> 0 | FH4: =+IF($C4="","",IF(Inputs!$H$15=FALSE,E4,IF(Inputs!$H$22=TRUE,I4,IF(Inputs!$H$23=TRUE,AY4,DA4)))) -> 0 | FI4: =+IF($C4="","",IF(Inputs!$H$15=FALSE,0,IF(Inputs!$H$22=TRUE,J4,IF(Inputs!$H$23=TRUE,AZ4,DB4)))) -> 0 | FJ4: =+IF($C4="","",IF(Inputs!$H$15=FALSE,0,IF(Inputs!$H$22=TRUE,K4,IF(Inputs!$H$23=TRUE,BA4,DC4)))) -> 0 | FK4: =+IF($C4="","",IF(Inputs!$H$15=FALSE,0,IF(Inputs!$H$22=TRUE,L4,IF(Inputs!$H$23=TRUE,BB4,DD4)))) -> 0 | FL4: =+IF($C4="","",IF(Inputs!$H$15=FALSE,0,IF(Inputs!$H$22=TRUE,M4,IF(Inputs!$H$23=TRUE,BC4,DE4)))) -> 0 | FM4: =+IF($C4="","",IF(Inputs!$H$15=FALSE,F4,IF(Inputs!$H$22=TRUE,Y4,IF(Inputs!$H$23=TRUE,BD4,DF4)))) -> 0 | FN4: =+IF($C4="","",IF(Inputs!$H$15=FALSE,0,IF(Inputs!$H$22=TRUE,AG4,IF(Inputs!$H$23=TRUE,BE4,DG4)))) -> 0 | FO4: =+IF($C4="","",IF(Inputs!$H$15=FALSE,0,IF(Inputs!$H$15=FALSE,0,IF(Inputs!$H$22=TRUE,AJ4,IF(Inputs!$H$23=TRUE,BF4,DH4))))) -> 0 | FP4: =+IF($C4="","",IF(Inputs!$H$15=FALSE,0,IF(Inputs!$H$22=TRUE,AM4,IF(Inputs!$H$23=TRUE,BG4,DI4)))) -> 0 | FQ4: =+IF($C4="","",IF(Inputs!$H$15=FALSE,0,IF(Inputs!$H$22=TRUE,AP4,IF(Inputs!$H$23=TRUE,BH4,DJ4)))) -> 0 | FR4: =+IF($C4="","",IF(FM4=0,0,200*SQRT(FM4/(FH4*PI())))) -> 0 | FS4: =+IF($C4="","",IF(Inputs!$H$15=FALSE,0,IF(FN4=0,0,200*SQRT(FN4/(FI4*PI()))))) -> 0 | FT4: =+IF($C4="","",IF(Inputs!$H$15=FALSE,0,IF(FO4=0,0,200*SQRT(FO4/(FJ4*PI()))))) -> 0 | FU4: =+IF($C4="","",IF(Inputs!$H$15=FALSE,0,IF(FP4=0,0,200*SQRT(FP4/(FK4*PI()))))) -> 0 | FV4: =+IF($C4="","",IF(Inputs!$H$15=FALSE,0,IF(FQ4=0,0,200*SQRT(FQ4/(FL4*PI()))))) -> 0 | FW4: =+IF($C4="","",FH4*(FR4/25.4)^1.605) -> 0 | FX4: =+IF($C4="","",IF(Inputs!$H$15=FALSE,0,FI4*(FS4/25.4)^1.605)) -> 0 | FY4: =+IF($C4="","",IF(Inputs!$H$15=FALSE,0,FJ4*(FT4/25.4)^1.605)) -> 0 | FZ4: =+IF($C4="","",IF(Inputs!$H$15=FALSE,0,FK4*(FU4/25.4)^1.605)) -> 0 | GA4: =+IF($C4="","",IF(Inputs!$H$15=FALSE,0,FL4*(FV4/25.4)^1.605)) -> 0 | GB4: =+IF($C4="","",IF(FM4=0,0,IF($C4<3,0,EXP('Equations - Parameters'!$D$33+'Equations - Parameters'!$E$33*LN(FH4)+'Equations - Parameters'!$F$33*LN(FM4)+'Equations - Parameters'!$G$33*LN(FM4)/$C4+'Equations - Parameters'!$H$33*LN(Inputs!$H$13))))) -> 0 | GC4: =+IF($C4="","",IF(Inputs!$H$15=FALSE,0,IF(FN4=0,0,IF($C4<3,0,EXP('Equations - Parameters'!$D$33+'Equations - Parameters'!$E$33*LN(FI4)+'Equations - Parameters'!$F$33*LN(FN4)+'Equations - Parameters'!$G$33*LN(FN4)/$C4+'Equations - Parameters'!$H$33*LN(Inputs!$H$13)))))) -> 0 | GD4: =+IF($C4="","",IF(Inputs!$H$15=FALSE,0,IF(FO4=0,0,IF($C4<3,0,EXP('Equations - Parameters'!$D$33+'Equations - Parameters'!$E$33*LN(FJ4)+'Equations - Parameters'!$F$33*LN(FO4)+'Equations - Parameters'!$G$33*LN(FO4)/$C4+'Equations - Parameters'!$H$33*LN(Inputs!$H$13)))))) -> 0 | GE4: =+IF($C4="","",IF(Inputs!$H$15=FALSE,0,IF(FP4=0,0,IF($C4<3,0,EXP('Equations - Parameters'!$D$33+'Equations - Parameters'!$E$33*LN(FK4)+'Equations - Parameters'!$F$33*LN(FP4)+'Equations - Parameters'!$G$33*LN(FP4)/$C4+'Equations - Parameters'!$H$33*LN(Inputs!$H$13)))))) -> 0 | GF4: =+IF($C4="","",IF(Inputs!$H$15=FALSE,0,IF(FQ4=0,0,IF($C4<3,0,EXP('Equations - Parameters'!$D$33+'Equations - Parameters'!$E$33*LN(FL4)+'Equations - Parameters'!$F$33*LN(FQ4)+'Equations - Parameters'!$G$33*LN(FQ4)/$C4+'Equations - Parameters'!$H$33*LN(Inputs!$H$13)))))) -> 0 | GG4: =+IF($C4="","",IF(FM4=0,0,IF($C4<3,0,EXP('Equations - Parameters'!$D$34+'Equations - Parameters'!$E$34*LN(FH4)+'Equations - Parameters'!$F$34*LN(FM4)+'Equations - Parameters'!$G$34*LN(FM4)/$C4+'Equations - Parameters'!$H$34*LN(Inputs!$H$13))))) -> 0 | GH4: =+IF($C4="","",IF(Inputs!$H$15=FALSE,0,IF(FN4=0,0,IF($C4<3,0,EXP('Equations - Parameters'!$D$34+'Equations - Parameters'!$E$34*LN(FI4)+'Equations - Parameters'!$F$34*LN(FN4)+'Equations - Parameters'!$G$34*LN(FN4)/$C4+'Equations - Parameters'!$H$34*LN(Inputs!$H$13)))))) -> 0 | GI4: =+IF($C4="","",IF(Inputs!$H$15=FALSE,0,IF(FO4=0,0,IF($C4<3,0,EXP('Equations - Parameters'!$D$34+'Equations - Parameters'!$E$34*LN(FJ4)+'Equations - Parameters'!$F$34*LN(FO4)+'Equations - Parameters'!$G$34*LN(FO4)/$C4+'Equations - Parameters'!$H$34*LN(Inputs!$H$13)))))) -> 0 | GJ4: =+IF($C4="","",IF(Inputs!$H$15=FALSE,0,IF(FP4=0,0,IF($C4<3,0,EXP('Equations - Parameters'!$D$34+'Equations - Parameters'!$E$34*LN(FK4)+'Equations - Parameters'!$F$34*LN(FP4)+'Equations - Parameters'!$G$34*LN(FP4)/$C4+'Equations - Parameters'!$H$34*LN(Inputs!$H$13)))))) -> 0 | GK4: =+IF($C4="","",IF(Inputs!$H$15=FALSE,0,IF(FQ4=0,0,IF($C4<3,0,EXP('Equations - Parameters'!$D$34+'Equations - Parameters'!$E$34*LN(FL4)+'Equations - Parameters'!$F$34*LN(FQ4)+'Equations - Parameters'!$G$34*LN(FQ4)/$C4+'Equations - Parameters'!$H$34*LN(Inputs!$H$13)))))) -> 0 | GL4: =+IF($C4="","",0) -> 0 | GM4: =+IF($C4="","",IF(GR4<>0,1,0)) -> 0 | GN4: =+IF($C4="","",IF(GS4<>0,1,0)) -> 0 | GO4: 0 | GP4: 0 | GQ4: =+IF($C4="","",0) -> 0 | GR4: =+IF($C4="","",IF(Inputs!$H$15=FALSE,0,IF(AND(Inputs!$H$22=TRUE,$C4=Inputs!$B$27),$C4,IF(AND(Inputs!$H$23=TRUE,$C4<>Inputs!$B$6),BY4,IF(AND(Inputs!$H$24=TRUE,$C4<>Inputs!$B$6),DW4,0))))) -> 0 | GS4: =+IF($C4="","",IF(Inputs!$H$15=FALSE,0,IF(AND(Inputs!$H$22=TRUE,$C4=Inputs!$B$28),$C4,IF(AND(Inputs!$H$23=TRUE,$C4<>Inputs!$B$6),CF4,IF(AND(Inputs!$H$24=TRUE,$C4<>Inputs!$B$6),EH4,0))))) -> 0 | GT4: =+IF($C4="","",IF(Inputs!$H$15=FALSE,0,IF(AND(Inputs!$H$22=TRUE,$C4=Inputs!$B$29),$C4,IF(AND(Inputs!$H$23=TRUE,$C4<>Inputs!$B$6),CM4,IF(AND(Inputs!$H$24=TRUE,$C4<>Inputs!$B$6),ES4,0))))) -> 0 | GU4: =+IF($C4="","",IF(Inputs!$H$15=FALSE,0,IF(AND(Inputs!$H$22=TRUE,$C4=Inputs!$B$30),$C4,IF(AND(Inputs!$H$23=TRUE,$C4<>Inputs!$B$6),CT4,IF(AND(Inputs!$H$24=TRUE,$C4<>Inputs!$B$6),FD4,0))))) -> 0 | GV4: =+IF($C4="","",IF(C4=Inputs!$B$6,FM4,0)) -> 0 | GW4: =+IF($C4="","",IF($C4=1,0,IF(FN4=0,0,IF(C4=Inputs!$B$6,FN4,IF(AND(Inputs!$H$22=TRUE,C4<>Inputs!$B$6),Z4,IF(AND(Inputs!$H$23=TRUE,C4<>Inputs!$B$6),BX4,IF(AND(Inputs!$H$24=TRUE,C4<>Inputs!$B$6),DV4,0))))))) -> 0 | GX4: =+IF($C4="","",IF($C4=1,0,IF(FO4=0,0,IF(C4=Inputs!$B$6,FO4,IF(AND(Inputs!$H$22=TRUE,C4<>Inputs!$B$6),GW4+AB4,IF(AND(Inputs!$H$23=TRUE,C4<>Inputs!$B$6),GW4+CE4,IF(AND(Inputs!$H$24=TRUE,C4<>Inputs!$B$6),GW4+EG4,0))))))) -> 0 | GY4: =+IF($C4="","",IF($C4=1,0,IF(FP4=0,0,IF(C4=Inputs!$B$6,FP4,IF(AND(Inputs!$H$22=TRUE,C4<>Inputs!$B$6),GX4+AD4,IF(AND(Inputs!$H$23=TRUE,C4<>Inputs!$B$6),GX4+CL4,IF(AND(Inputs!$H$24=TRUE,C4<>Inputs!$B$6),GX4+ER4,0))))))) -> 0 | GZ4: =+IF($C4="","",IF($C4=1,0,IF(FQ4=0,0,IF(C4=Inputs!$B$6,FQ4,IF(AND(Inputs!$H$22=TRUE,C4<>Inputs!$B$6),GY4+AF4,IF(AND(Inputs!$H$23=TRUE,C4<>Inputs!$B$6),GY4+CS4,IF(AND(Inputs!$H$24=TRUE,C4<>Inputs!$B$6),GY4+FC4,0))))))) -> 0 | HA4: =+IF($C4="","",0) -> 0 | HB4: =+IF($C4="","",IF(GR4=0,0,FM4)) -> 0 | HC4: =+IF($C4="","",IF(GS4=0,0,FN4)) -> 0 | HD4: =+IF($C4="","",IF(GT4=0,0,FO4)) -> 0 | HE4: =+IF($C4="","",IF(GU4=0,0,FP4)) -> 0 | HF4: =+IF($C4="","",0) -> 0 | HG4: =+IF($C4="","",IF(GR4=0,0,HB4-GW4)) -> 0 | HH4: =+IF($C4="","",IF(GS4=0,0,HC4-GX4)) -> 0 | HI4: 0 | HJ4: 0 | HK4: =+IF($C4="","",IF(C4=Inputs!$B$6,FH4,0)) -> 0 | HL4: =+IF($C4="","",IF(C4=Inputs!$B$6,FI4,IF(GW4=0,0,FH4-FI4))) -> 0 | HM4: =+IF($C4="","",IF(C4=Inputs!$B$6,FJ4,IF(GX4=0,0,HL4+FI4-FJ4))) -> 0 | HN4: =+IF($C4="","",IF(C4=Inputs!$B$6,FK4,IF(GY4=0,0,HM4+FJ4-FK4))) -> 0 | HO4: =+IF($C4="","",IF(C4=Inputs!$B$6,FL4,IF(GZ4=0,0,HN4+FK4-FL4))) -> 0 | HP4: =+IF($C4="","",0) -> 0 | HQ4: =+IF($C4="","",IF(GM4=0,0,FH4)) -> 0 | HR4: =+IF($C4="","",IF(GN4=0,0,FI4)) -> 0 | HS4: =+IF($C4="","",IF(GO4=0,0,FJ4)) -> 0 | HT4: =+IF($C4="","",IF(GP4=0,0,FK4)) -> 0 | HU4: =+IF($C4="","",0) -> 0 | HV4: =+IF($C4="","",IF(GM4=0,0,HQ4-HL4)) -> 0 | HW4: =+IF($C4="","",IF(GN4=0,0,HR4-HM4)) -> 0 | HX4: 0 | HY4: 0 | HZ4: =+IF($C4="","",IF(C4=Inputs!$B$6,GB4,0)) -> 0 | IA4: =+IF($C4="","",IF(GW4<>0,EXP('Equations - Parameters'!$D$33+'Equations - Parameters'!$E$33*LN(HL4)+'Equations - Parameters'!$F$33*LN(GW4)+'Equations - Parameters'!$G$33*LN(GW4)/C4+'Equations - Parameters'!$H$33*LN(Inputs!$H$13)),0)) -> 0 | IB4: =+IF($C4="","",IF(GX4<>0,EXP('Equations - Parameters'!$D$33+'Equations - Parameters'!$E$33*LN(HM4)+'Equations - Parameters'!$F$33*LN(GX4)+'Equations - Parameters'!$G$33*LN(GX4)/C4+'Equations - Parameters'!$H$33*LN(Inputs!$H$13)),0)) -> 0 | IC4: =+IF($C4="","",IF(GY4<>0,EXP('Equations - Parameters'!$D$33+'Equations - Parameters'!$E$33*LN(HN4)+'Equations - Parameters'!$F$33*LN(GY4)+'Equations - Parameters'!$G$33*LN(GY4)/C4+'Equations - Parameters'!$H$33*LN(Inputs!$H$13)),0)) -> 0 | ID4: =+IF($C4="","",IF(GZ4<>0,EXP('Equations - Parameters'!$D$33+'Equations - Parameters'!$E$33*LN(HO4)+'Equations - Parameters'!$F$33*LN(GZ4)+'Equations - Parameters'!$G$33*LN(GZ4)/C4+'Equations - Parameters'!$H$33*LN(Inputs!$H$13)),0)) -> 0 | IE4: =+IF($C4="","",0) -> 0 | IF4: =+IF($C4="","",IF(GM4=0,0,GB4)) -> 0 | IG4: =+IF($C4="","",IF(GN4=0,0,GC4)) -> 0 | IH4: =+IF($C4="","",IF(GO4=0,0,GD4)) -> 0 | II4: =+IF($C4="","",IF(GP4=0,0,GE4)) -> 0 | IJ4: =+IF($C4="","",0) -> 0 | IK4: =+IF($C4="","",IF(GM4=0,0,IF4-IA4)) -> 0 | IL4: =+IF($C4="","",IF(GN4=0,0,IG4-IB4)) -> 0 | IM4: =+IF($C4="","",IF(GO4=0,0,IH4-IC4)) -> 0 | IN4: =+IF($C4="","",IF(GP4=0,0,II4-ID4)) -> 0 | IO4: =+IF($C4="","",IF(C4=Inputs!$B$6,GG4,0)) -> 0 | IP4: =+IF($C4="","",IF(GW4<>0,EXP('Equations - Parameters'!$D$34+'Equations - Parameters'!$E$34*LN(HL4)+'Equations - Parameters'!$F$34*LN(GW4)+'Equations - Parameters'!$G$34*LN(GW4)/C4+'Equations - Parameters'!$H$34*LN(Inputs!$H$13)),0)) -> 0 | IQ4: =+IF($C4="","",IF(GX4<>0,EXP('Equations - Parameters'!$D$34+'Equations - Parameters'!$E$34*LN(HM4)+'Equations - Parameters'!$F$34*LN(GX4)+'Equations - Parameters'!$G$34*LN(GX4)/C4+'Equations - Parameters'!$H$34*LN(Inputs!$H$13)),0)) -> 0 | IR4: =+IF($C4="","",IF(GY4<>0,EXP('Equations - Parameters'!$D$34+'Equations - Parameters'!$E$34*LN(HN4)+'Equations - Parameters'!$F$34*LN(GY4)+'Equations - Parameters'!$G$34*LN(GY4)/C4+'Equations - Parameters'!$H$34*LN(Inputs!$H$13)),0)) -> 0 | IS4: =+IF($C4="","",IF(GZ4<>0,EXP('Equations - Parameters'!$D$34+'Equations - Parameters'!$E$34*LN(HO4)+'Equations - Parameters'!$F$34*LN(GZ4)+'Equations - Parameters'!$G$34*LN(GZ4)/C4+'Equations - Parameters'!$H$34*LN(Inputs!$H$13)),0)) -> 0 | IT4: =+IF($C4="","",0) -> 0 | IU4: =+IF($C4="","",IF(GM4=0,0,GG4)) -> 0 | IV4: =+IF($C4="","",IF(GN4=0,0,GH4)) -> 0 | IW4: =+IF($C4="","",IF(GO4=0,0,GI4)) -> 0 | IX4: =+IF($C4="","",IF(GP4=0,0,GJ4)) -> 0 | IY4: =+IF($C4="","",0) -> 0 | IZ4: =+IF($C4="","",IF(GM4=0,0,IU4-IP4)) -> 0 | JA4: =+IF($C4="","",IF(GN4=0,0,IV4-IQ4)) -> 0 | JB4: =+IF($C4="","",IF(GO4=0,0,IW4-IR4)) -> 0 | JC4: =+IF($C4="","",IF(GP4=0,0,IX4-IS4)) -> 0 | JD4: =+IF($C4="","",IF(GV4=0,0,200*SQRT(GV4/(HK4*PI())))) -> 0 | JE4: =+IF($C4="","",IF(GW4=0,0,200*SQRT(GW4/(HL4*PI())))) -> 0 | JF4: =+IF($C4="","",IF(GX4=0,0,200*SQRT(GX4/(HM4*PI())))) -> 0 | JG4: =+IF($C4="","",IF(GY4=0,0,200*SQRT(GY4/(HN4*PI())))) -> 0 | JH4: =+IF($C4="","",IF(GZ4=0,0,200*SQRT(GZ4/(HO4*PI())))) -> 0 | JI4: =+IF($C4="","",IF(C4<2,0,GB4*EXP(('Equations - Parameters'!$D$47*('Equations - Parameters'!$I$153/FR4)^'Equations - Parameters'!$E$47)+('Equations - Parameters'!$F$47*(FH4^'Equations - Parameters'!$G$47)*('Equations - Parameters'!$J$153/FR4)^'Equations - Parameters'!$H$47)))) -> 0 | JJ4: =+IF($C4="","",IF(C4<2,0,GB4*EXP('Equations - Parameters'!$D$47*('Equations - Parameters'!$I$154/FR4)^'Equations - Parameters'!$E$47+'Equations - Parameters'!$F$47*(FH4^'Equations - Parameters'!$G$47)*('Equations - Parameters'!$J$154/FR4)^'Equations - Parameters'!$H$47)-JI4)) -> 0 | JK4: =+IF($C4="","",IF(C4<2,0,GB4*EXP('Equations - Parameters'!$D$47*('Equations - Parameters'!$I$155/FR4)^'Equations - Parameters'!$E$47+'Equations - Parameters'!$F$47*(FH4^'Equations - Parameters'!$G$47)*('Equations - Parameters'!$J$155/FR4)^'Equations - Parameters'!$H$47)-JJ4-JI4)) -> 0 | JL4: =+IF($C4="","",IF(GC4=0,0,IF(Inputs!$H$15=FALSE,0,IF(C4<2,0,GC4*EXP(('Equations - Parameters'!$D$47*('Equations - Parameters'!$I$153/FS4)^'Equations - Parameters'!$E$47)+('Equations - Parameters'!$F$47*(FI4^'Equations - Parameters'!$G$47)*('Equations - Parameters'!$J$153/FS4)^'Equations - Parameters'!$H$47)))))) -> 0 | JM4: =+IF($C4="","",IF(GC4=0,0,IF(Inputs!$H$15=FALSE,0,GC4*EXP('Equations - Parameters'!$D$47*('Equations - Parameters'!$I$154/FS4)^'Equations - Parameters'!$E$47+'Equations - Parameters'!$F$47*(FI4^'Equations - Parameters'!$G$47)*('Equations - Parameters'!$J$154/FS4)^'Equations - Parameters'!$H$47)-JL4))) -> 0 | JN4: =+IF($C4="","",IF(GC4=0,0,IF(Inputs!$H$15=FALSE,0,GC4*EXP('Equations - Parameters'!$D$47*('Equations - Parameters'!$I$155/FS4)^'Equations - Parameters'!$E$47+'Equations - Parameters'!$F$47*(FI4^'Equations - Parameters'!$G$47)*('Equations - Parameters'!$J$155/FS4)^'Equations - Parameters'!$H$47)-JM4-JL4))) -> 0 | JO4: =+IF($C4="","",IF(GD4=0,0,IF(Inputs!$H$15=FALSE,0,GD4*EXP(('Equations - Parameters'!$D$47*('Equations - Parameters'!$I$153/FT4)^'Equations - Parameters'!$E$47)+('Equations - Parameters'!$F$47*(FJ4^'Equations - Parameters'!$G$47)*('Equations - Parameters'!$J$153/FT4)^'Equations - Parameters'!$H$47))))) -> 0 | JP4: =+IF($C4="","",IF(GD4=0,0,IF(Inputs!$H$15=FALSE,0,GD4*EXP('Equations - Parameters'!$D$47*('Equations - Parameters'!$I$154/FT4)^'Equations - Parameters'!$E$47+'Equations - Parameters'!$F$47*(FJ4^'Equations - Parameters'!$G$47)*('Equations - Parameters'!$J$154/FT4)^'Equations - Parameters'!$H$47)-JO4))) -> 0 | JQ4: =+IF($C4="","",IF(GD4=0,0,IF(Inputs!$H$15=FALSE,0,GD4*EXP('Equations - Parameters'!$D$47*('Equations - Parameters'!$I$155/FT4)^'Equations - Parameters'!$E$47+'Equations - Parameters'!$F$47*(FJ4^'Equations - Parameters'!$G$47)*('Equations - Parameters'!$J$155/FT4)^'Equations - Parameters'!$H$47)-JP4-JO4))) -> 0 | JR4: =+IF($C4="","",IF(GE4=0,0,IF(Inputs!$H$15=FALSE,0,GE4*EXP(('Equations - Parameters'!$D$47*('Equations - Parameters'!$I$153/FU4)^'Equations - Parameters'!$E$47)+('Equations - Parameters'!$F$47*(FK4^'Equations - Parameters'!$G$47)*('Equations - Parameters'!$J$153/FU4)^'Equations - Parameters'!$H$47))))) -> 0 | JS4: =+IF($C4="","",IF(GE4=0,0,IF(Inputs!$H$15=FALSE,0,GE4*EXP('Equations - Parameters'!$D$47*('Equations - Parameters'!$I$154/FU4)^'Equations - Parameters'!$E$47+'Equations - Parameters'!$F$47*(FK4^'Equations - Parameters'!$G$47)*('Equations - Parameters'!$J$154/FU4)^'Equations - Parameters'!$H$47)-JR4))) -> 0 | JT4: =+IF($C4="","",IF(GE4=0,0,IF(Inputs!$H$15=FALSE,0,GE4*EXP('Equations - Parameters'!$D$47*('Equations - Parameters'!$I$155/FU4)^'Equations - Parameters'!$E$47+'Equations - Parameters'!$F$47*(FK4^'Equations - Parameters'!$G$47)*('Equations - Parameters'!$J$155/FU4)^'Equations - Parameters'!$H$47)-JS4-JR4))) -> 0 | JU4: =+IF($C4="","",IF(GF4=0,0,IF(Inputs!$H$15=FALSE,0,GF4*EXP(('Equations - Parameters'!$D$47*('Equations - Parameters'!$I$153/FV4)^'Equations - Parameters'!$E$47)+('Equations - Parameters'!$F$47*(FL4^'Equations - Parameters'!$G$47)*('Equations - Parameters'!$J$153/FV4)^'Equations - Parameters'!$H$47))))) -> 0 | JV4: =+IF($C4="","",IF(GF4=0,0,IF(Inputs!$H$15=FALSE,0,GF4*EXP('Equations - Parameters'!$D$47*('Equations - Parameters'!$I$154/FV4)^'Equations - Parameters'!$E$47+'Equations - Parameters'!$F$47*(FL4^'Equations - Parameters'!$G$47)*('Equations - Parameters'!$J$154/FV4)^'Equations - Parameters'!$H$47)-JU4))) -> 0 | JW4: =+IF($C4="","",IF(GF4=0,0,IF(Inputs!$H$15=FALSE,0,GF4*EXP('Equations - Parameters'!$D$47*('Equations - Parameters'!$I$155/FV4)^'Equations - Parameters'!$E$47+'Equations - Parameters'!$F$47*(FL4^'Equations - Parameters'!$G$47)*('Equations - Parameters'!$J$155/FV4)^'Equations - Parameters'!$H$47)-JV4-JU4))) -> 0 | JX4: =+IF($C4="","",IF(HZ4=0,0,HZ4*EXP('Equations - Parameters'!$D$47*('Equations - Parameters'!$I$153/JD4)^'Equations - Parameters'!$E$47+'Equations - Parameters'!$F$47*HK4^'Equations - Parameters'!$G$47*('Equations - Parameters'!$J$153/JD4)^'Equations - Parameters'!$H$47))) -> 0 | JY4: =+IF($C4="","",IF(HZ4=0,0,HZ4*EXP('Equations - Parameters'!$D$47*('Equations - Parameters'!$I$154/JD4)^'Equations - Parameters'!$E$47+'Equations - Parameters'!$F$47*HK4^'Equations - Parameters'!$G$47*('Equations - Parameters'!$J$154/JD4)^'Equations - Parameters'!$H$47)-JX4)) -> 0 | JZ4: =+IF($C4="","",IF(HZ4=0,0,HZ4*EXP('Equations - Parameters'!$D$47*('Equations - Parameters'!$I$155/JD4)^'Equations - Parameters'!$E$47+'Equations - Parameters'!$F$47*HK4^'Equations - Parameters'!$G$47*('Equations - Parameters'!$J$155/JD4)^'Equations - Parameters'!$H$47)-JY4-JX4)) -> 0 | KA4: =+IF($C4="","",IF(IA4=0,0,IA4*EXP('Equations - Parameters'!$D$47*('Equations - Parameters'!$I$153/JE4)^'Equations - Parameters'!$E$47+'Equations - Parameters'!$F$47*HL4^'Equations - Parameters'!$G$47*('Equations - Parameters'!$J$153/JE4)^'Equations - Parameters'!$H$47))) -> 0 | KB4: =+IF($C4="","",IF(IA4=0,0,IA4*EXP('Equations - Parameters'!$D$47*('Equations - Parameters'!$I$154/JE4)^'Equations - Parameters'!$E$47+'Equations - Parameters'!$F$47*HL4^'Equations - Parameters'!$G$47*('Equations - Parameters'!$J$154/JE4)^'Equations - Parameters'!$H$47)-KA4)) -> 0 | KC4: =+IF($C4="","",IF(IA4=0,0,IA4*EXP('Equations - Parameters'!$D$47*('Equations - Parameters'!$I$155/JE4)^'Equations - Parameters'!$E$47+'Equations - Parameters'!$F$47*HL4^'Equations - Parameters'!$G$47*('Equations - Parameters'!$J$155/JE4)^'Equations - Parameters'!$H$47)-KB4-KA4)) -> 0 | KD4: =+IF($C4="","",IF(IB4=0,0,IB4*EXP('Equations - Parameters'!$D$47*('Equations - Parameters'!$I$153/JF4)^'Equations - Parameters'!$E$47+'Equations - Parameters'!$F$47*HM4^'Equations - Parameters'!$G$47*('Equations - Parameters'!$J$153/JF4)^'Equations - Parameters'!$H$47))) -> 0 | KE4: =+IF($C4="","",IF(IB4=0,0,IB4*EXP('Equations - Parameters'!$D$47*('Equations - Parameters'!$I$154/JF4)^'Equations - Parameters'!$E$47+'Equations - Parameters'!$F$47*HM4^'Equations - Parameters'!$G$47*('Equations - Parameters'!$J$154/JF4)^'Equations - Parameters'!$H$47)-KD4)) -> 0 | KF4: =+IF($C4="","",IF(IB4=0,0,IB4*EXP('Equations - Parameters'!$D$47*('Equations - Parameters'!$I$155/JF4)^'Equations - Parameters'!$E$47+'Equations - Parameters'!$F$47*HM4^'Equations - Parameters'!$G$47*('Equations - Parameters'!$J$155/JF4)^'Equations - Parameters'!$H$47)-KE4-KD4)) -> 0 | KG4: =+IF($C4="","",IF(IC4=0,0,IC4*EXP('Equations - Parameters'!$D$47*('Equations - Parameters'!$I$153/JG4)^'Equations - Parameters'!$E$47+'Equations - Parameters'!$F$47*HN4^'Equations - Parameters'!$G$47*('Equations - Parameters'!$J$153/JG4)^'Equations - Parameters'!$H$47))) -> 0 | KH4: =+IF($C4="","",IF(IC4=0,0,IC4*EXP('Equations - Parameters'!$D$47*('Equations - Parameters'!$I$154/JG4)^'Equations - Parameters'!$E$47+'Equations - Parameters'!$F$47*HN4^'Equations - Parameters'!$G$47*('Equations - Parameters'!$J$154/JG4)^'Equations - Parameters'!$H$47)-KG4)) -> 0 | KI4: =+IF($C4="","",IF(IC4=0,0,IC4*EXP('Equations - Parameters'!$D$47*('Equations - Parameters'!$I$155/JG4)^'Equations - Parameters'!$E$47+'Equations - Parameters'!$F$47*HN4^'Equations - Parameters'!$G$47*('Equations - Parameters'!$J$155/JG4)^'Equations - Parameters'!$H$47)-KH4-KG4)) -> 0 | KJ4: =+IF($C4="","",IF(ID4=0,0,ID4*EXP('Equations - Parameters'!$D$47*('Equations - Parameters'!$I$153/JH4)^'Equations - Parameters'!$E$47+'Equations - Parameters'!$F$47*HO4^'Equations - Parameters'!$G$47*('Equations - Parameters'!$J$153/JH4)^'Equations - Parameters'!$H$47))) -> 0 | KK4: =+IF($C4="","",IF(ID4=0,0,ID4*EXP('Equations - Parameters'!$D$47*('Equations - Parameters'!$I$154/JH4)^'Equations - Parameters'!$E$47+'Equations - Parameters'!$F$47*HO4^'Equations - Parameters'!$G$47*('Equations - Parameters'!$J$154/JH4)^'Equations - Parameters'!$H$47)-KJ4)) -> 0 | KL4: =+IF($C4="","",IF(ID4=0,0,ID4*EXP('Equations - Parameters'!$D$47*('Equations - Parameters'!$I$155/JH4)^'Equations - Parameters'!$E$47+'Equations - Parameters'!$F$47*HO4^'Equations - Parameters'!$G$47*('Equations - Parameters'!$J$155/JH4)^'Equations - Parameters'!$H$47)-KK4-KJ4)) -> 0 | KM4: =+IF($C4="","",IF(C4<2,0,GG4*EXP(('Equations - Parameters'!$D$48*('Equations - Parameters'!$I$153/FR4)^'Equations - Parameters'!$E$48)+('Equations - Parameters'!$F$48*(FH4^'Equations - Parameters'!$G$48)*('Equations - Parameters'!$J$153/FR4)^'Equations - Parameters'!$H$48)))) -> 0 | KN4: =+IF($C4="","",IF(C4<2,0,GG4*EXP('Equations - Parameters'!$D$48*('Equations - Parameters'!$I$154/FR4)^'Equations - Parameters'!$E$48+'Equations - Parameters'!$F$48*(FH4^'Equations - Parameters'!$G$48)*('Equations - Parameters'!$J$154/FR4)^'Equations - Parameters'!$H$48)-KM4)) -> 0 | KO4: =+IF($C4="","",IF(C4<2,0,GG4*EXP('Equations - Parameters'!$D$48*('Equations - Parameters'!$I$155/FR4)^'Equations - Parameters'!$E$48+'Equations - Parameters'!$F$48*(FH4^'Equations - Parameters'!$G$48)*('Equations - Parameters'!$J$155/FR4)^'Equations - Parameters'!$H$48)-KN4-KM4)) -> 0 | KP4: =+IF($C4="","",IF(GH4=0,0,IF(C4<2,0,GH4*EXP(('Equations - Parameters'!$D$48*('Equations - Parameters'!$I$153/FS4)^'Equations - Parameters'!$E$48)+('Equations - Parameters'!$F$48*(FI4^'Equations - Parameters'!$G$48)*('Equations - Parameters'!$J$153/FS4)^'Equations - Parameters'!$H$48))))) -> 0 | KQ4: =+IF($C4="","",IF(GH4=0,0,IF(C4<2,0,GH4*EXP('Equations - Parameters'!$D$48*('Equations - Parameters'!$I$154/FS4)^'Equations - Parameters'!$E$48+'Equations - Parameters'!$F$48*(FI4^'Equations - Parameters'!$G$48)*('Equations - Parameters'!$J$154/FS4)^'Equations - Parameters'!$H$48)-KP4))) -> 0 | KR4: =+IF($C4="","",IF(GH4=0,0,IF(C4<2,0,GH4*EXP('Equations - Parameters'!$D$48*('Equations - Parameters'!$I$155/FS4)^'Equations - Parameters'!$E$48+'Equations - Parameters'!$F$48*(FI4^'Equations - Parameters'!$G$48)*('Equations - Parameters'!$J$155/FS4)^'Equations - Parameters'!$H$48)-KQ4-KP4))) -> 0 | KS4: =+IF($C4="","",IF(GI4=0,0,IF(C4<2,0,GI4*EXP(('Equations - Parameters'!$D$48*('Equations - Parameters'!$I$153/FT4)^'Equations - Parameters'!$E$48)+('Equations - Parameters'!$F$48*(FJ4^'Equations - Parameters'!$G$48)*('Equations - Parameters'!$J$153/FT4)^'Equations - Parameters'!$H$48))))) -> 0 | KT4: =+IF($C4="","",IF(GI4=0,0,IF(C4<2,0,GI4*EXP('Equations - Parameters'!$D$48*('Equations - Parameters'!$I$154/FT4)^'Equations - Parameters'!$E$48+'Equations - Parameters'!$F$47*(FJ4^'Equations - Parameters'!$G$48)*('Equations - Parameters'!$J$154/FT4)^'Equations - Parameters'!$H$48)-KS4))) -> 0 | KU4: =+IF($C4="","",IF(GI4=0,0,IF(C4<2,0,GI4*EXP('Equations - Parameters'!$D$48*('Equations - Parameters'!$I$155/FT4)^'Equations - Parameters'!$E$48+'Equations - Parameters'!$F$47*(FJ4^'Equations - Parameters'!$G$48)*('Equations - Parameters'!$J$155/FT4)^'Equations - Parameters'!$H$48)-KT4-KS4))) -> 0 | KV4: =+IF($C4="","",IF(GJ4=0,0,IF(C4<2,0,IF(C4<2,0,GJ4*EXP(('Equations - Parameters'!$D$48*('Equations - Parameters'!$I$153/FU4)^'Equations - Parameters'!$E$48)+('Equations - Parameters'!$F$48*(FK4^'Equations - Parameters'!$G$48)*('Equations - Parameters'!$J$153/FU4)^'Equations - Parameters'!$H$48)))))) -> 0 | KW4: =+IF($C4="","",IF(GJ4=0,0,IF(C4<2,0,GJ4*EXP('Equations - Parameters'!$D$48*('Equations - Parameters'!$I$154/FU4)^'Equations - Parameters'!$E$48+'Equations - Parameters'!$F$47*(FK4^'Equations - Parameters'!$G$48)*('Equations - Parameters'!$J$154/FU4)^'Equations - Parameters'!$H$48)-KV4))) -> 0 | KX4: =+IF($C4="","",IF(GJ4=0,0,IF(C4<2,0,GJ4*EXP('Equations - Parameters'!$D$48*('Equations - Parameters'!$I$155/FU4)^'Equations - Parameters'!$E$48+'Equations - Parameters'!$F$47*(FK4^'Equations - Parameters'!$G$48)*('Equations - Parameters'!$J$155/FU4)^'Equations - Parameters'!$H$48)-KW4-KV4))) -> 0 | KY4: =+IF($C4="","",IF(GK4=0,0,IF(C4<2,0,GK4*EXP(('Equations - Parameters'!$D$48*('Equations - Parameters'!$I$153/FV4)^'Equations - Parameters'!$E$48)+('Equations - Parameters'!$F$48*(FL4^'Equations - Parameters'!$G$48)*('Equations - Parameters'!$J$153/FV4)^'Equations - Parameters'!$H$48))))) -> 0 | KZ4: =+IF($C4="","",IF(GK4=0,0,IF(C4<2,0,GK4*EXP('Equations - Parameters'!$D$48*('Equations - Parameters'!$I$154/FV4)^'Equations - Parameters'!$E$48+'Equations - Parameters'!$F$47*(FL4^'Equations - Parameters'!$G$48)*('Equations - Parameters'!$J$154/FV4)^'Equations - Parameters'!$H$48)-KY4))) -> 0 | LA4: =+IF($C4="","",IF(GK4=0,0,IF(C4<2,0,GK4*EXP('Equations - Parameters'!$D$48*('Equations - Parameters'!$I$155/FV4)^'Equations - Parameters'!$E$48+'Equations - Parameters'!$F$47*(FL4^'Equations - Parameters'!$G$48)*('Equations - Parameters'!$J$155/FV4)^'Equations - Parameters'!$H$48)-KZ4-KY4))) -> 0 | LB4: =+IF($C4="","",IF(IO4=0,0,IO4*EXP('Equations - Parameters'!$D$48*('Equations - Parameters'!$I$153/JD4)^'Equations - Parameters'!$E$48+'Equations - Parameters'!$F$48*HK4^'Equations - Parameters'!$G$48*('Equations - Parameters'!$J$153/JD4)^'Equations - Parameters'!$H$48))) -> 0 | LC4: =+IF($C4="","",IF(IO4=0,0,IO4*EXP('Equations - Parameters'!$D$48*('Equations - Parameters'!$I$154/JD4)^'Equations - Parameters'!$E$48+'Equations - Parameters'!$F$48*HK4^'Equations - Parameters'!$G$48*('Equations - Parameters'!$J$154/JD4)^'Equations - Parameters'!$H$48)-LB4)) -> 0 | LD4: =+IF($C4="","",IF(IO4=0,0,IO4*EXP('Equations - Parameters'!$D$48*('Equations - Parameters'!$I$155/JD4)^'Equations - Parameters'!$E$48+'Equations - Parameters'!$F$48*HK4^'Equations - Parameters'!$G$48*('Equations - Parameters'!$J$155/JD4)^'Equations - Parameters'!$H$48)-LC4-LB4)) -> 0 | LE4: =+IF($C4="","",IF(IP4=0,0,IP4*EXP('Equations - Parameters'!$D$48*('Equations - Parameters'!$I$153/JE4)^'Equations - Parameters'!$E$48+'Equations - Parameters'!$F$48*HL4^'Equations - Parameters'!$G$48*('Equations - Parameters'!$J$153/JE4)^'Equations - Parameters'!$H$48))) -> 0 | LF4: =+IF($C4="","",IF(IP4=0,0,IP4*EXP('Equations - Parameters'!$D$48*('Equations - Parameters'!$I$154/JE4)^'Equations - Parameters'!$E$48+'Equations - Parameters'!$F$48*HL4^'Equations - Parameters'!$G$48*('Equations - Parameters'!$J$154/JE4)^'Equations - Parameters'!$H$48)-LE4)) -> 0 | LG4: =+IF($C4="","",IF(IP4=0,0,IP4*EXP('Equations - Parameters'!$D$48*('Equations - Parameters'!$I$155/JE4)^'Equations - Parameters'!$E$48+'Equations - Parameters'!$F$48*HL4^'Equations - Parameters'!$G$48*('Equations - Parameters'!$J$155/JE4)^'Equations - Parameters'!$H$48)-LF4-LE4)) -> 0 | LH4: =+IF($C4="","",IF(IQ4=0,0,IQ4*EXP('Equations - Parameters'!$D$48*('Equations - Parameters'!$I$153/JF4)^'Equations - Parameters'!$E$48+'Equations - Parameters'!$F$48*HM4^'Equations - Parameters'!$G$48*('Equations - Parameters'!$J$153/JF4)^'Equations - Parameters'!$H$48))) -> 0 | LI4: =+IF($C4="","",IF(IQ4=0,0,IQ4*EXP('Equations - Parameters'!$D$48*('Equations - Parameters'!$I$154/JF4)^'Equations - Parameters'!$E$48+'Equations - Parameters'!$F$48*HM4^'Equations - Parameters'!$G$48*('Equations - Parameters'!$J$154/JF4)^'Equations - Parameters'!$H$48)-LH4)) -> 0 | LJ4: =+IF($C4="","",IF(IQ4=0,0,IQ4*EXP('Equations - Parameters'!$D$48*('Equations - Parameters'!$I$155/JF4)^'Equations - Parameters'!$E$48+'Equations - Parameters'!$F$48*HM4^'Equations - Parameters'!$G$48*('Equations - Parameters'!$J$155/JF4)^'Equations - Parameters'!$H$48)-LI4-LH4)) -> 0 | LK4: =+IF($C4="","",IF(IR4=0,0,IR4*EXP('Equations - Parameters'!$D$48*('Equations - Parameters'!$I$153/JG4)^'Equations - Parameters'!$E$48+'Equations - Parameters'!$F$48*HN4^'Equations - Parameters'!$G$48*('Equations - Parameters'!$J$153/JG4)^'Equations - Parameters'!$H$48))) -> 0 | LL4: =+IF($C4="","",IF(IR4=0,0,IR4*EXP('Equations - Parameters'!$D$48*('Equations - Parameters'!$I$154/JG4)^'Equations - Parameters'!$E$48+'Equations - Parameters'!$F$48*HN4^'Equations - Parameters'!$G$48*('Equations - Parameters'!$J$154/JG4)^'Equations - Parameters'!$H$48)-LK4)) -> 0 | LM4: =+IF($C4="","",IF(IR4=0,0,IR4*EXP('Equations - Parameters'!$D$48*('Equations - Parameters'!$I$155/JG4)^'Equations - Parameters'!$E$48+'Equations - Parameters'!$F$48*HN4^'Equations - Parameters'!$G$48*('Equations - Parameters'!$J$155/JG4)^'Equations - Parameters'!$H$48)-LL4-LK4)) -> 0 | LN4: =+IF($C4="","",IF(IS4=0,0,IS4*EXP('Equations - Parameters'!$D$48*('Equations - Parameters'!$I$153/JH4)^'Equations - Parameters'!$E$48+'Equations - Parameters'!$F$48*HO4^'Equations - Parameters'!$G$48*('Equations - Parameters'!$J$153/JH4)^'Equations - Parameters'!$H$48))) -> 0 | LO4: =+IF($C4="","",IF(IS4=0,0,IS4*EXP('Equations - Parameters'!$D$48*('Equations - Parameters'!$I$154/JH4)^'Equations - Parameters'!$E$48+'Equations - Parameters'!$F$48*HO4^'Equations - Parameters'!$G$48*('Equations - Parameters'!$J$154/JH4)^'Equations - Parameters'!$H$48)-LN4)) -> 0 | LP4: =+IF($C4="","",IF(IS4=0,0,IS4*EXP('Equations - Parameters'!$D$48*('Equations - Parameters'!$I$155/JH4)^'Equations - Parameters'!$E$48+'Equations - Parameters'!$F$48*HO4^'Equations - Parameters'!$G$48*('Equations - Parameters'!$J$155/JH4)^'Equations - Parameters'!$H$48)-LO4-LN4)) -> 0
A5: 1 | B5: =+IF(AND(Inputs!$H$18=FALSE,A5+Inputs!$H$7-1>Inputs!$B$6),"",IF(AND(Inputs!$H$3=TRUE,A5<=Inputs!$B$6),1,IF(AND(Inputs!$H$4=TRUE,A5+Inputs!$H$7<=Inputs!$B$6),1,IF(Inputs!$H$3=TRUE,ROUNDDOWN((A5-1)/(Inputs!$B$6),0)+1,ROUNDDOWN((A5+Inputs!$H$7-1)/(Inputs!$B$6),0)+1)))) -> 1 | C5: =+IF(B5="","",IF(AND(Inputs!$H$18=FALSE,A5+Inputs!$H$7-1>Inputs!$B$6),"",IF(C4=Inputs!$B$6,1,IF(AND(Inputs!$H$3=TRUE,A5=0),0,IF(AND(Inputs!$H$4=TRUE,A5=0),Inputs!$H$7,IF(C4=Inputs!$B$6,0,C4+1)))))) -> 1 | D5: =+IF($C5="","",IF(C5=0,0,IF(Inputs!$H$3=TRUE,Inputs!$H$13*((1-EXP('Equations - Parameters'!$E$15*C5))/(1-EXP('Equations - Parameters'!$E$15*50)))^'Equations - Parameters'!$F$15,Inputs!$J$14*((1-EXP('Equations - Parameters'!$E$15*C5))/(1-EXP('Equations - Parameters'!$E$15*50)))^'Equations - Parameters'!$F$15))) -> 0.3921624817 | E5: =+IF($C5="","",IF($C5=0,0,IF(Inputs!$H$15=TRUE,0,IF(C5=1,Inputs!$H$11*Inputs!$B$11,IF(Inputs!$H$15=TRUE,0,IF(AND(Inputs!$H$3=TRUE,$A5=0),Inputs!$H$11*Inputs!$B$11,IF(AND(Inputs!$H$4=TRUE,$A5=0),Inputs!$J$12,E4*EXP(('Equations - Parameters'!$D$9*D4/100+'Equations - Parameters'!$E$9*H4/'Equations - Parameters'!$I$7)*(C5^'Equations - Parameters'!$F$9-C4^'Equations - Parameters'!$F$9))))))))) -> 1445.56425 | F5: =+IF($C5="","",IF($C5=0,0,IF(Inputs!$H$15=TRUE,0,IF(AND(Inputs!$H$4=TRUE,$C5=Inputs!$H$7),Inputs!$J$13,IF(Inputs!$H$4=TRUE,F4*((E5/E4)^'Equations - Parameters'!$E$21)*((D5/D4)^'Equations - Parameters'!$F$21),EXP('Equations - Parameters'!$D$21+'Equations - Parameters'!$E$21*LN(E5)+'Equations - Parameters'!$F$21*LN(D5))))))) -> 0.05204458687 | G5: =+IF(C5="","",IF($C5=0,0,IF(F5=0,0,200*SQRT(F5/(E5*PI()))))) -> 0.6770553005 | H5: =+IF(C5="","",IF($C5=0,0,E5*(G5/25.4)^1.605)) -> 4.299629487 | I5: =+IF($C5="","",IF($C5=0,0,IF(Inputs!$H$15=FALSE,0,IF($C5=1,Inputs!$H$11*Inputs!$B$11,IF(Inputs!$H$22=FALSE,0,IF(AND(Inputs!$H$3=TRUE,$A5=0),Inputs!$H$11*Inputs!$B$11,IF(AND(Inputs!$H$4=TRUE,$A5=0),Inputs!$J$12,I4*EXP(('Equations - Parameters'!$D$9*D4/100+'Equations - Parameters'!$E$9*S4/'Equations - Parameters'!$I$7)*($C5^'Equations - Parameters'!$F$9-$C4^'Equations - Parameters'!$F$9))))))))) -> 0 | J5: =+IF(C5="","",IF(Inputs!$H$15=FALSE,0,IF(Inputs!$H$22=FALSE,0,IF(Inputs!$B$27="",0,IF(C5<Inputs!$B$27,I5,IF(C5=Inputs!$B$27,(I5-(Inputs!$C$27*I5)),J4*EXP(('Equations - Parameters'!$D$9*D4/100+'Equations - Parameters'!$E$9*T4/'Equations - Parameters'!$I$7)*(C5^'Equations - Parameters'!$F$9-C4^'Equations - Parameters'!$F$9)))))))) -> 0 | K5: =+IF(C5="","",IF(Inputs!$H$15=FALSE,0,IF(Inputs!$H$22=FALSE,0,IF(Inputs!$B$28="",0,IF(C5<Inputs!$B$28,J5,IF(C5=Inputs!$B$28,(J5-(Inputs!$C$28*J5)),K4*EXP(('Equations - Parameters'!$D$9*D4/100+'Equations - Parameters'!$E$9*U4/'Equations - Parameters'!$I$7)*(C5^'Equations - Parameters'!$F$9-C4^'Equations - Parameters'!$F$9)))))))) -> 0 | L5: =+IF(C5="","",IF(Inputs!$H$15=FALSE,0,IF(Inputs!$H$22=FALSE,0,IF(Inputs!$B$29="",0,IF(C5<Inputs!$B$29,K5,IF(C5=Inputs!$B$29,(K5-(Inputs!$C$29*K5)),L4*EXP(('Equations - Parameters'!$D$9*D4/100+'Equations - Parameters'!$E$9*V4/'Equations - Parameters'!$I$7)*(C5^'Equations - Parameters'!$F$9-C4^'Equations - Parameters'!$F$9)))))))) -> 0 | M5: =+IF(C5="","",IF(Inputs!$H$15=FALSE,0,IF(Inputs!$H$22=FALSE,0,IF(Inputs!$B$30="",0,IF(C5<Inputs!$B$30,L5,IF(C5=Inputs!$B$30,(L5-(Inputs!$C$30*L5)),M4*EXP(('Equations - Parameters'!$D$9*D4/100+'Equations - Parameters'!$E$9*W4/'Equations - Parameters'!$I$7)*(C5^'Equations - Parameters'!$F$9-C4^'Equations - Parameters'!$F$9)))))))) -> 0 | N5: =+IF(C5="","",IF(Inputs!$H$15=FALSE,0,IF(Y5=0,0,200*SQRT(Y5/(I5*PI()))))) -> 0 | O5: =+IF(C5="","",IF(Inputs!$H$15=FALSE,0,IF(AG5=0,0,200*SQRT(AG5/(J5*PI()))))) -> 0 | P5: =+IF(C5="","",IF(Inputs!$H$15=FALSE,0,IF(AJ5=0,0,200*SQRT(AJ5/(K5*PI()))))) -> 0 | Q5: =+IF(C5="","",IF(Inputs!$H$15=FALSE,0,IF(AM5=0,0,200*SQRT(AM5/(L5*PI()))))) -> 0 | R5: =+IF(C5="","",IF(Inputs!$H$15=FALSE,0,IF(AP5=0,0,200*SQRT(AP5/(M5*PI()))))) -> 0 | S5: =+IF(C5="","",IF(Inputs!$H$15=FALSE,0,I5*(N5/25.4)^1.605)) -> 0 | T5: =+IF(C5="","",IF(Inputs!$H$15=FALSE,0,J5*(O5/25.4)^1.605)) -> 0 | U5: =+IF(C5="","",IF(Inputs!$H$15=FALSE,0,K5*(P5/25.4)^1.605)) -> 0 | V5: =+IF(C5="","",IF(Inputs!$H$15=FALSE,0,L5*(Q5/25.4)^1.605)) -> 0 | W5: =+IF(C5="","",IF(Inputs!$H$15=FALSE,0,M5*(R5/25.4)^1.605)) -> 0 | X5: =+IF(C5="","",IF(Inputs!$H$15=FALSE,0,IF(Inputs!$B$27="",0,IF(C5<Inputs!$B$27,0,EXP('Equations - Parameters'!$D$21+'Equations - Parameters'!$E$21*LN(J5)+'Equations - Parameters'!$F$21*LN(D5)))))) -> 0 | Y5: =+IF(C5="","",IF(Inputs!$H$15=FALSE,0,IF($C5=0,0,IF(AND($B5=1,Inputs!$H$4=TRUE,$C5=Inputs!$H$7),Inputs!$J$13,IF(AND($B5=1,Inputs!$H$4=TRUE,$C5<>Inputs!$H$7),Y4*((I5/I4)^('Equations - Parameters'!$E$21))*((D5/D4)^('Equations - Parameters'!$F$21)),EXP('Equations - Parameters'!$D$21+'Equations - Parameters'!$E$21*LN(I5)+'Equations - Parameters'!$F$21*LN(D5))))))) -> 0 | Z5: =+IF(C5="","",IF(Inputs!$H$15=FALSE,0,IF(Inputs!$B$27="",0,IF($C5=Inputs!$B$27,Y5-AS5,0)))) -> 0 | AA5: =+IF(C5="","",IF(Inputs!$H$15=FALSE,0,IF(Inputs!$B$28="",0,IF(C5<Inputs!$B$28,0,EXP('Equations - Parameters'!$D$21+'Equations - Parameters'!$E$21*LN(K5)+'Equations - Parameters'!$F$21*LN(D5)))))) -> 0 | AB5: =+IF(C5="","",IF(Inputs!$H$15=FALSE,0,IF(Inputs!$B$28="",0,IF($C5=Inputs!$B$28,AG5-$AS5,0)))) -> 0 | AC5: =+IF(C5="","",IF(Inputs!$H$15=FALSE,0,IF(Inputs!$B$29="",0,IF($C5<Inputs!$B$29,0,EXP('Equations - Parameters'!$D$21+'Equations - Parameters'!$E$21*LN(L5)+'Equations - Parameters'!$F$21*LN(D5)))))) -> 0 | AD5: =+IF(C5="","",IF(Inputs!$H$15=FALSE,0,IF(Inputs!$B$29="",0,IF($C5=Inputs!$B$29,AJ5-$AS5,0)))) -> 0 | AE5: =+IF(C5="","",IF(Inputs!$H$15=FALSE,0,IF(Inputs!$B$30="",0,IF($C5<Inputs!$B$30,0,EXP('Equations - Parameters'!$D$21+'Equations - Parameters'!$E$21*LN(M5)+'Equations - Parameters'!$F$21*LN(D5)))))) -> 0 | AF5: =+IF(C5="","",IF(Inputs!$H$15=FALSE,0,IF(Inputs!$B$30="",0,IF($C5=Inputs!$B$30,AM5-$AS5,0)))) -> 0 | AG5: =+IF(C5="","",IF(Inputs!$B$27="",0,IF(Inputs!$H$15=FALSE,0,IF($C5<Inputs!$B$27,Y5,IF(C5=Inputs!$B$27,AS5,X5*(1-AI5)))))) -> 0 | AH5: =+IF(C5="","",IF(Inputs!$H$15=FALSE,0,IF(SUM($Z$4:$Z$504)>0,1,0))) -> 0 | AI5: =+IF(C5="","",IF(Inputs!$H$15=FALSE,0,IF(Inputs!$B$27="",0,IF(C5<Inputs!$B$27,0,IF(C5=Inputs!$B$27,1-(AG5/X5),AI4*EXP(('Equations - Parameters'!$E$27/C5)*(C5-C4))))))) -> 0 | AJ5: =+IF(C5="","",IF(Inputs!$H$15=FALSE,0,IF(Inputs!$B$28="",0,IF($C5<Inputs!$B$28,AG5,IF($C5=Inputs!$B$28,AS5,AA5*(1-AL5)))))) -> 0 | AK5: =+IF(C5="","",IF(Inputs!$H$15=FALSE,0,IF(SUM($AB$4:$AB$504)>0,1,0))) -> 0 | AL5: =+IF(C5="","",IF(Inputs!$H$15=FALSE,0,IF(Inputs!$B$28="",0,IF($C5<Inputs!$B$28,0,IF($C5=Inputs!$B$28,1-(AJ5/AA5),AL4*EXP(('Equations - Parameters'!$E$27/C5)*($C5-$C4))))))) -> 0 | AM5: =+IF(C5="","",IF(Inputs!$H$15=FALSE,0,IF(Inputs!$B$29="",0,IF($C5<Inputs!$B$29,AJ5,IF($C5=Inputs!$B$29,AS5,AC5*(1-AO5)))))) -> 0 | AN5: =+IF(C5="","",IF(Inputs!$H$15=FALSE,0,IF(SUM($AD$4:$AD$504)>0,1,0))) -> 0 | AO5: =+IF(C5="","",IF(Inputs!$H$15=FALSE,0,IF(Inputs!$B$29="",0,IF($C5<Inputs!$B$29,0,IF($C5=Inputs!$B$29,1-(AM5/AC5),AO4*EXP(('Equations - Parameters'!$E$27/C5)*($C5-$C4))))))) -> 0 | AP5: =+IF(C5="","",IF(Inputs!$H$15=FALSE,0,IF(Inputs!$B$30="",0,IF($C5<Inputs!$B$30,AM5,IF($C5=Inputs!$B$30,AS5,AE5*(1-AR5)))))) -> 0 | AQ5: =+IF(C5="","",IF(Inputs!$H$15=FALSE,0,IF(SUM($AF$4:$AF$504)>0,1,0))) -> 0 | AR5: =+IF(C5="","",IF(Inputs!$H$15=FALSE,0,IF(Inputs!$B$30="",0,IF($C5<Inputs!$B$30,0,IF($C5=Inputs!$B$30,1-(AP5/AE5),AR4*EXP(('Equations - Parameters'!$E$27/C5)*($C5-$C4))))))) -> 0 | AS5: =+IF(C5="","",IF(Inputs!$H$15=FALSE,0,IF(C5=Inputs!$B$27,Y5*(1-Inputs!$C$27),IF(C5=Inputs!$B$28,AG5*(1-Inputs!$C$28),IF(C5=Inputs!$B$29,AJ5*(1-Inputs!$C$29),IF(C5=Inputs!$B$30,AM5*(1-Inputs!$C$30),0)))))) -> 0 | AT5: =+IF($C5="","",IF($C5=0,0,IF(Inputs!$H$15=FALSE,0,IF(C5=1,Inputs!$H$11*Inputs!$B$11,IF(Inputs!$H$23=FALSE,0,IF(AND(Inputs!$H$3=TRUE,$A5=0),Inputs!$H$11*Inputs!$B$11,IF(AND(Inputs!$H$4=TRUE,$A5=0),Inputs!$J$12,AT4*EXP(('Equations - Parameters'!$D$9*D4/100+'Equations - Parameters'!$E$9*BN4/'Equations - Parameters'!$I$7)*(C5^'Equations - Parameters'!$F$9-C4^'Equations - Parameters'!$F$9))))))))) -> 0 | AU5: =+IF(C5="","",IF(Inputs!$H$15=FALSE,0,IF(BW5=0,AT5,IF(BX5<>0,AT5*(1-BX5/BT5),AU4*EXP(('Equations - Parameters'!$D$9*D4/100+'Equations - Parameters'!$E$9*BO4/'Equations - Parameters'!$I$7)*(C5^'Equations - Parameters'!$F$9-C4^'Equations - Parameters'!$F$9)))))) -> 0 | AV5: =+IF(C5="","",IF(Inputs!$H$15=FALSE,0,IF(CD5=0,AU5,IF(CE5<>0,AU5*(1-CE5/BU5),AV4*EXP(('Equations - Parameters'!$D$9*D4/100+'Equations - Parameters'!$E$9*BP4/'Equations - Parameters'!$I$7)*(C5^'Equations - Parameters'!$F$9-C4^'Equations - Parameters'!$F$9)))))) -> 0 | AW5: =+IF(C5="","",IF(Inputs!$H$15=FALSE,0,IF(CK5=0,AV5,IF(CL5<>0,AV5*(1-CL5/CB5),AW4*EXP(('Equations - Parameters'!$D$9*D4/100+'Equations - Parameters'!$E$9*BQ4/'Equations - Parameters'!$I$7)*(C5^'Equations - Parameters'!$F$9-C4^'Equations - Parameters'!$F$9)))))) -> 0 | AX5: =+IF(C5="","",IF(Inputs!$H$15=FALSE,0,IF(CR5=0,AW5,IF(CS5<>0,AW5*(1-CS5/CI5),AX4*EXP(('Equations - Parameters'!$D$9*D4/100+'Equations - Parameters'!$E$9*BR4/'Equations - Parameters'!$I$7)*(C5^'Equations - Parameters'!$F$9-C4^'Equations - Parameters'!$F$9)))))) -> 0 | AY5: =+IF(C5="","",IF(Inputs!$H$15=FALSE,0,AT5)) -> 0 | AZ5: =+IF(C5="","",IF(Inputs!$H$15=FALSE,0,IF(BV5=1,AU5,0))) -> 0 | BA5: =+IF(C5="","",IF(Inputs!$H$15=FALSE,0,IF(CC5=1,AV5,0))) -> 0 | BB5: =+IF(C5="","",IF(Inputs!$H$15=FALSE,0,IF(CJ5=1,AW5,0))) -> 0 | BC5: =+IF(C5="","",IF(Inputs!$H$15=FALSE,0,IF(CQ5=1,AX5,0))) -> 0 | BD5: =+IF(C5="","",IF(Inputs!$H$15=FALSE,0,BT5)) -> 0 | BE5: =+IF(C5="","",IF(Inputs!$H$15=FALSE,0,IF(BV5=1,BU5,0))) -> 0 | BF5: =+IF(C5="","",IF(Inputs!$H$15=FALSE,0,IF(CC5=1,CB5,0))) -> 0 | BG5: =+IF(C5="","",IF(Inputs!$H$15=FALSE,0,IF(CJ5=1,CI5,0))) -> 0 | BH5: =+IF(C5="","",IF(Inputs!$H$15=FALSE,0,IF(CQ5=1,CP5,0))) -> 0 | BI5: =+IF(C5="","",IF(Inputs!$H$15=FALSE,0,IF(BD5=0,0,200*SQRT(BD5/(AY5*PI()))))) -> 0 | BJ5: =+IF(C5="","",IF(Inputs!$H$15=FALSE,0,IF(AZ5=0,0,200*SQRT(BE5/(AZ5*PI()))))) -> 0 | BK5: =+IF(C5="","",IF(Inputs!$H$15=FALSE,0,IF(BA5=0,0,200*SQRT(BF5/(BA5*PI()))))) -> 0 | BL5: =+IF(C5="","",IF(Inputs!$H$15=FALSE,0,IF(BB5=0,0,200*SQRT(BG5/(BB5*PI()))))) -> 0 | BM5: =+IF(C5="","",IF(Inputs!$H$15=FALSE,0,IF(BC5=0,0,200*SQRT(BH5/(BC5*PI()))))) -> 0 | BN5: =+IF(C5="","",IF(Inputs!$H$15=FALSE,0,AY5*(BI5/25.4)^1.605)) -> 0 | BO5: =+IF(C5="","",IF(Inputs!$H$15=FALSE,0,AZ5*(BJ5/25.4)^1.605)) -> 0 | BP5: =+IF(C5="","",IF(Inputs!$H$15=FALSE,0,BA5*(BK5/25.4)^1.605)) -> 0 | BQ5: =+IF(C5="","",IF(Inputs!$H$15=FALSE,0,BB5*(BL5/25.4)^1.605)) -> 0 | BR5: =+IF(C5="","",IF(Inputs!$H$15=FALSE,0,BC5*(BM5/25.4)^1.605)) -> 0 | BS5: =+IF(C5="","",IF(Inputs!$H$15=FALSE,0,IF(BW5=0,0,EXP('Equations - Parameters'!$D$21+'Equations - Parameters'!$E$21*LN(AU5)+'Equations - Parameters'!$F$21*LN($D5))))) -> 0 | BT5: =+IF(C5="","",IF(Inputs!$H$15=FALSE,0,IF(C5=0,0,IF(AND(Inputs!$B$4=TRUE,$C5=Inputs!$H$7),Inputs!$J$13,IF(AND(Inputs!$H$23=TRUE,$C5<>Inputs!$H$7),BT4*((AT5/AT4)^('Equations - Parameters'!$E$21))*((D5/D4)^('Equations - Parameters'!$F$21)),EXP('Equations - Parameters'!$D$21+'Equations - Parameters'!$E$21*LN(AT5)+'Equations - Parameters'!$F$21*LN(D5))))))) -> 0 | BU5: =+IF(C5="","",IF(Inputs!$H$15=FALSE,0,IF(BW5=0,BT5,IF((BW5-BW4)>0,BW5,BS5*(1-BZ5))))) -> 0 | BV5: =+IF(C5="","",IF(Inputs!$H$15=FALSE,0,IF(SUM($BX$4:$BX$504)>0,1,0))) -> 0 | BW5: =+IF(C5="","",IF(Inputs!$H$15=FALSE,0,IF(BT5>Inputs!$H$34,Inputs!$I$34,0))) -> 0 | BX5: =+IF(C5="","",IF(C5=Inputs!$H$7,0,IF(Inputs!$H$15=FALSE,0,IF((BW5-BW4)=0,0,BT5-BW5)))) -> 0 | BY5: =+IF(C5="","",IF(C5=Inputs!$H$7,0,IF((BW5-BW4)=0,0,$C5))) -> 0 | BZ5: =+IF(C5="","",IF(Inputs!$H$15=FALSE,0,IF(BW5=0,0,IF(BX5<>0,1-(BU5/BS5),BZ4*EXP(('Equations - Parameters'!$E$27/C5)*($C5-$C4)))))) -> 0 | CA5: =+IF($C5="","",IF($C5=1,0,IF(Inputs!$H$15=FALSE,0,IF(CD5=0,0,EXP('Equations - Parameters'!$D$21+'Equations - Parameters'!$E$21*LN(AV5)+'Equations - Parameters'!$F$21*LN(D5)))))) -> 0 | CB5: =+IF(C5="","",IF(Inputs!$H$15=FALSE,0,IF(CD5=0,BU5,IF((CD5-CD4)>0,CD5,CA5*(1-CG5))))) -> 0 | CC5: =+IF(C5="","",IF(Inputs!$H$15=FALSE,0,IF(SUM($CE$4:$CE$504)>0,1,0))) -> 0 | CD5: =+IF(C5="","",IF(Inputs!$H$15=FALSE,0,IF(C5=0,0,IF(C5=1,0,IF(BU5>Inputs!$H$34,Inputs!$I$34,IF(CD4>0,Inputs!$I$34,0)))))) -> 0 | CE5: =+IF(C5="","",IF(C5=1,0,IF(Inputs!$H$15=FALSE,0,IF((CD5-CD4)=0,0,BU5-CD5)))) -> 0 | CF5: 0 | CG5: =+IF($C5="","",IF($C5=1,0,IF(Inputs!$H$15=FALSE,0,IF(CD5=0,0,IF(CE5<>0,1-(CB5/CA5),CG4*EXP(('Equations - Parameters'!$E$27/C5)*($C5-$C4))))))) -> 0 | CH5: =+IF(C5="","",IF(Inputs!$H$15=FALSE,0,IF(CK5=0,0,EXP('Equations - Parameters'!$D$21+'Equations - Parameters'!$E$21*LN(AW5)+'Equations - Parameters'!$F$21*LN(D5))))) -> 0 | CI5: =+IF(C5="","",IF(Inputs!$H$15=FALSE,0,IF(CK5=0,CB5,IF((CK5-CK4)>0,CK5,CH5*(1-CN5))))) -> 0 | CJ5: =+IF(C5="","",IF(Inputs!$H$15=FALSE,0,IF(SUM($CL$4:$CL$504)>0,1,0))) -> 0 | CK5: =+IF(C5="","",IF(C5=1,0,IF(Inputs!$H$15=FALSE,0,IF(C5=0,0,IF(CB5>Inputs!$H$34,Inputs!$I$34,IF(CK4>0,Inputs!$I$34,0)))))) -> 0 | CL5: =+IF(C5="","",IF(C5=1,0,IF(Inputs!$H$15=FALSE,0,IF((CK5-CK4)=0,0,CB5-CK5)))) -> 0 | CM5: 0 | CN5: =+IF($C5="","",IF($C5=1,0,IF(Inputs!$H$15=FALSE,0,IF(CK5=0,0,IF(CL5<>0,1-(CI5/CH5),CN4*EXP('Equations - Parameters'!$E$27/C5)*($C5-$C4)))))) -> 0 | CO5: =+IF($C5="","",IF($C5=1,0,IF(Inputs!$H$15=FALSE,0,IF(CR5=0,0,EXP('Equations - Parameters'!$D$21+'Equations - Parameters'!$E$21*LN(AX5)+'Equations - Parameters'!$F$21*LN(D5)))))) -> 0 | CP5: =+IF($C5="","",IF($C5=1,0,IF(Inputs!$H$15=FALSE,0,IF(CR5=0,CI5,IF((CR5-CR4)>0,CR5,CO5*(1-CU5)))))) -> 0 | CQ5: =+IF(C5="","",IF(Inputs!$H$15=FALSE,0,IF(SUM($CS$4:$CS$504)>0,1,0))) -> 0 | CR5: =+IF($C5="","",IF($C5=1,0,IF(Inputs!$H$15=FALSE,0,IF(C5=0,0,IF(CI5>Inputs!$H$34,Inputs!$I$34,IF(CR4>0,Inputs!$I$34,0)))))) -> 0 | CS5: =+IF($C5="","",IF($C5=1,0,IF(Inputs!$H$15=FALSE,0,IF((CR5-CR4)=0,0,CI5-CR5)))) -> 0 | CT5: 0 | CU5: =+IF($C5="","",IF($C5=1,0,IF(Inputs!$H$15=FALSE,0,IF(CR5=0,0,IF(CS5<>0,1-(CP5/CO5),CU4*EXP('Equations - Parameters'!$E$27/D5)*($C5-$C4)))))) -> 0 | CV5: =+IF($C5="","",IF($C5=0,0,IF(Inputs!$H$15=FALSE,0,IF(C5=1,Inputs!$H$11*Inputs!$B$11,IF(Inputs!$H$24=FALSE,0,IF(AND(Inputs!$H$3=TRUE,$A5=0),Inputs!$H$11*Inputs!$B$11,IF(AND(Inputs!$H$4=TRUE,$A5=0),Inputs!$J$12,CV4*EXP(('Equations - Parameters'!$D$9*D4/100+'Equations - Parameters'!$E$9*DN4/'Equations - Parameters'!$I$7)*(C5^'Equations - Parameters'!$F$9-C4^'Equations - Parameters'!$F$9))))))))) -> 0 | CW5: =+IF($C5="","",IF($C5=0,0,IF(Inputs!$H$15=FALSE,0,IF(C5=1,Inputs!$H$11*Inputs!$B$11,IF(DS5=0,CV5,IF(DT5<>0,CV5*(DS5/DN5),CW4*EXP(('Equations - Parameters'!$D$9*D4/100+'Equations - Parameters'!$E$9*DQ4/'Equations - Parameters'!$I$7)*(C5^'Equations - Parameters'!$F$9-C4^'Equations - Parameters'!$F$9)))))))) -> 0 | CX5: =+IF($C5="","",IF($C5=0,0,IF(Inputs!$H$15=FALSE,0,IF(C5=1,Inputs!$H$11*Inputs!$B$11,IF(ED5=0,CW5,IF(EE5<>0,CW5*(ED5/DQ5),CX4*EXP(('Equations - Parameters'!$D$9*D4/100+'Equations - Parameters'!$E$9*EB4/'Equations - Parameters'!$I$7)*(C5^'Equations - Parameters'!$F$9-C4^'Equations - Parameters'!$F$9)))))))) -> 0 | CY5: =+IF($C5="","",IF($C5=0,0,IF(Inputs!$H$15=FALSE,0,IF(C5=1,Inputs!$H$11*Inputs!$B$11,IF(EO5=0,CX5,IF(EP5<>0,CX5*(EO5/EB5),CY4*EXP(('Equations - Parameters'!$D$9*D4/100+'Equations - Parameters'!$E$9*EM4/'Equations - Parameters'!$I$7)*(C5^'Equations - Parameters'!$F$9-C4^'Equations - Parameters'!$F$9)))))))) -> 0 | CZ5: =+IF($C5="","",IF($C5=0,0,IF(Inputs!$H$15=FALSE,0,IF(C5=1,Inputs!$H$11*Inputs!$B$11,IF(EZ5=0,CY5,IF(FB5<>0,CY5*(EZ5/EM5),CZ4*EXP(('Equations - Parameters'!$D$9*D4/100+'Equations - Parameters'!$E$9*EX4/'Equations - Parameters'!$I$7)*(C5^'Equations - Parameters'!$F$9-C4^'Equations - Parameters'!$F$9)))))))) -> 0 | DA5: =+IF(C5="","",IF(Inputs!$H$15=FALSE,0,CV5)) -> 0 | DB5: =+IF(C5="","",IF(Inputs!$H$15=FALSE,0,IF(DR5=1,CW5,0))) -> 0 | DC5: =+IF(C5="","",IF(Inputs!$H$15=FALSE,0,IF(EC5=1,CX5,0))) -> 0 | DD5: =+IF(C5="","",IF(Inputs!$H$15=FALSE,0,IF(EN5=1,CY5,0))) -> 0 | DE5: =+IF(C5="","",IF(Inputs!$H$15=FALSE,0,IF(EY5=1,CZ5,0))) -> 0 | DF5: =+IF(C5="","",IF(Inputs!$H$15=FALSE,0,DL5)) -> 0 | DG5: =+IF(C5="","",IF(Inputs!$H$15=FALSE,0,IF(DR5=1,DO5,0))) -> 0 | DH5: =+IF(C5="","",IF(Inputs!$H$15=FALSE,0,IF(EC5=1,DZ5,0))) -> 0 | DI5: =+IF(C5="","",IF(Inputs!$H$15=FALSE,0,IF(EN5=1,EK5,0))) -> 0 | DJ5: =+IF(C5="","",IF(Inputs!$H$15=FALSE,0,IF(EY5=1,EV5,0))) -> 0 | DK5: =+IF($C5="","",IF(Inputs!$H$15=FALSE,0,IF(DS5=0,0,EXP('Equations - Parameters'!$D$21+'Equations - Parameters'!$E$21*LN(CW5)+'Equations - Parameters'!$F$21*LN(D5))))) -> 0 | DL5: =+IF($C5="","",IF(Inputs!$H$15=FALSE,0,IF(C5=0,0,IF(AND(Inputs!$H$4=TRUE,$C5=Inputs!$H$7),Inputs!$J$13,IF(AND(Inputs!$H$4=TRUE,$C5<>Inputs!$H$7),DL4*((CV5/CV4)^('Equations - Parameters'!$E$21))*((D5/D4)^('Equations - Parameters'!$F$21)),IF(C5=0,0,EXP('Equations - Parameters'!$D$21+'Equations - Parameters'!$E$21*LN(CV5)+'Equations - Parameters'!$F$21*LN($D5)))))))) -> 0 | DM5: =+IF($C5="","",IF(Inputs!$H$15=FALSE,0,IF($C5=0,0,200*SQRT(DL5/(CV5*PI()))))) -> 0 | DN5: =+IF($C5="","",IF(Inputs!$H$15=FALSE,0,CV5*(DM5/25.4)^1.605)) -> 0 | DO5: =+IF($C5="","",IF(Inputs!$H$15=FALSE,0,IF(DS5=0,DL5,IF((DS5-DS4)>0,DU5,DK5*(1-DX5))))) -> 0 | DP5: =+IF($C5="","",IF(Inputs!$H$15=FALSE,0,IF($C5=0,0,200*SQRT(DO5/(CW5*PI()))))) -> 0 | DQ5: =+IF($C5="","",IF(Inputs!$H$15=FALSE,0,CW5*(DP5/25.4)^1.605)) -> 0 | DR5: =+IF($C5="","",IF(Inputs!$H$15=FALSE,0,IF(SUM($DT$4:$DT$504)>0,1,0))) -> 0 | DS5: =+IF($C5="","",IF(Inputs!$H$15=FALSE,0,IF(C5=0,0,IF(C5=1,0,IF(DN5>Inputs!$H$38,Inputs!$I$38,IF(DS4>0,Inputs!$I$38,0)))))) -> 0 | DT5: =+IF($C5="","",IF(Inputs!$H$15=FALSE,0,IF((DS5-DS4)=0,0,DN5-DS5))) -> 0 | DU5: =+IF($C5="","",IF(Inputs!$H$15=FALSE,0,IF(DT5=0,0,DL5*DS5/DN5))) -> 0 | DV5: =+IF($C5="","",IF(Inputs!$H$15=FALSE,0,IF((DT5)=0,0,DL5-DU5))) -> 0 | DW5: 0 | DX5: =+IF($C5="","",IF($C5=1,0,IF(Inputs!$H$15=FALSE,0,IF(DS5=0,0,IF(DV5<>0,1-(DU5/DK5),DX4*EXP(('Equations - Parameters'!$E$27/$C5)*($C5-$C4))))))) -> 0 | DY5: =+IF($C5="","",IF(Inputs!$H$15=FALSE,0,IF(ED5=0,0,EXP('Equations - Parameters'!$D$21+'Equations - Parameters'!$E$21*LN(CX5)+'Equations - Parameters'!$F$21*LN($D5))))) -> 0 | DZ5: =+IF($C5="","",IF(Inputs!$H$15=FALSE,0,IF(ED5=0,DO5,IF((ED5-ED4)>0,EF5,DY5*(1-EI5))))) -> 0 | EA5: =+IF($C5="","",IF(Inputs!$H$15=FALSE,0,IF($C5=0,0,200*SQRT(DZ5/(CX5*PI()))))) -> 0 | EB5: =+IF($C5="","",IF(Inputs!$H$15=FALSE,0,$CX5*($EA5/25.4)^1.605)) -> 0 | EC5: =+IF($C5="","",IF(Inputs!$H$15=FALSE,0,IF(SUM($EE$4:$EE$504)>0,1,0))) -> 0 | ED5: =+IF($C5="","",IF(Inputs!$H$15=FALSE,0,IF($C5=0,0,IF($C5=1,0,IF(DQ5>Inputs!$H$38,Inputs!$I$38,IF(ED4>0,Inputs!$I$38,0)))))) -> 0 | EE5: =+IF($C5="","",IF($C5=1,0,IF(Inputs!$H$15=FALSE,0,IF((ED5-ED4)=0,0,DQ5-ED5)))) -> 0 | EF5: =+IF($C5="","",IF($C5=1,0,IF(Inputs!$H$15=FALSE,0,IF(EE5=0,0,DO5*ED5/DQ5)))) -> 0 | EG5: =+IF($C5="","",IF($C5=1,0,IF(Inputs!$H$15=FALSE,0,IF((EE5)=0,0,DO5-EF5)))) -> 0 | EH5: 0 | EI5: =+IF($C5="","",IF($C5=1,0,IF(Inputs!$H$15=FALSE,0,IF(ED5=0,0,IF(EG5<>0,1-(EF5/DY5),EI4*EXP(('Equations - Parameters'!$E$27/$C5)*($C5-$C4))))))) -> 0 | EJ5: =+IF($C5="","",IF($C5=1,0,IF(Inputs!$H$15=FALSE,0,IF(EO5=0,0,EXP('Equations - Parameters'!$D$21+'Equations - Parameters'!$E$21*LN(CX5)+'Equations - Parameters'!$F$21*LN($D5)))))) -> 0 | EK5: =+IF($C5="","",IF(Inputs!$H$15=FALSE,0,IF(EO5=0,DZ5,IF((EO5-EO4)>0,EQ5,EJ5*(1-ET5))))) -> 0 | EL5: =+IF($C5="","",IF(Inputs!$H$15=FALSE,0,IF($C5=0,0,200*SQRT(EK5/(CY5*PI()))))) -> 0 | EM5: =+IF($C5="","",IF(Inputs!$H$15=FALSE,0,$CY5*($EL5/25.4)^1.605)) -> 0 | EN5: =+IF($C5="","",IF(Inputs!$H$15=FALSE,0,IF(SUM($EP$4:$EP$504)>0,1,0))) -> 0 | EO5: =+IF($C5="","",IF(Inputs!$H$15=FALSE,0,IF(C5=0,0,IF(C5=1,0,IF(EB5>Inputs!$H$38,Inputs!$I$38,IF(EO4>0,Inputs!$I$38,0)))))) -> 0 | EP5: =+IF($C5="","",IF(C5=1,0,IF(Inputs!$H$15=FALSE,0,IF((EO5-EO4)=0,0,EB5-EO5)))) -> 0 | EQ5: =+IF($C5="","",IF(C5=1,0,IF(Inputs!$H$15=FALSE,0,IF(EP5=0,0,DZ5*EO5/EB5)))) -> 0 | ER5: =+IF($C5="","",IF(C5=1,0,IF(Inputs!$H$15=FALSE,0,IF((EP5)=0,0,DZ5-EQ5)))) -> 0 | ES5: 0 | ET5: =+IF($C5="","",IF(C5=1,0,IF(Inputs!$H$15=FALSE,0,IF(EO5=0,0,IF(ER5<>0,1-(EQ5/EJ5),ET4*EXP(('Equations - Parameters'!$E$27/$C5)*($C5-$C4))))))) -> 0 | EU5: =+IF($C5="","",IF($C5=1,0,IF(Inputs!$H$15=FALSE,0,IF(EZ5=0,0,EXP('Equations - Parameters'!$D$21+'Equations - Parameters'!$E$21*LN(CY5)+'Equations - Parameters'!$F$21*LN($D5)))))) -> 0 | EV5: =+IF($C5="","",IF(Inputs!$H$15=FALSE,0,IF(EZ5=0,EK5,IF((EZ5-EZ4)>0,FB5,EU5*(1-FE5))))) -> 0 | EW5: =+IF($C5="","",IF(Inputs!$H$15=FALSE,0,IF($C5=0,0,200*SQRT(EV5/(CZ5*PI()))))) -> 0 | EX5: =+IF($C5="","",IF(Inputs!$H$15=FALSE,0,$CZ5*($EW5/25.4)^1.605)) -> 0 | EY5: =+IF($C5="","",IF(Inputs!$H$15=FALSE,0,IF(SUM($FA$4:$FA$504)>0,1,0))) -> 0 | EZ5: =+IF($C5="","",IF(Inputs!$H$15=FALSE,0,IF(C5=0,0,IF(C5=1,0,IF(EM5>Inputs!$H$38,Inputs!$I$38,IF(EZ4>0,Inputs!$I$38,0)))))) -> 0 | FA5: =+IF($C5="","",IF(Inputs!$H$15=FALSE,0,IF(C5=0,0,IF(C5=1,0,IF((EZ5-EZ4)=0,0,EM5-EZ5))))) -> 0 | FB5: =+IF($C5="","",IF(Inputs!$H$15=FALSE,0,IF(C5=0,0,IF(C5=1,0,IF(FA5=0,0,EK5*EZ5/EM5))))) -> 0 | FC5: =+IF($C5="","",IF(Inputs!$H$15=FALSE,0,IF(C5=0,0,IF(C5=1,0,IF((FA5)=0,0,EK5-FB5))))) -> 0 | FD5: =+IF($C5="","",IF(Inputs!$H$15=FALSE,0,IF(C5=0,0,IF(C5=1,0,IF((EZ5-EZ4)=0,0,$C5))))) -> 0 | FE5: =+IF($C5="","",IF(Inputs!$H$15=FALSE,0,IF(C5=0,0,IF(C5=1,0,IF(EZ5=0,0,IF(FC5<>0,1-(FB5/EU5),FE4*EXP(('Equations - Parameters'!$E$27/$C5)*($C5-$C4)))))))) -> 0 | FF5: =+IF(AND(Inputs!$H$18=FALSE,A5+Inputs!$H$7-1>Inputs!$B$6),"",IF(C4=Inputs!$B$6,1,IF(AND(Inputs!$H$3=TRUE,A5=0),0,IF(AND(Inputs!$H$4=TRUE,A5=0),Inputs!$H$7,IF(C4=Inputs!$B$6,0,C4+1))))) -> 1 | FG5: =+IF($C5="","",IF(C5=0,0,IF(Inputs!$H$3=TRUE,Inputs!$H$13*((1-EXP('Equations - Parameters'!$E$15*C5))/(1-EXP('Equations - Parameters'!$E$15*50)))^'Equations - Parameters'!$F$15,Inputs!$J$14*((1-EXP('Equations - Parameters'!$E$15*C5))/(1-EXP('Equations - Parameters'!$E$15*50)))^'Equations - Parameters'!$F$15))) -> 0.3921624817 | FH5: =+IF($C5="","",IF(Inputs!$H$15=FALSE,E5,IF(Inputs!$H$22=TRUE,I5,IF(Inputs!$H$23=TRUE,AY5,DA5)))) -> 1445.56425 | FI5: =+IF($C5="","",IF(Inputs!$H$15=FALSE,0,IF(Inputs!$H$22=TRUE,J5,IF(Inputs!$H$23=TRUE,AZ5,DB5)))) -> 0 | FJ5: =+IF($C5="","",IF(Inputs!$H$15=FALSE,0,IF(Inputs!$H$22=TRUE,K5,IF(Inputs!$H$23=TRUE,BA5,DC5)))) -> 0 | FK5: =+IF($C5="","",IF(Inputs!$H$15=FALSE,0,IF(Inputs!$H$22=TRUE,L5,IF(Inputs!$H$23=TRUE,BB5,DD5)))) -> 0 | FL5: =+IF($C5="","",IF(Inputs!$H$15=FALSE,0,IF(Inputs!$H$22=TRUE,M5,IF(Inputs!$H$23=TRUE,BC5,DE5)))) -> 0 | FM5: =+IF($C5="","",IF(Inputs!$H$15=FALSE,F5,IF(Inputs!$H$22=TRUE,Y5,IF(Inputs!$H$23=TRUE,BD5,DF5)))) -> 0.05204458687 | FN5: =+IF($C5="","",IF(Inputs!$H$15=FALSE,0,IF(Inputs!$H$22=TRUE,AG5,IF(Inputs!$H$23=TRUE,BE5,DG5)))) -> 0 | FO5: =+IF($C5="","",IF(Inputs!$H$15=FALSE,0,IF(Inputs!$H$15=FALSE,0,IF(Inputs!$H$22=TRUE,AJ5,IF(Inputs!$H$23=TRUE,BF5,DH5))))) -> 0 | FP5: =+IF($C5="","",IF(Inputs!$H$15=FALSE,0,IF(Inputs!$H$22=TRUE,AM5,IF(Inputs!$H$23=TRUE,BG5,DI5)))) -> 0 | FQ5: =+IF($C5="","",IF(Inputs!$H$15=FALSE,0,IF(Inputs!$H$22=TRUE,AP5,IF(Inputs!$H$23=TRUE,BH5,DJ5)))) -> 0 | FR5: =+IF($C5="","",IF(FM5=0,0,200*SQRT(FM5/(FH5*PI())))) -> 0.6770553005 | FS5: =+IF($C5="","",IF(Inputs!$H$15=FALSE,0,IF(FN5=0,0,200*SQRT(FN5/(FI5*PI()))))) -> 0 | FT5: =+IF($C5="","",IF(Inputs!$H$15=FALSE,0,IF(FO5=0,0,200*SQRT(FO5/(FJ5*PI()))))) -> 0 | FU5: =+IF($C5="","",IF(Inputs!$H$15=FALSE,0,IF(FP5=0,0,200*SQRT(FP5/(FK5*PI()))))) -> 0 | FV5: =+IF($C5="","",IF(Inputs!$H$15=FALSE,0,IF(FQ5=0,0,200*SQRT(FQ5/(FL5*PI()))))) -> 0 | FW5: 4.299629487 | FX5: =+IF($C5="","",IF(Inputs!$H$15=FALSE,0,FI5*(FS5/25.4)^1.605)) -> 0 | FY5: =+IF($C5="","",IF(Inputs!$H$15=FALSE,0,FJ5*(FT5/25.4)^1.605)) -> 0 | FZ5: =+IF($C5="","",IF(Inputs!$H$15=FALSE,0,FK5*(FU5/25.4)^1.605)) -> 0 | GA5: =+IF($C5="","",IF(Inputs!$H$15=FALSE,0,FL5*(FV5/25.4)^1.605)) -> 0 | GB5: =+IF($C5="","",IF(FM5=0,0,IF($C5<3,0,EXP('Equations - Parameters'!$D$33+'Equations - Parameters'!$E$33*LN(FH5)+'Equations - Parameters'!$F$33*LN(FM5)+'Equations - Parameters'!$G$33*LN(FM5)/$C5+'Equations - Parameters'!$H$33*LN(Inputs!$H$13))))) -> 0 | GC5: =+IF($C5="","",IF(Inputs!$H$15=FALSE,0,IF(FN5=0,0,IF($C5<3,0,EXP('Equations - Parameters'!$D$33+'Equations - Parameters'!$E$33*LN(FI5)+'Equations - Parameters'!$F$33*LN(FN5)+'Equations - Parameters'!$G$33*LN(FN5)/$C5+'Equations - Parameters'!$H$33*LN(Inputs!$H$13)))))) -> 0 | GD5: =+IF($C5="","",IF(Inputs!$H$15=FALSE,0,IF(FO5=0,0,IF($C5<3,0,EXP('Equations - Parameters'!$D$33+'Equations - Parameters'!$E$33*LN(FJ5)+'Equations - Parameters'!$F$33*LN(FO5)+'Equations - Parameters'!$G$33*LN(FO5)/$C5+'Equations - Parameters'!$H$33*LN(Inputs!$H$13)))))) -> 0 | GE5: =+IF($C5="","",IF(Inputs!$H$15=FALSE,0,IF(FP5=0,0,IF($C5<3,0,EXP('Equations - Parameters'!$D$33+'Equations - Parameters'!$E$33*LN(FK5)+'Equations - Parameters'!$F$33*LN(FP5)+'Equations - Parameters'!$G$33*LN(FP5)/$C5+'Equations - Parameters'!$H$33*LN(Inputs!$H$13)))))) -> 0 | GF5: =+IF($C5="","",IF(Inputs!$H$15=FALSE,0,IF(FQ5=0,0,IF($C5<3,0,EXP('Equations - Parameters'!$D$33+'Equations - Parameters'!$E$33*LN(FL5)+'Equations - Parameters'!$F$33*LN(FQ5)+'Equations - Parameters'!$G$33*LN(FQ5)/$C5+'Equations - Parameters'!$H$33*LN(Inputs!$H$13)))))) -> 0 | GG5: =+IF($C5="","",IF(FM5=0,0,IF($C5<3,0,EXP('Equations - Parameters'!$D$34+'Equations - Parameters'!$E$34*LN(FH5)+'Equations - Parameters'!$F$34*LN(FM5)+'Equations - Parameters'!$G$34*LN(FM5)/$C5+'Equations - Parameters'!$H$34*LN(Inputs!$H$13))))) -> 0 | GH5: =+IF($C5="","",IF(Inputs!$H$15=FALSE,0,IF(FN5=0,0,IF($C5<3,0,EXP('Equations - Parameters'!$D$34+'Equations - Parameters'!$E$34*LN(FI5)+'Equations - Parameters'!$F$34*LN(FN5)+'Equations - Parameters'!$G$34*LN(FN5)/$C5+'Equations - Parameters'!$H$34*LN(Inputs!$H$13)))))) -> 0 | GI5: =+IF($C5="","",IF(Inputs!$H$15=FALSE,0,IF(FO5=0,0,IF($C5<3,0,EXP('Equations - Parameters'!$D$34+'Equations - Parameters'!$E$34*LN(FJ5)+'Equations - Parameters'!$F$34*LN(FO5)+'Equations - Parameters'!$G$34*LN(FO5)/$C5+'Equations - Parameters'!$H$34*LN(Inputs!$H$13)))))) -> 0 | GJ5: =+IF($C5="","",IF(Inputs!$H$15=FALSE,0,IF(FP5=0,0,IF($C5<3,0,EXP('Equations - Parameters'!$D$34+'Equations - Parameters'!$E$34*LN(FK5)+'Equations - Parameters'!$F$34*LN(FP5)+'Equations - Parameters'!$G$34*LN(FP5)/$C5+'Equations - Parameters'!$H$34*LN(Inputs!$H$13)))))) -> 0 | GK5: =+IF($C5="","",IF(Inputs!$H$15=FALSE,0,IF(FQ5=0,0,IF($C5<3,0,EXP('Equations - Parameters'!$D$34+'Equations - Parameters'!$E$34*LN(FL5)+'Equations - Parameters'!$F$34*LN(FQ5)+'Equations - Parameters'!$G$34*LN(FQ5)/$C5+'Equations - Parameters'!$H$34*LN(Inputs!$H$13)))))) -> 0 | GL5: =+IF($C5="","",0) -> 0 | GM5: =+IF($C5="","",IF(GR5<>0,1,0)) -> 0 | GN5: =+IF($C5="","",IF(GS5<>0,1,0)) -> 0 | GO5: =+IF($C5="","",IF(GT5<>0,1,0)) -> 0 | GP5: 0 | GQ5: =+IF($B5="","",0) -> 0 | GR5: =+IF($C5="","",IF(Inputs!$H$15=FALSE,0,IF(AND(Inputs!$H$22=TRUE,$C5=Inputs!$B$27),$C5,IF(AND(Inputs!$H$23=TRUE,$C5<>Inputs!$B$6),BY5,IF(AND(Inputs!$H$24=TRUE,$C5<>Inputs!$B$6),DW5,0))))) -> 0 | GS5: =+IF($C5="","",IF(Inputs!$H$15=FALSE,0,IF(AND(Inputs!$H$22=TRUE,$C5=Inputs!$B$28),$C5,IF(AND(Inputs!$H$23=TRUE,$C5<>Inputs!$B$6),CF5,IF(AND(Inputs!$H$24=TRUE,$C5<>Inputs!$B$6),EH5,0))))) -> 0 | GT5: =+IF($C5="","",IF(Inputs!$H$15=FALSE,0,IF(AND(Inputs!$H$22=TRUE,$C5=Inputs!$B$29),$C5,IF(AND(Inputs!$H$23=TRUE,$C5<>Inputs!$B$6),CM5,IF(AND(Inputs!$H$24=TRUE,$C5<>Inputs!$B$6),ES5,0))))) -> 0 | GU5: =+IF($C5="","",IF(Inputs!$H$15=FALSE,0,IF(AND(Inputs!$H$22=TRUE,$C5=Inputs!$B$30),$C5,IF(AND(Inputs!$H$23=TRUE,$C5<>Inputs!$B$6),CT5,IF(AND(Inputs!$H$24=TRUE,$C5<>Inputs!$B$6),FD5,0))))) -> 0 | GV5: =+IF($C5="","",IF(C5=Inputs!$B$6,FM5,0)) -> 0 | GW5: =+IF($C5="","",IF($C5=1,0,IF(FN5=0,0,IF(C5=Inputs!$B$6,FN5,IF(AND(Inputs!$H$22=TRUE,C5<>Inputs!$B$6),Z5,IF(AND(Inputs!$H$23=TRUE,C5<>Inputs!$B$6),BX5,IF(AND(Inputs!$H$24=TRUE,C5<>Inputs!$B$6),DV5,0))))))) -> 0 | GX5: =+IF($C5="","",IF($C5=1,0,IF(FO5=0,0,IF(C5=Inputs!$B$6,FO5,IF(AND(Inputs!$H$22=TRUE,C5<>Inputs!$B$6),GW5+AB5,IF(AND(Inputs!$H$23=TRUE,C5<>Inputs!$B$6),GW5+CE5,IF(AND(Inputs!$H$24=TRUE,C5<>Inputs!$B$6),GW5+EG5,0))))))) -> 0 | GY5: =+IF($C5="","",IF($C5=1,0,IF(FP5=0,0,IF(C5=Inputs!$B$6,FP5,IF(AND(Inputs!$H$22=TRUE,C5<>Inputs!$B$6),GX5+AD5,IF(AND(Inputs!$H$23=TRUE,C5<>Inputs!$B$6),GX5+CL5,IF(AND(Inputs!$H$24=TRUE,C5<>Inputs!$B$6),GX5+ER5,0))))))) -> 0 | GZ5: =+IF($C5="","",IF($C5=1,0,IF(FQ5=0,0,IF(C5=Inputs!$B$6,FQ5,IF(AND(Inputs!$H$22=TRUE,C5<>Inputs!$B$6),GY5+AF5,IF(AND(Inputs!$H$23=TRUE,C5<>Inputs!$B$6),GY5+CS5,IF(AND(Inputs!$H$24=TRUE,C5<>Inputs!$B$6),GY5+FC5,0))))))) -> 0 | HA5: =+IF($C5="","",0) -> 0 | HB5: 0 | HC5: 0 | HD5: 0 | HE5: 0 | HF5: =+IF($C5="","",0) -> 0 | HG5: =+IF($C5="","",IF(GR5=0,0,HB5-GW5)) -> 0 | HH5: 0 | HI5: 0 | HJ5: 0 | HK5: =+IF($C5="","",IF(C5=Inputs!$B$6,FH5,0)) -> 0 | HL5: =+IF($C5="","",IF(C5=Inputs!$B$6,FI5,IF(GW5=0,0,FH5-FI5))) -> 0 | HM5: =+IF($C5="","",IF(C5=Inputs!$B$6,FJ5,IF(GX5=0,0,HL5+FI5-FJ5))) -> 0 | HN5: =+IF($C5="","",IF(C5=Inputs!$B$6,FK5,IF(GY5=0,0,HM5+FJ5-FK5))) -> 0 | HO5: =+IF($C5="","",IF(C5=Inputs!$B$6,FL5,IF(GZ5=0,0,HN5+FK5-FL5))) -> 0 | HP5: =+IF($C5="","",0) -> 0 | HQ5: 0 | HR5: 0 | HS5: 0 | HT5: 0 | HU5: =+IF($C5="","",0) -> 0 | HV5: =+IF($C5="","",IF(GM5=0,0,HQ5-HL5)) -> 0 | HW5: 0 | HX5: 0 | HY5: 0 | HZ5: =+IF($C5="","",IF(C5=Inputs!$B$6,GB5,0)) -> 0 | IA5: =+IF($C5="","",IF(GW5<>0,EXP('Equations - Parameters'!$D$33+'Equations - Parameters'!$E$33*LN(HL5)+'Equations - Parameters'!$F$33*LN(GW5)+'Equations - Parameters'!$G$33*LN(GW5)/C5+'Equations - Parameters'!$H$33*LN(Inputs!$H$13)),0)) -> 0 | IB5: =+IF($C5="","",IF(GX5<>0,EXP('Equations - Parameters'!$D$33+'Equations - Parameters'!$E$33*LN(HM5)+'Equations - Parameters'!$F$33*LN(GX5)+'Equations - Parameters'!$G$33*LN(GX5)/C5+'Equations - Parameters'!$H$33*LN(Inputs!$H$13)),0)) -> 0 | IC5: =+IF($C5="","",IF(GY5<>0,EXP('Equations - Parameters'!$D$33+'Equations - Parameters'!$E$33*LN(HN5)+'Equations - Parameters'!$F$33*LN(GY5)+'Equations - Parameters'!$G$33*LN(GY5)/C5+'Equations - Parameters'!$H$33*LN(Inputs!$H$13)),0)) -> 0 | ID5: =+IF($C5="","",IF(GZ5<>0,EXP('Equations - Parameters'!$D$33+'Equations - Parameters'!$E$33*LN(HO5)+'Equations - Parameters'!$F$33*LN(GZ5)+'Equations - Parameters'!$G$33*LN(GZ5)/C5+'Equations - Parameters'!$H$33*LN(Inputs!$H$13)),0)) -> 0 | IE5: =+IF($C5="","",0) -> 0 | IF5: 0 | IG5: =+IF($C5="","",IF(GN5=0,0,GC5)) -> 0 | IH5: =+IF($C5="","",IF(GO5=0,0,GD5)) -> 0 | II5: =+IF($C5="","",IF(GP5=0,0,GE5)) -> 0 | IJ5: =+IF($C5="","",0) -> 0 | IK5: =+IF($C5="","",IF(GM5=0,0,IF5-IA5)) -> 0 | IL5: =+IF($C5="","",IF(GN5=0,0,IG5-IB5)) -> 0 | IM5: 0 | IN5: 0 | IO5: =+IF($C5="","",IF(C5=Inputs!$B$6,GG5,0)) -> 0 | IP5: =+IF($C5="","",IF(GW5<>0,EXP('Equations - Parameters'!$D$34+'Equations - Parameters'!$E$34*LN(HL5)+'Equations - Parameters'!$F$34*LN(GW5)+'Equations - Parameters'!$G$34*LN(GW5)/C5+'Equations - Parameters'!$H$34*LN(Inputs!$H$13)),0)) -> 0 | IQ5: =+IF($C5="","",IF(GX5<>0,EXP('Equations - Parameters'!$D$34+'Equations - Parameters'!$E$34*LN(HM5)+'Equations - Parameters'!$F$34*LN(GX5)+'Equations - Parameters'!$G$34*LN(GX5)/C5+'Equations - Parameters'!$H$34*LN(Inputs!$H$13)),0)) -> 0 | IR5: =+IF($C5="","",IF(GY5<>0,EXP('Equations - Parameters'!$D$34+'Equations - Parameters'!$E$34*LN(HN5)+'Equations - Parameters'!$F$34*LN(GY5)+'Equations - Parameters'!$G$34*LN(GY5)/C5+'Equations - Parameters'!$H$34*LN(Inputs!$H$13)),0)) -> 0 | IS5: =+IF($C5="","",IF(GZ5<>0,EXP('Equations - Parameters'!$D$34+'Equations - Parameters'!$E$34*LN(HO5)+'Equations - Parameters'!$F$34*LN(GZ5)+'Equations - Parameters'!$G$34*LN(GZ5)/C5+'Equations - Parameters'!$H$34*LN(Inputs!$H$13)),0)) -> 0 | IT5: =+IF($C5="","",0) -> 0 | IU5: 0 | IV5: 0 | IW5: 0 | IX5: 0 | IY5: 0 | IZ5: 0 | JA5: 0 | JB5: 0 | JC5: 0 | JD5: 0 | JE5: 0 | JF5: 0 | JG5: 0 | JH5: 0 | JI5: =+IF($C5="","",IF(C5<2,0,GB5*EXP(('Equations - Parameters'!$D$47*('Equations - Parameters'!$I$153/FR5)^'Equations - Parameters'!$E$47)+('Equations - Parameters'!$F$47*(FH5^'Equations - Parameters'!$G$47)*('Equations - Parameters'!$J$153/FR5)^'Equations - Parameters'!$H$47)))) -> 0 | JJ5: =+IF($C5="","",IF(C5<2,0,GB5*EXP('Equations - Parameters'!$D$47*('Equations - Parameters'!$I$154/FR5)^'Equations - Parameters'!$E$47+'Equations - Parameters'!$F$47*(FH5^'Equations - Parameters'!$G$47)*('Equations - Parameters'!$J$154/FR5)^'Equations - Parameters'!$H$47)-JI5)) -> 0 | JK5: =+IF($C5="","",IF(C5<2,0,GB5*EXP('Equations - Parameters'!$D$47*('Equations - Parameters'!$I$155/FR5)^'Equations - Parameters'!$E$47+'Equations - Parameters'!$F$47*(FH5^'Equations - Parameters'!$G$47)*('Equations - Parameters'!$J$155/FR5)^'Equations - Parameters'!$H$47)-JJ5-JI5)) -> 0 | JL5: =+IF($C5="","",IF(GC5=0,0,IF(Inputs!$H$15=FALSE,0,IF(C5<2,0,GC5*EXP(('Equations - Parameters'!$D$47*('Equations - Parameters'!$I$153/FS5)^'Equations - Parameters'!$E$47)+('Equations - Parameters'!$F$47*(FI5^'Equations - Parameters'!$G$47)*('Equations - Parameters'!$J$153/FS5)^'Equations - Parameters'!$H$47)))))) -> 0 | JM5: =+IF($C5="","",IF(GC5=0,0,IF(Inputs!$H$15=FALSE,0,GC5*EXP('Equations - Parameters'!$D$47*('Equations - Parameters'!$I$154/FS5)^'Equations - Parameters'!$E$47+'Equations - Parameters'!$F$47*(FI5^'Equations - Parameters'!$G$47)*('Equations - Parameters'!$J$154/FS5)^'Equations - Parameters'!$H$47)-JL5))) -> 0 | JN5: =+IF($C5="","",IF(GC5=0,0,IF(Inputs!$H$15=FALSE,0,GC5*EXP('Equations - Parameters'!$D$47*('Equations - Parameters'!$I$155/FS5)^'Equations - Parameters'!$E$47+'Equations - Parameters'!$F$47*(FI5^'Equations - Parameters'!$G$47)*('Equations - Parameters'!$J$155/FS5)^'Equations - Parameters'!$H$47)-JM5-JL5))) -> 0 | JO5: =+IF($C5="","",IF(GD5=0,0,IF(Inputs!$H$15=FALSE,0,GD5*EXP(('Equations - Parameters'!$D$47*('Equations - Parameters'!$I$153/FT5)^'Equations - Parameters'!$E$47)+('Equations - Parameters'!$F$47*(FJ5^'Equations - Parameters'!$G$47)*('Equations - Parameters'!$J$153/FT5)^'Equations - Parameters'!$H$47))))) -> 0 | JP5: =+IF($C5="","",IF(GD5=0,0,IF(Inputs!$H$15=FALSE,0,GD5*EXP('Equations - Parameters'!$D$47*('Equations - Parameters'!$I$154/FT5)^'Equations - Parameters'!$E$47+'Equations - Parameters'!$F$47*(FJ5^'Equations - Parameters'!$G$47)*('Equations - Parameters'!$J$154/FT5)^'Equations - Parameters'!$H$47)-JO5))) -> 0 | JQ5: =+IF($C5="","",IF(GD5=0,0,IF(Inputs!$H$15=FALSE,0,GD5*EXP('Equations - Parameters'!$D$47*('Equations - Parameters'!$I$155/FT5)^'Equations - Parameters'!$E$47+'Equations - Parameters'!$F$47*(FJ5^'Equations - Parameters'!$G$47)*('Equations - Parameters'!$J$155/FT5)^'Equations - Parameters'!$H$47)-JP5-JO5))) -> 0 | JR5: =+IF($C5="","",IF(GE5=0,0,IF(Inputs!$H$15=FALSE,0,GE5*EXP(('Equations - Parameters'!$D$47*('Equations - Parameters'!$I$153/FU5)^'Equations - Parameters'!$E$47)+('Equations - Parameters'!$F$47*(FK5^'Equations - Parameters'!$G$47)*('Equations - Parameters'!$J$153/FU5)^'Equations - Parameters'!$H$47))))) -> 0 | JS5: =+IF($C5="","",IF(GE5=0,0,IF(Inputs!$H$15=FALSE,0,GE5*EXP('Equations - Parameters'!$D$47*('Equations - Parameters'!$I$154/FU5)^'Equations - Parameters'!$E$47+'Equations - Parameters'!$F$47*(FK5^'Equations - Parameters'!$G$47)*('Equations - Parameters'!$J$154/FU5)^'Equations - Parameters'!$H$47)-JR5))) -> 0 | JT5: =+IF($C5="","",IF(GE5=0,0,IF(Inputs!$H$15=FALSE,0,GE5*EXP('Equations - Parameters'!$D$47*('Equations - Parameters'!$I$155/FU5)^'Equations - Parameters'!$E$47+'Equations - Parameters'!$F$47*(FK5^'Equations - Parameters'!$G$47)*('Equations - Parameters'!$J$155/FU5)^'Equations - Parameters'!$H$47)-JS5-JR5))) -> 0 | JU5: =+IF($C5="","",IF(GF5=0,0,IF(Inputs!$H$15=FALSE,0,GF5*EXP(('Equations - Parameters'!$D$47*('Equations - Parameters'!$I$153/FV5)^'Equations - Parameters'!$E$47)+('Equations - Parameters'!$F$47*(FL5^'Equations - Parameters'!$G$47)*('Equations - Parameters'!$J$153/FV5)^'Equations - Parameters'!$H$47))))) -> 0 | JV5: =+IF($C5="","",IF(GF5=0,0,IF(Inputs!$H$15=FALSE,0,GF5*EXP('Equations - Parameters'!$D$47*('Equations - Parameters'!$I$154/FV5)^'Equations - Parameters'!$E$47+'Equations - Parameters'!$F$47*(FL5^'Equations - Parameters'!$G$47)*('Equations - Parameters'!$J$154/FV5)^'Equations - Parameters'!$H$47)-JU5))) -> 0 | JW5: =+IF($C5="","",IF(GF5=0,0,IF(Inputs!$H$15=FALSE,0,GF5*EXP('Equations - Parameters'!$D$47*('Equations - Parameters'!$I$155/FV5)^'Equations - Parameters'!$E$47+'Equations - Parameters'!$F$47*(FL5^'Equations - Parameters'!$G$47)*('Equations - Parameters'!$J$155/FV5)^'Equations - Parameters'!$H$47)-JV5-JU5))) -> 0 | JX5: =+IF($C5="","",IF(HZ5=0,0,HZ5*EXP('Equations - Parameters'!$D$47*('Equations - Parameters'!$I$153/JD5)^'Equations - Parameters'!$E$47+'Equations - Parameters'!$F$47*HK5^'Equations - Parameters'!$G$47*('Equations - Parameters'!$J$153/JD5)^'Equations - Parameters'!$H$47))) -> 0 | JY5: =+IF($C5="","",IF(HZ5=0,0,HZ5*EXP('Equations - Parameters'!$D$47*('Equations - Parameters'!$I$154/JD5)^'Equations - Parameters'!$E$47+'Equations - Parameters'!$F$47*HK5^'Equations - Parameters'!$G$47*('Equations - Parameters'!$J$154/JD5)^'Equations - Parameters'!$H$47)-JX5)) -> 0 | JZ5: =+IF($C5="","",IF(HZ5=0,0,HZ5*EXP('Equations - Parameters'!$D$47*('Equations - Parameters'!$I$155/JD5)^'Equations - Parameters'!$E$47+'Equations - Parameters'!$F$47*HK5^'Equations - Parameters'!$G$47*('Equations - Parameters'!$J$155/JD5)^'Equations - Parameters'!$H$47)-JY5-JX5)) -> 0 | KA5: =+IF($C5="","",IF(IA5=0,0,IA5*EXP('Equations - Parameters'!$D$47*('Equations - Parameters'!$I$153/JE5)^'Equations - Parameters'!$E$47+'Equations - Parameters'!$F$47*HL5^'Equations - Parameters'!$G$47*('Equations - Parameters'!$J$153/JE5)^'Equations - Parameters'!$H$47))) -> 0 | KB5: =+IF($C5="","",IF(IA5=0,0,IA5*EXP('Equations - Parameters'!$D$47*('Equations - Parameters'!$I$154/JE5)^'Equations - Parameters'!$E$47+'Equations - Parameters'!$F$47*HL5^'Equations - Parameters'!$G$47*('Equations - Parameters'!$J$154/JE5)^'Equations - Parameters'!$H$47)-KA5)) -> 0 | KC5: =+IF($C5="","",IF(IA5=0,0,IA5*EXP('Equations - Parameters'!$D$47*('Equations - Parameters'!$I$155/JE5)^'Equations - Parameters'!$E$47+'Equations - Parameters'!$F$47*HL5^'Equations - Parameters'!$G$47*('Equations - Parameters'!$J$155/JE5)^'Equations - Parameters'!$H$47)-KB5-KA5)) -> 0 | KD5: =+IF($C5="","",IF(IB5=0,0,IB5*EXP('Equations - Parameters'!$D$47*('Equations - Parameters'!$I$153/JF5)^'Equations - Parameters'!$E$47+'Equations - Parameters'!$F$47*HM5^'Equations - Parameters'!$G$47*('Equations - Parameters'!$J$153/JF5)^'Equations - Parameters'!$H$47))) -> 0 | KE5: =+IF($C5="","",IF(IB5=0,0,IB5*EXP('Equations - Parameters'!$D$47*('Equations - Parameters'!$I$154/JF5)^'Equations - Parameters'!$E$47+'Equations - Parameters'!$F$47*HM5^'Equations - Parameters'!$G$47*('Equations - Parameters'!$J$154/JF5)^'Equations - Parameters'!$H$47)-KD5)) -> 0 | KF5: =+IF($C5="","",IF(IB5=0,0,IB5*EXP('Equations - Parameters'!$D$47*('Equations - Parameters'!$I$155/JF5)^'Equations - Parameters'!$E$47+'Equations - Parameters'!$F$47*HM5^'Equations - Parameters'!$G$47*('Equations - Parameters'!$J$155/JF5)^'Equations - Parameters'!$H$47)-KE5-KD5)) -> 0 | KG5: =+IF($C5="","",IF(IC5=0,0,IC5*EXP('Equations - Parameters'!$D$47*('Equations - Parameters'!$I$153/JG5)^'Equations - Parameters'!$E$47+'Equations - Parameters'!$F$47*HN5^'Equations - Parameters'!$G$47*('Equations - Parameters'!$J$153/JG5)^'Equations - Parameters'!$H$47))) -> 0 | KH5: =+IF($C5="","",IF(IC5=0,0,IC5*EXP('Equations - Parameters'!$D$47*('Equations - Parameters'!$I$154/JG5)^'Equations - Parameters'!$E$47+'Equations - Parameters'!$F$47*HN5^'Equations - Parameters'!$G$47*('Equations - Parameters'!$J$154/JG5)^'Equations - Parameters'!$H$47)-KG5)) -> 0 | KI5: =+IF($C5="","",IF(IC5=0,0,IC5*EXP('Equations - Parameters'!$D$47*('Equations - Parameters'!$I$155/JG5)^'Equations - Parameters'!$E$47+'Equations - Parameters'!$F$47*HN5^'Equations - Parameters'!$G$47*('Equations - Parameters'!$J$155/JG5)^'Equations - Parameters'!$H$47)-KH5-KG5)) -> 0 | KJ5: =+IF($C5="","",IF(ID5=0,0,ID5*EXP('Equations - Parameters'!$D$47*('Equations - Parameters'!$I$153/JH5)^'Equations - Parameters'!$E$47+'Equations - Parameters'!$F$47*HO5^'Equations - Parameters'!$G$47*('Equations - Parameters'!$J$153/JH5)^'Equations - Parameters'!$H$47))) -> 0 | KK5: =+IF($C5="","",IF(ID5=0,0,ID5*EXP('Equations - Parameters'!$D$47*('Equations - Parameters'!$I$154/JH5)^'Equations - Parameters'!$E$47+'Equations - Parameters'!$F$47*HO5^'Equations - Parameters'!$G$47*('Equations - Parameters'!$J$154/JH5)^'Equations - Parameters'!$H$47)-KJ5)) -> 0 | KL5: =+IF($C5="","",IF(ID5=0,0,ID5*EXP('Equations - Parameters'!$D$47*('Equations - Parameters'!$I$155/JH5)^'Equations - Parameters'!$E$47+'Equations - Parameters'!$F$47*HO5^'Equations - Parameters'!$G$47*('Equations - Parameters'!$J$155/JH5)^'Equations - Parameters'!$H$47)-KK5-KJ5)) -> 0 | KM5: =+IF($C5="","",IF(C5<2,0,GG5*EXP(('Equations - Parameters'!$D$48*('Equations - Parameters'!$I$153/FR5)^'Equations - Parameters'!$E$48)+('Equations - Parameters'!$F$48*(FH5^'Equations - Parameters'!$G$48)*('Equations - Parameters'!$J$153/FR5)^'Equations - Parameters'!$H$48)))) -> 0 | KN5: =+IF($C5="","",IF(C5<2,0,GG5*EXP('Equations - Parameters'!$D$48*('Equations - Parameters'!$I$154/FR5)^'Equations - Parameters'!$E$48+'Equations - Parameters'!$F$48*(FH5^'Equations - Parameters'!$G$48)*('Equations - Parameters'!$J$154/FR5)^'Equations - Parameters'!$H$48)-KM5)) -> 0 | KO5: =+IF($C5="","",IF(C5<2,0,GG5*EXP('Equations - Parameters'!$D$48*('Equations - Parameters'!$I$155/FR5)^'Equations - Parameters'!$E$48+'Equations - Parameters'!$F$48*(FH5^'Equations - Parameters'!$G$48)*('Equations - Parameters'!$J$155/FR5)^'Equations - Parameters'!$H$48)-KN5-KM5)) -> 0 | KP5: =+IF($C5="","",IF(GH5=0,0,IF(C5<2,0,GH5*EXP(('Equations - Parameters'!$D$48*('Equations - Parameters'!$I$153/FS5)^'Equations - Parameters'!$E$48)+('Equations - Parameters'!$F$48*(FI5^'Equations - Parameters'!$G$48)*('Equations - Parameters'!$J$153/FS5)^'Equations - Parameters'!$H$48))))) -> 0 | KQ5: =+IF($C5="","",IF(GH5=0,0,IF(C5<2,0,GH5*EXP('Equations - Parameters'!$D$48*('Equations - Parameters'!$I$154/FS5)^'Equations - Parameters'!$E$48+'Equations - Parameters'!$F$48*(FI5^'Equations - Parameters'!$G$48)*('Equations - Parameters'!$J$154/FS5)^'Equations - Parameters'!$H$48)-KP5))) -> 0 | KR5: =+IF($C5="","",IF(GH5=0,0,IF(C5<2,0,GH5*EXP('Equations - Parameters'!$D$48*('Equations - Parameters'!$I$155/FS5)^'Equations - Parameters'!$E$48+'Equations - Parameters'!$F$48*(FI5^'Equations - Parameters'!$G$48)*('Equations - Parameters'!$J$155/FS5)^'Equations - Parameters'!$H$48)-KQ5-KP5))) -> 0 | KS5: =+IF($C5="","",IF(GI5=0,0,IF(C5<2,0,GI5*EXP(('Equations - Parameters'!$D$48*('Equations - Parameters'!$I$153/FT5)^'Equations - Parameters'!$E$48)+('Equations - Parameters'!$F$48*(FJ5^'Equations - Parameters'!$G$48)*('Equations - Parameters'!$J$153/FT5)^'Equations - Parameters'!$H$48))))) -> 0 | KT5: =+IF($C5="","",IF(GI5=0,0,IF(C5<2,0,GI5*EXP('Equations - Parameters'!$D$48*('Equations - Parameters'!$I$154/FT5)^'Equations - Parameters'!$E$48+'Equations - Parameters'!$F$47*(FJ5^'Equations - Parameters'!$G$48)*('Equations - Parameters'!$J$154/FT5)^'Equations - Parameters'!$H$48)-KS5))) -> 0 | KU5: =+IF($C5="","",IF(GI5=0,0,IF(C5<2,0,GI5*EXP('Equations - Parameters'!$D$48*('Equations - Parameters'!$I$155/FT5)^'Equations - Parameters'!$E$48+'Equations - Parameters'!$F$47*(FJ5^'Equations - Parameters'!$G$48)*('Equations - Parameters'!$J$155/FT5)^'Equations - Parameters'!$H$48)-KT5-KS5))) -> 0 | KV5: =+IF($C5="","",IF(GJ5=0,0,IF(C5<2,0,IF(C5<2,0,GJ5*EXP(('Equations - Parameters'!$D$48*('Equations - Parameters'!$I$153/FU5)^'Equations - Parameters'!$E$48)+('Equations - Parameters'!$F$48*(FK5^'Equations - Parameters'!$G$48)*('Equations - Parameters'!$J$153/FU5)^'Equations - Parameters'!$H$48)))))) -> 0 | KW5: =+IF($C5="","",IF(GJ5=0,0,IF(C5<2,0,GJ5*EXP('Equations - Parameters'!$D$48*('Equations - Parameters'!$I$154/FU5)^'Equations - Parameters'!$E$48+'Equations - Parameters'!$F$47*(FK5^'Equations - Parameters'!$G$48)*('Equations - Parameters'!$J$154/FU5)^'Equations - Parameters'!$H$48)-KV5))) -> 0 | KX5: =+IF($C5="","",IF(GJ5=0,0,IF(C5<2,0,GJ5*EXP('Equations - Parameters'!$D$48*('Equations - Parameters'!$I$155/FU5)^'Equations - Parameters'!$E$48+'Equations - Parameters'!$F$47*(FK5^'Equations - Parameters'!$G$48)*('Equations - Parameters'!$J$155/FU5)^'Equations - Parameters'!$H$48)-KW5-KV5))) -> 0 | KY5: =+IF($C5="","",IF(GK5=0,0,IF(C5<2,0,GK5*EXP(('Equations - Parameters'!$D$48*('Equations - Parameters'!$I$153/FV5)^'Equations - Parameters'!$E$48)+('Equations - Parameters'!$F$48*(FL5^'Equations - Parameters'!$G$48)*('Equations - Parameters'!$J$153/FV5)^'Equations - Parameters'!$H$48))))) -> 0 | KZ5: =+IF($C5="","",IF(GK5=0,0,IF(C5<2,0,GK5*EXP('Equations - Parameters'!$D$48*('Equations - Parameters'!$I$154/FV5)^'Equations - Parameters'!$E$48+'Equations - Parameters'!$F$47*(FL5^'Equations - Parameters'!$G$48)*('Equations - Parameters'!$J$154/FV5)^'Equations - Parameters'!$H$48)-KY5))) -> 0 | LA5: =+IF($C5="","",IF(GK5=0,0,IF(C5<2,0,GK5*EXP('Equations - Parameters'!$D$48*('Equations - Parameters'!$I$155/FV5)^'Equations - Parameters'!$E$48+'Equations - Parameters'!$F$47*(FL5^'Equations - Parameters'!$G$48)*('Equations - Parameters'!$J$155/FV5)^'Equations - Parameters'!$H$48)-KZ5-KY5))) -> 0 | LB5: =+IF($C5="","",IF(IO5=0,0,IO5*EXP('Equations - Parameters'!$D$48*('Equations - Parameters'!$I$153/JD5)^'Equations - Parameters'!$E$48+'Equations - Parameters'!$F$48*HK5^'Equations - Parameters'!$G$48*('Equations - Parameters'!$J$153/JD5)^'Equations - Parameters'!$H$48))) -> 0 | LC5: =+IF($C5="","",IF(IO5=0,0,IO5*EXP('Equations - Parameters'!$D$48*('Equations - Parameters'!$I$154/JD5)^'Equations - Parameters'!$E$48+'Equations - Parameters'!$F$48*HK5^'Equations - Parameters'!$G$48*('Equations - Parameters'!$J$154/JD5)^'Equations - Parameters'!$H$48)-LB5)) -> 0 | LD5: =+IF($C5="","",IF(IO5=0,0,IO5*EXP('Equations - Parameters'!$D$48*('Equations - Parameters'!$I$155/JD5)^'Equations - Parameters'!$E$48+'Equations - Parameters'!$F$48*HK5^'Equations - Parameters'!$G$48*('Equations - Parameters'!$J$155/JD5)^'Equations - Parameters'!$H$48)-LC5-LB5)) -> 0 | LE5: =+IF($C5="","",IF(IP5=0,0,IP5*EXP('Equations - Parameters'!$D$48*('Equations - Parameters'!$I$153/JE5)^'Equations - Parameters'!$E$48+'Equations - Parameters'!$F$48*HL5^'Equations - Parameters'!$G$48*('Equations - Parameters'!$J$153/JE5)^'Equations - Parameters'!$H$48))) -> 0 | LF5: =+IF($C5="","",IF(IP5=0,0,IP5*EXP('Equations - Parameters'!$D$48*('Equations - Parameters'!$I$154/JE5)^'Equations - Parameters'!$E$48+'Equations - Parameters'!$F$48*HL5^'Equations - Parameters'!$G$48*('Equations - Parameters'!$J$154/JE5)^'Equations - Parameters'!$H$48)-LE5)) -> 0 | LG5: =+IF($C5="","",IF(IP5=0,0,IP5*EXP('Equations - Parameters'!$D$48*('Equations - Parameters'!$I$155/JE5)^'Equations - Parameters'!$E$48+'Equations - Parameters'!$F$48*HL5^'Equations - Parameters'!$G$48*('Equations - Parameters'!$J$155/JE5)^'Equations - Parameters'!$H$48)-LF5-LE5)) -> 0 | LH5: =+IF($C5="","",IF(IQ5=0,0,IQ5*EXP('Equations - Parameters'!$D$48*('Equations - Parameters'!$I$153/JF5)^'Equations - Parameters'!$E$48+'Equations - Parameters'!$F$48*HM5^'Equations - Parameters'!$G$48*('Equations - Parameters'!$J$153/JF5)^'Equations - Parameters'!$H$48))) -> 0 | LI5: =+IF($C5="","",IF(IQ5=0,0,IQ5*EXP('Equations - Parameters'!$D$48*('Equations - Parameters'!$I$154/JF5)^'Equations - Parameters'!$E$48+'Equations - Parameters'!$F$48*HM5^'Equations - Parameters'!$G$48*('Equations - Parameters'!$J$154/JF5)^'Equations - Parameters'!$H$48)-LH5)) -> 0 | LJ5: =+IF($C5="","",IF(IQ5=0,0,IQ5*EXP('Equations - Parameters'!$D$48*('Equations - Parameters'!$I$155/JF5)^'Equations - Parameters'!$E$48+'Equations - Parameters'!$F$48*HM5^'Equations - Parameters'!$G$48*('Equations - Parameters'!$J$155/JF5)^'Equations - Parameters'!$H$48)-LI5-LH5)) -> 0 | LK5: =+IF($C5="","",IF(IR5=0,0,IR5*EXP('Equations - Parameters'!$D$48*('Equations - Parameters'!$I$153/JG5)^'Equations - Parameters'!$E$48+'Equations - Parameters'!$F$48*HN5^'Equations - Parameters'!$G$48*('Equations - Parameters'!$J$153/JG5)^'Equations - Parameters'!$H$48))) -> 0 | LL5: =+IF($C5="","",IF(IR5=0,0,IR5*EXP('Equations - Parameters'!$D$48*('Equations - Parameters'!$I$154/JG5)^'Equations - Parameters'!$E$48+'Equations - Parameters'!$F$48*HN5^'Equations - Parameters'!$G$48*('Equations - Parameters'!$J$154/JG5)^'Equations - Parameters'!$H$48)-LK5)) -> 0 | LM5: =+IF($C5="","",IF(IR5=0,0,IR5*EXP('Equations - Parameters'!$D$48*('Equations - Parameters'!$I$155/JG5)^'Equations - Parameters'!$E$48+'Equations - Parameters'!$F$48*HN5^'Equations - Parameters'!$G$48*('Equations - Parameters'!$J$155/JG5)^'Equations - Parameters'!$H$48)-LL5-LK5)) -> 0 | LN5: =+IF($C5="","",IF(IS5=0,0,IS5*EXP('Equations - Parameters'!$D$48*('Equations - Parameters'!$I$153/JH5)^'Equations - Parameters'!$E$48+'Equations - Parameters'!$F$48*HO5^'Equations - Parameters'!$G$48*('Equations - Parameters'!$J$153/JH5)^'Equations - Parameters'!$H$48))) -> 0 | LO5: =+IF($C5="","",IF(IS5=0,0,IS5*EXP('Equations - Parameters'!$D$48*('Equations - Parameters'!$I$154/JH5)^'Equations - Parameters'!$E$48+'Equations - Parameters'!$F$48*HO5^'Equations - Parameters'!$G$48*('Equations - Parameters'!$J$154/JH5)^'Equations - Parameters'!$H$48)-LN5)) -> 0 | LP5: =+IF($C5="","",IF(IS5=0,0,IS5*EXP('Equations - Parameters'!$D$48*('Equations - Parameters'!$I$155/JH5)^'Equations - Parameters'!$E$48+'Equations - Parameters'!$F$48*HO5^'Equations - Parameters'!$G$48*('Equations - Parameters'!$J$155/JH5)^'Equations - Parameters'!$H$48)-LO5-LN5)) -> 0
A6: =+A5+1 -> 2 | B6: =+IF(AND(Inputs!$H$18=FALSE,A6+Inputs!$H$7-1>Inputs!$B$6),"",IF(AND(Inputs!$H$3=TRUE,A6<=Inputs!$B$6),1,IF(AND(Inputs!$H$4=TRUE,A6+Inputs!$H$7<=Inputs!$B$6),1,IF(Inputs!$H$3=TRUE,ROUNDDOWN((A6-1)/(Inputs!$B$6),0)+1,ROUNDDOWN((A6+Inputs!$H$7-1)/(Inputs!$B$6),0)+1)))) -> 1 | C6: =+IF(B6="","",IF(AND(Inputs!$H$18=FALSE,A6+Inputs!$H$7-1>Inputs!$B$6),"",IF(C5=Inputs!$B$6,1,IF(AND(Inputs!$H$3=TRUE,A6=0),0,IF(AND(Inputs!$H$4=TRUE,A6=0),Inputs!$H$7,IF(C5=Inputs!$B$6,0,C5+1)))))) -> 2 | D6: =+IF($C6="","",IF(C6=0,0,IF(Inputs!$H$3=TRUE,Inputs!$H$13*((1-EXP('Equations - Parameters'!$E$15*C6))/(1-EXP('Equations - Parameters'!$E$15*50)))^'Equations - Parameters'!$F$15,Inputs!$J$14*((1-EXP('Equations - Parameters'!$E$15*C6))/(1-EXP('Equations - Parameters'!$E$15*50)))^'Equations - Parameters'!$F$15))) -> 0.9383663625 | E6: =+IF($C6="","",IF($C6=0,0,IF(Inputs!$H$15=TRUE,0,IF(C6=1,Inputs!$H$11*Inputs!$B$11,IF(Inputs!$H$15=TRUE,0,IF(AND(Inputs!$H$3=TRUE,$A6=0),Inputs!$H$11*Inputs!$B$11,IF(AND(Inputs!$H$4=TRUE,$A6=0),Inputs!$J$12,E5*EXP(('Equations - Parameters'!$D$9*D5/100+'Equations - Parameters'!$E$9*H5/'Equations - Parameters'!$I$7)*(C6^'Equations - Parameters'!$F$9-C5^'Equations - Parameters'!$F$9))))))))) -> 1445.548624 | F6: =+IF($C6="","",IF($C6=0,0,IF(Inputs!$H$15=TRUE,0,IF(AND(Inputs!$H$4=TRUE,$C6=Inputs!$H$7),Inputs!$J$13,IF(Inputs!$H$4=TRUE,F5*((E6/E5)^'Equations - Parameters'!$E$21)*((D6/D5)^'Equations - Parameters'!$F$21),EXP('Equations - Parameters'!$D$21+'Equations - Parameters'!$E$21*LN(E6)+'Equations - Parameters'!$F$21*LN(D6))))))) -> 0.2200725147 | G6: 1.392264052 | H6: =+IF(C6="","",IF($C6=0,0,E6*(G6/25.4)^1.605)) -> 13.67564358 | I6: =+IF($C6="","",IF($C6=0,0,IF(Inputs!$H$15=FALSE,0,IF($C6=1,Inputs!$H$11*Inputs!$B$11,IF(Inputs!$H$22=FALSE,0,IF(AND(Inputs!$H$3=TRUE,$A6=0),Inputs!$H$11*Inputs!$B$11,IF(AND(Inputs!$H$4=TRUE,$A6=0),Inputs!$J$12,I5*EXP(('Equations - Parameters'!$D$9*D5/100+'Equations - Parameters'!$E$9*S5/'Equations - Parameters'!$I$7)*($C6^'Equations - Parameters'!$F$9-$C5^'Equations - Parameters'!$F$9))))))))) -> 0 | J6: =+IF(C6="","",IF(Inputs!$H$15=FALSE,0,IF(Inputs!$H$22=FALSE,0,IF(Inputs!$B$27="",0,IF(C6<Inputs!$B$27,I6,IF(C6=Inputs!$B$27,(I6-(Inputs!$C$27*I6)),J5*EXP(('Equations - Parameters'!$D$9*D5/100+'Equations - Parameters'!$E$9*T5/'Equations - Parameters'!$I$7)*(C6^'Equations - Parameters'!$F$9-C5^'Equations - Parameters'!$F$9)))))))) -> 0 | K6: =+IF(C6="","",IF(Inputs!$H$15=FALSE,0,IF(Inputs!$H$22=FALSE,0,IF(Inputs!$B$28="",0,IF(C6<Inputs!$B$28,J6,IF(C6=Inputs!$B$28,(J6-(Inputs!$C$28*J6)),K5*EXP(('Equations - Parameters'!$D$9*D5/100+'Equations - Parameters'!$E$9*U5/'Equations - Parameters'!$I$7)*(C6^'Equations - Parameters'!$F$9-C5^'Equations - Parameters'!$F$9)))))))) -> 0 | L6: =+IF(C6="","",IF(Inputs!$H$15=FALSE,0,IF(Inputs!$H$22=FALSE,0,IF(Inputs!$B$29="",0,IF(C6<Inputs!$B$29,K6,IF(C6=Inputs!$B$29,(K6-(Inputs!$C$29*K6)),L5*EXP(('Equations - Parameters'!$D$9*D5/100+'Equations - Parameters'!$E$9*V5/'Equations - Parameters'!$I$7)*(C6^'Equations - Parameters'!$F$9-C5^'Equations - Parameters'!$F$9)))))))) -> 0 | M6: =+IF(C6="","",IF(Inputs!$H$15=FALSE,0,IF(Inputs!$H$22=FALSE,0,IF(Inputs!$B$30="",0,IF(C6<Inputs!$B$30,L6,IF(C6=Inputs!$B$30,(L6-(Inputs!$C$30*L6)),M5*EXP(('Equations - Parameters'!$D$9*D5/100+'Equations - Parameters'!$E$9*W5/'Equations - Parameters'!$I$7)*(C6^'Equations - Parameters'!$F$9-C5^'Equations - Parameters'!$F$9)))))))) -> 0 | N6: =+IF(C6="","",IF(Inputs!$H$15=FALSE,0,IF(Y6=0,0,200*SQRT(Y6/(I6*PI()))))) -> 0 | O6: =+IF(C6="","",IF(Inputs!$H$15=FALSE,0,IF(AG6=0,0,200*SQRT(AG6/(J6*PI()))))) -> 0 | P6: =+IF(C6="","",IF(Inputs!$H$15=FALSE,0,IF(AJ6=0,0,200*SQRT(AJ6/(K6*PI()))))) -> 0 | Q6: =+IF(C6="","",IF(Inputs!$H$15=FALSE,0,IF(AM6=0,0,200*SQRT(AM6/(L6*PI()))))) -> 0 | R6: =+IF(C6="","",IF(Inputs!$H$15=FALSE,0,IF(AP6=0,0,200*SQRT(AP6/(M6*PI()))))) -> 0 | S6: =+IF(C6="","",IF(Inputs!$H$15=FALSE,0,I6*(N6/25.4)^1.605)) -> 0 | T6: =+IF(C6="","",IF(Inputs!$H$15=FALSE,0,J6*(O6/25.4)^1.605)) -> 0 | U6: =+IF(C6="","",IF(Inputs!$H$15=FALSE,0,K6*(P6/25.4)^1.605)) -> 0 | V6: =+IF(C6="","",IF(Inputs!$H$15=FALSE,0,L6*(Q6/25.4)^1.605)) -> 0 | W6: =+IF(C6="","",IF(Inputs!$H$15=FALSE,0,M6*(R6/25.4)^1.605)) -> 0 | X6: =+IF(C6="","",IF(Inputs!$H$15=FALSE,0,IF(Inputs!$B$27="",0,IF(C6<Inputs!$B$27,0,EXP('Equations - Parameters'!$D$21+'Equations - Parameters'!$E$21*LN(J6)+'Equations - Parameters'!$F$21*LN(D6)))))) -> 0 | Y6: =+IF(C6="","",IF(Inputs!$H$15=FALSE,0,IF($C6=0,0,IF(AND($B6=1,Inputs!$H$4=TRUE,$C6=Inputs!$H$7),Inputs!$J$13,IF(AND($B6=1,Inputs!$H$4=TRUE,$C6<>Inputs!$H$7),Y5*((I6/I5)^('Equations - Parameters'!$E$21))*((D6/D5)^('Equations - Parameters'!$F$21)),EXP('Equations - Parameters'!$D$21+'Equations - Parameters'!$E$21*LN(I6)+'Equations - Parameters'!$F$21*LN(D6))))))) -> 0 | Z6: =+IF(C6="","",IF(Inputs!$H$15=FALSE,0,IF(Inputs!$B$27="",0,IF($C6=Inputs!$B$27,Y6-AS6,0)))) -> 0 | AA6: =+IF(C6="","",IF(Inputs!$H$15=FALSE,0,IF(Inputs!$B$28="",0,IF(C6<Inputs!$B$28,0,EXP('Equations - Parameters'!$D$21+'Equations - Parameters'!$E$21*LN(K6)+'Equations - Parameters'!$F$21*LN(D6)))))) -> 0 | AB6: =+IF(C6="","",IF(Inputs!$H$15=FALSE,0,IF(Inputs!$B$28="",0,IF($C6=Inputs!$B$28,AG6-$AS6,0)))) -> 0 | AC6: =+IF(C6="","",IF(Inputs!$H$15=FALSE,0,IF(Inputs!$B$29="",0,IF($C6<Inputs!$B$29,0,EXP('Equations - Parameters'!$D$21+'Equations - Parameters'!$E$21*LN(L6)+'Equations - Parameters'!$F$21*LN(D6)))))) -> 0 | AD6: =+IF(C6="","",IF(Inputs!$H$15=FALSE,0,IF(Inputs!$B$29="",0,IF($C6=Inputs!$B$29,AJ6-$AS6,0)))) -> 0 | AE6: =+IF(C6="","",IF(Inputs!$H$15=FALSE,0,IF(Inputs!$B$30="",0,IF($C6<Inputs!$B$30,0,EXP('Equations - Parameters'!$D$21+'Equations - Parameters'!$E$21*LN(M6)+'Equations - Parameters'!$F$21*LN(D6)))))) -> 0 | AF6: =+IF(C6="","",IF(Inputs!$H$15=FALSE,0,IF(Inputs!$B$30="",0,IF($C6=Inputs!$B$30,AM6-$AS6,0)))) -> 0 | AG6: =+IF(C6="","",IF(Inputs!$B$27="",0,IF(Inputs!$H$15=FALSE,0,IF($C6<Inputs!$B$27,Y6,IF(C6=Inputs!$B$27,AS6,X6*(1-AI6)))))) -> 0 | AH6: =+IF(C6="","",IF(Inputs!$H$15=FALSE,0,IF(SUM($Z$4:$Z$504)>0,1,0))) -> 0 | AI6: =+IF(C6="","",IF(Inputs!$H$15=FALSE,0,IF(Inputs!$B$27="",0,IF(C6<Inputs!$B$27,0,IF(C6=Inputs!$B$27,1-(AG6/X6),AI5*EXP(('Equations - Parameters'!$E$27/C6)*(C6-C5))))))) -> 0 | AJ6: =+IF(C6="","",IF(Inputs!$H$15=FALSE,0,IF(Inputs!$B$28="",0,IF($C6<Inputs!$B$28,AG6,IF($C6=Inputs!$B$28,AS6,AA6*(1-AL6)))))) -> 0 | AK6: =+IF(C6="","",IF(Inputs!$H$15=FALSE,0,IF(SUM($AB$4:$AB$504)>0,1,0))) -> 0 | AL6: =+IF(C6="","",IF(Inputs!$H$15=FALSE,0,IF(Inputs!$B$28="",0,IF($C6<Inputs!$B$28,0,IF($C6=Inputs!$B$28,1-(AJ6/AA6),AL5*EXP(('Equations - Parameters'!$E$27/C6)*($C6-$C5))))))) -> 0 | AM6: =+IF(C6="","",IF(Inputs!$H$15=FALSE,0,IF(Inputs!$B$29="",0,IF($C6<Inputs!$B$29,AJ6,IF($C6=Inputs!$B$29,AS6,AC6*(1-AO6)))))) -> 0 | AN6: =+IF(C6="","",IF(Inputs!$H$15=FALSE,0,IF(SUM($AD$4:$AD$504)>0,1,0))) -> 0 | AO6: =+IF(C6="","",IF(Inputs!$H$15=FALSE,0,IF(Inputs!$B$29="",0,IF($C6<Inputs!$B$29,0,IF($C6=Inputs!$B$29,1-(AM6/AC6),AO5*EXP(('Equations - Parameters'!$E$27/C6)*($C6-$C5))))))) -> 0 | AP6: =+IF(C6="","",IF(Inputs!$H$15=FALSE,0,IF(Inputs!$B$30="",0,IF($C6<Inputs!$B$30,AM6,IF($C6=Inputs!$B$30,AS6,AE6*(1-AR6)))))) -> 0 | AQ6: =+IF(C6="","",IF(Inputs!$H$15=FALSE,0,IF(SUM($AF$4:$AF$504)>0,1,0))) -> 0 | AR6: =+IF(C6="","",IF(Inputs!$H$15=FALSE,0,IF(Inputs!$B$30="",0,IF($C6<Inputs!$B$30,0,IF($C6=Inputs!$B$30,1-(AP6/AE6),AR5*EXP(('Equations - Parameters'!$E$27/C6)*($C6-$C5))))))) -> 0 | AS6: =+IF(C6="","",IF(Inputs!$H$15=FALSE,0,IF(C6=Inputs!$B$27,Y6*(1-Inputs!$C$27),IF(C6=Inputs!$B$28,AG6*(1-Inputs!$C$28),IF(C6=Inputs!$B$29,AJ6*(1-Inputs!$C$29),IF(C6=Inputs!$B$30,AM6*(1-Inputs!$C$30),0)))))) -> 0 | AT6: =+IF($C6="","",IF($C6=0,0,IF(Inputs!$H$15=FALSE,0,IF(C6=1,Inputs!$H$11*Inputs!$B$11,IF(Inputs!$H$23=FALSE,0,IF(AND(Inputs!$H$3=TRUE,$A6=0),Inputs!$H$11*Inputs!$B$11,IF(AND(Inputs!$H$4=TRUE,$A6=0),Inputs!$J$12,AT5*EXP(('Equations - Parameters'!$D$9*D5/100+'Equations - Parameters'!$E$9*BN5/'Equations - Parameters'!$I$7)*(C6^'Equations - Parameters'!$F$9-C5^'Equations - Parameters'!$F$9))))))))) -> 0 | AU6: =+IF(C6="","",IF(Inputs!$H$15=FALSE,0,IF(BW6=0,AT6,IF(BX6<>0,AT6*(1-BX6/BT6),AU5*EXP(('Equations - Parameters'!$D$9*D5/100+'Equations - Parameters'!$E$9*BO5/'Equations - Parameters'!$I$7)*(C6^'Equations - Parameters'!$F$9-C5^'Equations - Parameters'!$F$9)))))) -> 0 | AV6: =+IF(C6="","",IF(Inputs!$H$15=FALSE,0,IF(CD6=0,AU6,IF(CE6<>0,AU6*(1-CE6/BU6),AV5*EXP(('Equations - Parameters'!$D$9*D5/100+'Equations - Parameters'!$E$9*BP5/'Equations - Parameters'!$I$7)*(C6^'Equations - Parameters'!$F$9-C5^'Equations - Parameters'!$F$9)))))) -> 0 | AW6: =+IF(C6="","",IF(Inputs!$H$15=FALSE,0,IF(CK6=0,AV6,IF(CL6<>0,AV6*(1-CL6/CB6),AW5*EXP(('Equations - Parameters'!$D$9*D5/100+'Equations - Parameters'!$E$9*BQ5/'Equations - Parameters'!$I$7)*(C6^'Equations - Parameters'!$F$9-C5^'Equations - Parameters'!$F$9)))))) -> 0 | AX6: =+IF(C6="","",IF(Inputs!$H$15=FALSE,0,IF(CR6=0,AW6,IF(CS6<>0,AW6*(1-CS6/CI6),AX5*EXP(('Equations - Parameters'!$D$9*D5/100+'Equations - Parameters'!$E$9*BR5/'Equations - Parameters'!$I$7)*(C6^'Equations - Parameters'!$F$9-C5^'Equations - Parameters'!$F$9)))))) -> 0 | AY6: =+IF(C6="","",IF(Inputs!$H$15=FALSE,0,AT6)) -> 0 | AZ6: =+IF(C6="","",IF(Inputs!$H$15=FALSE,0,IF(BV6=1,AU6,0))) -> 0 | BA6: =+IF(C6="","",IF(Inputs!$H$15=FALSE,0,IF(CC6=1,AV6,0))) -> 0 | BB6: =+IF(C6="","",IF(Inputs!$H$15=FALSE,0,IF(CJ6=1,AW6,0))) -> 0 | BC6: =+IF(C6="","",IF(Inputs!$H$15=FALSE,0,IF(CQ6=1,AX6,0))) -> 0 | BD6: =+IF(C6="","",IF(Inputs!$H$15=FALSE,0,BT6)) -> 0 | BE6: =+IF(C6="","",IF(Inputs!$H$15=FALSE,0,IF(BV6=1,BU6,0))) -> 0 | BF6: =+IF(C6="","",IF(Inputs!$H$15=FALSE,0,IF(CC6=1,CB6,0))) -> 0 | BG6: =+IF(C6="","",IF(Inputs!$H$15=FALSE,0,IF(CJ6=1,CI6,0))) -> 0 | BH6: =+IF(C6="","",IF(Inputs!$H$15=FALSE,0,IF(CQ6=1,CP6,0))) -> 0 | BI6: =+IF(C6="","",IF(Inputs!$H$15=FALSE,0,IF(BD6=0,0,200*SQRT(BD6/(AY6*PI()))))) -> 0 | BJ6: =+IF(C6="","",IF(Inputs!$H$15=FALSE,0,IF(AZ6=0,0,200*SQRT(BE6/(AZ6*PI()))))) -> 0 | BK6: =+IF(C6="","",IF(Inputs!$H$15=FALSE,0,IF(BA6=0,0,200*SQRT(BF6/(BA6*PI()))))) -> 0 | BL6: =+IF(C6="","",IF(Inputs!$H$15=FALSE,0,IF(BB6=0,0,200*SQRT(BG6/(BB6*PI()))))) -> 0 | BM6: =+IF(C6="","",IF(Inputs!$H$15=FALSE,0,IF(BC6=0,0,200*SQRT(BH6/(BC6*PI()))))) -> 0 | BN6: =+IF(C6="","",IF(Inputs!$H$15=FALSE,0,AY6*(BI6/25.4)^1.605)) -> 0 | BO6: =+IF(C6="","",IF(Inputs!$H$15=FALSE,0,AZ6*(BJ6/25.4)^1.605)) -> 0 | BP6: =+IF(C6="","",IF(Inputs!$H$15=FALSE,0,BA6*(BK6/25.4)^1.605)) -> 0 | BQ6: =+IF(C6="","",IF(Inputs!$H$15=FALSE,0,BB6*(BL6/25.4)^1.605)) -> 0 | BR6: =+IF(C6="","",IF(Inputs!$H$15=FALSE,0,BC6*(BM6/25.4)^1.605)) -> 0 | BS6: =+IF(C6="","",IF(Inputs!$H$15=FALSE,0,IF(BW6=0,0,EXP('Equations - Parameters'!$D$21+'Equations - Parameters'!$E$21*LN(AU6)+'Equations - Parameters'!$F$21*LN($D6))))) -> 0 | BT6: =+IF(C6="","",IF(Inputs!$H$15=FALSE,0,IF(C6=0,0,IF(AND(Inputs!$B$4=TRUE,$C6=Inputs!$H$7),Inputs!$J$13,IF(AND(Inputs!$H$23=TRUE,$C6<>Inputs!$H$7),BT5*((AT6/AT5)^('Equations - Parameters'!$E$21))*((D6/D5)^('Equations - Parameters'!$F$21)),EXP('Equations - Parameters'!$D$21+'Equations - Parameters'!$E$21*LN(AT6)+'Equations - Parameters'!$F$21*LN(D6))))))) -> 0 | BU6: =+IF(C6="","",IF(Inputs!$H$15=FALSE,0,IF(BW6=0,BT6,IF((BW6-BW5)>0,BW6,BS6*(1-BZ6))))) -> 0 | BV6: =+IF(C6="","",IF(Inputs!$H$15=FALSE,0,IF(SUM($BX$4:$BX$504)>0,1,0))) -> 0 | BW6: =+IF(C6="","",IF(Inputs!$H$15=FALSE,0,IF(BT6>Inputs!$H$34,Inputs!$I$34,0))) -> 0 | BX6: =+IF(C6="","",IF(C6=Inputs!$H$7,0,IF(Inputs!$H$15=FALSE,0,IF((BW6-BW5)=0,0,BT6-BW6)))) -> 0 | BY6: =+IF(C6="","",IF(C6=Inputs!$H$7,0,IF((BW6-BW5)=0,0,$C6))) -> 0 | BZ6: =+IF(C6="","",IF(Inputs!$H$15=FALSE,0,IF(BW6=0,0,IF(BX6<>0,1-(BU6/BS6),BZ5*EXP(('Equations - Parameters'!$E$27/C6)*($C6-$C5)))))) -> 0 | CA6: =+IF($C6="","",IF($C6=1,0,IF(Inputs!$H$15=FALSE,0,IF(CD6=0,0,EXP('Equations - Parameters'!$D$21+'Equations - Parameters'!$E$21*LN(AV6)+'Equations - Parameters'!$F$21*LN(D6)))))) -> 0 | CB6: =+IF(C6="","",IF(Inputs!$H$15=FALSE,0,IF(CD6=0,BU6,IF((CD6-CD5)>0,CD6,CA6*(1-CG6))))) -> 0 | CC6: =+IF(C6="","",IF(Inputs!$H$15=FALSE,0,IF(SUM($CE$4:$CE$504)>0,1,0))) -> 0 | CD6: =+IF(C6="","",IF(Inputs!$H$15=FALSE,0,IF(C6=0,0,IF(C6=1,0,IF(BU6>Inputs!$H$34,Inputs!$I$34,IF(CD5>0,Inputs!$I$34,0)))))) -> 0 | CE6: =+IF(C6="","",IF(C6=1,0,IF(Inputs!$H$15=FALSE,0,IF((CD6-CD5)=0,0,BU6-CD6)))) -> 0 | CF6: 0 | CG6: =+IF($C6="","",IF($C6=1,0,IF(Inputs!$H$15=FALSE,0,IF(CD6=0,0,IF(CE6<>0,1-(CB6/CA6),CG5*EXP(('Equations - Parameters'!$E$27/C6)*($C6-$C5))))))) -> 0 | CH6: =+IF(C6="","",IF(Inputs!$H$15=FALSE,0,IF(CK6=0,0,EXP('Equations - Parameters'!$D$21+'Equations - Parameters'!$E$21*LN(AW6)+'Equations - Parameters'!$F$21*LN(D6))))) -> 0 | CI6: =+IF(C6="","",IF(Inputs!$H$15=FALSE,0,IF(CK6=0,CB6,IF((CK6-CK5)>0,CK6,CH6*(1-CN6))))) -> 0 | CJ6: =+IF(C6="","",IF(Inputs!$H$15=FALSE,0,IF(SUM($CL$4:$CL$504)>0,1,0))) -> 0 | CK6: =+IF(C6="","",IF(C6=1,0,IF(Inputs!$H$15=FALSE,0,IF(C6=0,0,IF(CB6>Inputs!$H$34,Inputs!$I$34,IF(CK5>0,Inputs!$I$34,0)))))) -> 0 | CL6: =+IF(C6="","",IF(C6=1,0,IF(Inputs!$H$15=FALSE,0,IF((CK6-CK5)=0,0,CB6-CK6)))) -> 0 | CM6: 0 | CN6: =+IF($C6="","",IF($C6=1,0,IF(Inputs!$H$15=FALSE,0,IF(CK6=0,0,IF(CL6<>0,1-(CI6/CH6),CN5*EXP('Equations - Parameters'!$E$27/C6)*($C6-$C5)))))) -> 0 | CO6: =+IF($C6="","",IF($C6=1,0,IF(Inputs!$H$15=FALSE,0,IF(CR6=0,0,EXP('Equations - Parameters'!$D$21+'Equations - Parameters'!$E$21*LN(AX6)+'Equations - Parameters'!$F$21*LN(D6)))))) -> 0 | CP6: =+IF($C6="","",IF($C6=1,0,IF(Inputs!$H$15=FALSE,0,IF(CR6=0,CI6,IF((CR6-CR5)>0,CR6,CO6*(1-CU6)))))) -> 0 | CQ6: =+IF(C6="","",IF(Inputs!$H$15=FALSE,0,IF(SUM($CS$4:$CS$504)>0,1,0))) -> 0 | CR6: =+IF($C6="","",IF($C6=1,0,IF(Inputs!$H$15=FALSE,0,IF(C6=0,0,IF(CI6>Inputs!$H$34,Inputs!$I$34,IF(CR5>0,Inputs!$I$34,0)))))) -> 0 | CS6: =+IF($C6="","",IF($C6=1,0,IF(Inputs!$H$15=FALSE,0,IF((CR6-CR5)=0,0,CI6-CR6)))) -> 0 | CT6: 0 | CU6: =+IF($C6="","",IF($C6=1,0,IF(Inputs!$H$15=FALSE,0,IF(CR6=0,0,IF(CS6<>0,1-(CP6/CO6),CU5*EXP('Equations - Parameters'!$E$27/D6)*($C6-$C5)))))) -> 0 | CV6: =+IF($C6="","",IF($C6=0,0,IF(Inputs!$H$15=FALSE,0,IF(C6=1,Inputs!$H$11*Inputs!$B$11,IF(Inputs!$H$24=FALSE,0,IF(AND(Inputs!$H$3=TRUE,$A6=0),Inputs!$H$11*Inputs!$B$11,IF(AND(Inputs!$H$4=TRUE,$A6=0),Inputs!$J$12,CV5*EXP(('Equations - Parameters'!$D$9*D5/100+'Equations - Parameters'!$E$9*DN5/'Equations - Parameters'!$I$7)*(C6^'Equations - Parameters'!$F$9-C5^'Equations - Parameters'!$F$9))))))))) -> 0 | CW6: =+IF($C6="","",IF($C6=0,0,IF(Inputs!$H$15=FALSE,0,IF(C6=1,Inputs!$H$11*Inputs!$B$11,IF(DS6=0,CV6,IF(DT6<>0,CV6*(DS6/DN6),CW5*EXP(('Equations - Parameters'!$D$9*D5/100+'Equations - Parameters'!$E$9*DQ5/'Equations - Parameters'!$I$7)*(C6^'Equations - Parameters'!$F$9-C5^'Equations - Parameters'!$F$9)))))))) -> 0 | CX6: =+IF($C6="","",IF($C6=0,0,IF(Inputs!$H$15=FALSE,0,IF(C6=1,Inputs!$H$11*Inputs!$B$11,IF(ED6=0,CW6,IF(EE6<>0,CW6*(ED6/DQ6),CX5*EXP(('Equations - Parameters'!$D$9*D5/100+'Equations - Parameters'!$E$9*EB5/'Equations - Parameters'!$I$7)*(C6^'Equations - Parameters'!$F$9-C5^'Equations - Parameters'!$F$9)))))))) -> 0 | CY6: =+IF($C6="","",IF($C6=0,0,IF(Inputs!$H$15=FALSE,0,IF(C6=1,Inputs!$H$11*Inputs!$B$11,IF(EO6=0,CX6,IF(EP6<>0,CX6*(EO6/EB6),CY5*EXP(('Equations - Parameters'!$D$9*D5/100+'Equations - Parameters'!$E$9*EM5/'Equations - Parameters'!$I$7)*(C6^'Equations - Parameters'!$F$9-C5^'Equations - Parameters'!$F$9)))))))) -> 0 | CZ6: =+IF($C6="","",IF($C6=0,0,IF(Inputs!$H$15=FALSE,0,IF(C6=1,Inputs!$H$11*Inputs!$B$11,IF(EZ6=0,CY6,IF(FB6<>0,CY6*(EZ6/EM6),CZ5*EXP(('Equations - Parameters'!$D$9*D5/100+'Equations - Parameters'!$E$9*EX5/'Equations - Parameters'!$I$7)*(C6^'Equations - Parameters'!$F$9-C5^'Equations - Parameters'!$F$9)))))))) -> 0 | DA6: =+IF(C6="","",IF(Inputs!$H$15=FALSE,0,CV6)) -> 0 | DB6: =+IF(C6="","",IF(Inputs!$H$15=FALSE,0,IF(DR6=1,CW6,0))) -> 0 | DC6: =+IF(C6="","",IF(Inputs!$H$15=FALSE,0,IF(EC6=1,CX6,0))) -> 0 | DD6: =+IF(C6="","",IF(Inputs!$H$15=FALSE,0,IF(EN6=1,CY6,0))) -> 0 | DE6: =+IF(C6="","",IF(Inputs!$H$15=FALSE,0,IF(EY6=1,CZ6,0))) -> 0 | DF6: =+IF(C6="","",IF(Inputs!$H$15=FALSE,0,DL6)) -> 0 | DG6: =+IF(C6="","",IF(Inputs!$H$15=FALSE,0,IF(DR6=1,DO6,0))) -> 0 | DH6: =+IF(C6="","",IF(Inputs!$H$15=FALSE,0,IF(EC6=1,DZ6,0))) -> 0 | DI6: =+IF(C6="","",IF(Inputs!$H$15=FALSE,0,IF(EN6=1,EK6,0))) -> 0 | DJ6: =+IF(C6="","",IF(Inputs!$H$15=FALSE,0,IF(EY6=1,EV6,0))) -> 0 | DK6: =+IF($C6="","",IF(Inputs!$H$15=FALSE,0,IF(DS6=0,0,EXP('Equations - Parameters'!$D$21+'Equations - Parameters'!$E$21*LN(CW6)+'Equations - Parameters'!$F$21*LN(D6))))) -> 0 | DL6: =+IF($C6="","",IF(Inputs!$H$15=FALSE,0,IF(C6=0,0,IF(AND(Inputs!$H$4=TRUE,$C6=Inputs!$H$7),Inputs!$J$13,IF(AND(Inputs!$H$4=TRUE,$C6<>Inputs!$H$7),DL5*((CV6/CV5)^('Equations - Parameters'!$E$21))*((D6/D5)^('Equations - Parameters'!$F$21)),IF(C6=0,0,EXP('Equations - Parameters'!$D$21+'Equations - Parameters'!$E$21*LN(CV6)+'Equations - Parameters'!$F$21*LN($D6)))))))) -> 0 | DM6: =+IF($C6="","",IF(Inputs!$H$15=FALSE,0,IF($C6=0,0,200*SQRT(DL6/(CV6*PI()))))) -> 0 | DN6: =+IF($C6="","",IF(Inputs!$H$15=FALSE,0,CV6*(DM6/25.4)^1.605)) -> 0 | DO6: =+IF($C6="","",IF(Inputs!$H$15=FALSE,0,IF(DS6=0,DL6,IF((DS6-DS5)>0,DU6,DK6*(1-DX6))))) -> 0 | DP6: =+IF($C6="","",IF(Inputs!$H$15=FALSE,0,IF($C6=0,0,200*SQRT(DO6/(CW6*PI()))))) -> 0 | DQ6: =+IF($C6="","",IF(Inputs!$H$15=FALSE,0,CW6*(DP6/25.4)^1.605)) -> 0 | DR6: =+IF($C6="","",IF(Inputs!$H$15=FALSE,0,IF(SUM($DT$4:$DT$504)>0,1,0))) -> 0 | DS6: =+IF($C6="","",IF(Inputs!$H$15=FALSE,0,IF(C6=0,0,IF(C6=1,0,IF(DN6>Inputs!$H$38,Inputs!$I$38,IF(DS5>0,Inputs!$I$38,0)))))) -> 0 | DT6: =+IF($C6="","",IF(Inputs!$H$15=FALSE,0,IF((DS6-DS5)=0,0,DN6-DS6))) -> 0 | DU6: =+IF($C6="","",IF(Inputs!$H$15=FALSE,0,IF(DT6=0,0,DL6*DS6/DN6))) -> 0 | DV6: =+IF($C6="","",IF(Inputs!$H$15=FALSE,0,IF((DT6)=0,0,DL6-DU6))) -> 0 | DW6: 0 | DX6: =+IF($C6="","",IF($C6=1,0,IF(Inputs!$H$15=FALSE,0,IF(DS6=0,0,IF(DV6<>0,1-(DU6/DK6),DX5*EXP(('Equations - Parameters'!$E$27/$C6)*($C6-$C5))))))) -> 0 | DY6: =+IF($C6="","",IF(Inputs!$H$15=FALSE,0,IF(ED6=0,0,EXP('Equations - Parameters'!$D$21+'Equations - Parameters'!$E$21*LN(CX6)+'Equations - Parameters'!$F$21*LN($D6))))) -> 0 | DZ6: =+IF($C6="","",IF(Inputs!$H$15=FALSE,0,IF(ED6=0,DO6,IF((ED6-ED5)>0,EF6,DY6*(1-EI6))))) -> 0 | EA6: =+IF($C6="","",IF(Inputs!$H$15=FALSE,0,IF($C6=0,0,200*SQRT(DZ6/(CX6*PI()))))) -> 0 | EB6: =+IF($C6="","",IF(Inputs!$H$15=FALSE,0,$CX6*($EA6/25.4)^1.605)) -> 0 | EC6: =+IF($C6="","",IF(Inputs!$H$15=FALSE,0,IF(SUM($EE$4:$EE$504)>0,1,0))) -> 0 | ED6: =+IF($C6="","",IF(Inputs!$H$15=FALSE,0,IF($C6=0,0,IF($C6=1,0,IF(DQ6>Inputs!$H$38,Inputs!$I$38,IF(ED5>0,Inputs!$I$38,0)))))) -> 0 | EE6: =+IF($C6="","",IF($C6=1,0,IF(Inputs!$H$15=FALSE,0,IF((ED6-ED5)=0,0,DQ6-ED6)))) -> 0 | EF6: =+IF($C6="","",IF($C6=1,0,IF(Inputs!$H$15=FALSE,0,IF(EE6=0,0,DO6*ED6/DQ6)))) -> 0 | EG6: =+IF($C6="","",IF($C6=1,0,IF(Inputs!$H$15=FALSE,0,IF((EE6)=0,0,DO6-EF6)))) -> 0 | EH6: 0 | EI6: =+IF($C6="","",IF($C6=1,0,IF(Inputs!$H$15=FALSE,0,IF(ED6=0,0,IF(EG6<>0,1-(EF6/DY6),EI5*EXP(('Equations - Parameters'!$E$27/$C6)*($C6-$C5))))))) -> 0 | EJ6: =+IF($C6="","",IF($C6=1,0,IF(Inputs!$H$15=FALSE,0,IF(EO6=0,0,EXP('Equations - Parameters'!$D$21+'Equations - Parameters'!$E$21*LN(CX6)+'Equations - Parameters'!$F$21*LN($D6)))))) -> 0 | EK6: =+IF($C6="","",IF(Inputs!$H$15=FALSE,0,IF(EO6=0,DZ6,IF((EO6-EO5)>0,EQ6,EJ6*(1-ET6))))) -> 0 | EL6: =+IF($C6="","",IF(Inputs!$H$15=FALSE,0,IF($C6=0,0,200*SQRT(EK6/(CY6*PI()))))) -> 0 | EM6: =+IF($C6="","",IF(Inputs!$H$15=FALSE,0,$CY6*($EL6/25.4)^1.605)) -> 0 | EN6: =+IF($C6="","",IF(Inputs!$H$15=FALSE,0,IF(SUM($EP$4:$EP$504)>0,1,0))) -> 0 | EO6: =+IF($C6="","",IF(Inputs!$H$15=FALSE,0,IF(C6=0,0,IF(C6=1,0,IF(EB6>Inputs!$H$38,Inputs!$I$38,IF(EO5>0,Inputs!$I$38,0)))))) -> 0 | EP6: =+IF($C6="","",IF(C6=1,0,IF(Inputs!$H$15=FALSE,0,IF((EO6-EO5)=0,0,EB6-EO6)))) -> 0 | EQ6: =+IF($C6="","",IF(C6=1,0,IF(Inputs!$H$15=FALSE,0,IF(EP6=0,0,DZ6*EO6/EB6)))) -> 0 | ER6: =+IF($C6="","",IF(C6=1,0,IF(Inputs!$H$15=FALSE,0,IF((EP6)=0,0,DZ6-EQ6)))) -> 0 | ES6: 0 | ET6: =+IF($C6="","",IF(C6=1,0,IF(Inputs!$H$15=FALSE,0,IF(EO6=0,0,IF(ER6<>0,1-(EQ6/EJ6),ET5*EXP(('Equations - Parameters'!$E$27/$C6)*($C6-$C5))))))) -> 0 | EU6: =+IF($C6="","",IF($C6=1,0,IF(Inputs!$H$15=FALSE,0,IF(EZ6=0,0,EXP('Equations - Parameters'!$D$21+'Equations - Parameters'!$E$21*LN(CY6)+'Equations - Parameters'!$F$21*LN($D6)))))) -> 0 | EV6: =+IF($C6="","",IF(Inputs!$H$15=FALSE,0,IF(EZ6=0,EK6,IF((EZ6-EZ5)>0,FB6,EU6*(1-FE6))))) -> 0 | EW6: =+IF($C6="","",IF(Inputs!$H$15=FALSE,0,IF($C6=0,0,200*SQRT(EV6/(CZ6*PI()))))) -> 0 | EX6: =+IF($C6="","",IF(Inputs!$H$15=FALSE,0,$CZ6*($EW6/25.4)^1.605)) -> 0 | EY6: =+IF($C6="","",IF(Inputs!$H$15=FALSE,0,IF(SUM($FA$4:$FA$504)>0,1,0))) -> 0 | EZ6: =+IF($C6="","",IF(Inputs!$H$15=FALSE,0,IF(C6=0,0,IF(C6=1,0,IF(EM6>Inputs!$H$38,Inputs!$I$38,IF(EZ5>0,Inputs!$I$38,0)))))) -> 0 | FA6: =+IF($C6="","",IF(Inputs!$H$15=FALSE,0,IF(C6=0,0,IF(C6=1,0,IF((EZ6-EZ5)=0,0,EM6-EZ6))))) -> 0 | FB6: =+IF($C6="","",IF(Inputs!$H$15=FALSE,0,IF(C6=0,0,IF(C6=1,0,IF(FA6=0,0,EK6*EZ6/EM6))))) -> 0 | FC6: =+IF($C6="","",IF(Inputs!$H$15=FALSE,0,IF(C6=0,0,IF(C6=1,0,IF((FA6)=0,0,EK6-FB6))))) -> 0 | FD6: =+IF($C6="","",IF(Inputs!$H$15=FALSE,0,IF(C6=0,0,IF(C6=1,0,IF((EZ6-EZ5)=0,0,$C6))))) -> 0 | FE6: =+IF($C6="","",IF(Inputs!$H$15=FALSE,0,IF(C6=0,0,IF(C6=1,0,IF(EZ6=0,0,IF(FC6<>0,1-(FB6/EU6),FE5*EXP(('Equations - Parameters'!$E$27/$C6)*($C6-$C5)))))))) -> 0 | FF6: =+IF(AND(Inputs!$H$18=FALSE,A6+Inputs!$H$7-1>Inputs!$B$6),"",IF(C5=Inputs!$B$6,1,IF(AND(Inputs!$H$3=TRUE,A6=0),0,IF(AND(Inputs!$H$4=TRUE,A6=0),Inputs!$H$7,IF(C5=Inputs!$B$6,0,C5+1))))) -> 2 | FG6: =+IF($C6="","",IF(C6=0,0,IF(Inputs!$H$3=TRUE,Inputs!$H$13*((1-EXP('Equations - Parameters'!$E$15*C6))/(1-EXP('Equations - Parameters'!$E$15*50)))^'Equations - Parameters'!$F$15,Inputs!$J$14*((1-EXP('Equations - Parameters'!$E$15*C6))/(1-EXP('Equations - Parameters'!$E$15*50)))^'Equations - Parameters'!$F$15))) -> 0.9383663625 | FH6: =+IF($C6="","",IF(Inputs!$H$15=FALSE,E6,IF(Inputs!$H$22=TRUE,I6,IF(Inputs!$H$23=TRUE,AY6,DA6)))) -> 1445.548624 | FI6: =+IF($C6="","",IF(Inputs!$H$15=FALSE,0,IF(Inputs!$H$22=TRUE,J6,IF(Inputs!$H$23=TRUE,AZ6,DB6)))) -> 0 | FJ6: =+IF($C6="","",IF(Inputs!$H$15=FALSE,0,IF(Inputs!$H$22=TRUE,K6,IF(Inputs!$H$23=TRUE,BA6,DC6)))) -> 0 | FK6: =+IF($C6="","",IF(Inputs!$H$15=FALSE,0,IF(Inputs!$H$22=TRUE,L6,IF(Inputs!$H$23=TRUE,BB6,DD6)))) -> 0 | FL6: =+IF($C6="","",IF(Inputs!$H$15=FALSE,0,IF(Inputs!$H$22=TRUE,M6,IF(Inputs!$H$23=TRUE,BC6,DE6)))) -> 0 | FM6: =+IF($C6="","",IF(Inputs!$H$15=FALSE,F6,IF(Inputs!$H$22=TRUE,Y6,IF(Inputs!$H$23=TRUE,BD6,DF6)))) -> 0.2200725147 | FN6: =+IF($C6="","",IF(Inputs!$H$15=FALSE,0,IF(Inputs!$H$22=TRUE,AG6,IF(Inputs!$H$23=TRUE,BE6,DG6)))) -> 0 | FO6: =+IF($C6="","",IF(Inputs!$H$15=FALSE,0,IF(Inputs!$H$15=FALSE,0,IF(Inputs!$H$22=TRUE,AJ6,IF(Inputs!$H$23=TRUE,BF6,DH6))))) -> 0 | FP6: =+IF($C6="","",IF(Inputs!$H$15=FALSE,0,IF(Inputs!$H$22=TRUE,AM6,IF(Inputs!$H$23=TRUE,BG6,DI6)))) -> 0 | FQ6: =+IF($C6="","",IF(Inputs!$H$15=FALSE,0,IF(Inputs!$H$22=TRUE,AP6,IF(Inputs!$H$23=TRUE,BH6,DJ6)))) -> 0 | FR6: 1.392264052 | FS6: =+IF($C6="","",IF(Inputs!$H$15=FALSE,0,IF(FN6=0,0,200*SQRT(FN6/(FI6*PI()))))) -> 0 | FT6: =+IF($C6="","",IF(Inputs!$H$15=FALSE,0,IF(FO6=0,0,200*SQRT(FO6/(FJ6*PI()))))) -> 0 | FU6: =+IF($C6="","",IF(Inputs!$H$15=FALSE,0,IF(FP6=0,0,200*SQRT(FP6/(FK6*PI()))))) -> 0 | FV6: =+IF($C6="","",IF(Inputs!$H$15=FALSE,0,IF(FQ6=0,0,200*SQRT(FQ6/(FL6*PI()))))) -> 0 | FW6: 13.67564358 | FX6: =+IF($C6="","",IF(Inputs!$H$15=FALSE,0,FI6*(FS6/25.4)^1.605)) -> 0 | FY6: =+IF($C6="","",IF(Inputs!$H$15=FALSE,0,FJ6*(FT6/25.4)^1.605)) -> 0 | FZ6: =+IF($C6="","",IF(Inputs!$H$15=FALSE,0,FK6*(FU6/25.4)^1.605)) -> 0 | GA6: =+IF($C6="","",IF(Inputs!$H$15=FALSE,0,FL6*(FV6/25.4)^1.605)) -> 0 | GB6: =+IF($C6="","",IF(FM6=0,0,IF($C6<3,0,EXP('Equations - Parameters'!$D$33+'Equations - Parameters'!$E$33*LN(FH6)+'Equations - Parameters'!$F$33*LN(FM6)+'Equations - Parameters'!$G$33*LN(FM6)/$C6+'Equations - Parameters'!$H$33*LN(Inputs!$H$13))))) -> 0 | GC6: =+IF($C6="","",IF(Inputs!$H$15=FALSE,0,IF(FN6=0,0,IF($C6<3,0,EXP('Equations - Parameters'!$D$33+'Equations - Parameters'!$E$33*LN(FI6)+'Equations - Parameters'!$F$33*LN(FN6)+'Equations - Parameters'!$G$33*LN(FN6)/$C6+'Equations - Parameters'!$H$33*LN(Inputs!$H$13)))))) -> 0 | GD6: =+IF($C6="","",IF(Inputs!$H$15=FALSE,0,IF(FO6=0,0,IF($C6<3,0,EXP('Equations - Parameters'!$D$33+'Equations - Parameters'!$E$33*LN(FJ6)+'Equations - Parameters'!$F$33*LN(FO6)+'Equations - Parameters'!$G$33*LN(FO6)/$C6+'Equations - Parameters'!$H$33*LN(Inputs!$H$13)))))) -> 0 | GE6: =+IF($C6="","",IF(Inputs!$H$15=FALSE,0,IF(FP6=0,0,IF($C6<3,0,EXP('Equations - Parameters'!$D$33+'Equations - Parameters'!$E$33*LN(FK6)+'Equations - Parameters'!$F$33*LN(FP6)+'Equations - Parameters'!$G$33*LN(FP6)/$C6+'Equations - Parameters'!$H$33*LN(Inputs!$H$13)))))) -> 0 | GF6: =+IF($C6="","",IF(Inputs!$H$15=FALSE,0,IF(FQ6=0,0,IF($C6<3,0,EXP('Equations - Parameters'!$D$33+'Equations - Parameters'!$E$33*LN(FL6)+'Equations - Parameters'!$F$33*LN(FQ6)+'Equations - Parameters'!$G$33*LN(FQ6)/$C6+'Equations - Parameters'!$H$33*LN(Inputs!$H$13)))))) -> 0 | GG6: =+IF($C6="","",IF(FM6=0,0,IF($C6<3,0,EXP('Equations - Parameters'!$D$34+'Equations - Parameters'!$E$34*LN(FH6)+'Equations - Parameters'!$F$34*LN(FM6)+'Equations - Parameters'!$G$34*LN(FM6)/$C6+'Equations - Parameters'!$H$34*LN(Inputs!$H$13))))) -> 0 | GH6: =+IF($C6="","",IF(Inputs!$H$15=FALSE,0,IF(FN6=0,0,IF($C6<3,0,EXP('Equations - Parameters'!$D$34+'Equations - Parameters'!$E$34*LN(FI6)+'Equations - Parameters'!$F$34*LN(FN6)+'Equations - Parameters'!$G$34*LN(FN6)/$C6+'Equations - Parameters'!$H$34*LN(Inputs!$H$13)))))) -> 0 | GI6: =+IF($C6="","",IF(Inputs!$H$15=FALSE,0,IF(FO6=0,0,IF($C6<3,0,EXP('Equations - Parameters'!$D$34+'Equations - Parameters'!$E$34*LN(FJ6)+'Equations - Parameters'!$F$34*LN(FO6)+'Equations - Parameters'!$G$34*LN(FO6)/$C6+'Equations - Parameters'!$H$34*LN(Inputs!$H$13)))))) -> 0 | GJ6: =+IF($C6="","",IF(Inputs!$H$15=FALSE,0,IF(FP6=0,0,IF($C6<3,0,EXP('Equations - Parameters'!$D$34+'Equations - Parameters'!$E$34*LN(FK6)+'Equations - Parameters'!$F$34*LN(FP6)+'Equations - Parameters'!$G$34*LN(FP6)/$C6+'Equations - Parameters'!$H$34*LN(Inputs!$H$13)))))) -> 0 | GK6: =+IF($C6="","",IF(Inputs!$H$15=FALSE,0,IF(FQ6=0,0,IF($C6<3,0,EXP('Equations - Parameters'!$D$34+'Equations - Parameters'!$E$34*LN(FL6)+'Equations - Parameters'!$F$34*LN(FQ6)+'Equations - Parameters'!$G$34*LN(FQ6)/$C6+'Equations - Parameters'!$H$34*LN(Inputs!$H$13)))))) -> 0 | GL6: =+IF($C6="","",0) -> 0 | GM6: =+IF($C6="","",IF(GR6<>0,1,0)) -> 0 | GN6: =+IF($C6="","",IF(GS6<>0,1,0)) -> 0 | GO6: =+IF($C6="","",IF(GT6<>0,1,0)) -> 0 | GP6: =+IF($C6="","",IF(GU6<>0,1,0)) -> 0 | GQ6: 0 | GR6: =+IF($C6="","",IF(Inputs!$H$15=FALSE,0,IF(AND(Inputs!$H$22=TRUE,$C6=Inputs!$B$27),$C6,IF(AND(Inputs!$H$23=TRUE,$C6<>Inputs!$B$6),BY6,IF(AND(Inputs!$H$24=TRUE,$C6<>Inputs!$B$6),DW6,0))))) -> 0 | GS6: =+IF($C6="","",IF(Inputs!$H$15=FALSE,0,IF(AND(Inputs!$H$22=TRUE,$C6=Inputs!$B$28),$C6,IF(AND(Inputs!$H$23=TRUE,$C6<>Inputs!$B$6),CF6,IF(AND(Inputs!$H$24=TRUE,$C6<>Inputs!$B$6),EH6,0))))) -> 0 | GT6: =+IF($C6="","",IF(Inputs!$H$15=FALSE,0,IF(AND(Inputs!$H$22=TRUE,$C6=Inputs!$B$29),$C6,IF(AND(Inputs!$H$23=TRUE,$C6<>Inputs!$B$6),CM6,IF(AND(Inputs!$H$24=TRUE,$C6<>Inputs!$B$6),ES6,0))))) -> 0 | GU6: =+IF($C6="","",IF(Inputs!$H$15=FALSE,0,IF(AND(Inputs!$H$22=TRUE,$C6=Inputs!$B$30),$C6,IF(AND(Inputs!$H$23=TRUE,$C6<>Inputs!$B$6),CT6,IF(AND(Inputs!$H$24=TRUE,$C6<>Inputs!$B$6),FD6,0))))) -> 0 | GV6: =+IF($C6="","",IF(C6=Inputs!$B$6,FM6,0)) -> 0 | GW6: =+IF($C6="","",IF($C6=1,0,IF(FN6=0,0,IF(C6=Inputs!$B$6,FN6,IF(AND(Inputs!$H$22=TRUE,C6<>Inputs!$B$6),Z6,IF(AND(Inputs!$H$23=TRUE,C6<>Inputs!$B$6),BX6,IF(AND(Inputs!$H$24=TRUE,C6<>Inputs!$B$6),DV6,0))))))) -> 0 | GX6: =+IF($C6="","",IF($C6=1,0,IF(FO6=0,0,IF(C6=Inputs!$B$6,FO6,IF(AND(Inputs!$H$22=TRUE,C6<>Inputs!$B$6),GW6+AB6,IF(AND(Inputs!$H$23=TRUE,C6<>Inputs!$B$6),GW6+CE6,IF(AND(Inputs!$H$24=TRUE,C6<>Inputs!$B$6),GW6+EG6,0))))))) -> 0 | GY6: =+IF($C6="","",IF($C6=1,0,IF(FP6=0,0,IF(C6=Inputs!$B$6,FP6,IF(AND(Inputs!$H$22=TRUE,C6<>Inputs!$B$6),GX6+AD6,IF(AND(Inputs!$H$23=TRUE,C6<>Inputs!$B$6),GX6+CL6,IF(AND(Inputs!$H$24=TRUE,C6<>Inputs!$B$6),GX6+ER6,0))))))) -> 0 | GZ6: =+IF($C6="","",IF($C6=1,0,IF(FQ6=0,0,IF(C6=Inputs!$B$6,FQ6,IF(AND(Inputs!$H$22=TRUE,C6<>Inputs!$B$6),GY6+AF6,IF(AND(Inputs!$H$23=TRUE,C6<>Inputs!$B$6),GY6+CS6,IF(AND(Inputs!$H$24=TRUE,C6<>Inputs!$B$6),GY6+FC6,0))))))) -> 0 | HA6: 0 | HB6: 0 | HC6: 0 | HD6: 0 | HE6: 0 | HF6: 0 | HG6: 0 | HH6: =+IF($C6="","",IF(GS6=0,0,HC6-GX6)) -> 0 | HI6: =+IF($C6="","",IF(GT6=0,0,HD6-GY6)) -> 0 | HJ6: =+IF($C6="","",IF(GU6=0,0,HE6-GZ6)) -> 0 | HK6: =+IF($C6="","",IF(C6=Inputs!$B$6,FH6,0)) -> 0 | HL6: =+IF($C6="","",IF(C6=Inputs!$B$6,FI6,IF(GW6=0,0,FH6-FI6))) -> 0 | HM6: =+IF($C6="","",IF(C6=Inputs!$B$6,FJ6,IF(GX6=0,0,HL6+FI6-FJ6))) -> 0 | HN6: =+IF($C6="","",IF(C6=Inputs!$B$6,FK6,IF(GY6=0,0,HM6+FJ6-FK6))) -> 0 | HO6: =+IF($C6="","",IF(C6=Inputs!$B$6,FL6,IF(GZ6=0,0,HN6+FK6-FL6))) -> 0 | HP6: 0 | HQ6: 0 | HR6: 0 | HS6: 0 | HT6: 0 | HU6: 0 | HV6: 0 | HW6: 0 | HX6: 0 | HY6: 0 | HZ6: =+IF($C6="","",IF(C6=Inputs!$B$6,GB6,0)) -> 0 | IA6: =+IF($C6="","",IF(GW6<>0,EXP('Equations - Parameters'!$D$33+'Equations - Parameters'!$E$33*LN(HL6)+'Equations - Parameters'!$F$33*LN(GW6)+'Equations - Parameters'!$G$33*LN(GW6)/C6+'Equations - Parameters'!$H$33*LN(Inputs!$H$13)),0)) -> 0 | IB6: =+IF($C6="","",IF(GX6<>0,EXP('Equations - Parameters'!$D$33+'Equations - Parameters'!$E$33*LN(HM6)+'Equations - Parameters'!$F$33*LN(GX6)+'Equations - Parameters'!$G$33*LN(GX6)/C6+'Equations - Parameters'!$H$33*LN(Inputs!$H$13)),0)) -> 0 | IC6: =+IF($C6="","",IF(GY6<>0,EXP('Equations - Parameters'!$D$33+'Equations - Parameters'!$E$33*LN(HN6)+'Equations - Parameters'!$F$33*LN(GY6)+'Equations - Parameters'!$G$33*LN(GY6)/C6+'Equations - Parameters'!$H$33*LN(Inputs!$H$13)),0)) -> 0 | ID6: =+IF($C6="","",IF(GZ6<>0,EXP('Equations - Parameters'!$D$33+'Equations - Parameters'!$E$33*LN(HO6)+'Equations - Parameters'!$F$33*LN(GZ6)+'Equations - Parameters'!$G$33*LN(GZ6)/C6+'Equations - Parameters'!$H$33*LN(Inputs!$H$13)),0)) -> 0 | IE6: 0 | IF6: 0 | IG6: =+IF($C6="","",IF(GN6=0,0,GC6)) -> 0 | IH6: =+IF($C6="","",IF(GO6=0,0,GD6)) -> 0 | II6: =+IF($C6="","",IF(GP6=0,0,GE6)) -> 0 | IJ6: 0 | IK6: =+IF($C6="","",IF(GM6=0,0,IF6-IA6)) -> 0 | IL6: =+IF($C6="","",IF(GN6=0,0,IG6-IB6)) -> 0 | IM6: =+IF($C6="","",IF(GO6=0,0,IH6-IC6)) -> 0 | IN6: =+IF($C6="","",IF(GP6=0,0,II6-ID6)) -> 0 | IO6: =+IF($C6="","",IF(C6=Inputs!$B$6,GG6,0)) -> 0 | IP6: =+IF($C6="","",IF(GW6<>0,EXP('Equations - Parameters'!$D$34+'Equations - Parameters'!$E$34*LN(HL6)+'Equations - Parameters'!$F$34*LN(GW6)+'Equations - Parameters'!$G$34*LN(GW6)/C6+'Equations - Parameters'!$H$34*LN(Inputs!$H$13)),0)) -> 0 | IQ6: =+IF($C6="","",IF(GX6<>0,EXP('Equations - Parameters'!$D$34+'Equations - Parameters'!$E$34*LN(HM6)+'Equations - Parameters'!$F$34*LN(GX6)+'Equations - Parameters'!$G$34*LN(GX6)/C6+'Equations - Parameters'!$H$34*LN(Inputs!$H$13)),0)) -> 0 | IR6: =+IF($C6="","",IF(GY6<>0,EXP('Equations - Parameters'!$D$34+'Equations - Parameters'!$E$34*LN(HN6)+'Equations - Parameters'!$F$34*LN(GY6)+'Equations - Parameters'!$G$34*LN(GY6)/C6+'Equations - Parameters'!$H$34*LN(Inputs!$H$13)),0)) -> 0 | IS6: =+IF($C6="","",IF(GZ6<>0,EXP('Equations - Parameters'!$D$34+'Equations - Parameters'!$E$34*LN(HO6)+'Equations - Parameters'!$F$34*LN(GZ6)+'Equations - Parameters'!$G$34*LN(GZ6)/C6+'Equations - Parameters'!$H$34*LN(Inputs!$H$13)),0)) -> 0 | IT6: 0 | IU6: 0 | IV6: 0 | IW6: 0 | IX6: 0 | IY6: 0 | IZ6: 0 | JA6: 0 | JB6: 0 | JC6: 0 | JD6: 0 | JE6: 0 | JF6: 0 | JG6: 0 | JH6: 0 | JI6: =+IF($C6="","",IF(C6<2,0,GB6*EXP(('Equations - Parameters'!$D$47*('Equations - Parameters'!$I$153/FR6)^'Equations - Parameters'!$E$47)+('Equations - Parameters'!$F$47*(FH6^'Equations - Parameters'!$G$47)*('Equations - Parameters'!$J$153/FR6)^'Equations - Parameters'!$H$47)))) -> 0 | JJ6: =+IF($C6="","",IF(C6<2,0,GB6*EXP('Equations - Parameters'!$D$47*('Equations - Parameters'!$I$154/FR6)^'Equations - Parameters'!$E$47+'Equations - Parameters'!$F$47*(FH6^'Equations - Parameters'!$G$47)*('Equations - Parameters'!$J$154/FR6)^'Equations - Parameters'!$H$47)-JI6)) -> 0 | JK6: =+IF($C6="","",IF(C6<2,0,GB6*EXP('Equations - Parameters'!$D$47*('Equations - Parameters'!$I$155/FR6)^'Equations - Parameters'!$E$47+'Equations - Parameters'!$F$47*(FH6^'Equations - Parameters'!$G$47)*('Equations - Parameters'!$J$155/FR6)^'Equations - Parameters'!$H$47)-JJ6-JI6)) -> 0 | JL6: =+IF($C6="","",IF(GC6=0,0,IF(Inputs!$H$15=FALSE,0,IF(C6<2,0,GC6*EXP(('Equations - Parameters'!$D$47*('Equations - Parameters'!$I$153/FS6)^'Equations - Parameters'!$E$47)+('Equations - Parameters'!$F$47*(FI6^'Equations - Parameters'!$G$47)*('Equations - Parameters'!$J$153/FS6)^'Equations - Parameters'!$H$47)))))) -> 0 | JM6: =+IF($C6="","",IF(GC6=0,0,IF(Inputs!$H$15=FALSE,0,GC6*EXP('Equations - Parameters'!$D$47*('Equations - Parameters'!$I$154/FS6)^'Equations - Parameters'!$E$47+'Equations - Parameters'!$F$47*(FI6^'Equations - Parameters'!$G$47)*('Equations - Parameters'!$J$154/FS6)^'Equations - Parameters'!$H$47)-JL6))) -> 0 | JN6: =+IF($C6="","",IF(GC6=0,0,IF(Inputs!$H$15=FALSE,0,GC6*EXP('Equations - Parameters'!$D$47*('Equations - Parameters'!$I$155/FS6)^'Equations - Parameters'!$E$47+'Equations - Parameters'!$F$47*(FI6^'Equations - Parameters'!$G$47)*('Equations - Parameters'!$J$155/FS6)^'Equations - Parameters'!$H$47)-JM6-JL6))) -> 0 | JO6: =+IF($C6="","",IF(GD6=0,0,IF(Inputs!$H$15=FALSE,0,GD6*EXP(('Equations - Parameters'!$D$47*('Equations - Parameters'!$I$153/FT6)^'Equations - Parameters'!$E$47)+('Equations - Parameters'!$F$47*(FJ6^'Equations - Parameters'!$G$47)*('Equations - Parameters'!$J$153/FT6)^'Equations - Parameters'!$H$47))))) -> 0 | JP6: =+IF($C6="","",IF(GD6=0,0,IF(Inputs!$H$15=FALSE,0,GD6*EXP('Equations - Parameters'!$D$47*('Equations - Parameters'!$I$154/FT6)^'Equations - Parameters'!$E$47+'Equations - Parameters'!$F$47*(FJ6^'Equations - Parameters'!$G$47)*('Equations - Parameters'!$J$154/FT6)^'Equations - Parameters'!$H$47)-JO6))) -> 0 | JQ6: =+IF($C6="","",IF(GD6=0,0,IF(Inputs!$H$15=FALSE,0,GD6*EXP('Equations - Parameters'!$D$47*('Equations - Parameters'!$I$155/FT6)^'Equations - Parameters'!$E$47+'Equations - Parameters'!$F$47*(FJ6^'Equations - Parameters'!$G$47)*('Equations - Parameters'!$J$155/FT6)^'Equations - Parameters'!$H$47)-JP6-JO6))) -> 0 | JR6: =+IF($C6="","",IF(GE6=0,0,IF(Inputs!$H$15=FALSE,0,GE6*EXP(('Equations - Parameters'!$D$47*('Equations - Parameters'!$I$153/FU6)^'Equations - Parameters'!$E$47)+('Equations - Parameters'!$F$47*(FK6^'Equations - Parameters'!$G$47)*('Equations - Parameters'!$J$153/FU6)^'Equations - Parameters'!$H$47))))) -> 0 | JS6: =+IF($C6="","",IF(GE6=0,0,IF(Inputs!$H$15=FALSE,0,GE6*EXP('Equations - Parameters'!$D$47*('Equations - Parameters'!$I$154/FU6)^'Equations - Parameters'!$E$47+'Equations - Parameters'!$F$47*(FK6^'Equations - Parameters'!$G$47)*('Equations - Parameters'!$J$154/FU6)^'Equations - Parameters'!$H$47)-JR6))) -> 0 | JT6: =+IF($C6="","",IF(GE6=0,0,IF(Inputs!$H$15=FALSE,0,GE6*EXP('Equations - Parameters'!$D$47*('Equations - Parameters'!$I$155/FU6)^'Equations - Parameters'!$E$47+'Equations - Parameters'!$F$47*(FK6^'Equations - Parameters'!$G$47)*('Equations - Parameters'!$J$155/FU6)^'Equations - Parameters'!$H$47)-JS6-JR6))) -> 0 | JU6: =+IF($C6="","",IF(GF6=0,0,IF(Inputs!$H$15=FALSE,0,GF6*EXP(('Equations - Parameters'!$D$47*('Equations - Parameters'!$I$153/FV6)^'Equations - Parameters'!$E$47)+('Equations - Parameters'!$F$47*(FL6^'Equations - Parameters'!$G$47)*('Equations - Parameters'!$J$153/FV6)^'Equations - Parameters'!$H$47))))) -> 0 | JV6: =+IF($C6="","",IF(GF6=0,0,IF(Inputs!$H$15=FALSE,0,GF6*EXP('Equations - Parameters'!$D$47*('Equations - Parameters'!$I$154/FV6)^'Equations - Parameters'!$E$47+'Equations - Parameters'!$F$47*(FL6^'Equations - Parameters'!$G$47)*('Equations - Parameters'!$J$154/FV6)^'Equations - Parameters'!$H$47)-JU6))) -> 0 | JW6: =+IF($C6="","",IF(GF6=0,0,IF(Inputs!$H$15=FALSE,0,GF6*EXP('Equations - Parameters'!$D$47*('Equations - Parameters'!$I$155/FV6)^'Equations - Parameters'!$E$47+'Equations - Parameters'!$F$47*(FL6^'Equations - Parameters'!$G$47)*('Equations - Parameters'!$J$155/FV6)^'Equations - Parameters'!$H$47)-JV6-JU6))) -> 0 | JX6: =+IF($C6="","",IF(HZ6=0,0,HZ6*EXP('Equations - Parameters'!$D$47*('Equations - Parameters'!$I$153/JD6)^'Equations - Parameters'!$E$47+'Equations - Parameters'!$F$47*HK6^'Equations - Parameters'!$G$47*('Equations - Parameters'!$J$153/JD6)^'Equations - Parameters'!$H$47))) -> 0 | JY6: =+IF($C6="","",IF(HZ6=0,0,HZ6*EXP('Equations - Parameters'!$D$47*('Equations - Parameters'!$I$154/JD6)^'Equations - Parameters'!$E$47+'Equations - Parameters'!$F$47*HK6^'Equations - Parameters'!$G$47*('Equations - Parameters'!$J$154/JD6)^'Equations - Parameters'!$H$47)-JX6)) -> 0 | JZ6: =+IF($C6="","",IF(HZ6=0,0,HZ6*EXP('Equations - Parameters'!$D$47*('Equations - Parameters'!$I$155/JD6)^'Equations - Parameters'!$E$47+'Equations - Parameters'!$F$47*HK6^'Equations - Parameters'!$G$47*('Equations - Parameters'!$J$155/JD6)^'Equations - Parameters'!$H$47)-JY6-JX6)) -> 0 | KA6: =+IF($C6="","",IF(IA6=0,0,IA6*EXP('Equations - Parameters'!$D$47*('Equations - Parameters'!$I$153/JE6)^'Equations - Parameters'!$E$47+'Equations - Parameters'!$F$47*HL6^'Equations - Parameters'!$G$47*('Equations - Parameters'!$J$153/JE6)^'Equations - Parameters'!$H$47))) -> 0 | KB6: =+IF($C6="","",IF(IA6=0,0,IA6*EXP('Equations - Parameters'!$D$47*('Equations - Parameters'!$I$154/JE6)^'Equations - Parameters'!$E$47+'Equations - Parameters'!$F$47*HL6^'Equations - Parameters'!$G$47*('Equations - Parameters'!$J$154/JE6)^'Equations - Parameters'!$H$47)-KA6)) -> 0 | KC6: =+IF($C6="","",IF(IA6=0,0,IA6*EXP('Equations - Parameters'!$D$47*('Equations - Parameters'!$I$155/JE6)^'Equations - Parameters'!$E$47+'Equations - Parameters'!$F$47*HL6^'Equations - Parameters'!$G$47*('Equations - Parameters'!$J$155/JE6)^'Equations - Parameters'!$H$47)-KB6-KA6)) -> 0 | KD6: =+IF($C6="","",IF(IB6=0,0,IB6*EXP('Equations - Parameters'!$D$47*('Equations - Parameters'!$I$153/JF6)^'Equations - Parameters'!$E$47+'Equations - Parameters'!$F$47*HM6^'Equations - Parameters'!$G$47*('Equations - Parameters'!$J$153/JF6)^'Equations - Parameters'!$H$47))) -> 0 | KE6: =+IF($C6="","",IF(IB6=0,0,IB6*EXP('Equations - Parameters'!$D$47*('Equations - Parameters'!$I$154/JF6)^'Equations - Parameters'!$E$47+'Equations - Parameters'!$F$47*HM6^'Equations - Parameters'!$G$47*('Equations - Parameters'!$J$154/JF6)^'Equations - Parameters'!$H$47)-KD6)) -> 0 | KF6: =+IF($C6="","",IF(IB6=0,0,IB6*EXP('Equations - Parameters'!$D$47*('Equations - Parameters'!$I$155/JF6)^'Equations - Parameters'!$E$47+'Equations - Parameters'!$F$47*HM6^'Equations - Parameters'!$G$47*('Equations - Parameters'!$J$155/JF6)^'Equations - Parameters'!$H$47)-KE6-KD6)) -> 0 | KG6: =+IF($C6="","",IF(IC6=0,0,IC6*EXP('Equations - Parameters'!$D$47*('Equations - Parameters'!$I$153/JG6)^'Equations - Parameters'!$E$47+'Equations - Parameters'!$F$47*HN6^'Equations - Parameters'!$G$47*('Equations - Parameters'!$J$153/JG6)^'Equations - Parameters'!$H$47))) -> 0 | KH6: =+IF($C6="","",IF(IC6=0,0,IC6*EXP('Equations - Parameters'!$D$47*('Equations - Parameters'!$I$154/JG6)^'Equations - Parameters'!$E$47+'Equations - Parameters'!$F$47*HN6^'Equations - Parameters'!$G$47*('Equations - Parameters'!$J$154/JG6)^'Equations - Parameters'!$H$47)-KG6)) -> 0 | KI6: =+IF($C6="","",IF(IC6=0,0,IC6*EXP('Equations - Parameters'!$D$47*('Equations - Parameters'!$I$155/JG6)^'Equations - Parameters'!$E$47+'Equations - Parameters'!$F$47*HN6^'Equations - Parameters'!$G$47*('Equations - Parameters'!$J$155/JG6)^'Equations - Parameters'!$H$47)-KH6-KG6)) -> 0 | KJ6: =+IF($C6="","",IF(ID6=0,0,ID6*EXP('Equations - Parameters'!$D$47*('Equations - Parameters'!$I$153/JH6)^'Equations - Parameters'!$E$47+'Equations - Parameters'!$F$47*HO6^'Equations - Parameters'!$G$47*('Equations - Parameters'!$J$153/JH6)^'Equations - Parameters'!$H$47))) -> 0 | KK6: =+IF($C6="","",IF(ID6=0,0,ID6*EXP('Equations - Parameters'!$D$47*('Equations - Parameters'!$I$154/JH6)^'Equations - Parameters'!$E$47+'Equations - Parameters'!$F$47*HO6^'Equations - Parameters'!$G$47*('Equations - Parameters'!$J$154/JH6)^'Equations - Parameters'!$H$47)-KJ6)) -> 0 | KL6: =+IF($C6="","",IF(ID6=0,0,ID6*EXP('Equations - Parameters'!$D$47*('Equations - Parameters'!$I$155/JH6)^'Equations - Parameters'!$E$47+'Equations - Parameters'!$F$47*HO6^'Equations - Parameters'!$G$47*('Equations - Parameters'!$J$155/JH6)^'Equations - Parameters'!$H$47)-KK6-KJ6)) -> 0 | KM6: =+IF($C6="","",IF(C6<2,0,GG6*EXP(('Equations - Parameters'!$D$48*('Equations - Parameters'!$I$153/FR6)^'Equations - Parameters'!$E$48)+('Equations - Parameters'!$F$48*(FH6^'Equations - Parameters'!$G$48)*('Equations - Parameters'!$J$153/FR6)^'Equations - Parameters'!$H$48)))) -> 0 | KN6: =+IF($C6="","",IF(C6<2,0,GG6*EXP('Equations - Parameters'!$D$48*('Equations - Parameters'!$I$154/FR6)^'Equations - Parameters'!$E$48+'Equations - Parameters'!$F$48*(FH6^'Equations - Parameters'!$G$48)*('Equations - Parameters'!$J$154/FR6)^'Equations - Parameters'!$H$48)-KM6)) -> 0 | KO6: =+IF($C6="","",IF(C6<2,0,GG6*EXP('Equations - Parameters'!$D$48*('Equations - Parameters'!$I$155/FR6)^'Equations - Parameters'!$E$48+'Equations - Parameters'!$F$48*(FH6^'Equations - Parameters'!$G$48)*('Equations - Parameters'!$J$155/FR6)^'Equations - Parameters'!$H$48)-KN6-KM6)) -> 0 | KP6: =+IF($C6="","",IF(GH6=0,0,IF(C6<2,0,GH6*EXP(('Equations - Parameters'!$D$48*('Equations - Parameters'!$I$153/FS6)^'Equations - Parameters'!$E$48)+('Equations - Parameters'!$F$48*(FI6^'Equations - Parameters'!$G$48)*('Equations - Parameters'!$J$153/FS6)^'Equations - Parameters'!$H$48))))) -> 0 | KQ6: =+IF($C6="","",IF(GH6=0,0,IF(C6<2,0,GH6*EXP('Equations - Parameters'!$D$48*('Equations - Parameters'!$I$154/FS6)^'Equations - Parameters'!$E$48+'Equations - Parameters'!$F$48*(FI6^'Equations - Parameters'!$G$48)*('Equations - Parameters'!$J$154/FS6)^'Equations - Parameters'!$H$48)-KP6))) -> 0 | KR6: =+IF($C6="","",IF(GH6=0,0,IF(C6<2,0,GH6*EXP('Equations - Parameters'!$D$48*('Equations - Parameters'!$I$155/FS6)^'Equations - Parameters'!$E$48+'Equations - Parameters'!$F$48*(FI6^'Equations - Parameters'!$G$48)*('Equations - Parameters'!$J$155/FS6)^'Equations - Parameters'!$H$48)-KQ6-KP6))) -> 0 | KS6: =+IF($C6="","",IF(GI6=0,0,IF(C6<2,0,GI6*EXP(('Equations - Parameters'!$D$48*('Equations - Parameters'!$I$153/FT6)^'Equations - Parameters'!$E$48)+('Equations - Parameters'!$F$48*(FJ6^'Equations - Parameters'!$G$48)*('Equations - Parameters'!$J$153/FT6)^'Equations - Parameters'!$H$48))))) -> 0 | KT6: =+IF($C6="","",IF(GI6=0,0,IF(C6<2,0,GI6*EXP('Equations - Parameters'!$D$48*('Equations - Parameters'!$I$154/FT6)^'Equations - Parameters'!$E$48+'Equations - Parameters'!$F$47*(FJ6^'Equations - Parameters'!$G$48)*('Equations - Parameters'!$J$154/FT6)^'Equations - Parameters'!$H$48)-KS6))) -> 0 | KU6: =+IF($C6="","",IF(GI6=0,0,IF(C6<2,0,GI6*EXP('Equations - Parameters'!$D$48*('Equations - Parameters'!$I$155/FT6)^'Equations - Parameters'!$E$48+'Equations - Parameters'!$F$47*(FJ6^'Equations - Parameters'!$G$48)*('Equations - Parameters'!$J$155/FT6)^'Equations - Parameters'!$H$48)-KT6-KS6))) -> 0 | KV6: =+IF($C6="","",IF(GJ6=0,0,IF(C6<2,0,IF(C6<2,0,GJ6*EXP(('Equations - Parameters'!$D$48*('Equations - Parameters'!$I$153/FU6)^'Equations - Parameters'!$E$48)+('Equations - Parameters'!$F$48*(FK6^'Equations - Parameters'!$G$48)*('Equations - Parameters'!$J$153/FU6)^'Equations - Parameters'!$H$48)))))) -> 0 | KW6: =+IF($C6="","",IF(GJ6=0,0,IF(C6<2,0,GJ6*EXP('Equations - Parameters'!$D$48*('Equations - Parameters'!$I$154/FU6)^'Equations - Parameters'!$E$48+'Equations - Parameters'!$F$47*(FK6^'Equations - Parameters'!$G$48)*('Equations - Parameters'!$J$154/FU6)^'Equations - Parameters'!$H$48)-KV6))) -> 0 | KX6: =+IF($C6="","",IF(GJ6=0,0,IF(C6<2,0,GJ6*EXP('Equations - Parameters'!$D$48*('Equations - Parameters'!$I$155/FU6)^'Equations - Parameters'!$E$48+'Equations - Parameters'!$F$47*(FK6^'Equations - Parameters'!$G$48)*('Equations - Parameters'!$J$155/FU6)^'Equations - Parameters'!$H$48)-KW6-KV6))) -> 0 | KY6: =+IF($C6="","",IF(GK6=0,0,IF(C6<2,0,GK6*EXP(('Equations - Parameters'!$D$48*('Equations - Parameters'!$I$153/FV6)^'Equations - Parameters'!$E$48)+('Equations - Parameters'!$F$48*(FL6^'Equations - Parameters'!$G$48)*('Equations - Parameters'!$J$153/FV6)^'Equations - Parameters'!$H$48))))) -> 0 | KZ6: =+IF($C6="","",IF(GK6=0,0,IF(C6<2,0,GK6*EXP('Equations - Parameters'!$D$48*('Equations - Parameters'!$I$154/FV6)^'Equations - Parameters'!$E$48+'Equations - Parameters'!$F$47*(FL6^'Equations - Parameters'!$G$48)*('Equations - Parameters'!$J$154/FV6)^'Equations - Parameters'!$H$48)-KY6))) -> 0 | LA6: =+IF($C6="","",IF(GK6=0,0,IF(C6<2,0,GK6*EXP('Equations - Parameters'!$D$48*('Equations - Parameters'!$I$155/FV6)^'Equations - Parameters'!$E$48+'Equations - Parameters'!$F$47*(FL6^'Equations - Parameters'!$G$48)*('Equations - Parameters'!$J$155/FV6)^'Equations - Parameters'!$H$48)-KZ6-KY6))) -> 0 | LB6: =+IF($C6="","",IF(IO6=0,0,IO6*EXP('Equations - Parameters'!$D$48*('Equations - Parameters'!$I$153/JD6)^'Equations - Parameters'!$E$48+'Equations - Parameters'!$F$48*HK6^'Equations - Parameters'!$G$48*('Equations - Parameters'!$J$153/JD6)^'Equations - Parameters'!$H$48))) -> 0 | LC6: =+IF($C6="","",IF(IO6=0,0,IO6*EXP('Equations - Parameters'!$D$48*('Equations - Parameters'!$I$154/JD6)^'Equations - Parameters'!$E$48+'Equations - Parameters'!$F$48*HK6^'Equations - Parameters'!$G$48*('Equations - Parameters'!$J$154/JD6)^'Equations - Parameters'!$H$48)-LB6)) -> 0 | LD6: =+IF($C6="","",IF(IO6=0,0,IO6*EXP('Equations - Parameters'!$D$48*('Equations - Parameters'!$I$155/JD6)^'Equations - Parameters'!$E$48+'Equations - Parameters'!$F$48*HK6^'Equations - Parameters'!$G$48*('Equations - Parameters'!$J$155/JD6)^'Equations - Parameters'!$H$48)-LC6-LB6)) -> 0 | LE6: =+IF($C6="","",IF(IP6=0,0,IP6*EXP('Equations - Parameters'!$D$48*('Equations - Parameters'!$I$153/JE6)^'Equations - Parameters'!$E$48+'Equations - Parameters'!$F$48*HL6^'Equations - Parameters'!$G$48*('Equations - Parameters'!$J$153/JE6)^'Equations - Parameters'!$H$48))) -> 0 | LF6: =+IF($C6="","",IF(IP6=0,0,IP6*EXP('Equations - Parameters'!$D$48*('Equations - Parameters'!$I$154/JE6)^'Equations - Parameters'!$E$48+'Equations - Parameters'!$F$48*HL6^'Equations - Parameters'!$G$48*('Equations - Parameters'!$J$154/JE6)^'Equations - Parameters'!$H$48)-LE6)) -> 0 | LG6: =+IF($C6="","",IF(IP6=0,0,IP6*EXP('Equations - Parameters'!$D$48*('Equations - Parameters'!$I$155/JE6)^'Equations - Parameters'!$E$48+'Equations - Parameters'!$F$48*HL6^'Equations - Parameters'!$G$48*('Equations - Parameters'!$J$155/JE6)^'Equations - Parameters'!$H$48)-LF6-LE6)) -> 0 | LH6: =+IF($C6="","",IF(IQ6=0,0,IQ6*EXP('Equations - Parameters'!$D$48*('Equations - Parameters'!$I$153/JF6)^'Equations - Parameters'!$E$48+'Equations - Parameters'!$F$48*HM6^'Equations - Parameters'!$G$48*('Equations - Parameters'!$J$153/JF6)^'Equations - Parameters'!$H$48))) -> 0 | LI6: =+IF($C6="","",IF(IQ6=0,0,IQ6*EXP('Equations - Parameters'!$D$48*('Equations - Parameters'!$I$154/JF6)^'Equations - Parameters'!$E$48+'Equations - Parameters'!$F$48*HM6^'Equations - Parameters'!$G$48*('Equations - Parameters'!$J$154/JF6)^'Equations - Parameters'!$H$48)-LH6)) -> 0 | LJ6: =+IF($C6="","",IF(IQ6=0,0,IQ6*EXP('Equations - Parameters'!$D$48*('Equations - Parameters'!$I$155/JF6)^'Equations - Parameters'!$E$48+'Equations - Parameters'!$F$48*HM6^'Equations - Parameters'!$G$48*('Equations - Parameters'!$J$155/JF6)^'Equations - Parameters'!$H$48)-LI6-LH6)) -> 0 | LK6: =+IF($C6="","",IF(IR6=0,0,IR6*EXP('Equations - Parameters'!$D$48*('Equations - Parameters'!$I$153/JG6)^'Equations - Parameters'!$E$48+'Equations - Parameters'!$F$48*HN6^'Equations - Parameters'!$G$48*('Equations - Parameters'!$J$153/JG6)^'Equations - Parameters'!$H$48))) -> 0 | LL6: =+IF($C6="","",IF(IR6=0,0,IR6*EXP('Equations - Parameters'!$D$48*('Equations - Parameters'!$I$154/JG6)^'Equations - Parameters'!$E$48+'Equations - Parameters'!$F$48*HN6^'Equations - Parameters'!$G$48*('Equations - Parameters'!$J$154/JG6)^'Equations - Parameters'!$H$48)-LK6)) -> 0 | LM6: =+IF($C6="","",IF(IR6=0,0,IR6*EXP('Equations - Parameters'!$D$48*('Equations - Parameters'!$I$155/JG6)^'Equations - Parameters'!$E$48+'Equations - Parameters'!$F$48*HN6^'Equations - Parameters'!$G$48*('Equations - Parameters'!$J$155/JG6)^'Equations - Parameters'!$H$48)-LL6-LK6)) -> 0 | LN6: =+IF($C6="","",IF(IS6=0,0,IS6*EXP('Equations - Parameters'!$D$48*('Equations - Parameters'!$I$153/JH6)^'Equations - Parameters'!$E$48+'Equations - Parameters'!$F$48*HO6^'Equations - Parameters'!$G$48*('Equations - Parameters'!$J$153/JH6)^'Equations - Parameters'!$H$48))) -> 0 | LO6: =+IF($C6="","",IF(IS6=0,0,IS6*EXP('Equations - Parameters'!$D$48*('Equations - Parameters'!$I$154/JH6)^'Equations - Parameters'!$E$48+'Equations - Parameters'!$F$48*HO6^'Equations - Parameters'!$G$48*('Equations - Parameters'!$J$154/JH6)^'Equations - Parameters'!$H$48)-LN6)) -> 0 | LP6: =+IF($C6="","",IF(IS6=0,0,IS6*EXP('Equations - Parameters'!$D$48*('Equations - Parameters'!$I$155/JH6)^'Equations - Parameters'!$E$48+'Equations - Parameters'!$F$48*HO6^'Equations - Parameters'!$G$48*('Equations - Parameters'!$J$155/JH6)^'Equations - Parameters'!$H$48)-LO6-LN6)) -> 0
A7: 3 | B7: =+IF(AND(Inputs!$H$18=FALSE,A7+Inputs!$H$7-1>Inputs!$B$6),"",IF(AND(Inputs!$H$3=TRUE,A7<=Inputs!$B$6),1,IF(AND(Inputs!$H$4=TRUE,A7+Inputs!$H$7<=Inputs!$B$6),1,IF(Inputs!$H$3=TRUE,ROUNDDOWN((A7-1)/(Inputs!$B$6),0)+1,ROUNDDOWN((A7+Inputs!$H$7-1)/(Inputs!$B$6),0)+1)))) -> 1 | C7: =+IF(B7="","",IF(AND(Inputs!$H$18=FALSE,A7+Inputs!$H$7-1>Inputs!$B$6),"",IF(C6=Inputs!$B$6,1,IF(AND(Inputs!$H$3=TRUE,A7=0),0,IF(AND(Inputs!$H$4=TRUE,A7=0),Inputs!$H$7,IF(C6=Inputs!$B$6,0,C6+1)))))) -> 3 | D7: =+IF($C7="","",IF(C7=0,0,IF(Inputs!$H$3=TRUE,Inputs!$H$13*((1-EXP('Equations - Parameters'!$E$15*C7))/(1-EXP('Equations - Parameters'!$E$15*50)))^'Equations - Parameters'!$F$15,Inputs!$J$14*((1-EXP('Equations - Parameters'!$E$15*C7))/(1-EXP('Equations - Parameters'!$E$15*50)))^'Equations - Parameters'!$F$15))) -> 1.548150669 | E7: =+IF($C7="","",IF($C7=0,0,IF(Inputs!$H$15=TRUE,0,IF(C7=1,Inputs!$H$11*Inputs!$B$11,IF(Inputs!$H$15=TRUE,0,IF(AND(Inputs!$H$3=TRUE,$A7=0),Inputs!$H$11*Inputs!$B$11,IF(AND(Inputs!$H$4=TRUE,$A7=0),Inputs!$J$12,E6*EXP(('Equations - Parameters'!$D$9*D6/100+'Equations - Parameters'!$E$9*H6/'Equations - Parameters'!$I$7)*(C7^'Equations - Parameters'!$F$9-C6^'Equations - Parameters'!$F$9))))))))) -> 1445.430275 | F7: =+IF($C7="","",IF($C7=0,0,IF(Inputs!$H$15=TRUE,0,IF(AND(Inputs!$H$4=TRUE,$C7=Inputs!$H$7),Inputs!$J$13,IF(Inputs!$H$4=TRUE,F6*((E7/E6)^'Equations - Parameters'!$E$21)*((D7/D6)^'Equations - Parameters'!$F$21),EXP('Equations - Parameters'!$D$21+'Equations - Parameters'!$E$21*LN(E7)+'Equations - Parameters'!$F$21*LN(D7))))))) -> 0.5033838812 | G7: =+IF(C7="","",IF($C7=0,0,IF(F7=0,0,200*SQRT(F7/(E7*PI()))))) -> 2.105746746 | H7: 26.56475922 | I7: =+IF($C7="","",IF($C7=0,0,IF(Inputs!$H$15=FALSE,0,IF($C7=1,Inputs!$H$11*Inputs!$B$11,IF(Inputs!$H$22=FALSE,0,IF(AND(Inputs!$H$3=TRUE,$A7=0),Inputs!$H$11*Inputs!$B$11,IF(AND(Inputs!$H$4=TRUE,$A7=0),Inputs!$J$12,I6*EXP(('Equations - Parameters'!$D$9*D6/100+'Equations - Parameters'!$E$9*S6/'Equations - Parameters'!$I$7)*($C7^'Equations - Parameters'!$F$9-$C6^'Equations - Parameters'!$F$9))))))))) -> 0 | J7: =+IF(C7="","",IF(Inputs!$H$15=FALSE,0,IF(Inputs!$H$22=FALSE,0,IF(Inputs!$B$27="",0,IF(C7<Inputs!$B$27,I7,IF(C7=Inputs!$B$27,(I7-(Inputs!$C$27*I7)),J6*EXP(('Equations - Parameters'!$D$9*D6/100+'Equations - Parameters'!$E$9*T6/'Equations - Parameters'!$I$7)*(C7^'Equations - Parameters'!$F$9-C6^'Equations - Parameters'!$F$9)))))))) -> 0 | K7: =+IF(C7="","",IF(Inputs!$H$15=FALSE,0,IF(Inputs!$H$22=FALSE,0,IF(Inputs!$B$28="",0,IF(C7<Inputs!$B$28,J7,IF(C7=Inputs!$B$28,(J7-(Inputs!$C$28*J7)),K6*EXP(('Equations - Parameters'!$D$9*D6/100+'Equations - Parameters'!$E$9*U6/'Equations - Parameters'!$I$7)*(C7^'Equations - Parameters'!$F$9-C6^'Equations - Parameters'!$F$9)))))))) -> 0 | L7: =+IF(C7="","",IF(Inputs!$H$15=FALSE,0,IF(Inputs!$H$22=FALSE,0,IF(Inputs!$B$29="",0,IF(C7<Inputs!$B$29,K7,IF(C7=Inputs!$B$29,(K7-(Inputs!$C$29*K7)),L6*EXP(('Equations - Parameters'!$D$9*D6/100+'Equations - Parameters'!$E$9*V6/'Equations - Parameters'!$I$7)*(C7^'Equations - Parameters'!$F$9-C6^'Equations - Parameters'!$F$9)))))))) -> 0 | M7: =+IF(C7="","",IF(Inputs!$H$15=FALSE,0,IF(Inputs!$H$22=FALSE,0,IF(Inputs!$B$30="",0,IF(C7<Inputs!$B$30,L7,IF(C7=Inputs!$B$30,(L7-(Inputs!$C$30*L7)),M6*EXP(('Equations - Parameters'!$D$9*D6/100+'Equations - Parameters'!$E$9*W6/'Equations - Parameters'!$I$7)*(C7^'Equations - Parameters'!$F$9-C6^'Equations - Parameters'!$F$9)))))))) -> 0 | N7: =+IF(C7="","",IF(Inputs!$H$15=FALSE,0,IF(Y7=0,0,200*SQRT(Y7/(I7*PI()))))) -> 0 | O7: =+IF(C7="","",IF(Inputs!$H$15=FALSE,0,IF(AG7=0,0,200*SQRT(AG7/(J7*PI()))))) -> 0 | P7: =+IF(C7="","",IF(Inputs!$H$15=FALSE,0,IF(AJ7=0,0,200*SQRT(AJ7/(K7*PI()))))) -> 0 | Q7: =+IF(C7="","",IF(Inputs!$H$15=FALSE,0,IF(AM7=0,0,200*SQRT(AM7/(L7*PI()))))) -> 0 | R7: =+IF(C7="","",IF(Inputs!$H$15=FALSE,0,IF(AP7=0,0,200*SQRT(AP7/(M7*PI()))))) -> 0 | S7: =+IF(C7="","",IF(Inputs!$H$15=FALSE,0,I7*(N7/25.4)^1.605)) -> 0 | T7: =+IF(C7="","",IF(Inputs!$H$15=FALSE,0,J7*(O7/25.4)^1.605)) -> 0 | U7: =+IF(C7="","",IF(Inputs!$H$15=FALSE,0,K7*(P7/25.4)^1.605)) -> 0 | V7: =+IF(C7="","",IF(Inputs!$H$15=FALSE,0,L7*(Q7/25.4)^1.605)) -> 0 | W7: =+IF(C7="","",IF(Inputs!$H$15=FALSE,0,M7*(R7/25.4)^1.605)) -> 0 | X7: =+IF(C7="","",IF(Inputs!$H$15=FALSE,0,IF(Inputs!$B$27="",0,IF(C7<Inputs!$B$27,0,EXP('Equations - Parameters'!$D$21+'Equations - Parameters'!$E$21*LN(J7)+'Equations - Parameters'!$F$21*LN(D7)))))) -> 0 | Y7: =+IF(C7="","",IF(Inputs!$H$15=FALSE,0,IF($C7=0,0,IF(AND($B7=1,Inputs!$H$4=TRUE,$C7=Inputs!$H$7),Inputs!$J$13,IF(AND($B7=1,Inputs!$H$4=TRUE,$C7<>Inputs!$H$7),Y6*((I7/I6)^('Equations - Parameters'!$E$21))*((D7/D6)^('Equations - Parameters'!$F$21)),EXP('Equations - Parameters'!$D$21+'Equations - Parameters'!$E$21*LN(I7)+'Equations - Parameters'!$F$21*LN(D7))))))) -> 0 | Z7: =+IF(C7="","",IF(Inputs!$H$15=FALSE,0,IF(Inputs!$B$27="",0,IF($C7=Inputs!$B$27,Y7-AS7,0)))) -> 0 | AA7: =+IF(C7="","",IF(Inputs!$H$15=FALSE,0,IF(Inputs!$B$28="",0,IF(C7<Inputs!$B$28,0,EXP('Equations - Parameters'!$D$21+'Equations - Parameters'!$E$21*LN(K7)+'Equations - Parameters'!$F$21*LN(D7)))))) -> 0 | AB7: =+IF(C7="","",IF(Inputs!$H$15=FALSE,0,IF(Inputs!$B$28="",0,IF($C7=Inputs!$B$28,AG7-$AS7,0)))) -> 0 | AC7: =+IF(C7="","",IF(Inputs!$H$15=FALSE,0,IF(Inputs!$B$29="",0,IF($C7<Inputs!$B$29,0,EXP('Equations - Parameters'!$D$21+'Equations - Parameters'!$E$21*LN(L7)+'Equations - Parameters'!$F$21*LN(D7)))))) -> 0 | AD7: =+IF(C7="","",IF(Inputs!$H$15=FALSE,0,IF(Inputs!$B$29="",0,IF($C7=Inputs!$B$29,AJ7-$AS7,0)))) -> 0 | AE7: =+IF(C7="","",IF(Inputs!$H$15=FALSE,0,IF(Inputs!$B$30="",0,IF($C7<Inputs!$B$30,0,EXP('Equations - Parameters'!$D$21+'Equations - Parameters'!$E$21*LN(M7)+'Equations - Parameters'!$F$21*LN(D7)))))) -> 0 | AF7: =+IF(C7="","",IF(Inputs!$H$15=FALSE,0,IF(Inputs!$B$30="",0,IF($C7=Inputs!$B$30,AM7-$AS7,0)))) -> 0 | AG7: =+IF(C7="","",IF(Inputs!$B$27="",0,IF(Inputs!$H$15=FALSE,0,IF($C7<Inputs!$B$27,Y7,IF(C7=Inputs!$B$27,AS7,X7*(1-AI7)))))) -> 0 | AH7: =+IF(C7="","",IF(Inputs!$H$15=FALSE,0,IF(SUM($Z$4:$Z$504)>0,1,0))) -> 0 | AI7: =+IF(C7="","",IF(Inputs!$H$15=FALSE,0,IF(Inputs!$B$27="",0,IF(C7<Inputs!$B$27,0,IF(C7=Inputs!$B$27,1-(AG7/X7),AI6*EXP(('Equations - Parameters'!$E$27/C7)*(C7-C6))))))) -> 0 | AJ7: =+IF(C7="","",IF(Inputs!$H$15=FALSE,0,IF(Inputs!$B$28="",0,IF($C7<Inputs!$B$28,AG7,IF($C7=Inputs!$B$28,AS7,AA7*(1-AL7)))))) -> 0 | AK7: =+IF(C7="","",IF(Inputs!$H$15=FALSE,0,IF(SUM($AB$4:$AB$504)>0,1,0))) -> 0 | AL7: =+IF(C7="","",IF(Inputs!$H$15=FALSE,0,IF(Inputs!$B$28="",0,IF($C7<Inputs!$B$28,0,IF($C7=Inputs!$B$28,1-(AJ7/AA7),AL6*EXP(('Equations - Parameters'!$E$27/C7)*($C7-$C6))))))) -> 0 | AM7: =+IF(C7="","",IF(Inputs!$H$15=FALSE,0,IF(Inputs!$B$29="",0,IF($C7<Inputs!$B$29,AJ7,IF($C7=Inputs!$B$29,AS7,AC7*(1-AO7)))))) -> 0 | AN7: =+IF(C7="","",IF(Inputs!$H$15=FALSE,0,IF(SUM($AD$4:$AD$504)>0,1,0))) -> 0 | AO7: =+IF(C7="","",IF(Inputs!$H$15=FALSE,0,IF(Inputs!$B$29="",0,IF($C7<Inputs!$B$29,0,IF($C7=Inputs!$B$29,1-(AM7/AC7),AO6*EXP(('Equations - Parameters'!$E$27/C7)*($C7-$C6))))))) -> 0 | AP7: =+IF(C7="","",IF(Inputs!$H$15=FALSE,0,IF(Inputs!$B$30="",0,IF($C7<Inputs!$B$30,AM7,IF($C7=Inputs!$B$30,AS7,AE7*(1-AR7)))))) -> 0 | AQ7: =+IF(C7="","",IF(Inputs!$H$15=FALSE,0,IF(SUM($AF$4:$AF$504)>0,1,0))) -> 0 | AR7: =+IF(C7="","",IF(Inputs!$H$15=FALSE,0,IF(Inputs!$B$30="",0,IF($C7<Inputs!$B$30,0,IF($C7=Inputs!$B$30,1-(AP7/AE7),AR6*EXP(('Equations - Parameters'!$E$27/C7)*($C7-$C6))))))) -> 0 | AS7: =+IF(C7="","",IF(Inputs!$H$15=FALSE,0,IF(C7=Inputs!$B$27,Y7*(1-Inputs!$C$27),IF(C7=Inputs!$B$28,AG7*(1-Inputs!$C$28),IF(C7=Inputs!$B$29,AJ7*(1-Inputs!$C$29),IF(C7=Inputs!$B$30,AM7*(1-Inputs!$C$30),0)))))) -> 0 | AT7: =+IF($C7="","",IF($C7=0,0,IF(Inputs!$H$15=FALSE,0,IF(C7=1,Inputs!$H$11*Inputs!$B$11,IF(Inputs!$H$23=FALSE,0,IF(AND(Inputs!$H$3=TRUE,$A7=0),Inputs!$H$11*Inputs!$B$11,IF(AND(Inputs!$H$4=TRUE,$A7=0),Inputs!$J$12,AT6*EXP(('Equations - Parameters'!$D$9*D6/100+'Equations - Parameters'!$E$9*BN6/'Equations - Parameters'!$I$7)*(C7^'Equations - Parameters'!$F$9-C6^'Equations - Parameters'!$F$9))))))))) -> 0 | AU7: =+IF(C7="","",IF(Inputs!$H$15=FALSE,0,IF(BW7=0,AT7,IF(BX7<>0,AT7*(1-BX7/BT7),AU6*EXP(('Equations - Parameters'!$D$9*D6/100+'Equations - Parameters'!$E$9*BO6/'Equations - Parameters'!$I$7)*(C7^'Equations - Parameters'!$F$9-C6^'Equations - Parameters'!$F$9)))))) -> 0 | AV7: =+IF(C7="","",IF(Inputs!$H$15=FALSE,0,IF(CD7=0,AU7,IF(CE7<>0,AU7*(1-CE7/BU7),AV6*EXP(('Equations - Parameters'!$D$9*D6/100+'Equations - Parameters'!$E$9*BP6/'Equations - Parameters'!$I$7)*(C7^'Equations - Parameters'!$F$9-C6^'Equations - Parameters'!$F$9)))))) -> 0 | AW7: =+IF(C7="","",IF(Inputs!$H$15=FALSE,0,IF(CK7=0,AV7,IF(CL7<>0,AV7*(1-CL7/CB7),AW6*EXP(('Equations - Parameters'!$D$9*D6/100+'Equations - Parameters'!$E$9*BQ6/'Equations - Parameters'!$I$7)*(C7^'Equations - Parameters'!$F$9-C6^'Equations - Parameters'!$F$9)))))) -> 0 | AX7: =+IF(C7="","",IF(Inputs!$H$15=FALSE,0,IF(CR7=0,AW7,IF(CS7<>0,AW7*(1-CS7/CI7),AX6*EXP(('Equations - Parameters'!$D$9*D6/100+'Equations - Parameters'!$E$9*BR6/'Equations - Parameters'!$I$7)*(C7^'Equations - Parameters'!$F$9-C6^'Equations - Parameters'!$F$9)))))) -> 0 | AY7: =+IF(C7="","",IF(Inputs!$H$15=FALSE,0,AT7)) -> 0 | AZ7: =+IF(C7="","",IF(Inputs!$H$15=FALSE,0,IF(BV7=1,AU7,0))) -> 0 | BA7: =+IF(C7="","",IF(Inputs!$H$15=FALSE,0,IF(CC7=1,AV7,0))) -> 0 | BB7: =+IF(C7="","",IF(Inputs!$H$15=FALSE,0,IF(CJ7=1,AW7,0))) -> 0 | BC7: =+IF(C7="","",IF(Inputs!$H$15=FALSE,0,IF(CQ7=1,AX7,0))) -> 0 | BD7: =+IF(C7="","",IF(Inputs!$H$15=FALSE,0,BT7)) -> 0 | BE7: =+IF(C7="","",IF(Inputs!$H$15=FALSE,0,IF(BV7=1,BU7,0))) -> 0 | BF7: =+IF(C7="","",IF(Inputs!$H$15=FALSE,0,IF(CC7=1,CB7,0))) -> 0 | BG7: =+IF(C7="","",IF(Inputs!$H$15=FALSE,0,IF(CJ7=1,CI7,0))) -> 0 | BH7: =+IF(C7="","",IF(Inputs!$H$15=FALSE,0,IF(CQ7=1,CP7,0))) -> 0 | BI7: =+IF(C7="","",IF(Inputs!$H$15=FALSE,0,IF(BD7=0,0,200*SQRT(BD7/(AY7*PI()))))) -> 0 | BJ7: =+IF(C7="","",IF(Inputs!$H$15=FALSE,0,IF(AZ7=0,0,200*SQRT(BE7/(AZ7*PI()))))) -> 0 | BK7: =+IF(C7="","",IF(Inputs!$H$15=FALSE,0,IF(BA7=0,0,200*SQRT(BF7/(BA7*PI()))))) -> 0 | BL7: =+IF(C7="","",IF(Inputs!$H$15=FALSE,0,IF(BB7=0,0,200*SQRT(BG7/(BB7*PI()))))) -> 0 | BM7: =+IF(C7="","",IF(Inputs!$H$15=FALSE,0,IF(BC7=0,0,200*SQRT(BH7/(BC7*PI()))))) -> 0 | BN7: =+IF(C7="","",IF(Inputs!$H$15=FALSE,0,AY7*(BI7/25.4)^1.605)) -> 0 | BO7: =+IF(C7="","",IF(Inputs!$H$15=FALSE,0,AZ7*(BJ7/25.4)^1.605)) -> 0 | BP7: =+IF(C7="","",IF(Inputs!$H$15=FALSE,0,BA7*(BK7/25.4)^1.605)) -> 0 | BQ7: =+IF(C7="","",IF(Inputs!$H$15=FALSE,0,BB7*(BL7/25.4)^1.605)) -> 0 | BR7: =+IF(C7="","",IF(Inputs!$H$15=FALSE,0,BC7*(BM7/25.4)^1.605)) -> 0 | BS7: =+IF(C7="","",IF(Inputs!$H$15=FALSE,0,IF(BW7=0,0,EXP('Equations - Parameters'!$D$21+'Equations - Parameters'!$E$21*LN(AU7)+'Equations - Parameters'!$F$21*LN($D7))))) -> 0 | BT7: =+IF(C7="","",IF(Inputs!$H$15=FALSE,0,IF(C7=0,0,IF(AND(Inputs!$B$4=TRUE,$C7=Inputs!$H$7),Inputs!$J$13,IF(AND(Inputs!$H$23=TRUE,$C7<>Inputs!$H$7),BT6*((AT7/AT6)^('Equations - Parameters'!$E$21))*((D7/D6)^('Equations - Parameters'!$F$21)),EXP('Equations - Parameters'!$D$21+'Equations - Parameters'!$E$21*LN(AT7)+'Equations - Parameters'!$F$21*LN(D7))))))) -> 0 | BU7: =+IF(C7="","",IF(Inputs!$H$15=FALSE,0,IF(BW7=0,BT7,IF((BW7-BW6)>0,BW7,BS7*(1-BZ7))))) -> 0 | BV7: =+IF(C7="","",IF(Inputs!$H$15=FALSE,0,IF(SUM($BX$4:$BX$504)>0,1,0))) -> 0 | BW7: =+IF(C7="","",IF(Inputs!$H$15=FALSE,0,IF(BT7>Inputs!$H$34,Inputs!$I$34,0))) -> 0 | BX7: =+IF(C7="","",IF(C7=Inputs!$H$7,0,IF(Inputs!$H$15=FALSE,0,IF((BW7-BW6)=0,0,BT7-BW7)))) -> 0 | BY7: =+IF(C7="","",IF(C7=Inputs!$H$7,0,IF((BW7-BW6)=0,0,$C7))) -> 0 | BZ7: =+IF(C7="","",IF(Inputs!$H$15=FALSE,0,IF(BW7=0,0,IF(BX7<>0,1-(BU7/BS7),BZ6*EXP(('Equations - Parameters'!$E$27/C7)*($C7-$C6)))))) -> 0 | CA7: =+IF($C7="","",IF($C7=1,0,IF(Inputs!$H$15=FALSE,0,IF(CD7=0,0,EXP('Equations - Parameters'!$D$21+'Equations - Parameters'!$E$21*LN(AV7)+'Equations - Parameters'!$F$21*LN(D7)))))) -> 0 | CB7: =+IF(C7="","",IF(Inputs!$H$15=FALSE,0,IF(CD7=0,BU7,IF((CD7-CD6)>0,CD7,CA7*(1-CG7))))) -> 0 | CC7: =+IF(C7="","",IF(Inputs!$H$15=FALSE,0,IF(SUM($CE$4:$CE$504)>0,1,0))) -> 0 | CD7: =+IF(C7="","",IF(Inputs!$H$15=FALSE,0,IF(C7=0,0,IF(C7=1,0,IF(BU7>Inputs!$H$34,Inputs!$I$34,IF(CD6>0,Inputs!$I$34,0)))))) -> 0 | CE7: =+IF(C7="","",IF(C7=1,0,IF(Inputs!$H$15=FALSE,0,IF((CD7-CD6)=0,0,BU7-CD7)))) -> 0 | CF7: 0 | CG7: =+IF($C7="","",IF($C7=1,0,IF(Inputs!$H$15=FALSE,0,IF(CD7=0,0,IF(CE7<>0,1-(CB7/CA7),CG6*EXP(('Equations - Parameters'!$E$27/C7)*($C7-$C6))))))) -> 0 | CH7: =+IF(C7="","",IF(Inputs!$H$15=FALSE,0,IF(CK7=0,0,EXP('Equations - Parameters'!$D$21+'Equations - Parameters'!$E$21*LN(AW7)+'Equations - Parameters'!$F$21*LN(D7))))) -> 0 | CI7: =+IF(C7="","",IF(Inputs!$H$15=FALSE,0,IF(CK7=0,CB7,IF((CK7-CK6)>0,CK7,CH7*(1-CN7))))) -> 0 | CJ7: =+IF(C7="","",IF(Inputs!$H$15=FALSE,0,IF(SUM($CL$4:$CL$504)>0,1,0))) -> 0 | CK7: =+IF(C7="","",IF(C7=1,0,IF(Inputs!$H$15=FALSE,0,IF(C7=0,0,IF(CB7>Inputs!$H$34,Inputs!$I$34,IF(CK6>0,Inputs!$I$34,0)))))) -> 0 | CL7: =+IF(C7="","",IF(C7=1,0,IF(Inputs!$H$15=FALSE,0,IF((CK7-CK6)=0,0,CB7-CK7)))) -> 0 | CM7: 0 | CN7: =+IF($C7="","",IF($C7=1,0,IF(Inputs!$H$15=FALSE,0,IF(CK7=0,0,IF(CL7<>0,1-(CI7/CH7),CN6*EXP('Equations - Parameters'!$E$27/C7)*($C7-$C6)))))) -> 0 | CO7: =+IF($C7="","",IF($C7=1,0,IF(Inputs!$H$15=FALSE,0,IF(CR7=0,0,EXP('Equations - Parameters'!$D$21+'Equations - Parameters'!$E$21*LN(AX7)+'Equations - Parameters'!$F$21*LN(D7)))))) -> 0 | CP7: =+IF($C7="","",IF($C7=1,0,IF(Inputs!$H$15=FALSE,0,IF(CR7=0,CI7,IF((CR7-CR6)>0,CR7,CO7*(1-CU7)))))) -> 0 | CQ7: =+IF(C7="","",IF(Inputs!$H$15=FALSE,0,IF(SUM($CS$4:$CS$504)>0,1,0))) -> 0 | CR7: =+IF($C7="","",IF($C7=1,0,IF(Inputs!$H$15=FALSE,0,IF(C7=0,0,IF(CI7>Inputs!$H$34,Inputs!$I$34,IF(CR6>0,Inputs!$I$34,0)))))) -> 0 | CS7: =+IF($C7="","",IF($C7=1,0,IF(Inputs!$H$15=FALSE,0,IF((CR7-CR6)=0,0,CI7-CR7)))) -> 0 | CT7: 0 | CU7: =+IF($C7="","",IF($C7=1,0,IF(Inputs!$H$15=FALSE,0,IF(CR7=0,0,IF(CS7<>0,1-(CP7/CO7),CU6*EXP('Equations - Parameters'!$E$27/D7)*($C7-$C6)))))) -> 0 | CV7: =+IF($C7="","",IF($C7=0,0,IF(Inputs!$H$15=FALSE,0,IF(C7=1,Inputs!$H$11*Inputs!$B$11,IF(Inputs!$H$24=FALSE,0,IF(AND(Inputs!$H$3=TRUE,$A7=0),Inputs!$H$11*Inputs!$B$11,IF(AND(Inputs!$H$4=TRUE,$A7=0),Inputs!$J$12,CV6*EXP(('Equations - Parameters'!$D$9*D6/100+'Equations - Parameters'!$E$9*DN6/'Equations - Parameters'!$I$7)*(C7^'Equations - Parameters'!$F$9-C6^'Equations - Parameters'!$F$9))))))))) -> 0 | CW7: =+IF($C7="","",IF($C7=0,0,IF(Inputs!$H$15=FALSE,0,IF(C7=1,Inputs!$H$11*Inputs!$B$11,IF(DS7=0,CV7,IF(DT7<>0,CV7*(DS7/DN7),CW6*EXP(('Equations - Parameters'!$D$9*D6/100+'Equations - Parameters'!$E$9*DQ6/'Equations - Parameters'!$I$7)*(C7^'Equations - Parameters'!$F$9-C6^'Equations - Parameters'!$F$9)))))))) -> 0 | CX7: =+IF($C7="","",IF($C7=0,0,IF(Inputs!$H$15=FALSE,0,IF(C7=1,Inputs!$H$11*Inputs!$B$11,IF(ED7=0,CW7,IF(EE7<>0,CW7*(ED7/DQ7),CX6*EXP(('Equations - Parameters'!$D$9*D6/100+'Equations - Parameters'!$E$9*EB6/'Equations - Parameters'!$I$7)*(C7^'Equations - Parameters'!$F$9-C6^'Equations - Parameters'!$F$9)))))))) -> 0 | CY7: =+IF($C7="","",IF($C7=0,0,IF(Inputs!$H$15=FALSE,0,IF(C7=1,Inputs!$H$11*Inputs!$B$11,IF(EO7=0,CX7,IF(EP7<>0,CX7*(EO7/EB7),CY6*EXP(('Equations - Parameters'!$D$9*D6/100+'Equations - Parameters'!$E$9*EM6/'Equations - Parameters'!$I$7)*(C7^'Equations - Parameters'!$F$9-C6^'Equations - Parameters'!$F$9)))))))) -> 0 | CZ7: =+IF($C7="","",IF($C7=0,0,IF(Inputs!$H$15=FALSE,0,IF(C7=1,Inputs!$H$11*Inputs!$B$11,IF(EZ7=0,CY7,IF(FB7<>0,CY7*(EZ7/EM7),CZ6*EXP(('Equations - Parameters'!$D$9*D6/100+'Equations - Parameters'!$E$9*EX6/'Equations - Parameters'!$I$7)*(C7^'Equations - Parameters'!$F$9-C6^'Equations - Parameters'!$F$9)))))))) -> 0 | DA7: =+IF(C7="","",IF(Inputs!$H$15=FALSE,0,CV7)) -> 0 | DB7: =+IF(C7="","",IF(Inputs!$H$15=FALSE,0,IF(DR7=1,CW7,0))) -> 0 | DC7: =+IF(C7="","",IF(Inputs!$H$15=FALSE,0,IF(EC7=1,CX7,0))) -> 0 | DD7: =+IF(C7="","",IF(Inputs!$H$15=FALSE,0,IF(EN7=1,CY7,0))) -> 0 | DE7: =+IF(C7="","",IF(Inputs!$H$15=FALSE,0,IF(EY7=1,CZ7,0))) -> 0 | DF7: =+IF(C7="","",IF(Inputs!$H$15=FALSE,0,DL7)) -> 0 | DG7: =+IF(C7="","",IF(Inputs!$H$15=FALSE,0,IF(DR7=1,DO7,0))) -> 0 | DH7: =+IF(C7="","",IF(Inputs!$H$15=FALSE,0,IF(EC7=1,DZ7,0))) -> 0 | DI7: =+IF(C7="","",IF(Inputs!$H$15=FALSE,0,IF(EN7=1,EK7,0))) -> 0 | DJ7: =+IF(C7="","",IF(Inputs!$H$15=FALSE,0,IF(EY7=1,EV7,0))) -> 0 | DK7: =+IF($C7="","",IF(Inputs!$H$15=FALSE,0,IF(DS7=0,0,EXP('Equations - Parameters'!$D$21+'Equations - Parameters'!$E$21*LN(CW7)+'Equations - Parameters'!$F$21*LN(D7))))) -> 0 | DL7: =+IF($C7="","",IF(Inputs!$H$15=FALSE,0,IF(C7=0,0,IF(AND(Inputs!$H$4=TRUE,$C7=Inputs!$H$7),Inputs!$J$13,IF(AND(Inputs!$H$4=TRUE,$C7<>Inputs!$H$7),DL6*((CV7/CV6)^('Equations - Parameters'!$E$21))*((D7/D6)^('Equations - Parameters'!$F$21)),IF(C7=0,0,EXP('Equations - Parameters'!$D$21+'Equations - Parameters'!$E$21*LN(CV7)+'Equations - Parameters'!$F$21*LN($D7)))))))) -> 0 | DM7: =+IF($C7="","",IF(Inputs!$H$15=FALSE,0,IF($C7=0,0,200*SQRT(DL7/(CV7*PI()))))) -> 0 | DN7: =+IF($C7="","",IF(Inputs!$H$15=FALSE,0,CV7*(DM7/25.4)^1.605)) -> 0 | DO7: =+IF($C7="","",IF(Inputs!$H$15=FALSE,0,IF(DS7=0,DL7,IF((DS7-DS6)>0,DU7,DK7*(1-DX7))))) -> 0 | DP7: =+IF($C7="","",IF(Inputs!$H$15=FALSE,0,IF($C7=0,0,200*SQRT(DO7/(CW7*PI()))))) -> 0 | DQ7: =+IF($C7="","",IF(Inputs!$H$15=FALSE,0,CW7*(DP7/25.4)^1.605)) -> 0 | DR7: =+IF($C7="","",IF(Inputs!$H$15=FALSE,0,IF(SUM($DT$4:$DT$504)>0,1,0))) -> 0 | DS7: =+IF($C7="","",IF(Inputs!$H$15=FALSE,0,IF(C7=0,0,IF(C7=1,0,IF(DN7>Inputs!$H$38,Inputs!$I$38,IF(DS6>0,Inputs!$I$38,0)))))) -> 0 | DT7: =+IF($C7="","",IF(Inputs!$H$15=FALSE,0,IF((DS7-DS6)=0,0,DN7-DS7))) -> 0 | DU7: =+IF($C7="","",IF(Inputs!$H$15=FALSE,0,IF(DT7=0,0,DL7*DS7/DN7))) -> 0 | DV7: =+IF($C7="","",IF(Inputs!$H$15=FALSE,0,IF((DT7)=0,0,DL7-DU7))) -> 0 | DW7: 0 | DX7: =+IF($C7="","",IF($C7=1,0,IF(Inputs!$H$15=FALSE,0,IF(DS7=0,0,IF(DV7<>0,1-(DU7/DK7),DX6*EXP(('Equations - Parameters'!$E$27/$C7)*($C7-$C6))))))) -> 0 | DY7: =+IF($C7="","",IF(Inputs!$H$15=FALSE,0,IF(ED7=0,0,EXP('Equations - Parameters'!$D$21+'Equations - Parameters'!$E$21*LN(CX7)+'Equations - Parameters'!$F$21*LN($D7))))) -> 0 | DZ7: =+IF($C7="","",IF(Inputs!$H$15=FALSE,0,IF(ED7=0,DO7,IF((ED7-ED6)>0,EF7,DY7*(1-EI7))))) -> 0 | EA7: =+IF($C7="","",IF(Inputs!$H$15=FALSE,0,IF($C7=0,0,200*SQRT(DZ7/(CX7*PI()))))) -> 0 | EB7: =+IF($C7="","",IF(Inputs!$H$15=FALSE,0,$CX7*($EA7/25.4)^1.605)) -> 0 | EC7: =+IF($C7="","",IF(Inputs!$H$15=FALSE,0,IF(SUM($EE$4:$EE$504)>0,1,0))) -> 0 | ED7: =+IF($C7="","",IF(Inputs!$H$15=FALSE,0,IF($C7=0,0,IF($C7=1,0,IF(DQ7>Inputs!$H$38,Inputs!$I$38,IF(ED6>0,Inputs!$I$38,0)))))) -> 0 | EE7: =+IF($C7="","",IF($C7=1,0,IF(Inputs!$H$15=FALSE,0,IF((ED7-ED6)=0,0,DQ7-ED7)))) -> 0 | EF7: =+IF($C7="","",IF($C7=1,0,IF(Inputs!$H$15=FALSE,0,IF(EE7=0,0,DO7*ED7/DQ7)))) -> 0 | EG7: =+IF($C7="","",IF($C7=1,0,IF(Inputs!$H$15=FALSE,0,IF((EE7)=0,0,DO7-EF7)))) -> 0 | EH7: 0 | EI7: =+IF($C7="","",IF($C7=1,0,IF(Inputs!$H$15=FALSE,0,IF(ED7=0,0,IF(EG7<>0,1-(EF7/DY7),EI6*EXP(('Equations - Parameters'!$E$27/$C7)*($C7-$C6))))))) -> 0 | EJ7: =+IF($C7="","",IF($C7=1,0,IF(Inputs!$H$15=FALSE,0,IF(EO7=0,0,EXP('Equations - Parameters'!$D$21+'Equations - Parameters'!$E$21*LN(CX7)+'Equations - Parameters'!$F$21*LN($D7)))))) -> 0 | EK7: =+IF($C7="","",IF(Inputs!$H$15=FALSE,0,IF(EO7=0,DZ7,IF((EO7-EO6)>0,EQ7,EJ7*(1-ET7))))) -> 0 | EL7: =+IF($C7="","",IF(Inputs!$H$15=FALSE,0,IF($C7=0,0,200*SQRT(EK7/(CY7*PI()))))) -> 0 | EM7: =+IF($C7="","",IF(Inputs!$H$15=FALSE,0,$CY7*($EL7/25.4)^1.605)) -> 0 | EN7: =+IF($C7="","",IF(Inputs!$H$15=FALSE,0,IF(SUM($EP$4:$EP$504)>0,1,0))) -> 0 | EO7: =+IF($C7="","",IF(Inputs!$H$15=FALSE,0,IF(C7=0,0,IF(C7=1,0,IF(EB7>Inputs!$H$38,Inputs!$I$38,IF(EO6>0,Inputs!$I$38,0)))))) -> 0 | EP7: =+IF($C7="","",IF(C7=1,0,IF(Inputs!$H$15=FALSE,0,IF((EO7-EO6)=0,0,EB7-EO7)))) -> 0 | EQ7: =+IF($C7="","",IF(C7=1,0,IF(Inputs!$H$15=FALSE,0,IF(EP7=0,0,DZ7*EO7/EB7)))) -> 0 | ER7: =+IF($C7="","",IF(C7=1,0,IF(Inputs!$H$15=FALSE,0,IF((EP7)=0,0,DZ7-EQ7)))) -> 0 | ES7: 0 | ET7: =+IF($C7="","",IF(C7=1,0,IF(Inputs!$H$15=FALSE,0,IF(EO7=0,0,IF(ER7<>0,1-(EQ7/EJ7),ET6*EXP(('Equations - Parameters'!$E$27/$C7)*($C7-$C6))))))) -> 0 | EU7: =+IF($C7="","",IF($C7=1,0,IF(Inputs!$H$15=FALSE,0,IF(EZ7=0,0,EXP('Equations - Parameters'!$D$21+'Equations - Parameters'!$E$21*LN(CY7)+'Equations - Parameters'!$F$21*LN($D7)))))) -> 0 | EV7: =+IF($C7="","",IF(Inputs!$H$15=FALSE,0,IF(EZ7=0,EK7,IF((EZ7-EZ6)>0,FB7,EU7*(1-FE7))))) -> 0 | EW7: =+IF($C7="","",IF(Inputs!$H$15=FALSE,0,IF($C7=0,0,200*SQRT(EV7/(CZ7*PI()))))) -> 0 | EX7: =+IF($C7="","",IF(Inputs!$H$15=FALSE,0,$CZ7*($EW7/25.4)^1.605)) -> 0 | EY7: =+IF($C7="","",IF(Inputs!$H$15=FALSE,0,IF(SUM($FA$4:$FA$504)>0,1,0))) -> 0 | EZ7: =+IF($C7="","",IF(Inputs!$H$15=FALSE,0,IF(C7=0,0,IF(C7=1,0,IF(EM7>Inputs!$H$38,Inputs!$I$38,IF(EZ6>0,Inputs!$I$38,0)))))) -> 0 | FA7: =+IF($C7="","",IF(Inputs!$H$15=FALSE,0,IF(C7=0,0,IF(C7=1,0,IF((EZ7-EZ6)=0,0,EM7-EZ7))))) -> 0 | FB7: =+IF($C7="","",IF(Inputs!$H$15=FALSE,0,IF(C7=0,0,IF(C7=1,0,IF(FA7=0,0,EK7*EZ7/EM7))))) -> 0 | FC7: =+IF($C7="","",IF(Inputs!$H$15=FALSE,0,IF(C7=0,0,IF(C7=1,0,IF((FA7)=0,0,EK7-FB7))))) -> 0 | FD7: =+IF($C7="","",IF(Inputs!$H$15=FALSE,0,IF(C7=0,0,IF(C7=1,0,IF((EZ7-EZ6)=0,0,$C7))))) -> 0 | FE7: =+IF($C7="","",IF(Inputs!$H$15=FALSE,0,IF(C7=0,0,IF(C7=1,0,IF(EZ7=0,0,IF(FC7<>0,1-(FB7/EU7),FE6*EXP(('Equations - Parameters'!$E$27/$C7)*($C7-$C6)))))))) -> 0 | FF7: =+IF(AND(Inputs!$H$18=FALSE,A7+Inputs!$H$7-1>Inputs!$B$6),"",IF(C6=Inputs!$B$6,1,IF(AND(Inputs!$H$3=TRUE,A7=0),0,IF(AND(Inputs!$H$4=TRUE,A7=0),Inputs!$H$7,IF(C6=Inputs!$B$6,0,C6+1))))) -> 3 | FG7: =+IF($C7="","",IF(C7=0,0,IF(Inputs!$H$3=TRUE,Inputs!$H$13*((1-EXP('Equations - Parameters'!$E$15*C7))/(1-EXP('Equations - Parameters'!$E$15*50)))^'Equations - Parameters'!$F$15,Inputs!$J$14*((1-EXP('Equations - Parameters'!$E$15*C7))/(1-EXP('Equations - Parameters'!$E$15*50)))^'Equations - Parameters'!$F$15))) -> 1.548150669 | FH7: =+IF($C7="","",IF(Inputs!$H$15=FALSE,E7,IF(Inputs!$H$22=TRUE,I7,IF(Inputs!$H$23=TRUE,AY7,DA7)))) -> 1445.430275 | FI7: =+IF($C7="","",IF(Inputs!$H$15=FALSE,0,IF(Inputs!$H$22=TRUE,J7,IF(Inputs!$H$23=TRUE,AZ7,DB7)))) -> 0 | FJ7: =+IF($C7="","",IF(Inputs!$H$15=FALSE,0,IF(Inputs!$H$22=TRUE,K7,IF(Inputs!$H$23=TRUE,BA7,DC7)))) -> 0 | FK7: =+IF($C7="","",IF(Inputs!$H$15=FALSE,0,IF(Inputs!$H$22=TRUE,L7,IF(Inputs!$H$23=TRUE,BB7,DD7)))) -> 0 | FL7: =+IF($C7="","",IF(Inputs!$H$15=FALSE,0,IF(Inputs!$H$22=TRUE,M7,IF(Inputs!$H$23=TRUE,BC7,DE7)))) -> 0 | FM7: =+IF($C7="","",IF(Inputs!$H$15=FALSE,F7,IF(Inputs!$H$22=TRUE,Y7,IF(Inputs!$H$23=TRUE,BD7,DF7)))) -> 0.5033838812 | FN7: =+IF($C7="","",IF(Inputs!$H$15=FALSE,0,IF(Inputs!$H$22=TRUE,AG7,IF(Inputs!$H$23=TRUE,BE7,DG7)))) -> 0 | FO7: =+IF($C7="","",IF(Inputs!$H$15=FALSE,0,IF(Inputs!$H$15=FALSE,0,IF(Inputs!$H$22=TRUE,AJ7,IF(Inputs!$H$23=TRUE,BF7,DH7))))) -> 0 | FP7: =+IF($C7="","",IF(Inputs!$H$15=FALSE,0,IF(Inputs!$H$22=TRUE,AM7,IF(Inputs!$H$23=TRUE,BG7,DI7)))) -> 0 | FQ7: =+IF($C7="","",IF(Inputs!$H$15=FALSE,0,IF(Inputs!$H$22=TRUE,AP7,IF(Inputs!$H$23=TRUE,BH7,DJ7)))) -> 0 | FR7: 2.105746746 | FS7: =+IF($C7="","",IF(Inputs!$H$15=FALSE,0,IF(FN7=0,0,200*SQRT(FN7/(FI7*PI()))))) -> 0 | FT7: =+IF($C7="","",IF(Inputs!$H$15=FALSE,0,IF(FO7=0,0,200*SQRT(FO7/(FJ7*PI()))))) -> 0 | FU7: =+IF($C7="","",IF(Inputs!$H$15=FALSE,0,IF(FP7=0,0,200*SQRT(FP7/(FK7*PI()))))) -> 0 | FV7: =+IF($C7="","",IF(Inputs!$H$15=FALSE,0,IF(FQ7=0,0,200*SQRT(FQ7/(FL7*PI()))))) -> 0 | FW7: 26.56475922 | FX7: =+IF($C7="","",IF(Inputs!$H$15=FALSE,0,FI7*(FS7/25.4)^1.605)) -> 0 | FY7: =+IF($C7="","",IF(Inputs!$H$15=FALSE,0,FJ7*(FT7/25.4)^1.605)) -> 0 | FZ7: =+IF($C7="","",IF(Inputs!$H$15=FALSE,0,FK7*(FU7/25.4)^1.605)) -> 0 | GA7: =+IF($C7="","",IF(Inputs!$H$15=FALSE,0,FL7*(FV7/25.4)^1.605)) -> 0 | GB7: =+IF($C7="","",IF(FM7=0,0,IF($C7<3,0,EXP('Equations - Parameters'!$D$33+'Equations - Parameters'!$E$33*LN(FH7)+'Equations - Parameters'!$F$33*LN(FM7)+'Equations - Parameters'!$G$33*LN(FM7)/$C7+'Equations - Parameters'!$H$33*LN(Inputs!$H$13))))) -> 4.905415907 | GC7: =+IF($C7="","",IF(Inputs!$H$15=FALSE,0,IF(FN7=0,0,IF($C7<3,0,EXP('Equations - Parameters'!$D$33+'Equations - Parameters'!$E$33*LN(FI7)+'Equations - Parameters'!$F$33*LN(FN7)+'Equations - Parameters'!$G$33*LN(FN7)/$C7+'Equations - Parameters'!$H$33*LN(Inputs!$H$13)))))) -> 0 | GD7: =+IF($C7="","",IF(Inputs!$H$15=FALSE,0,IF(FO7=0,0,IF($C7<3,0,EXP('Equations - Parameters'!$D$33+'Equations - Parameters'!$E$33*LN(FJ7)+'Equations - Parameters'!$F$33*LN(FO7)+'Equations - Parameters'!$G$33*LN(FO7)/$C7+'Equations - Parameters'!$H$33*LN(Inputs!$H$13)))))) -> 0 | GE7: =+IF($C7="","",IF(Inputs!$H$15=FALSE,0,IF(FP7=0,0,IF($C7<3,0,EXP('Equations - Parameters'!$D$33+'Equations - Parameters'!$E$33*LN(FK7)+'Equations - Parameters'!$F$33*LN(FP7)+'Equations - Parameters'!$G$33*LN(FP7)/$C7+'Equations - Parameters'!$H$33*LN(Inputs!$H$13)))))) -> 0 | GF7: =+IF($C7="","",IF(Inputs!$H$15=FALSE,0,IF(FQ7=0,0,IF($C7<3,0,EXP('Equations - Parameters'!$D$33+'Equations - Parameters'!$E$33*LN(FL7)+'Equations - Parameters'!$F$33*LN(FQ7)+'Equations - Parameters'!$G$33*LN(FQ7)/$C7+'Equations - Parameters'!$H$33*LN(Inputs!$H$13)))))) -> 0 | GG7: =+IF($C7="","",IF(FM7=0,0,IF($C7<3,0,EXP('Equations - Parameters'!$D$34+'Equations - Parameters'!$E$34*LN(FH7)+'Equations - Parameters'!$F$34*LN(FM7)+'Equations - Parameters'!$G$34*LN(FM7)/$C7+'Equations - Parameters'!$H$34*LN(Inputs!$H$13))))) -> 3.384481567 | GH7: =+IF($C7="","",IF(Inputs!$H$15=FALSE,0,IF(FN7=0,0,IF($C7<3,0,EXP('Equations - Parameters'!$D$34+'Equations - Parameters'!$E$34*LN(FI7)+'Equations - Parameters'!$F$34*LN(FN7)+'Equations - Parameters'!$G$34*LN(FN7)/$C7+'Equations - Parameters'!$H$34*LN(Inputs!$H$13)))))) -> 0 | GI7: =+IF($C7="","",IF(Inputs!$H$15=FALSE,0,IF(FO7=0,0,IF($C7<3,0,EXP('Equations - Parameters'!$D$34+'Equations - Parameters'!$E$34*LN(FJ7)+'Equations - Parameters'!$F$34*LN(FO7)+'Equations - Parameters'!$G$34*LN(FO7)/$C7+'Equations - Parameters'!$H$34*LN(Inputs!$H$13)))))) -> 0 | GJ7: =+IF($C7="","",IF(Inputs!$H$15=FALSE,0,IF(FP7=0,0,IF($C7<3,0,EXP('Equations - Parameters'!$D$34+'Equations - Parameters'!$E$34*LN(FK7)+'Equations - Parameters'!$F$34*LN(FP7)+'Equations - Parameters'!$G$34*LN(FP7)/$C7+'Equations - Parameters'!$H$34*LN(Inputs!$H$13)))))) -> 0 | GK7: =+IF($C7="","",IF(Inputs!$H$15=FALSE,0,IF(FQ7=0,0,IF($C7<3,0,EXP('Equations - Parameters'!$D$34+'Equations - Parameters'!$E$34*LN(FL7)+'Equations - Parameters'!$F$34*LN(FQ7)+'Equations - Parameters'!$G$34*LN(FQ7)/$C7+'Equations - Parameters'!$H$34*LN(Inputs!$H$13)))))) -> 0 | GL7: 0 | GM7: 0 | GN7: 0 | GO7: 0 | GP7: 0 | GQ7: 0 | GR7: =+IF($C7="","",IF(Inputs!$H$15=FALSE,0,IF(AND(Inputs!$H$22=TRUE,$C7=Inputs!$B$27),$C7,IF(AND(Inputs!$H$23=TRUE,$C7<>Inputs!$B$6),BY7,IF(AND(Inputs!$H$24=TRUE,$C7<>Inputs!$B$6),DW7,0))))) -> 0 | GS7: =+IF($C7="","",IF(Inputs!$H$15=FALSE,0,IF(AND(Inputs!$H$22=TRUE,$C7=Inputs!$B$28),$C7,IF(AND(Inputs!$H$23=TRUE,$C7<>Inputs!$B$6),CF7,IF(AND(Inputs!$H$24=TRUE,$C7<>Inputs!$B$6),EH7,0))))) -> 0 | GT7: =+IF($C7="","",IF(Inputs!$H$15=FALSE,0,IF(AND(Inputs!$H$22=TRUE,$C7=Inputs!$B$29),$C7,IF(AND(Inputs!$H$23=TRUE,$C7<>Inputs!$B$6),CM7,IF(AND(Inputs!$H$24=TRUE,$C7<>Inputs!$B$6),ES7,0))))) -> 0 | GU7: =+IF($C7="","",IF(Inputs!$H$15=FALSE,0,IF(AND(Inputs!$H$22=TRUE,$C7=Inputs!$B$30),$C7,IF(AND(Inputs!$H$23=TRUE,$C7<>Inputs!$B$6),CT7,IF(AND(Inputs!$H$24=TRUE,$C7<>Inputs!$B$6),FD7,0))))) -> 0 | GV7: =+IF($C7="","",IF(C7=Inputs!$B$6,FM7,0)) -> 0 | GW7: =+IF($C7="","",IF($C7=1,0,IF(FN7=0,0,IF(C7=Inputs!$B$6,FN7,IF(AND(Inputs!$H$22=TRUE,C7<>Inputs!$B$6),Z7,IF(AND(Inputs!$H$23=TRUE,C7<>Inputs!$B$6),BX7,IF(AND(Inputs!$H$24=TRUE,C7<>Inputs!$B$6),DV7,0))))))) -> 0 | GX7: =+IF($C7="","",IF($C7=1,0,IF(FO7=0,0,IF(C7=Inputs!$B$6,FO7,IF(AND(Inputs!$H$22=TRUE,C7<>Inputs!$B$6),GW7+AB7,IF(AND(Inputs!$H$23=TRUE,C7<>Inputs!$B$6),GW7+CE7,IF(AND(Inputs!$H$24=TRUE,C7<>Inputs!$B$6),GW7+EG7,0))))))) -> 0 | GY7: =+IF($C7="","",IF($C7=1,0,IF(FP7=0,0,IF(C7=Inputs!$B$6,FP7,IF(AND(Inputs!$H$22=TRUE,C7<>Inputs!$B$6),GX7+AD7,IF(AND(Inputs!$H$23=TRUE,C7<>Inputs!$B$6),GX7+CL7,IF(AND(Inputs!$H$24=TRUE,C7<>Inputs!$B$6),GX7+ER7,0))))))) -> 0 | GZ7: =+IF($C7="","",IF($C7=1,0,IF(FQ7=0,0,IF(C7=Inputs!$B$6,FQ7,IF(AND(Inputs!$H$22=TRUE,C7<>Inputs!$B$6),GY7+AF7,IF(AND(Inputs!$H$23=TRUE,C7<>Inputs!$B$6),GY7+CS7,IF(AND(Inputs!$H$24=TRUE,C7<>Inputs!$B$6),GY7+FC7,0))))))) -> 0 | HA7: 0 | HB7: 0 | HC7: 0 | HD7: 0 | HE7: 0 | HF7: 0 | HG7: 0 | HH7: 0 | HI7: 0 | HJ7: 0 | HK7: =+IF($C7="","",IF(C7=Inputs!$B$6,FH7,0)) -> 0 | HL7: =+IF($C7="","",IF(C7=Inputs!$B$6,FI7,IF(GW7=0,0,FH7-FI7))) -> 0 | HM7: =+IF($C7="","",IF(C7=Inputs!$B$6,FJ7,IF(GX7=0,0,HL7+FI7-FJ7))) -> 0 | HN7: =+IF($C7="","",IF(C7=Inputs!$B$6,FK7,IF(GY7=0,0,HM7+FJ7-FK7))) -> 0 | HO7: =+IF($C7="","",IF(C7=Inputs!$B$6,FL7,IF(GZ7=0,0,HN7+FK7-FL7))) -> 0 | HP7: 0 | HQ7: 0 | HR7: 0 | HS7: 0 | HT7: 0 | HU7: 0 | HV7: 0 | HW7: 0 | HX7: 0 | HY7: 0 | HZ7: =+IF($C7="","",IF(C7=Inputs!$B$6,GB7,0)) -> 0 | IA7: =+IF($C7="","",IF(GW7<>0,EXP('Equations - Parameters'!$D$33+'Equations - Parameters'!$E$33*LN(HL7)+'Equations - Parameters'!$F$33*LN(GW7)+'Equations - Parameters'!$G$33*LN(GW7)/C7+'Equations - Parameters'!$H$33*LN(Inputs!$H$13)),0)) -> 0 | IB7: =+IF($C7="","",IF(GX7<>0,EXP('Equations - Parameters'!$D$33+'Equations - Parameters'!$E$33*LN(HM7)+'Equations - Parameters'!$F$33*LN(GX7)+'Equations - Parameters'!$G$33*LN(GX7)/C7+'Equations - Parameters'!$H$33*LN(Inputs!$H$13)),0)) -> 0 | IC7: =+IF($C7="","",IF(GY7<>0,EXP('Equations - Parameters'!$D$33+'Equations - Parameters'!$E$33*LN(HN7)+'Equations - Parameters'!$F$33*LN(GY7)+'Equations - Parameters'!$G$33*LN(GY7)/C7+'Equations - Parameters'!$H$33*LN(Inputs!$H$13)),0)) -> 0 | ID7: =+IF($C7="","",IF(GZ7<>0,EXP('Equations - Parameters'!$D$33+'Equations - Parameters'!$E$33*LN(HO7)+'Equations - Parameters'!$F$33*LN(GZ7)+'Equations - Parameters'!$G$33*LN(GZ7)/C7+'Equations - Parameters'!$H$33*LN(Inputs!$H$13)),0)) -> 0 | IE7: 0 | IF7: 0 | IG7: 0 | IH7: 0 | II7: 0 | IJ7: 0 | IK7: 0 | IL7: 0 | IM7: 0 | IN7: 0 | IO7: =+IF($C7="","",IF(C7=Inputs!$B$6,GG7,0)) -> 0 | IP7: =+IF($C7="","",IF(GW7<>0,EXP('Equations - Parameters'!$D$34+'Equations - Parameters'!$E$34*LN(HL7)+'Equations - Parameters'!$F$34*LN(GW7)+'Equations - Parameters'!$G$34*LN(GW7)/C7+'Equations - Parameters'!$H$34*LN(Inputs!$H$13)),0)) -> 0 | IQ7: =+IF($C7="","",IF(GX7<>0,EXP('Equations - Parameters'!$D$34+'Equations - Parameters'!$E$34*LN(HM7)+'Equations - Parameters'!$F$34*LN(GX7)+'Equations - Parameters'!$G$34*LN(GX7)/C7+'Equations - Parameters'!$H$34*LN(Inputs!$H$13)),0)) -> 0 | IR7: =+IF($C7="","",IF(GY7<>0,EXP('Equations - Parameters'!$D$34+'Equations - Parameters'!$E$34*LN(HN7)+'Equations - Parameters'!$F$34*LN(GY7)+'Equations - Parameters'!$G$34*LN(GY7)/C7+'Equations - Parameters'!$H$34*LN(Inputs!$H$13)),0)) -> 0 | IS7: =+IF($C7="","",IF(GZ7<>0,EXP('Equations - Parameters'!$D$34+'Equations - Parameters'!$E$34*LN(HO7)+'Equations - Parameters'!$F$34*LN(GZ7)+'Equations - Parameters'!$G$34*LN(GZ7)/C7+'Equations - Parameters'!$H$34*LN(Inputs!$H$13)),0)) -> 0 | IT7: 0 | IU7: 0 | IV7: 0 | IW7: 0 | IX7: 0 | IY7: 0 | IZ7: 0 | JA7: 0 | JB7: 0 | JC7: 0 | JD7: 0 | JE7: 0 | JF7: 0 | JG7: 0 | JH7: 0 | JI7: =+IF($C7="","",IF(C7<2,0,GB7*EXP(('Equations - Parameters'!$D$47*('Equations - Parameters'!$I$153/FR7)^'Equations - Parameters'!$E$47)+('Equations - Parameters'!$F$47*(FH7^'Equations - Parameters'!$G$47)*('Equations - Parameters'!$J$153/FR7)^'Equations - Parameters'!$H$47)))) -> 0 | JJ7: =+IF($C7="","",IF(C7<2,0,GB7*EXP('Equations - Parameters'!$D$47*('Equations - Parameters'!$I$154/FR7)^'Equations - Parameters'!$E$47+'Equations - Parameters'!$F$47*(FH7^'Equations - Parameters'!$G$47)*('Equations - Parameters'!$J$154/FR7)^'Equations - Parameters'!$H$47)-JI7)) -> 0 | JK7: =+IF($C7="","",IF(C7<2,0,GB7*EXP('Equations - Parameters'!$D$47*('Equations - Parameters'!$I$155/FR7)^'Equations - Parameters'!$E$47+'Equations - Parameters'!$F$47*(FH7^'Equations - Parameters'!$G$47)*('Equations - Parameters'!$J$155/FR7)^'Equations - Parameters'!$H$47)-JJ7-JI7)) -> 0 | JL7: =+IF($C7="","",IF(GC7=0,0,IF(Inputs!$H$15=FALSE,0,IF(C7<2,0,GC7*EXP(('Equations - Parameters'!$D$47*('Equations - Parameters'!$I$153/FS7)^'Equations - Parameters'!$E$47)+('Equations - Parameters'!$F$47*(FI7^'Equations - Parameters'!$G$47)*('Equations - Parameters'!$J$153/FS7)^'Equations - Parameters'!$H$47)))))) -> 0 | JM7: =+IF($C7="","",IF(GC7=0,0,IF(Inputs!$H$15=FALSE,0,GC7*EXP('Equations - Parameters'!$D$47*('Equations - Parameters'!$I$154/FS7)^'Equations - Parameters'!$E$47+'Equations - Parameters'!$F$47*(FI7^'Equations - Parameters'!$G$47)*('Equations - Parameters'!$J$154/FS7)^'Equations - Parameters'!$H$47)-JL7))) -> 0 | JN7: =+IF($C7="","",IF(GC7=0,0,IF(Inputs!$H$15=FALSE,0,GC7*EXP('Equations - Parameters'!$D$47*('Equations - Parameters'!$I$155/FS7)^'Equations - Parameters'!$E$47+'Equations - Parameters'!$F$47*(FI7^'Equations - Parameters'!$G$47)*('Equations - Parameters'!$J$155/FS7)^'Equations - Parameters'!$H$47)-JM7-JL7))) -> 0 | JO7: =+IF($C7="","",IF(GD7=0,0,IF(Inputs!$H$15=FALSE,0,GD7*EXP(('Equations - Parameters'!$D$47*('Equations - Parameters'!$I$153/FT7)^'Equations - Parameters'!$E$47)+('Equations - Parameters'!$F$47*(FJ7^'Equations - Parameters'!$G$47)*('Equations - Parameters'!$J$153/FT7)^'Equations - Parameters'!$H$47))))) -> 0 | JP7: =+IF($C7="","",IF(GD7=0,0,IF(Inputs!$H$15=FALSE,0,GD7*EXP('Equations - Parameters'!$D$47*('Equations - Parameters'!$I$154/FT7)^'Equations - Parameters'!$E$47+'Equations - Parameters'!$F$47*(FJ7^'Equations - Parameters'!$G$47)*('Equations - Parameters'!$J$154/FT7)^'Equations - Parameters'!$H$47)-JO7))) -> 0 | JQ7: =+IF($C7="","",IF(GD7=0,0,IF(Inputs!$H$15=FALSE,0,GD7*EXP('Equations - Parameters'!$D$47*('Equations - Parameters'!$I$155/FT7)^'Equations - Parameters'!$E$47+'Equations - Parameters'!$F$47*(FJ7^'Equations - Parameters'!$G$47)*('Equations - Parameters'!$J$155/FT7)^'Equations - Parameters'!$H$47)-JP7-JO7))) -> 0 | JR7: =+IF($C7="","",IF(GE7=0,0,IF(Inputs!$H$15=FALSE,0,GE7*EXP(('Equations - Parameters'!$D$47*('Equations - Parameters'!$I$153/FU7)^'Equations - Parameters'!$E$47)+('Equations - Parameters'!$F$47*(FK7^'Equations - Parameters'!$G$47)*('Equations - Parameters'!$J$153/FU7)^'Equations - Parameters'!$H$47))))) -> 0 | JS7: =+IF($C7="","",IF(GE7=0,0,IF(Inputs!$H$15=FALSE,0,GE7*EXP('Equations - Parameters'!$D$47*('Equations - Parameters'!$I$154/FU7)^'Equations - Parameters'!$E$47+'Equations - Parameters'!$F$47*(FK7^'Equations - Parameters'!$G$47)*('Equations - Parameters'!$J$154/FU7)^'Equations - Parameters'!$H$47)-JR7))) -> 0 | JT7: =+IF($C7="","",IF(GE7=0,0,IF(Inputs!$H$15=FALSE,0,GE7*EXP('Equations - Parameters'!$D$47*('Equations - Parameters'!$I$155/FU7)^'Equations - Parameters'!$E$47+'Equations - Parameters'!$F$47*(FK7^'Equations - Parameters'!$G$47)*('Equations - Parameters'!$J$155/FU7)^'Equations - Parameters'!$H$47)-JS7-JR7))) -> 0 | JU7: =+IF($C7="","",IF(GF7=0,0,IF(Inputs!$H$15=FALSE,0,GF7*EXP(('Equations - Parameters'!$D$47*('Equations - Parameters'!$I$153/FV7)^'Equations - Parameters'!$E$47)+('Equations - Parameters'!$F$47*(FL7^'Equations - Parameters'!$G$47)*('Equations - Parameters'!$J$153/FV7)^'Equations - Parameters'!$H$47))))) -> 0 | JV7: =+IF($C7="","",IF(GF7=0,0,IF(Inputs!$H$15=FALSE,0,GF7*EXP('Equations - Parameters'!$D$47*('Equations - Parameters'!$I$154/FV7)^'Equations - Parameters'!$E$47+'Equations - Parameters'!$F$47*(FL7^'Equations - Parameters'!$G$47)*('Equations - Parameters'!$J$154/FV7)^'Equations - Parameters'!$H$47)-JU7))) -> 0 | JW7: =+IF($C7="","",IF(GF7=0,0,IF(Inputs!$H$15=FALSE,0,GF7*EXP('Equations - Parameters'!$D$47*('Equations - Parameters'!$I$155/FV7)^'Equations - Parameters'!$E$47+'Equations - Parameters'!$F$47*(FL7^'Equations - Parameters'!$G$47)*('Equations - Parameters'!$J$155/FV7)^'Equations - Parameters'!$H$47)-JV7-JU7))) -> 0 | JX7: =+IF($C7="","",IF(HZ7=0,0,HZ7*EXP('Equations - Parameters'!$D$47*('Equations - Parameters'!$I$153/JD7)^'Equations - Parameters'!$E$47+'Equations - Parameters'!$F$47*HK7^'Equations - Parameters'!$G$47*('Equations - Parameters'!$J$153/JD7)^'Equations - Parameters'!$H$47))) -> 0 | JY7: =+IF($C7="","",IF(HZ7=0,0,HZ7*EXP('Equations - Parameters'!$D$47*('Equations - Parameters'!$I$154/JD7)^'Equations - Parameters'!$E$47+'Equations - Parameters'!$F$47*HK7^'Equations - Parameters'!$G$47*('Equations - Parameters'!$J$154/JD7)^'Equations - Parameters'!$H$47)-JX7)) -> 0 | JZ7: =+IF($C7="","",IF(HZ7=0,0,HZ7*EXP('Equations - Parameters'!$D$47*('Equations - Parameters'!$I$155/JD7)^'Equations - Parameters'!$E$47+'Equations - Parameters'!$F$47*HK7^'Equations - Parameters'!$G$47*('Equations - Parameters'!$J$155/JD7)^'Equations - Parameters'!$H$47)-JY7-JX7)) -> 0 | KA7: =+IF($C7="","",IF(IA7=0,0,IA7*EXP('Equations - Parameters'!$D$47*('Equations - Parameters'!$I$153/JE7)^'Equations - Parameters'!$E$47+'Equations - Parameters'!$F$47*HL7^'Equations - Parameters'!$G$47*('Equations - Parameters'!$J$153/JE7)^'Equations - Parameters'!$H$47))) -> 0 | KB7: =+IF($C7="","",IF(IA7=0,0,IA7*EXP('Equations - Parameters'!$D$47*('Equations - Parameters'!$I$154/JE7)^'Equations - Parameters'!$E$47+'Equations - Parameters'!$F$47*HL7^'Equations - Parameters'!$G$47*('Equations - Parameters'!$J$154/JE7)^'Equations - Parameters'!$H$47)-KA7)) -> 0 | KC7: =+IF($C7="","",IF(IA7=0,0,IA7*EXP('Equations - Parameters'!$D$47*('Equations - Parameters'!$I$155/JE7)^'Equations - Parameters'!$E$47+'Equations - Parameters'!$F$47*HL7^'Equations - Parameters'!$G$47*('Equations - Parameters'!$J$155/JE7)^'Equations - Parameters'!$H$47)-KB7-KA7)) -> 0 | KD7: =+IF($C7="","",IF(IB7=0,0,IB7*EXP('Equations - Parameters'!$D$47*('Equations - Parameters'!$I$153/JF7)^'Equations - Parameters'!$E$47+'Equations - Parameters'!$F$47*HM7^'Equations - Parameters'!$G$47*('Equations - Parameters'!$J$153/JF7)^'Equations - Parameters'!$H$47))) -> 0 | KE7: =+IF($C7="","",IF(IB7=0,0,IB7*EXP('Equations - Parameters'!$D$47*('Equations - Parameters'!$I$154/JF7)^'Equations - Parameters'!$E$47+'Equations - Parameters'!$F$47*HM7^'Equations - Parameters'!$G$47*('Equations - Parameters'!$J$154/JF7)^'Equations - Parameters'!$H$47)-KD7)) -> 0 | KF7: =+IF($C7="","",IF(IB7=0,0,IB7*EXP('Equations - Parameters'!$D$47*('Equations - Parameters'!$I$155/JF7)^'Equations - Parameters'!$E$47+'Equations - Parameters'!$F$47*HM7^'Equations - Parameters'!$G$47*('Equations - Parameters'!$J$155/JF7)^'Equations - Parameters'!$H$47)-KE7-KD7)) -> 0 | KG7: =+IF($C7="","",IF(IC7=0,0,IC7*EXP('Equations - Parameters'!$D$47*('Equations - Parameters'!$I$153/JG7)^'Equations - Parameters'!$E$47+'Equations - Parameters'!$F$47*HN7^'Equations - Parameters'!$G$47*('Equations - Parameters'!$J$153/JG7)^'Equations - Parameters'!$H$47))) -> 0 | KH7: =+IF($C7="","",IF(IC7=0,0,IC7*EXP('Equations - Parameters'!$D$47*('Equations - Parameters'!$I$154/JG7)^'Equations - Parameters'!$E$47+'Equations - Parameters'!$F$47*HN7^'Equations - Parameters'!$G$47*('Equations - Parameters'!$J$154/JG7)^'Equations - Parameters'!$H$47)-KG7)) -> 0 | KI7: =+IF($C7="","",IF(IC7=0,0,IC7*EXP('Equations - Parameters'!$D$47*('Equations - Parameters'!$I$155/JG7)^'Equations - Parameters'!$E$47+'Equations - Parameters'!$F$47*HN7^'Equations - Parameters'!$G$47*('Equations - Parameters'!$J$155/JG7)^'Equations - Parameters'!$H$47)-KH7-KG7)) -> 0 | KJ7: =+IF($C7="","",IF(ID7=0,0,ID7*EXP('Equations - Parameters'!$D$47*('Equations - Parameters'!$I$153/JH7)^'Equations - Parameters'!$E$47+'Equations - Parameters'!$F$47*HO7^'Equations - Parameters'!$G$47*('Equations - Parameters'!$J$153/JH7)^'Equations - Parameters'!$H$47))) -> 0 | KK7: =+IF($C7="","",IF(ID7=0,0,ID7*EXP('Equations - Parameters'!$D$47*('Equations - Parameters'!$I$154/JH7)^'Equations - Parameters'!$E$47+'Equations - Parameters'!$F$47*HO7^'Equations - Parameters'!$G$47*('Equations - Parameters'!$J$154/JH7)^'Equations - Parameters'!$H$47)-KJ7)) -> 0 | KL7: =+IF($C7="","",IF(ID7=0,0,ID7*EXP('Equations - Parameters'!$D$47*('Equations - Parameters'!$I$155/JH7)^'Equations - Parameters'!$E$47+'Equations - Parameters'!$F$47*HO7^'Equations - Parameters'!$G$47*('Equations - Parameters'!$J$155/JH7)^'Equations - Parameters'!$H$47)-KK7-KJ7)) -> 0 | KM7: =+IF($C7="","",IF(C7<2,0,GG7*EXP(('Equations - Parameters'!$D$48*('Equations - Parameters'!$I$153/FR7)^'Equations - Parameters'!$E$48)+('Equations - Parameters'!$F$48*(FH7^'Equations - Parameters'!$G$48)*('Equations - Parameters'!$J$153/FR7)^'Equations - Parameters'!$H$48)))) -> 0 | KN7: =+IF($C7="","",IF(C7<2,0,GG7*EXP('Equations - Parameters'!$D$48*('Equations - Parameters'!$I$154/FR7)^'Equations - Parameters'!$E$48+'Equations - Parameters'!$F$48*(FH7^'Equations - Parameters'!$G$48)*('Equations - Parameters'!$J$154/FR7)^'Equations - Parameters'!$H$48)-KM7)) -> 0 | KO7: =+IF($C7="","",IF(C7<2,0,GG7*EXP('Equations - Parameters'!$D$48*('Equations - Parameters'!$I$155/FR7)^'Equations - Parameters'!$E$48+'Equations - Parameters'!$F$48*(FH7^'Equations - Parameters'!$G$48)*('Equations - Parameters'!$J$155/FR7)^'Equations - Parameters'!$H$48)-KN7-KM7)) -> 0 | KP7: =+IF($C7="","",IF(GH7=0,0,IF(C7<2,0,GH7*EXP(('Equations - Parameters'!$D$48*('Equations - Parameters'!$I$153/FS7)^'Equations - Parameters'!$E$48)+('Equations - Parameters'!$F$48*(FI7^'Equations - Parameters'!$G$48)*('Equations - Parameters'!$J$153/FS7)^'Equations - Parameters'!$H$48))))) -> 0 | KQ7: =+IF($C7="","",IF(GH7=0,0,IF(C7<2,0,GH7*EXP('Equations - Parameters'!$D$48*('Equations - Parameters'!$I$154/FS7)^'Equations - Parameters'!$E$48+'Equations - Parameters'!$F$48*(FI7^'Equations - Parameters'!$G$48)*('Equations - Parameters'!$J$154/FS7)^'Equations - Parameters'!$H$48)-KP7))) -> 0 | KR7: =+IF($C7="","",IF(GH7=0,0,IF(C7<2,0,GH7*EXP('Equations - Parameters'!$D$48*('Equations - Parameters'!$I$155/FS7)^'Equations - Parameters'!$E$48+'Equations - Parameters'!$F$48*(FI7^'Equations - Parameters'!$G$48)*('Equations - Parameters'!$J$155/FS7)^'Equations - Parameters'!$H$48)-KQ7-KP7))) -> 0 | KS7: =+IF($C7="","",IF(GI7=0,0,IF(C7<2,0,GI7*EXP(('Equations - Parameters'!$D$48*('Equations - Parameters'!$I$153/FT7)^'Equations - Parameters'!$E$48)+('Equations - Parameters'!$F$48*(FJ7^'Equations - Parameters'!$G$48)*('Equations - Parameters'!$J$153/FT7)^'Equations - Parameters'!$H$48))))) -> 0 | KT7: =+IF($C7="","",IF(GI7=0,0,IF(C7<2,0,GI7*EXP('Equations - Parameters'!$D$48*('Equations - Parameters'!$I$154/FT7)^'Equations - Parameters'!$E$48+'Equations - Parameters'!$F$47*(FJ7^'Equations - Parameters'!$G$48)*('Equations - Parameters'!$J$154/FT7)^'Equations - Parameters'!$H$48)-KS7))) -> 0 | KU7: =+IF($C7="","",IF(GI7=0,0,IF(C7<2,0,GI7*EXP('Equations - Parameters'!$D$48*('Equations - Parameters'!$I$155/FT7)^'Equations - Parameters'!$E$48+'Equations - Parameters'!$F$47*(FJ7^'Equations - Parameters'!$G$48)*('Equations - Parameters'!$J$155/FT7)^'Equations - Parameters'!$H$48)-KT7-KS7))) -> 0 | KV7: =+IF($C7="","",IF(GJ7=0,0,IF(C7<2,0,IF(C7<2,0,GJ7*EXP(('Equations - Parameters'!$D$48*('Equations - Parameters'!$I$153/FU7)^'Equations - Parameters'!$E$48)+('Equations - Parameters'!$F$48*(FK7^'Equations - Parameters'!$G$48)*('Equations - Parameters'!$J$153/FU7)^'Equations - Parameters'!$H$48)))))) -> 0 | KW7: =+IF($C7="","",IF(GJ7=0,0,IF(C7<2,0,GJ7*EXP('Equations - Parameters'!$D$48*('Equations - Parameters'!$I$154/FU7)^'Equations - Parameters'!$E$48+'Equations - Parameters'!$F$47*(FK7^'Equations - Parameters'!$G$48)*('Equations - Parameters'!$J$154/FU7)^'Equations - Parameters'!$H$48)-KV7))) -> 0 | KX7: =+IF($C7="","",IF(GJ7=0,0,IF(C7<2,0,GJ7*EXP('Equations - Parameters'!$D$48*('Equations - Parameters'!$I$155/FU7)^'Equations - Parameters'!$E$48+'Equations - Parameters'!$F$47*(FK7^'Equations - Parameters'!$G$48)*('Equations - Parameters'!$J$155/FU7)^'Equations - Parameters'!$H$48)-KW7-KV7))) -> 0 | KY7: =+IF($C7="","",IF(GK7=0,0,IF(C7<2,0,GK7*EXP(('Equations - Parameters'!$D$48*('Equations - Parameters'!$I$153/FV7)^'Equations - Parameters'!$E$48)+('Equations - Parameters'!$F$48*(FL7^'Equations - Parameters'!$G$48)*('Equations - Parameters'!$J$153/FV7)^'Equations - Parameters'!$H$48))))) -> 0 | KZ7: =+IF($C7="","",IF(GK7=0,0,IF(C7<2,0,GK7*EXP('Equations - Parameters'!$D$48*('Equations - Parameters'!$I$154/FV7)^'Equations - Parameters'!$E$48+'Equations - Parameters'!$F$47*(FL7^'Equations - Parameters'!$G$48)*('Equations - Parameters'!$J$154/FV7)^'Equations - Parameters'!$H$48)-KY7))) -> 0 | LA7: =+IF($C7="","",IF(GK7=0,0,IF(C7<2,0,GK7*EXP('Equations - Parameters'!$D$48*('Equations - Parameters'!$I$155/FV7)^'Equations - Parameters'!$E$48+'Equations - Parameters'!$F$47*(FL7^'Equations - Parameters'!$G$48)*('Equations - Parameters'!$J$155/FV7)^'Equations - Parameters'!$H$48)-KZ7-KY7))) -> 0 | LB7: =+IF($C7="","",IF(IO7=0,0,IO7*EXP('Equations - Parameters'!$D$48*('Equations - Parameters'!$I$153/JD7)^'Equations - Parameters'!$E$48+'Equations - Parameters'!$F$48*HK7^'Equations - Parameters'!$G$48*('Equations - Parameters'!$J$153/JD7)^'Equations - Parameters'!$H$48))) -> 0 | LC7: =+IF($C7="","",IF(IO7=0,0,IO7*EXP('Equations - Parameters'!$D$48*('Equations - Parameters'!$I$154/JD7)^'Equations - Parameters'!$E$48+'Equations - Parameters'!$F$48*HK7^'Equations - Parameters'!$G$48*('Equations - Parameters'!$J$154/JD7)^'Equations - Parameters'!$H$48)-LB7)) -> 0 | LD7: =+IF($C7="","",IF(IO7=0,0,IO7*EXP('Equations - Parameters'!$D$48*('Equations - Parameters'!$I$155/JD7)^'Equations - Parameters'!$E$48+'Equations - Parameters'!$F$48*HK7^'Equations - Parameters'!$G$48*('Equations - Parameters'!$J$155/JD7)^'Equations - Parameters'!$H$48)-LC7-LB7)) -> 0 | LE7: =+IF($C7="","",IF(IP7=0,0,IP7*EXP('Equations - Parameters'!$D$48*('Equations - Parameters'!$I$153/JE7)^'Equations - Parameters'!$E$48+'Equations - Parameters'!$F$48*HL7^'Equations - Parameters'!$G$48*('Equations - Parameters'!$J$153/JE7)^'Equations - Parameters'!$H$48))) -> 0 | LF7: =+IF($C7="","",IF(IP7=0,0,IP7*EXP('Equations - Parameters'!$D$48*('Equations - Parameters'!$I$154/JE7)^'Equations - Parameters'!$E$48+'Equations - Parameters'!$F$48*HL7^'Equations - Parameters'!$G$48*('Equations - Parameters'!$J$154/JE7)^'Equations - Parameters'!$H$48)-LE7)) -> 0 | LG7: =+IF($C7="","",IF(IP7=0,0,IP7*EXP('Equations - Parameters'!$D$48*('Equations - Parameters'!$I$155/JE7)^'Equations - Parameters'!$E$48+'Equations - Parameters'!$F$48*HL7^'Equations - Parameters'!$G$48*('Equations - Parameters'!$J$155/JE7)^'Equations - Parameters'!$H$48)-LF7-LE7)) -> 0 | LH7: =+IF($C7="","",IF(IQ7=0,0,IQ7*EXP('Equations - Parameters'!$D$48*('Equations - Parameters'!$I$153/JF7)^'Equations - Parameters'!$E$48+'Equations - Parameters'!$F$48*HM7^'Equations - Parameters'!$G$48*('Equations - Parameters'!$J$153/JF7)^'Equations - Parameters'!$H$48))) -> 0 | LI7: =+IF($C7="","",IF(IQ7=0,0,IQ7*EXP('Equations - Parameters'!$D$48*('Equations - Parameters'!$I$154/JF7)^'Equations - Parameters'!$E$48+'Equations - Parameters'!$F$48*HM7^'Equations - Parameters'!$G$48*('Equations - Parameters'!$J$154/JF7)^'Equations - Parameters'!$H$48)-LH7)) -> 0 | LJ7: =+IF($C7="","",IF(IQ7=0,0,IQ7*EXP('Equations - Parameters'!$D$48*('Equations - Parameters'!$I$155/JF7)^'Equations - Parameters'!$E$48+'Equations - Parameters'!$F$48*HM7^'Equations - Parameters'!$G$48*('Equations - Parameters'!$J$155/JF7)^'Equations - Parameters'!$H$48)-LI7-LH7)) -> 0 | LK7: =+IF($C7="","",IF(IR7=0,0,IR7*EXP('Equations - Parameters'!$D$48*('Equations - Parameters'!$I$153/JG7)^'Equations - Parameters'!$E$48+'Equations - Parameters'!$F$48*HN7^'Equations - Parameters'!$G$48*('Equations - Parameters'!$J$153/JG7)^'Equations - Parameters'!$H$48))) -> 0 | LL7: =+IF($C7="","",IF(IR7=0,0,IR7*EXP('Equations - Parameters'!$D$48*('Equations - Parameters'!$I$154/JG7)^'Equations - Parameters'!$E$48+'Equations - Parameters'!$F$48*HN7^'Equations - Parameters'!$G$48*('Equations - Parameters'!$J$154/JG7)^'Equations - Parameters'!$H$48)-LK7)) -> 0 | LM7: =+IF($C7="","",IF(IR7=0,0,IR7*EXP('Equations - Parameters'!$D$48*('Equations - Parameters'!$I$155/JG7)^'Equations - Parameters'!$E$48+'Equations - Parameters'!$F$48*HN7^'Equations - Parameters'!$G$48*('Equations - Parameters'!$J$155/JG7)^'Equations - Parameters'!$H$48)-LL7-LK7)) -> 0 | LN7: =+IF($C7="","",IF(IS7=0,0,IS7*EXP('Equations - Parameters'!$D$48*('Equations - Parameters'!$I$153/JH7)^'Equations - Parameters'!$E$48+'Equations - Parameters'!$F$48*HO7^'Equations - Parameters'!$G$48*('Equations - Parameters'!$J$153/JH7)^'Equations - Parameters'!$H$48))) -> 0 | LO7: =+IF($C7="","",IF(IS7=0,0,IS7*EXP('Equations - Parameters'!$D$48*('Equations - Parameters'!$I$154/JH7)^'Equations - Parameters'!$E$48+'Equations - Parameters'!$F$48*HO7^'Equations - Parameters'!$G$48*('Equations - Parameters'!$J$154/JH7)^'Equations - Parameters'!$H$48)-LN7)) -> 0 | LP7: =+IF($C7="","",IF(IS7=0,0,IS7*EXP('Equations - Parameters'!$D$48*('Equations - Parameters'!$I$155/JH7)^'Equations - Parameters'!$E$48+'Equations - Parameters'!$F$48*HO7^'Equations - Parameters'!$G$48*('Equations - Parameters'!$J$155/JH7)^'Equations - Parameters'!$H$48)-LO7-LN7)) -> 0
